Workbook

Sheet Instructions
A1: CES Dynamic Charts
A3: Tool Instructions: | C3: Do not save under another name - the tool will break.
A5: Dashboard worksheet: allows you to navigate to other worksheets in the tool by choosing one of the 5 options (SA Charts, NSA Charts, etc.). Use green arrows to return to dashboard portal.
A7: SA and NSA Charts worksheets: Use the drop down menus to choose different sectors. The statistics in the table below it will automatically update.
A8: For the number of months, the limit is 100.
A18: Enter a month and year to see the level and percentage changes since that date.
A28: Enter a start and finish date to see level and percentage changes between those dates.
A38: Historical worksheet: Travel through the years by using the right arrow key on your keyboard, and watch the economic changes develop. Begin your journey at the far left of the spreadsheet in January 2005.
A39: Refer to the color key at the top of the page. Each cell is color coded to represent how well the sector performed during that time frame.
A40: Essentially, red colors show the lowest performance for that sector while blue colors show the best performance for that sector. The darker color red represents
A41: the lowest 15% of each sector's performance compared to its own historical performance, while the darkest blue color represents the top 15% of its performance.

Sheet Dashboard

Sheet SA Charts
B2: Series 1 | C2: Total Nonfarm | M2: Compare arbitrary dates:
B3: Series 2 | C3: Total Private | J3: Comparison to current month: | N3: Mo | O3: Yr
B4: Months | C4: 48 | J4: Month | K4: Yr | M4: Start | N4: 5 | O4: 2017
J5: 5 | K5: 2016 | M5: Finish | N5: 8 | O5: 2017
C6: Current | F6: OTM | H6: OTY | J6: Count | K6: Change | M6: Counts | O6: Change
C7: Count | D7: % of TNF | E7: % of other | F7: Level | G7: % | H7: Level | I7: % | J7: =IF(K5>2000,DATE(K5,J5,1),DATE(2000+K5,J5,1)) -> 2016-05-01 | K7: Level | L7: % | M7: =IF(O4>1999,DATE(O4,N4,1),DATE(1999+O4,N4,1)) -> 2017-05-01 | N7: =IF(O5>1999,DATE(O5,N5,1),DATE(1999+O5,N5,1)) -> 2017-08-01 | O7: Level | P7: %
B8: =C2 -> Total Nonfarm | C8: =OFFSET(SA!A1,MATCH(C2,SA!D2:D34,0),COUNTA(SA!1:1)-1,1,1) -> 2958400 | D8: =OFFSET(SA!A1,MATCH(C2,SA!D2:D34,0),COUNTA(SA!1:1)-1,1,1)/OFFSET(SA!A1,1,COUNTA(SA!1:1)-1,1,1) -> 1 | E8: =D8/D9 -> 1.163258886 | F8: =OFFSET(SA!A1,MATCH(C2,SA!D2:D34,0),COUNTA(SA!1:1)-1,1,1)-OFFSET(SA!A1,MATCH(C2,SA!D2:D34,0),COUNTA(SA!1:1)-2,1,1) -> 8600 | G8: =F8/OFFSET(SA!A1,MATCH(C2,SA!D2:D34,0),COUNTA(SA!1:1)-2,1,1) -> 0.002915451895 | H8: =OFFSET(SA!A1,MATCH(C2,SA!D2:D34,0),COUNTA(SA!1:1)-1,1,1)-OFFSET(SA!A1,MATCH(C2,SA!D2:D34,0),COUNTA(SA!1:1)-13,1,1) -> 34600 | I8: =H8/OFFSET(SA!A1,MATCH(C2,SA!D2:D34,0),COUNTA(SA!1:1)-13,1,1) -> 0.01183391477 | J8: =OFFSET(SA!A1,MATCH(C2,SA!D2:D34,0),MATCH(J7,SA!1:1,0)-1,1,1) -> 2916700 | K8: =C8-J8 -> 41700 | L8: =K8/OFFSET(SA!A1,MATCH(C2,SA!D2:D34,0),MATCH(J7,SA!1:1,0)-1,1,1) -> 0.01429697946 | M8: =OFFSET(SA!A1,MATCH(C2,SA!D2:D34,0),MATCH(M7,SA!1:1,0)-1,1,1) -> 2956500 | N8: =OFFSET(SA!A1,MATCH(C2,SA!D2:D34,0),MATCH(N7,SA!1:1,0)-1,1,1) -> 2949800 | O8: =N8-M8 -> -6700 | P8: =O8/M8 -> -0.002266193134
B9: =C3 -> Total Private | C9: =OFFSET(SA!A1,MATCH(C3,SA!D2:D45,0),COUNTA(SA!1:1)-1,1,1) -> 2543200 | D9: =OFFSET(SA!A1,MATCH(C3,SA!D2:D45,0),COUNTA(SA!1:1)-1,1,1)/OFFSET(SA!A1,1,COUNTA(SA!1:1)-1,1,1) -> 0.859653867 | E9: =D9/D8 -> 0.859653867 | F9: =OFFSET(SA!A1,MATCH(C3,SA!D2:D45,0),COUNTA(SA!1:1)-1,1,1)-OFFSET(SA!A1,MATCH(C3,SA!D2:D45,0),COUNTA(SA!1:1)-2,1,1) -> 5900 | G9: =F9/OFFSET(SA!A1,MATCH(C3,SA!D2:D45,0),COUNTA(SA!1:1)-2,1,1) -> 0.002325306428 | H9: =OFFSET(SA!A1,MATCH(C3,SA!D2:D45,0),COUNTA(SA!1:1)-1,1,1)-OFFSET(SA!A1,MATCH(C3,SA!D2:D45,0),COUNTA(SA!1:1)-13,1,1) -> 28800 | I9: =H9/OFFSET(SA!A1,MATCH(C3,SA!D2:D45,0),COUNTA(SA!1:1)-13,1,1) -> 0.01145402482 | J9: =OFFSET(SA!A1,MATCH(C3,SA!D2:D45,0),MATCH(J7,SA!1:1,0)-1,1,1) -> 2509200 | K9: =C9-J9 -> 34000 | L9: =K9/OFFSET(SA!A1,MATCH(C3,SA!D2:D45,0),MATCH(J7,SA!1:1,0)-1,1,1) -> 0.0135501355 | M9: =OFFSET(SA!A1,MATCH(C3,SA!D2:D34,0),MATCH(M7,SA!1:1,0)-1,1,1) -> 2539000 | N9: =OFFSET(SA!A1,MATCH(C3,SA!D2:D34,0),MATCH(N7,SA!1:1,0)-1,1,1) -> 2537300 | O9: =N9-M9 -> -1700 | P9: =O9/M9 -> -0.0006695549429
B39: =CONCATENATE("SA ",TRIM(B42)," / ",TRIM(B43)) -> SA Total Nonfarm / Total Private
B41: Month | C41: =OFFSET(SA!A1,0,COUNTA(SA!1:1)-'SA Charts'!C4,1,'SA Charts'!C4) -> 2013-10-01 | D41: 2013-11-01 | E41: 2013-12-01 | F41: 2014-01-01 | G41: 2014-02-01 | H41: 2014-03-01 | I41: 2014-04-01 | J41: 2014-05-01 | K41: 2014-06-01 | L41: 2014-07-01 | M41: 2014-08-01 | N41: 2014-09-01 | O41: 2014-10-01 | P41: 2014-11-01 | Q41: 2014-12-01 | R41: 2015-01-01 | S41: 2015-02-01 | T41: 2015-03-01 | U41: 2015-04-01 | V41: 2015-05-01 | W41: 2015-06-01 | X41: 2015-07-01 | Y41: 2015-08-01 | Z41: 2015-09-01 | AA41: 2015-10-01 | AB41: 2015-11-01 | AC41: 2015-12-01 | AD41: 2016-01-01 | AE41: 2016-02-01 | AF41: 2016-03-01 | AG41: 2016-04-01 | AH41: 2016-05-01 | AI41: 2016-06-01 | AJ41: 2016-07-01 | AK41: 2016-08-01 | AL41: 2016-09-01 | AM41: 2016-10-01 | AN41: 2016-11-01 | AO41: 2016-12-01 | AP41: 2017-01-01 | AQ41: 2017-02-01 | AR41: 2017-03-01 | AS41: 2017-04-01 | AT41: 2017-05-01 | AU41: 2017-06-01 | AV41: 2017-07-01 | AW41: 2017-08-01 | AX41: 2017-09-01
B42: =C2 -> Total Nonfarm | C42: =OFFSET(SA!A1,MATCH(C2,SA!D2:D34,0),COUNTA(SA!1:1)-'SA Charts'!C4,1,'SA Charts'!C4) -> 2820600 | D42: 2823400 | E42: 2826300 | F42: 2831400 | G42: 2832700 | H42: 2836200 | I42: 2843100 | J42: 2845700 | K42: 2852200 | L42: 2852100 | M42: 2864400 | N42: 2862200 | O42: 2863600 | P42: 2875800 | Q42: 2870000 | R42: 2874900 | S42: 2877800 | T42: 2882100 | U42: 2882900 | V42: 2888100 | W42: 2890800 | X42: 2893700 | Y42: 2896600 | Z42: 2896600 | AA42: 2901300 | AB42: 2901600 | AC42: 2907900 | AD42: 2918400 | AE42: 2922600 | AF42: 2923000 | AG42: 2924300 | AH42: 2916700 | AI42: 2916800 | AJ42: 2928200 | AK42: 2929100 | AL42: 2923800 | AM42: 2930100 | AN42: 2933800 | AO42: 2934300 | AP42: 2939700 | AQ42: 2950800 | AR42: 2947100 | AS42: 2960200 | AT42: 2956500 | AU42: 2951100 | AV42: 2956900 | AW42: 2949800 | AX42: 2958400
B43: =C3 -> Total Private | C43: =OFFSET(SA!A1,MATCH(C3,SA!D2:D45,0),COUNTA(SA!1:1)-'SA Charts'!C4,1,'SA Charts'!C4) -> 2409100 | D43: 2413800 | E43: 2415600 | F43: 2419600 | G43: 2423700 | H43: 2426000 | I43: 2432300 | J43: 2435300 | K43: 2441200 | L43: 2440300 | M43: 2447000 | N43: 2449200 | O43: 2451800 | P43: 2459400 | Q43: 2458800 | R43: 2465000 | S43: 2466900 | T43: 2471700 | U43: 2472600 | V43: 2478800 | W43: 2481300 | X43: 2485200 | Y43: 2488500 | Z43: 2488400 | AA43: 2493300 | AB43: 2496800 | AC43: 2498900 | AD43: 2508300 | AE43: 2512600 | AF43: 2513200 | AG43: 2513800 | AH43: 2509200 | AI43: 2506900 | AJ43: 2515400 | AK43: 2514500 | AL43: 2514400 | AM43: 2514500 | AN43: 2513300 | AO43: 2516100 | AP43: 2526500 | AQ43: 2534800 | AR43: 2535600 | AS43: 2541600 | AT43: 2539000 | AU43: 2540300 | AV43: 2539800 | AW43: 2537300 | AX43: 2543200
B44: OTM 1 | D44: =D42-C42 -> 2800 | E44: =E42-D42 -> 2900 | F44: 5100 | G44: 1300 | H44: 3500 | I44: 6900 | J44: =J42-I42 -> 2600 | K44: 6500 | L44: -100 | M44: 12300 | N44: -2200 | O44: 1400 | P44: 12200 | Q44: -5800 | R44: 4900 | S44: 2900 | T44: 4300 | U44: 800 | V44: 5200 | W44: 2700 | X44: 2900 | Y44: 2900 | Z44: 0 | AA44: 4700 | AB44: 300 | AC44: 6300 | AD44: 10500 | AE44: 4200 | AF44: 400 | AG44: 1300 | AH44: -7600 | AI44: 100 | AJ44: 11400 | AK44: 900 | AL44: -5300 | AM44: 6300 | AN44: 3700 | AO44: 500 | AP44: 5400 | AQ44: 11100 | AR44: -3700 | AS44: 13100 | AT44: -3700 | AU44: -5400 | AV44: 5800 | AW44: -7100 | AX44: 8600 | BV44: =BV42-BU42 -> 
B45: OTM 2 | D45: 4700 | E45: 1800 | F45: 4000 | G45: 4100 | H45: 2300 | I45: 6300 | J45: =J43-I43 -> 3000 | K45: 5900 | L45: -900 | M45: 6700 | N45: 2200 | O45: 2600 | P45: 7600 | Q45: -600 | R45: 6200 | S45: 1900 | T45: 4800 | U45: 900 | V45: 6200 | W45: 2500 | X45: 3900 | Y45: 3300 | Z45: -100 | AA45: 4900 | AB45: 3500 | AC45: 2100 | AD45: 9400 | AE45: 4300 | AF45: 600 | AG45: 600 | AH45: -4600 | AI45: -2300 | AJ45: 8500 | AK45: -900 | AL45: -100 | AM45: 100 | AN45: -1200 | AO45: 2800 | AP45: 10400 | AQ45: 8300 | AR45: 800 | AS45: 6000 | AT45: -2600 | AU45: 1300 | AV45: -500 | AW45: -2500 | AX45: 5900 | BV45: =BV43-BU43 -> 
B46: %OTM 1 | D46: =D44/C42*100 -> 0.09926965894 | E46: 0.102713041 | F46: 0.1804479355 | G46: 0.04591368228 | H46: 0.1235570304 | I46: 0.2432832663 | J46: =J44/I42*100 -> 0.09144947417 | K46: 0.2284148013 | L46: -0.003506065493 | M46: 0.431261176 | N46: -0.07680491551 | O46: 0.04891342324 | P46: 0.426037156 | Q46: -0.2016830099 | R46: 0.1707317073 | S46: 0.1008730738 | T46: 0.1494196956 | U46: 0.02775753791 | V46: 0.180373929 | W46: 0.09348706762 | X46: 0.100318251 | Y46: 0.1002177143 | Z46: 0 | AA46: 0.1622592004 | AB46: 0.01034019233 | AC46: 0.2171215881 | AD46: 0.3610853193 | AE46: 0.1439144737 | AF46: 0.01368644358 | AG46: 0.0444748546 | AH46: -0.259891256 | AI46: 0.003428532245 | AJ46: 0.3908392759 | AK46: 0.03073560549 | AL46: -0.1809429518 | AM46: 0.2154730146 | AN46: 0.1262755537 | AO46: 0.0170427432 | AP46: 0.1840302628 | AQ46: 0.37758955 | AR46: -0.1253897248 | AS46: 0.4445047674 | AT46: -0.1249915546 | AU46: -0.1826484018 | AV46: 0.1965368846 | AW46: -0.2401163381 | AX46: 0.2915451895 | BV46: =BV44/BU42*100 -> 
B47: %OTM 2 | D47: 0.1950936034 | E47: 0.07457121551 | F47: 0.1655903295 | G47: 0.1694494958 | H47: 0.09489623303 | I47: 0.2596867271 | J47: =J45/I43*100 -> 0.1233400485 | K47: 0.2422699462 | L47: -0.03686711453 | M47: 0.274556407 | N47: 0.08990600736 | O47: 0.1061571125 | P47: 0.3099763439 | Q47: -0.02439619419 | R47: 0.252155523 | S47: 0.07707910751 | T47: 0.1945761887 | U47: 0.03641218594 | V47: 0.2507482003 | W47: 0.1008552525 | X47: 0.157175674 | Y47: 0.1327860937 | Z47: -0.004018485031 | AA47: 0.1969136795 | AB47: 0.1403762082 | AC47: 0.0841076578 | AD47: 0.3761655128 | AE47: 0.1714308496 | AF47: 0.02387964658 | AG47: 0.02387394557 | AH47: -0.1829898958 | AI47: -0.09166268133 | AJ47: 0.3390641829 | AK47: -0.03577959768 | AL47: -0.003976933784 | AM47: 0.00397709195 | AN47: -0.04772320541 | AO47: 0.1114073131 | AP47: 0.4133381026 | AQ47: 0.3285177123 | AR47: 0.0315606754 | AS47: 0.2366303833 | AT47: -0.1022977652 | AU47: 0.05120126034 | AV47: -0.01968271464 | AW47: -0.09843294748 | AX47: 0.2325306428 | BV47: =BV45/BU43*100 -> 
C48: Used for pop-up menus. --> | D48: None | BJ48: =(BJ42-BI42)/(BB42-BI42) -> 
C49: May need to change if | D49: =SA!D2 -> Total Nonfarm | BJ49: =(BJ43-BI43)/(BB43-BI43) ->  | DD49: `
C50: SA sector names change. | D50: =SA!D3 -> Total Private
D51: =SA!D4 -> Goods Producing
D52: =SA!D5 -> Service-Providing | M52: <-- Button no longer needed; relevant code called directly when parameter cells change.
D53: =SA!D6 -> Private Service Providing
D54: =SA!D7 -> Mining and Logging | K54: Axis range calculations (referenced in axis-manipulation code)
D55: =SA!D9 -> Construction | K55: Ave | L55: SD | M55: Min | N55: Max | O55: SDMin | P55: SDMax | Q55: AxisSDMin | R55: AxisSDMax | S55: AxisMin | T55: AxisMax
D56: =SA!D10 -> Manufacturing | K56: =AVERAGE(OFFSET($C42,0,0,1,$C$4)) -> 2897200 | L56: =STDEV(OFFSET($C42,0,0,1,$C$4)) -> 41716.0462 | M56: =MIN(OFFSET($C42,0,0,1,$C$4)) -> 2820600 | N56: =MAX(OFFSET($C42,0,0,1,$C$4)) -> 2960200 | O56: =(M56-$K56)/$L56 -> -1.836223875 | P56: =(N56-$K56)/$L56 -> 1.510210237 | Q56: =IF(ISNA(O57),FLOOR(O56,0.25),FLOOR(MIN($O$56:$O$57),0.25)) -> -2 | R56: =IF(ISNA(P57),CEILING(P56,0.25),CEILING(MAX($P$56:$P$57),0.25)) -> 1.75 | S56: =Q56*$L56+$K56 -> 2813767.908 | T56: =R56*$L56+$K56 -> 2970203.081
D57: =SA!D11 -> Durable Goods | K57: =AVERAGE(OFFSET($C43,0,0,1,$C$4)) -> 2485433.333 | L57: =STDEV(OFFSET($C43,0,0,1,$C$4)) -> 40575.69408 | M57: =MIN(OFFSET($C43,0,0,1,$C$4)) -> 2409100 | N57: =MAX(OFFSET($C43,0,0,1,$C$4)) -> 2543200 | O57: =(M57-$K57)/$L57 -> -1.881257611 | P57: =(N57-$K57)/$L57 -> 1.423676612 | Q57: =IF(ISNA(O56),FLOOR(O57,0.25),FLOOR(MIN($O$56:$O$57),0.25)) -> -2 | R57: =IF(ISNA(P56),CEILING(P57,0.25),CEILING(MAX($P$56:$P$57),0.25)) -> 1.75 | S57: =Q57*$L57+$K57 -> 2404281.945 | T57: =R57*$L57+$K57 -> 2556440.798
D58: =SA!D12 -> Non-Durable Goods
D59: =SA!D13 -> Trade, Transportation, and Utilities
D60: =SA!D14 -> Wholesale Trade
D61: =SA!D15 -> Retail Trade
D62: =SA!D16 -> Transportation, Warehousing, and Utilities
D63: =SA!D17 -> Information
D64: =SA!D18 -> Financial Activities
D65: =SA!D19 -> Real Estate and Rental and Leasing
D66: =SA!D20 -> Professional and Business Services
D67: =SA!D21 -> Professional, Scientific, and Technical Services
D68: =SA!D23 -> Administrative and Support and Waste Management and Remediation Services
D69: =SA!D24 -> Education and Health Services
D70: =SA!D25 -> Educational Services
D71: =SA!D26 -> Health Care and Social Assistance
D72: =SA!D27 -> Leisure and Hospitality
D73: =SA!D28 -> Arts, Entertainment, and Recreation
D74: =SA!D29 -> Accommodation and Food Services
D75: =SA!D30 -> Other Services
D76: =SA!D31 -> Government
D77: =SA!D32 -> Federal Government
D78: =SA!D33 -> State Government
D79: =SA!D34 -> Local Government

Sheet NSA Charts
B2: Series 1 | C2: Total Nonfarm | F2: Series 3 | G2: Manufacturing | K2: Comparison to current month: | N2: Compare arbitrary dates:
B3: Series 2 | C3: Construction | F3: Series 4 | G3: Construction | O3: Mo | P3: Yr
B4: Months | C4: 48 | K4: Month | L4: Yr | N4: Start | O4: 5 | P4: 2017
K5: 5 | L5: 2016 | N5: Finish | O5: 8 | P5: 2017
C7: Current | F7: OTM | H7: OTY | J7: =B7 -> 0 | K7: Count | L7: Change | N7: Counts | P7: Change
C8: Count | D8: % of TNF | E8: % of SS | F8: Level | G8: % | H8: Level | I8: % | J8: 0 | K8: =IF(L5>2000,DATE(L5,K5,1),DATE(2000+L5,K5,1)) -> 2016-05-01 | L8: Level | M8: % | N8: =IF(P4>2000,DATE(P4,O4,1),DATE(2000+P4,O4,1)) -> 2017-05-01 | O8: =IF(P5>2000,DATE(P5,O5,1),DATE(2000+P5,O5,1)) -> 2017-08-01 | P8: Level | Q8: %
B9: =C2 -> Total Nonfarm | C9: =OFFSET(NSA!A1,MATCH(C2,NSA!D2:D89,0),COUNTA(NSA!1:1)+1,1,1) -> 2975500 | D9: =OFFSET(NSA!A1,MATCH(C2,NSA!D2:D89,0),COUNTA(NSA!1:1),1,1)/OFFSET(NSA!A1,1,COUNTA(NSA!1:1),1,1) -> 1 | E9: SS | F9: =OFFSET(NSA!A1,MATCH(C2,NSA!D2:D89,0),COUNTA(NSA!1:1)+1,1,1)-OFFSET(NSA!A1,MATCH(C2,NSA!D2:D89,0),COUNTA(NSA!1:1),1,1) -> -2000 | G9: =F9/OFFSET(NSA!C1,MATCH(C2,NSA!D2:D89,0),COUNTA(NSA!1:1)-2,1,1) -> -0.00067170445 | H9: =OFFSET(NSA!A1,MATCH(C2,NSA!D2:D89,0),COUNTA(NSA!1:1)+1,1,1)-OFFSET(NSA!A1,MATCH(C2,NSA!D2:D89,0),COUNTA(NSA!1:1)-11,1,1) -> 33600 | I9: =H9/OFFSET(NSA!C1,MATCH(C2,NSA!D2:D89,0),COUNTA(NSA!1:1)-13,1,1) -> 0.01142119039 | J9: Total Nonfarm | K9: =OFFSET(NSA!A1,MATCH(C2,NSA!D2:D98,0),MATCH(K8,NSA!1:1,0)-1,1,1) -> 2933200 | L9: =C9-K9 -> 42300 | M9: =L9/OFFSET(NSA!A1,MATCH(C2,NSA!D2:D89,0),MATCH(K8,NSA!1:1,0),1,1) -> 0.01432975372 | N9: =OFFSET(NSA!C1,MATCH(C2,NSA!D2:D89,0),MATCH(N8,NSA!1:1,0)-3,1,1) -> 2968800 | O9: =OFFSET(NSA!C1,MATCH(C2,NSA!D2:D89,0),MATCH(O8,NSA!1:1,0)-3,1,1) -> 2977500 | P9: =O9-N9 -> 8700 | Q9: =P9/N9 -> 0.00293047696
B10: =C3 -> Construction | C10: =OFFSET(NSA!A1,MATCH(C3,NSA!D2:D89,0),COUNTA(NSA!1:1)+1,1,1) -> 120900 | D10: =OFFSET(NSA!A1,MATCH(C3,NSA!D2:D89,0),COUNTA(NSA!1:1),1,1)/OFFSET(NSA!A1,1,COUNTA(NSA!1:1),1,1) -> 0.04154492024 | E10: =C10/C9 -> 0.04063182658 | F10: =OFFSET(NSA!A1,MATCH(C3,NSA!D2:D89,0),COUNTA(NSA!1:1)+1,1,1)-OFFSET(NSA!A1,MATCH(C3,NSA!D2:D89,0),COUNTA(NSA!1:1),1,1) -> -2800 | G10: =F10/OFFSET(NSA!C1,MATCH(C3,NSA!D2:D89,0),COUNTA(NSA!1:1)-2,1,1) -> -0.02263540825 | H10: =OFFSET(NSA!A1,MATCH(C3,NSA!D2:D89,0),COUNTA(NSA!1:1)+1,1,1)-OFFSET(NSA!A1,MATCH(C3,NSA!D2:D89,0),COUNTA(NSA!1:1)-11,1,1) -> 2000 | I10: =H10/OFFSET(NSA!C1,MATCH(C3,NSA!D2:D89,0),COUNTA(NSA!1:1)-13,1,1) -> 0.01682085786 | J10: Construction | K10: =OFFSET(NSA!A1,MATCH(C3,NSA!D2:D89,0),MATCH(K8,NSA!1:1,0)-1,1,1) -> 114700 | L10: =C10-K10 -> 6200 | M10: =L10/OFFSET(NSA!A1,MATCH(C3,NSA!D2:D89,0),MATCH(K8,NSA!1:1,0),1,1) -> 0.05188284519 | N10: =OFFSET(NSA!C1,MATCH(C3,NSA!D2:D89,0),MATCH(N8,NSA!1:1,0)-3,1,1) -> 117100 | O10: =OFFSET(NSA!C1,MATCH(C3,NSA!D2:D89,0),MATCH(O8,NSA!1:1,0)-3,1,1) -> 123700 | P10: =O10-N10 -> 6600 | Q10: =P10/N10 -> 0.05636208369
B11: =G2 -> Manufacturing | C11: =OFFSET(NSA!A1,MATCH(G2,NSA!D2:D89,0),COUNTA(NSA!1:1)+1,1,1) -> 476000 | D11: =OFFSET(NSA!A1,MATCH(G2,NSA!D2:D89,0),COUNTA(NSA!1:1),1,1)/OFFSET(NSA!A1,1,COUNTA(NSA!1:1),1,1) -> 0.1617464316 | E11: =C11/C9 -> 0.1599731138 | F11: =OFFSET(NSA!A1,MATCH(G2,NSA!D2:D89,0),COUNTA(NSA!1:1)+1,1,1)-OFFSET(NSA!A1,MATCH(G2,NSA!D2:D89,0),COUNTA(NSA!1:1),1,1) -> -5600 | G11: =F11/OFFSET(NSA!C1,MATCH(G2,NSA!D2:D89,0),COUNTA(NSA!1:1)-2,1,1) -> -0.01162790698 | H11: =OFFSET(NSA!A1,MATCH(G2,NSA!D2:D89,0),COUNTA(NSA!1:1)+1,1,1)-OFFSET(NSA!A1,MATCH(G2,NSA!D2:D89,0),COUNTA(NSA!1:1)-11,1,1) -> 10600 | I11: =H11/OFFSET(NSA!C1,MATCH(G2,NSA!D2:D89,0),COUNTA(NSA!1:1)-13,1,1) -> 0.02277610657 | J11: Manufacturing | K11: =OFFSET(NSA!A1,MATCH(G2,NSA!D2:D89,0),MATCH(K8,NSA!1:1,0)-1,1,1) -> 462400 | L11: 13600 | M11: =L11/OFFSET(NSA!A1,MATCH(G2,NSA!D2:D89,0),MATCH(K8,NSA!1:1,0),1,1) -> 0.02894232815 | N11: =OFFSET(NSA!C1,MATCH(G2,NSA!D2:D89,0),MATCH(N8,NSA!1:1,0)-3,1,1) -> 470400 | O11: =OFFSET(NSA!C1,MATCH(G2,NSA!D2:D89,0),MATCH(O8,NSA!1:1,0)-3,1,1) -> 481600 | P11: =O11-N11 -> 11200 | Q11: =P11/N11 -> 0.02380952381
B12: =G3 -> Construction | C12: =OFFSET(NSA!A1,MATCH(G3,NSA!D2:D89,0),COUNTA(NSA!1:1)+1,1,1) -> 120900 | D12: =OFFSET(NSA!A1,MATCH(G3,NSA!D2:D89,0),COUNTA(NSA!1:1),1,1)/OFFSET(NSA!A1,1,COUNTA(NSA!1:1),1,1) -> 0.04154492024 | E12: =C12/C9 -> 0.04063182658 | F12: =OFFSET(NSA!A1,MATCH(G3,NSA!D2:D89,0),COUNTA(NSA!1:1)+1,1,1)-OFFSET(NSA!A1,MATCH(G3,NSA!D2:D89,0),COUNTA(NSA!1:1),1,1) -> -2800 | G12: =F12/OFFSET(NSA!C1,MATCH(G3,NSA!D2:D89,0),COUNTA(NSA!1:1)-2,1,1) -> -0.02263540825 | H12: =OFFSET(NSA!A1,MATCH(G3,NSA!D2:D89,0),COUNTA(NSA!1:1)+1,1,1)-OFFSET(NSA!A1,MATCH(G3,NSA!D2:D89,0),COUNTA(NSA!1:1)-11,1,1) -> 2000 | I12: =H12/OFFSET(NSA!C1,MATCH(G3,NSA!D2:D89,0),COUNTA(NSA!1:1)-13,1,1) -> 0.01682085786 | J12: Construction | K12: =OFFSET(NSA!A1,MATCH(G3,NSA!D2:D89,0),MATCH(K8,NSA!1:1,0)-1,1,1) -> 114700 | L12: 6200 | M12: =L12/OFFSET(NSA!A1,MATCH(G3,NSA!D2:D89,0),MATCH(K8,NSA!1:1,0),1,1) -> 0.05188284519 | N12: =OFFSET(NSA!C1,MATCH(G3,NSA!D2:D89,0),MATCH(N8,NSA!1:1,0)-3,1,1) -> 117100 | O12: =OFFSET(NSA!C1,MATCH(G3,NSA!D2:D89,0),MATCH(O8,NSA!1:1,0)-3,1,1) -> 123700 | P12: =O12-N12 -> 6600 | Q12: =P12/N12 -> 0.05636208369
B55: =CONCATENATE("NSA ",TRIM(B57)," / ",TRIM(B58)) -> NSA Total Nonfarm / Construction | C55: 0 | D55: =C55+1 -> 1 | E55: =D55+1 -> 2 | F55: =E55+1 -> 3 | G55: 4 | H55: 5 | I55: 6 | J55: 7 | K55: 8 | L55: 9 | M55: 10 | N55: 11 | O55: 12 | P55: 13 | Q55: 14 | R55: 15 | S55: 16 | T55: 17 | U55: 18 | V55: 19 | W55: 20 | X55: 21 | Y55: 22 | Z55: 23 | AA55: 24 | AB55: 25 | AC55: 26 | AD55: 27 | AE55: 28 | AF55: 29 | AG55: 30 | AH55: 31 | AI55: 32 | AJ55: 33 | AK55: 34 | AL55: 35 | AM55: 36 | AN55: 37 | AO55: 38 | AP55: 39 | AQ55: 40 | AR55: 41 | AS55: 42 | AT55: 43 | AU55: 44 | AV55: 45 | AW55: 46 | AX55: 47 | AY55: 48 | AZ55: 49 | BA55: 50 | BB55: 51 | BC55: 52 | BD55: 53 | BE55: 54 | BF55: 55 | BG55: 56 | BH55: 57 | BI55: 58 | BJ55: 59 | BK55: 60 | BL55: 61 | BM55: 62 | BN55: 63 | BO55: 64 | BP55: 65 | BQ55: 66 | BR55: =BQ55+1 -> 67 | BS55: 68 | BT55: 69 | BU55: 70 | BV55: 71 | BW55: 72 | BX55: 73 | BY55: 74 | BZ55: 75 | CA55: 76 | CB55: 77 | CC55: 78 | CD55: 79 | CE55: 80 | CF55: 81 | CG55: 82 | CH55: 83 | CI55: 84 | CJ55: 85 | CK55: 86 | CL55: 87 | CM55: 88 | CN55: 89 | CO55: 90 | CP55: 91 | CQ55: 92 | CR55: 93 | CS55: 94 | CT55: 95 | CU55: 96 | CV55: 97 | CW55: 98 | CX55: 99 | CY55: 100 | CZ55: 101
B56: Month | C56: =OFFSET(SA!A1,0,COUNTA(SA!1:1)-'NSA Charts'!C4,1,'NSA Charts'!C4) -> 2013-10-01 | D56: 2013-11-01 | E56: 2013-12-01 | F56: 2014-01-01 | G56: 2014-02-01 | H56: 2014-03-01 | I56: 2014-04-01 | J56: 2014-05-01 | K56: 2014-06-01 | L56: 2014-07-01 | M56: 2014-08-01 | N56: 2014-09-01 | O56: 2014-10-01 | P56: 2014-11-01 | Q56: 2014-12-01 | R56: 2015-01-01 | S56: 2015-02-01 | T56: 2015-03-01 | U56: 2015-04-01 | V56: 2015-05-01 | W56: 2015-06-01 | X56: 2015-07-01 | Y56: 2015-08-01 | Z56: 2015-09-01 | AA56: 2015-10-01 | AB56: 2015-11-01 | AC56: 2015-12-01 | AD56: 2016-01-01 | AE56: 2016-02-01 | AF56: 2016-03-01 | AG56: 2016-04-01 | AH56: 2016-05-01 | AI56: 2016-06-01 | AJ56: 2016-07-01 | AK56: 2016-08-01 | AL56: 2016-09-01 | AM56: 2016-10-01 | AN56: 2016-11-01 | AO56: 2016-12-01 | AP56: 2017-01-01 | AQ56: 2017-02-01 | AR56: 2017-03-01 | AS56: 2017-04-01 | AT56: 2017-05-01 | AU56: 2017-06-01 | AV56: 2017-07-01 | AW56: 2017-08-01 | AX56: 2017-09-01
B57: =C2 -> Total Nonfarm | C57: =OFFSET(NSA!$C$1,MATCH($C$2,NSA!$D$2:$D$89,0),COUNTA(NSA!1:1)-($C$4-C$55)) -> 2849800 | D57: =OFFSET(NSA!$C$1,MATCH($C$2,NSA!$D$2:$D$89,0),COUNTA(NSA!1:1)-($C$4-D$55)) -> 2853400 | E57: =OFFSET(NSA!$C$1,MATCH($C$2,NSA!$D$2:$D$88,0),COUNTA(NSA!1:1)-($C$4-E55)) -> 2847000 | F57: =OFFSET(NSA!$C$1,MATCH($C$2,NSA!$D$2:$D$88,0),COUNTA(NSA!1:1)-($C$4-F55)) -> 2761800 | G57: =OFFSET(NSA!$C$1,MATCH($C$2,NSA!$D$2:$D$88,0),COUNTA(NSA!1:1)-($C$4-G55)) -> 2778500 | H57: =OFFSET(NSA!$C$1,MATCH($C$2,NSA!$D$2:$D$88,0),COUNTA(NSA!1:1)-($C$4-H55)) -> 2792100 | I57: =OFFSET(NSA!$C$1,MATCH($C$2,NSA!$D$2:$D$88,0),COUNTA(NSA!1:1)-($C$4-I55)) -> 2827800 | J57: =OFFSET(NSA!$C$1,MATCH($C$2,NSA!$D$2:$D$88,0),COUNTA(NSA!1:1)-($C$4-J55)) -> 2863000 | K57: =OFFSET(NSA!$C$1,MATCH($C$2,NSA!$D$2:$D$88,0),COUNTA(NSA!1:1)-($C$4-K55)) -> 2888600 | L57: =OFFSET(NSA!$C$1,MATCH($C$2,NSA!$D$2:$D$88,0),COUNTA(NSA!1:1)-($C$4-L55)) -> 2867000 | M57: =OFFSET(NSA!$C$1,MATCH($C$2,NSA!$D$2:$D$88,0),COUNTA(NSA!1:1)-($C$4-M55)) -> 2880300 | N57: =OFFSET(NSA!$C$1,MATCH($C$2,NSA!$D$2:$D$88,0),COUNTA(NSA!1:1)-($C$4-N55)) -> 2881700 | O57: =OFFSET(NSA!$C$1,MATCH($C$2,NSA!$D$2:$D$88,0),COUNTA(NSA!1:1)-($C$4-O55)) -> 2892900 | P57: =OFFSET(NSA!$C$1,MATCH($C$2,NSA!$D$2:$D$88,0),COUNTA(NSA!1:1)-($C$4-P55)) -> 2902800 | Q57: =OFFSET(NSA!$C$1,MATCH($C$2,NSA!$D$2:$D$88,0),COUNTA(NSA!1:1)-($C$4-Q55)) -> 2891100 | R57: =OFFSET(NSA!$C$1,MATCH($C$2,NSA!$D$2:$D$88,0),COUNTA(NSA!1:1)-($C$4-R55)) -> 2805000 | S57: =OFFSET(NSA!$C$1,MATCH($C$2,NSA!$D$2:$D$88,0),COUNTA(NSA!1:1)-($C$4-S55)) -> 2824400 | T57: =OFFSET(NSA!$C$1,MATCH($C$2,NSA!$D$2:$D$88,0),COUNTA(NSA!1:1)-($C$4-T55)) -> 2838100 | U57: =OFFSET(NSA!$C$1,MATCH($C$2,NSA!$D$2:$D$88,0),COUNTA(NSA!1:1)-($C$4-U55)) -> 2877300 | V57: =OFFSET(NSA!$C$1,MATCH($C$2,NSA!$D$2:$D$88,0),COUNTA(NSA!1:1)-($C$4-V55)) -> 2905400 | W57: =OFFSET(NSA!$C$1,MATCH($C$2,NSA!$D$2:$D$88,0),COUNTA(NSA!1:1)-($C$4-W55)) -> 2927300 | X57: =OFFSET(NSA!$C$1,MATCH($C$2,NSA!$D$2:$D$88,0),COUNTA(NSA!1:1)-($C$4-X55)) -> 2911000 | Y57: =OFFSET(NSA!$C$1,MATCH($C$2,NSA!$D$2:$D$88,0),COUNTA(NSA!1:1)-($C$4-Y55)) -> 2912900 | Z57: =OFFSET(NSA!$C$1,MATCH($C$2,NSA!$D$2:$D$88,0),COUNTA(NSA!1:1)-($C$4-Z55)) -> 2915400 | AA57: =OFFSET(NSA!$C$1,MATCH($C$2,NSA!$D$2:$D$88,0),COUNTA(NSA!1:1)-($C$4-AA55)) -> 2929700 | AB57: =OFFSET(NSA!$C$1,MATCH($C$2,NSA!$D$2:$D$88,0),COUNTA(NSA!1:1)-($C$4-AB55)) -> 2928300 | AC57: =OFFSET(NSA!$C$1,MATCH($C$2,NSA!$D$2:$D$88,0),COUNTA(NSA!1:1)-($C$4-AC55)) -> 2928900 | AD57: =OFFSET(NSA!$C$1,MATCH($C$2,NSA!$D$2:$D$88,0),COUNTA(NSA!1:1)-($C$4-AD55)) -> 2847900 | AE57: =OFFSET(NSA!$C$1,MATCH($C$2,NSA!$D$2:$D$88,0),COUNTA(NSA!1:1)-($C$4-AE55)) -> 2868700 | AF57: =OFFSET(NSA!$C$1,MATCH($C$2,NSA!$D$2:$D$88,0),COUNTA(NSA!1:1)-($C$4-AF55)) -> 2878500 | AG57: =OFFSET(NSA!$C$1,MATCH($C$2,NSA!$D$2:$D$88,0),COUNTA(NSA!1:1)-($C$4-AG55)) -> 2919100 | AH57: =OFFSET(NSA!$C$1,MATCH($C$2,NSA!$D$2:$D$88,0),COUNTA(NSA!1:1)-($C$4-AH55)) -> 2933200 | AI57: =OFFSET(NSA!$C$1,MATCH($C$2,NSA!$D$2:$D$88,0),COUNTA(NSA!1:1)-($C$4-AI55)) -> 2951900 | AJ57: =OFFSET(NSA!$C$1,MATCH($C$2,NSA!$D$2:$D$88,0),COUNTA(NSA!1:1)-($C$4-AJ55)) -> 2945000 | AK57: =OFFSET(NSA!$C$1,MATCH($C$2,NSA!$D$2:$D$88,0),COUNTA(NSA!1:1)-($C$4-AK55)) -> 2946400 | AL57: =OFFSET(NSA!$C$1,MATCH($C$2,NSA!$D$2:$D$88,0),COUNTA(NSA!1:1)-($C$4-AL55)) -> 2941900 | AM57: =OFFSET(NSA!$C$1,MATCH($C$2,NSA!$D$2:$D$88,0),COUNTA(NSA!1:1)-($C$4-AM55)) -> 2961600 | AN57: =OFFSET(NSA!$C$1,MATCH($C$2,NSA!$D$2:$D$88,0),COUNTA(NSA!1:1)-($C$4-AN55)) -> 2961200 | AO57: =OFFSET(NSA!$C$1,MATCH($C$2,NSA!$D$2:$D$88,0),COUNTA(NSA!1:1)-($C$4-AO55)) -> 2935200 | AP57: =OFFSET(NSA!$C$1,MATCH($C$2,NSA!$D$2:$D$88,0),COUNTA(NSA!1:1)-($C$4-AP55)) -> 2874000 | AQ57: =OFFSET(NSA!$C$1,MATCH($C$2,NSA!$D$2:$D$88,0),COUNTA(NSA!1:1)-($C$4-AQ55)) -> 2897600 | AR57: =OFFSET(NSA!$C$1,MATCH($C$2,NSA!$D$2:$D$88,0),COUNTA(NSA!1:1)-($C$4-AR55)) -> 2901900 | AS57: =OFFSET(NSA!$C$1,MATCH($C$2,NSA!$D$2:$D$88,0),COUNTA(NSA!1:1)-($C$4-AS55)) -> 2939800 | AT57: =OFFSET(NSA!$C$1,MATCH($C$2,NSA!$D$2:$D$88,0),COUNTA(NSA!1:1)-($C$4-AT55)) -> 2968800 | AU57: =OFFSET(NSA!$C$1,MATCH($C$2,NSA!$D$2:$D$88,0),COUNTA(NSA!1:1)-($C$4-AU55)) -> 2992200 | AV57: =OFFSET(NSA!$C$1,MATCH($C$2,NSA!$D$2:$D$88,0),COUNTA(NSA!1:1)-($C$4-AV55)) -> 2979300 | AW57: =OFFSET(NSA!$C$1,MATCH($C$2,NSA!$D$2:$D$88,0),COUNTA(NSA!1:1)-($C$4-AW55)) -> 2977500 | AX57: =OFFSET(NSA!$C$1,MATCH($C$2,NSA!$D$2:$D$89,0),COUNTA(NSA!1:1)-($C$4-AX55)) -> 2975500 | AY57: =OFFSET(NSA!$C$1,MATCH($C$2,NSA!$D$2:$D$88,0),COUNTA(NSA!1:1)-($C$4-AY55)) -> 0 | AZ57: =OFFSET(NSA!$C$1,MATCH($C$2,NSA!$D$2:$D$88,0),COUNTA(NSA!1:1)-($C$4-AZ55)) -> 0 | BA57: =OFFSET(NSA!$C$1,MATCH($C$2,NSA!$D$2:$D$88,0),COUNTA(NSA!1:1)-($C$4-BA55)) -> 0 | BB57: =OFFSET(NSA!$C$1,MATCH($C$2,NSA!$D$2:$D$88,0),COUNTA(NSA!1:1)-($C$4-BB55)) -> 0 | BC57: =OFFSET(NSA!$C$1,MATCH($C$2,NSA!$D$2:$D$88,0),COUNTA(NSA!1:1)-($C$4-BC55)) -> 0 | BD57: =OFFSET(NSA!$C$1,MATCH($C$2,NSA!$D$2:$D$88,0),COUNTA(NSA!1:1)-($C$4-BD55)) -> 0 | BE57: =OFFSET(NSA!$C$1,MATCH($C$2,NSA!$D$2:$D$88,0),COUNTA(NSA!1:1)-($C$4-BE55)) -> 0 | BF57: =OFFSET(NSA!$C$1,MATCH($C$2,NSA!$D$2:$D$88,0),COUNTA(NSA!1:1)-($C$4-BF55)) -> 0 | BG57: =OFFSET(NSA!$C$1,MATCH($C$2,NSA!$D$2:$D$88,0),COUNTA(NSA!1:1)-($C$4-BG55)) -> 0 | BH57: =OFFSET(NSA!$C$1,MATCH($C$2,NSA!$D$2:$D$88,0),COUNTA(NSA!1:1)-($C$4-BH55)) -> 0 | BI57: =OFFSET(NSA!$C$1,MATCH($C$2,NSA!$D$2:$D$88,0),COUNTA(NSA!1:1)-($C$4-BI55)) -> 0 | BJ57: =OFFSET(NSA!$C$1,MATCH($C$2,NSA!$D$2:$D$88,0),COUNTA(NSA!1:1)-($C$4-BJ55)) -> 0 | BK57: =OFFSET(NSA!$C$1,MATCH($C$2,NSA!$D$2:$D$88,0),COUNTA(NSA!1:1)-($C$4-BK55)) -> 0 | BL57: =OFFSET(NSA!$C$1,MATCH($C$2,NSA!$D$2:$D$88,0),COUNTA(NSA!1:1)-($C$4-BL55)) -> 0 | BM57: =OFFSET(NSA!$C$1,MATCH($C$2,NSA!$D$2:$D$88,0),COUNTA(NSA!1:1)-($C$4-BM55)) -> 0 | BN57: =OFFSET(NSA!$C$1,MATCH($C$2,NSA!$D$2:$D$88,0),COUNTA(NSA!1:1)-($C$4-BN55)) -> 0 | BO57: =OFFSET(NSA!$C$1,MATCH($C$2,NSA!$D$2:$D$88,0),COUNTA(NSA!1:1)-($C$4-BO55)) -> 0 | BP57: =OFFSET(NSA!$C$1,MATCH($C$2,NSA!$D$2:$D$88,0),COUNTA(NSA!1:1)-($C$4-BP55)) -> 0 | BQ57: =OFFSET(NSA!$C$1,MATCH($C$2,NSA!$D$2:$D$88,0),COUNTA(NSA!1:1)-($C$4-BQ55)) -> 0 | BR57: =OFFSET(NSA!$C$1,MATCH($C$2,NSA!$D$2:$D$88,0),COUNTA(NSA!1:1)-($C$4-BR55)) -> 0 | BS57: =OFFSET(NSA!$C$1,MATCH($C$2,NSA!$D$2:$D$88,0),COUNTA(NSA!1:1)-($C$4-BS55)) -> 0 | BT57: =OFFSET(NSA!$C$1,MATCH($C$2,NSA!$D$2:$D$88,0),COUNTA(NSA!1:1)-($C$4-BT55)) -> 0 | BU57: =OFFSET(NSA!$C$1,MATCH($C$2,NSA!$D$2:$D$88,0),COUNTA(NSA!1:1)-($C$4-BU55)) -> 0 | BV57: =OFFSET(NSA!$C$1,MATCH($C$2,NSA!$D$2:$D$88,0),COUNTA(NSA!1:1)-($C$4-BV55)) -> 0 | BW57: =OFFSET(NSA!$C$1,MATCH($C$2,NSA!$D$2:$D$88,0),COUNTA(NSA!1:1)-($C$4-BW55)) -> 0 | BX57: =OFFSET(NSA!$C$1,MATCH($C$2,NSA!$D$2:$D$88,0),COUNTA(NSA!1:1)-($C$4-BX55)) -> 0 | BY57: =OFFSET(NSA!$C$1,MATCH($C$2,NSA!$D$2:$D$88,0),COUNTA(NSA!1:1)-($C$4-BY55)) -> 0 | BZ57: =OFFSET(NSA!$C$1,MATCH($C$2,NSA!$D$2:$D$88,0),COUNTA(NSA!1:1)-($C$4-BZ55)) -> 0 | CA57: =OFFSET(NSA!$C$1,MATCH($C$2,NSA!$D$2:$D$88,0),COUNTA(NSA!1:1)-($C$4-CA55)) -> 0 | CB57: =OFFSET(NSA!$C$1,MATCH($C$2,NSA!$D$2:$D$88,0),COUNTA(NSA!1:1)-($C$4-CB55)) -> 0 | CC57: =OFFSET(NSA!$C$1,MATCH($C$2,NSA!$D$2:$D$88,0),COUNTA(NSA!1:1)-($C$4-CC55)) -> 0 | CD57: =OFFSET(NSA!$C$1,MATCH($C$2,NSA!$D$2:$D$88,0),COUNTA(NSA!1:1)-($C$4-CD55)) -> 0 | CE57: =OFFSET(NSA!$C$1,MATCH($C$2,NSA!$D$2:$D$88,0),COUNTA(NSA!1:1)-($C$4-CE55)) -> 0 | CF57: =OFFSET(NSA!$C$1,MATCH($C$2,NSA!$D$2:$D$88,0),COUNTA(NSA!1:1)-($C$4-CF55)) -> 0 | CG57: =OFFSET(NSA!$C$1,MATCH($C$2,NSA!$D$2:$D$88,0),COUNTA(NSA!1:1)-($C$4-CG55)) -> 0 | CH57: =OFFSET(NSA!$C$1,MATCH($C$2,NSA!$D$2:$D$88,0),COUNTA(NSA!1:1)-($C$4-CH55)) -> 0 | CI57: =OFFSET(NSA!$C$1,MATCH($C$2,NSA!$D$2:$D$88,0),COUNTA(NSA!1:1)-($C$4-CI55)) -> 0 | CJ57: =OFFSET(NSA!$C$1,MATCH($C$2,NSA!$D$2:$D$88,0),COUNTA(NSA!1:1)-($C$4-CJ55)) -> 0 | CK57: =OFFSET(NSA!$C$1,MATCH($C$2,NSA!$D$2:$D$88,0),COUNTA(NSA!1:1)-($C$4-CK55)) -> 0 | CL57: =OFFSET(NSA!$C$1,MATCH($C$2,NSA!$D$2:$D$88,0),COUNTA(NSA!1:1)-($C$4-CL55)) -> 0 | CM57: =OFFSET(NSA!$C$1,MATCH($C$2,NSA!$D$2:$D$88,0),COUNTA(NSA!1:1)-($C$4-CM55)) -> 0 | CN57: =OFFSET(NSA!$C$1,MATCH($C$2,NSA!$D$2:$D$88,0),COUNTA(NSA!1:1)-($C$4-CN55)) -> 0 | CO57: =OFFSET(NSA!$C$1,MATCH($C$2,NSA!$D$2:$D$88,0),COUNTA(NSA!1:1)-($C$4-CO55)) -> 0 | CP57: =OFFSET(NSA!$C$1,MATCH($C$2,NSA!$D$2:$D$88,0),COUNTA(NSA!1:1)-($C$4-CP55)) -> 0 | CQ57: =OFFSET(NSA!$C$1,MATCH($C$2,NSA!$D$2:$D$88,0),COUNTA(NSA!1:1)-($C$4-CQ55)) -> 0 | CR57: =OFFSET(NSA!$C$1,MATCH($C$2,NSA!$D$2:$D$88,0),COUNTA(NSA!1:1)-($C$4-CR55)) -> 0 | CS57: =OFFSET(NSA!$C$1,MATCH($C$2,NSA!$D$2:$D$88,0),COUNTA(NSA!1:1)-($C$4-CS55)) -> 0 | CT57: =OFFSET(NSA!$C$1,MATCH($C$2,NSA!$D$2:$D$88,0),COUNTA(NSA!1:1)-($C$4-CT55)) -> 0 | CU57: =OFFSET(NSA!$C$1,MATCH($C$2,NSA!$D$2:$D$88,0),COUNTA(NSA!1:1)-($C$4-CU55)) -> 0 | CV57: =OFFSET(NSA!$C$1,MATCH($C$2,NSA!$D$2:$D$88,0),COUNTA(NSA!1:1)-($C$4-CV55)) -> 0 | CW57: =OFFSET(NSA!$C$1,MATCH($C$2,NSA!$D$2:$D$88,0),COUNTA(NSA!1:1)-($C$4-CW55)) -> 0 | CX57: =OFFSET(NSA!$C$1,MATCH($C$2,NSA!$D$2:$D$88,0),COUNTA(NSA!1:1)-($C$4-CX55)) -> 0 | CY57: =OFFSET(NSA!$C$1,MATCH($C$2,NSA!$D$2:$D$88,0),COUNTA(NSA!1:1)-($C$4-CY55)) -> 0 | CZ57: =OFFSET(NSA!$C$1,MATCH($C$2,NSA!$D$2:$D$88,0),COUNTA(NSA!1:1)-($C$4-CZ55)) -> 0
B58: =C3 -> Construction | C58: =OFFSET(NSA!$C$1,MATCH($C$3,NSA!$D$2:$D$89,0),COUNTA(NSA!1:1)-($C$4-C$55)) -> 107200 | D58: =OFFSET(NSA!$C$1,MATCH($C$3,NSA!$D$2:$D$88,0),COUNTA(NSA!1:1)-($C$4-D$55)) -> 104400 | E58: =OFFSET(NSA!$C$1,MATCH($C$3,NSA!$D$2:$D$88,0),COUNTA(NSA!1:1)-($C$4-E$55)) -> 96100 | F58: =OFFSET(NSA!$C$1,MATCH($C$3,NSA!$D$2:$D$88,0),COUNTA(NSA!1:1)-($C$4-F$55)) -> 87100 | G58: =OFFSET(NSA!$C$1,MATCH($C$3,NSA!$D$2:$D$88,0),COUNTA(NSA!1:1)-($C$4-G$55)) -> 86200 | H58: =OFFSET(NSA!$C$1,MATCH($C$3,NSA!$D$2:$D$88,0),COUNTA(NSA!1:1)-($C$4-H$55)) -> 89100 | I58: =OFFSET(NSA!$C$1,MATCH($C$3,NSA!$D$2:$D$88,0),COUNTA(NSA!1:1)-($C$4-I$55)) -> 96200 | J58: =OFFSET(NSA!$C$1,MATCH($C$3,NSA!$D$2:$D$88,0),COUNTA(NSA!1:1)-($C$4-J$55)) -> 105200 | K58: =OFFSET(NSA!$C$1,MATCH($C$3,NSA!$D$2:$D$88,0),COUNTA(NSA!1:1)-($C$4-K$55)) -> 111700 | L58: =OFFSET(NSA!$C$1,MATCH($C$3,NSA!$D$2:$D$88,0),COUNTA(NSA!1:1)-($C$4-L$55)) -> 114100 | M58: =OFFSET(NSA!$C$1,MATCH($C$3,NSA!$D$2:$D$88,0),COUNTA(NSA!1:1)-($C$4-M$55)) -> 115100 | N58: =OFFSET(NSA!$C$1,MATCH($C$3,NSA!$D$2:$D$88,0),COUNTA(NSA!1:1)-($C$4-N$55)) -> 113000 | O58: =OFFSET(NSA!$C$1,MATCH($C$3,NSA!$D$2:$D$88,0),COUNTA(NSA!1:1)-($C$4-O$55)) -> 112500 | P58: =OFFSET(NSA!$C$1,MATCH($C$3,NSA!$D$2:$D$88,0),COUNTA(NSA!1:1)-($C$4-P$55)) -> 109400 | Q58: =OFFSET(NSA!$C$1,MATCH($C$3,NSA!$D$2:$D$88,0),COUNTA(NSA!1:1)-($C$4-Q$55)) -> 103100 | R58: =OFFSET(NSA!$C$1,MATCH($C$3,NSA!$D$2:$D$88,0),COUNTA(NSA!1:1)-($C$4-R$55)) -> 94400 | S58: =OFFSET(NSA!$C$1,MATCH($C$3,NSA!$D$2:$D$88,0),COUNTA(NSA!1:1)-($C$4-S$55)) -> 93200 | T58: =OFFSET(NSA!$C$1,MATCH($C$3,NSA!$D$2:$D$88,0),COUNTA(NSA!1:1)-($C$4-T$55)) -> 95500 | U58: =OFFSET(NSA!$C$1,MATCH($C$3,NSA!$D$2:$D$88,0),COUNTA(NSA!1:1)-($C$4-U$55)) -> 105700 | V58: =OFFSET(NSA!$C$1,MATCH($C$3,NSA!$D$2:$D$88,0),COUNTA(NSA!1:1)-($C$4-V$55)) -> 112700 | W58: =OFFSET(NSA!$C$1,MATCH($C$3,NSA!$D$2:$D$88,0),COUNTA(NSA!1:1)-($C$4-W$55)) -> 117700 | X58: =OFFSET(NSA!$C$1,MATCH($C$3,NSA!$D$2:$D$88,0),COUNTA(NSA!1:1)-($C$4-X$55)) -> 120100 | Y58: =OFFSET(NSA!$C$1,MATCH($C$3,NSA!$D$2:$D$88,0),COUNTA(NSA!1:1)-($C$4-Y$55)) -> 119400 | Z58: =OFFSET(NSA!$C$1,MATCH($C$3,NSA!$D$2:$D$88,0),COUNTA(NSA!1:1)-($C$4-Z$55)) -> 116600 | AA58: =OFFSET(NSA!$C$1,MATCH($C$3,NSA!$D$2:$D$88,0),COUNTA(NSA!1:1)-($C$4-AA$55)) -> 116200 | AB58: =OFFSET(NSA!$C$1,MATCH($C$3,NSA!$D$2:$D$88,0),COUNTA(NSA!1:1)-($C$4-AB$55)) -> 113300 | AC58: =OFFSET(NSA!$C$1,MATCH($C$3,NSA!$D$2:$D$88,0),COUNTA(NSA!1:1)-($C$4-AC$55)) -> 108000 | AD58: =OFFSET(NSA!$C$1,MATCH($C$3,NSA!$D$2:$D$88,0),COUNTA(NSA!1:1)-($C$4-AD$55)) -> 98300 | AE58: =OFFSET(NSA!$C$1,MATCH($C$3,NSA!$D$2:$D$88,0),COUNTA(NSA!1:1)-($C$4-AE$55)) -> 98100 | AF58: =OFFSET(NSA!$C$1,MATCH($C$3,NSA!$D$2:$D$88,0),COUNTA(NSA!1:1)-($C$4-AF$55)) -> 101000 | AG58: =OFFSET(NSA!$C$1,MATCH($C$3,NSA!$D$2:$D$88,0),COUNTA(NSA!1:1)-($C$4-AG$55)) -> 109400 | AH58: =OFFSET(NSA!$C$1,MATCH($C$3,NSA!$D$2:$D$88,0),COUNTA(NSA!1:1)-($C$4-AH$55)) -> 114700 | AI58: =OFFSET(NSA!$C$1,MATCH($C$3,NSA!$D$2:$D$88,0),COUNTA(NSA!1:1)-($C$4-AI$55)) -> 119500 | AJ58: =OFFSET(NSA!$C$1,MATCH($C$3,NSA!$D$2:$D$88,0),COUNTA(NSA!1:1)-($C$4-AJ$55)) -> 121700 | AK58: =OFFSET(NSA!$C$1,MATCH($C$3,NSA!$D$2:$D$88,0),COUNTA(NSA!1:1)-($C$4-AK$55)) -> 121600 | AL58: =OFFSET(NSA!$C$1,MATCH($C$3,NSA!$D$2:$D$88,0),COUNTA(NSA!1:1)-($C$4-AL$55)) -> 118900 | AM58: =OFFSET(NSA!$C$1,MATCH($C$3,NSA!$D$2:$D$88,0),COUNTA(NSA!1:1)-($C$4-AM$55)) -> 117500 | AN58: =OFFSET(NSA!$C$1,MATCH($C$3,NSA!$D$2:$D$88,0),COUNTA(NSA!1:1)-($C$4-AN$55)) -> 114800 | AO58: =OFFSET(NSA!$C$1,MATCH($C$3,NSA!$D$2:$D$88,0),COUNTA(NSA!1:1)-($C$4-AO$55)) -> 106300 | AP58: =OFFSET(NSA!$C$1,MATCH($C$3,NSA!$D$2:$D$88,0),COUNTA(NSA!1:1)-($C$4-AP$55)) -> 100700 | AQ58: =OFFSET(NSA!$C$1,MATCH($C$3,NSA!$D$2:$D$88,0),COUNTA(NSA!1:1)-($C$4-AQ$55)) -> 99200 | AR58: =OFFSET(NSA!$C$1,MATCH($C$3,NSA!$D$2:$D$88,0),COUNTA(NSA!1:1)-($C$4-AR$55)) -> 100600 | AS58: =OFFSET(NSA!$C$1,MATCH($C$3,NSA!$D$2:$D$88,0),COUNTA(NSA!1:1)-($C$4-AS$55)) -> 110200 | AT58: =OFFSET(NSA!$C$1,MATCH($C$3,NSA!$D$2:$D$88,0),COUNTA(NSA!1:1)-($C$4-AT$55)) -> 117100 | AU58: =OFFSET(NSA!$C$1,MATCH($C$3,NSA!$D$2:$D$88,0),COUNTA(NSA!1:1)-($C$4-AU$55)) -> 121900 | AV58: =OFFSET(NSA!$C$1,MATCH($C$3,NSA!$D$2:$D$88,0),COUNTA(NSA!1:1)-($C$4-AV$55)) -> 123900 | AW58: =OFFSET(NSA!$C$1,MATCH($C$3,NSA!$D$2:$D$88,0),COUNTA(NSA!1:1)-($C$4-AW$55)) -> 123700 | AX58: =OFFSET(NSA!$C$1,MATCH($C$3,NSA!$D$2:$D$88,0),COUNTA(NSA!1:1)-($C$4-AX$55)) -> 120900 | AY58: =OFFSET(NSA!$C$1,MATCH($C$3,NSA!$D$2:$D$88,0),COUNTA(NSA!1:1)-($C$4-AY$55)) -> 0 | AZ58: =OFFSET(NSA!$C$1,MATCH($C$3,NSA!$D$2:$D$88,0),COUNTA(NSA!1:1)-($C$4-AZ$55)) -> 0 | BA58: =OFFSET(NSA!$C$1,MATCH($C$3,NSA!$D$2:$D$88,0),COUNTA(NSA!1:1)-($C$4-BA$55)) -> 0 | BB58: =OFFSET(NSA!$C$1,MATCH($C$3,NSA!$D$2:$D$88,0),COUNTA(NSA!1:1)-($C$4-BB$55)) -> 0 | BC58: =OFFSET(NSA!$C$1,MATCH($C$3,NSA!$D$2:$D$88,0),COUNTA(NSA!1:1)-($C$4-BC$55)) -> 0 | BD58: =OFFSET(NSA!$C$1,MATCH($C$3,NSA!$D$2:$D$88,0),COUNTA(NSA!1:1)-($C$4-BD$55)) -> 0 | BE58: =OFFSET(NSA!$C$1,MATCH($C$3,NSA!$D$2:$D$88,0),COUNTA(NSA!1:1)-($C$4-BE$55)) -> 0 | BF58: =OFFSET(NSA!$C$1,MATCH($C$3,NSA!$D$2:$D$88,0),COUNTA(NSA!1:1)-($C$4-BF$55)) -> 0 | BG58: =OFFSET(NSA!$C$1,MATCH($C$3,NSA!$D$2:$D$88,0),COUNTA(NSA!1:1)-($C$4-BG$55)) -> 0 | BH58: =OFFSET(NSA!$C$1,MATCH($C$3,NSA!$D$2:$D$88,0),COUNTA(NSA!1:1)-($C$4-BH$55)) -> 0 | BI58: =OFFSET(NSA!$C$1,MATCH($C$3,NSA!$D$2:$D$88,0),COUNTA(NSA!1:1)-($C$4-BI$55)) -> 0 | BJ58: =OFFSET(NSA!$C$1,MATCH($C$3,NSA!$D$2:$D$88,0),COUNTA(NSA!1:1)-($C$4-BJ$55)) -> 0 | BK58: =OFFSET(NSA!$C$1,MATCH($C$3,NSA!$D$2:$D$88,0),COUNTA(NSA!1:1)-($C$4-BK$55)) -> 0 | BL58: =OFFSET(NSA!$C$1,MATCH($C$3,NSA!$D$2:$D$88,0),COUNTA(NSA!1:1)-($C$4-BL$55)) -> 0 | BM58: =OFFSET(NSA!$C$1,MATCH($C$3,NSA!$D$2:$D$88,0),COUNTA(NSA!1:1)-($C$4-BM$55)) -> 0 | BN58: =OFFSET(NSA!$C$1,MATCH($C$3,NSA!$D$2:$D$88,0),COUNTA(NSA!1:1)-($C$4-BN$55)) -> 0 | BO58: =OFFSET(NSA!$C$1,MATCH($C$3,NSA!$D$2:$D$88,0),COUNTA(NSA!1:1)-($C$4-BO$55)) -> 0 | BP58: =OFFSET(NSA!$C$1,MATCH($C$3,NSA!$D$2:$D$88,0),COUNTA(NSA!1:1)-($C$4-BP$55)) -> 0 | BQ58: =OFFSET(NSA!$C$1,MATCH($C$3,NSA!$D$2:$D$88,0),COUNTA(NSA!1:1)-($C$4-BQ$55)) -> 0 | BR58: =OFFSET(NSA!$C$1,MATCH($C$3,NSA!$D$2:$D$88,0),COUNTA(NSA!1:1)-($C$4-BR$55)) -> 0 | BS58: =OFFSET(NSA!$C$1,MATCH($C$3,NSA!$D$2:$D$88,0),COUNTA(NSA!1:1)-($C$4-BS$55)) -> 0 | BT58: =OFFSET(NSA!$C$1,MATCH($C$3,NSA!$D$2:$D$88,0),COUNTA(NSA!1:1)-($C$4-BT$55)) -> 0 | BU58: =OFFSET(NSA!$C$1,MATCH($C$3,NSA!$D$2:$D$88,0),COUNTA(NSA!1:1)-($C$4-BU$55)) -> 0 | BV58: =OFFSET(NSA!$C$1,MATCH($C$3,NSA!$D$2:$D$88,0),COUNTA(NSA!1:1)-($C$4-BV$55)) -> 0 | BW58: =OFFSET(NSA!$C$1,MATCH($C$3,NSA!$D$2:$D$88,0),COUNTA(NSA!1:1)-($C$4-BW$55)) -> 0 | BX58: =OFFSET(NSA!$C$1,MATCH($C$3,NSA!$D$2:$D$88,0),COUNTA(NSA!1:1)-($C$4-BX$55)) -> 0 | BY58: =OFFSET(NSA!$C$1,MATCH($C$3,NSA!$D$2:$D$88,0),COUNTA(NSA!1:1)-($C$4-BY$55)) -> 0 | BZ58: =OFFSET(NSA!$C$1,MATCH($C$3,NSA!$D$2:$D$88,0),COUNTA(NSA!1:1)-($C$4-BZ$55)) -> 0 | CA58: =OFFSET(NSA!$C$1,MATCH($C$3,NSA!$D$2:$D$88,0),COUNTA(NSA!1:1)-($C$4-CA$55)) -> 0 | CB58: =OFFSET(NSA!$C$1,MATCH($C$3,NSA!$D$2:$D$88,0),COUNTA(NSA!1:1)-($C$4-CB$55)) -> 0 | CC58: =OFFSET(NSA!$C$1,MATCH($C$3,NSA!$D$2:$D$88,0),COUNTA(NSA!1:1)-($C$4-CC$55)) -> 0 | CD58: =OFFSET(NSA!$C$1,MATCH($C$3,NSA!$D$2:$D$88,0),COUNTA(NSA!1:1)-($C$4-CD$55)) -> 0 | CE58: =OFFSET(NSA!$C$1,MATCH($C$3,NSA!$D$2:$D$88,0),COUNTA(NSA!1:1)-($C$4-CE$55)) -> 0 | CF58: =OFFSET(NSA!$C$1,MATCH($C$3,NSA!$D$2:$D$88,0),COUNTA(NSA!1:1)-($C$4-CF$55)) -> 0 | CG58: =OFFSET(NSA!$C$1,MATCH($C$3,NSA!$D$2:$D$88,0),COUNTA(NSA!1:1)-($C$4-CG$55)) -> 0 | CH58: =OFFSET(NSA!$C$1,MATCH($C$3,NSA!$D$2:$D$88,0),COUNTA(NSA!1:1)-($C$4-CH$55)) -> 0 | CI58: =OFFSET(NSA!$C$1,MATCH($C$3,NSA!$D$2:$D$88,0),COUNTA(NSA!1:1)-($C$4-CI$55)) -> 0 | CJ58: =OFFSET(NSA!$C$1,MATCH($C$3,NSA!$D$2:$D$88,0),COUNTA(NSA!1:1)-($C$4-CJ$55)) -> 0 | CK58: =OFFSET(NSA!$C$1,MATCH($C$3,NSA!$D$2:$D$88,0),COUNTA(NSA!1:1)-($C$4-CK$55)) -> 0 | CL58: =OFFSET(NSA!$C$1,MATCH($C$3,NSA!$D$2:$D$88,0),COUNTA(NSA!1:1)-($C$4-CL$55)) -> 0 | CM58: =OFFSET(NSA!$C$1,MATCH($C$3,NSA!$D$2:$D$88,0),COUNTA(NSA!1:1)-($C$4-CM$55)) -> 0 | CN58: =OFFSET(NSA!$C$1,MATCH($C$3,NSA!$D$2:$D$88,0),COUNTA(NSA!1:1)-($C$4-CN$55)) -> 0 | CO58: =OFFSET(NSA!$C$1,MATCH($C$3,NSA!$D$2:$D$88,0),COUNTA(NSA!1:1)-($C$4-CO$55)) -> 0 | CP58: =OFFSET(NSA!$C$1,MATCH($C$3,NSA!$D$2:$D$88,0),COUNTA(NSA!1:1)-($C$4-CP$55)) -> 0 | CQ58: =OFFSET(NSA!$C$1,MATCH($C$3,NSA!$D$2:$D$88,0),COUNTA(NSA!1:1)-($C$4-CQ$55)) -> 0 | CR58: =OFFSET(NSA!$C$1,MATCH($C$3,NSA!$D$2:$D$88,0),COUNTA(NSA!1:1)-($C$4-CR$55)) -> 0 | CS58: =OFFSET(NSA!$C$1,MATCH($C$3,NSA!$D$2:$D$88,0),COUNTA(NSA!1:1)-($C$4-CS$55)) -> 0 | CT58: =OFFSET(NSA!$C$1,MATCH($C$3,NSA!$D$2:$D$88,0),COUNTA(NSA!1:1)-($C$4-CT$55)) -> 0 | CU58: =OFFSET(NSA!$C$1,MATCH($C$3,NSA!$D$2:$D$88,0),COUNTA(NSA!1:1)-($C$4-CU$55)) -> 0 | CV58: =OFFSET(NSA!$C$1,MATCH($C$3,NSA!$D$2:$D$88,0),COUNTA(NSA!1:1)-($C$4-CV$55)) -> 0 | CW58: =OFFSET(NSA!$C$1,MATCH($C$3,NSA!$D$2:$D$88,0),COUNTA(NSA!1:1)-($C$4-CW$55)) -> 0 | CX58: =OFFSET(NSA!$C$1,MATCH($C$3,NSA!$D$2:$D$88,0),COUNTA(NSA!1:1)-($C$4-CX$55)) -> 0 | CY58: =OFFSET(NSA!$C$1,MATCH($C$3,NSA!$D$2:$D$88,0),COUNTA(NSA!1:1)-($C$4-CY$55)) -> 0 | CZ58: =OFFSET(NSA!$C$1,MATCH($C$3,NSA!$D$2:$D$88,0),COUNTA(NSA!1:1)-($C$4-CZ$55)) -> 0
B59: =CONCATENATE("NSA ",TRIM(B60)," / ",TRIM(B61)) -> NSA Manufacturing / Construction
B60: =G2 -> Manufacturing | C60: =OFFSET(NSA!$C$1,MATCH($G$2,NSA!$D$2:$D$88,0),COUNTA(NSA!1:1)-($C$4-C$55)) -> 457800 | D60: =OFFSET(NSA!$C$1,MATCH($G$2,NSA!$D$2:$D$88,0),COUNTA(NSA!1:1)-($C$4-D$55)) -> 458000 | E60: =OFFSET(NSA!$C$1,MATCH($G$2,NSA!$D$2:$D$88,0),COUNTA(NSA!1:1)-($C$4-E$55)) -> 458300 | F60: =OFFSET(NSA!$C$1,MATCH($G$2,NSA!$D$2:$D$88,0),COUNTA(NSA!1:1)-($C$4-F$55)) -> 455700 | G60: =OFFSET(NSA!$C$1,MATCH($G$2,NSA!$D$2:$D$88,0),COUNTA(NSA!1:1)-($C$4-G$55)) -> 454800 | H60: =OFFSET(NSA!$C$1,MATCH($G$2,NSA!$D$2:$D$88,0),COUNTA(NSA!1:1)-($C$4-H$55)) -> 456700 | I60: =OFFSET(NSA!$C$1,MATCH($G$2,NSA!$D$2:$D$88,0),COUNTA(NSA!1:1)-($C$4-I$55)) -> 459000 | J60: =OFFSET(NSA!$C$1,MATCH($G$2,NSA!$D$2:$D$88,0),COUNTA(NSA!1:1)-($C$4-J$55)) -> 462200 | K60: =OFFSET(NSA!$C$1,MATCH($G$2,NSA!$D$2:$D$88,0),COUNTA(NSA!1:1)-($C$4-K$55)) -> 469900 | L60: =OFFSET(NSA!$C$1,MATCH($G$2,NSA!$D$2:$D$88,0),COUNTA(NSA!1:1)-($C$4-L$55)) -> 474800 | M60: =OFFSET(NSA!$C$1,MATCH($G$2,NSA!$D$2:$D$88,0),COUNTA(NSA!1:1)-($C$4-M$55)) -> 474600 | N60: =OFFSET(NSA!$C$1,MATCH($G$2,NSA!$D$2:$D$88,0),COUNTA(NSA!1:1)-($C$4-N$55)) -> 468300 | O60: =OFFSET(NSA!$C$1,MATCH($G$2,NSA!$D$2:$D$88,0),COUNTA(NSA!1:1)-($C$4-O$55)) -> 466200 | P60: =OFFSET(NSA!$C$1,MATCH($G$2,NSA!$D$2:$D$88,0),COUNTA(NSA!1:1)-($C$4-P$55)) -> 466100 | Q60: =OFFSET(NSA!$C$1,MATCH($G$2,NSA!$D$2:$D$88,0),COUNTA(NSA!1:1)-($C$4-Q$55)) -> 467000 | R60: =OFFSET(NSA!$C$1,MATCH($G$2,NSA!$D$2:$D$88,0),COUNTA(NSA!1:1)-($C$4-R$55)) -> 463500 | S60: =OFFSET(NSA!$C$1,MATCH($G$2,NSA!$D$2:$D$88,0),COUNTA(NSA!1:1)-($C$4-S$55)) -> 463000 | T60: =OFFSET(NSA!$C$1,MATCH($G$2,NSA!$D$2:$D$88,0),COUNTA(NSA!1:1)-($C$4-T$55)) -> 463900 | U60: =OFFSET(NSA!$C$1,MATCH($G$2,NSA!$D$2:$D$88,0),COUNTA(NSA!1:1)-($C$4-U$55)) -> 463400 | V60: =OFFSET(NSA!$C$1,MATCH($G$2,NSA!$D$2:$D$88,0),COUNTA(NSA!1:1)-($C$4-V$55)) -> 465100 | W60: =OFFSET(NSA!$C$1,MATCH($G$2,NSA!$D$2:$D$88,0),COUNTA(NSA!1:1)-($C$4-W$55)) -> 472900 | X60: =OFFSET(NSA!$C$1,MATCH($G$2,NSA!$D$2:$D$88,0),COUNTA(NSA!1:1)-($C$4-X$55)) -> 475700 | Y60: =OFFSET(NSA!$C$1,MATCH($G$2,NSA!$D$2:$D$88,0),COUNTA(NSA!1:1)-($C$4-Y$55)) -> 474900 | Z60: =OFFSET(NSA!$C$1,MATCH($G$2,NSA!$D$2:$D$88,0),COUNTA(NSA!1:1)-($C$4-Z$55)) -> 468500 | AA60: =OFFSET(NSA!$C$1,MATCH($G$2,NSA!$D$2:$D$88,0),COUNTA(NSA!1:1)-($C$4-AA$55)) -> 465500 | AB60: =OFFSET(NSA!$C$1,MATCH($G$2,NSA!$D$2:$D$88,0),COUNTA(NSA!1:1)-($C$4-AB$55)) -> 465000 | AC60: =OFFSET(NSA!$C$1,MATCH($G$2,NSA!$D$2:$D$88,0),COUNTA(NSA!1:1)-($C$4-AC$55)) -> 465300 | AD60: =OFFSET(NSA!$C$1,MATCH($G$2,NSA!$D$2:$D$88,0),COUNTA(NSA!1:1)-($C$4-AD$55)) -> 462000 | AE60: =OFFSET(NSA!$C$1,MATCH($G$2,NSA!$D$2:$D$88,0),COUNTA(NSA!1:1)-($C$4-AE$55)) -> 460000 | AF60: =OFFSET(NSA!$C$1,MATCH($G$2,NSA!$D$2:$D$88,0),COUNTA(NSA!1:1)-($C$4-AF$55)) -> 461000 | AG60: =OFFSET(NSA!$C$1,MATCH($G$2,NSA!$D$2:$D$88,0),COUNTA(NSA!1:1)-($C$4-AG$55)) -> 461000 | AH60: =OFFSET(NSA!$C$1,MATCH($G$2,NSA!$D$2:$D$88,0),COUNTA(NSA!1:1)-($C$4-AH$55)) -> 462400 | AI60: =OFFSET(NSA!$C$1,MATCH($G$2,NSA!$D$2:$D$88,0),COUNTA(NSA!1:1)-($C$4-AI$55)) -> 469900 | AJ60: =OFFSET(NSA!$C$1,MATCH($G$2,NSA!$D$2:$D$88,0),COUNTA(NSA!1:1)-($C$4-AJ$55)) -> 472900 | AK60: =OFFSET(NSA!$C$1,MATCH($G$2,NSA!$D$2:$D$88,0),COUNTA(NSA!1:1)-($C$4-AK$55)) -> 471800 | AL60: =OFFSET(NSA!$C$1,MATCH($G$2,NSA!$D$2:$D$88,0),COUNTA(NSA!1:1)-($C$4-AL$55)) -> 465400 | AM60: =OFFSET(NSA!$C$1,MATCH($G$2,NSA!$D$2:$D$88,0),COUNTA(NSA!1:1)-($C$4-AM$55)) -> 466600 | AN60: =OFFSET(NSA!$C$1,MATCH($G$2,NSA!$D$2:$D$88,0),COUNTA(NSA!1:1)-($C$4-AN$55)) -> 464600 | AO60: =OFFSET(NSA!$C$1,MATCH($G$2,NSA!$D$2:$D$88,0),COUNTA(NSA!1:1)-($C$4-AO$55)) -> 465700 | AP60: =OFFSET(NSA!$C$1,MATCH($G$2,NSA!$D$2:$D$88,0),COUNTA(NSA!1:1)-($C$4-AP$55)) -> 464300 | AQ60: =OFFSET(NSA!$C$1,MATCH($G$2,NSA!$D$2:$D$88,0),COUNTA(NSA!1:1)-($C$4-AQ$55)) -> 463600 | AR60: =OFFSET(NSA!$C$1,MATCH($G$2,NSA!$D$2:$D$88,0),COUNTA(NSA!1:1)-($C$4-AR$55)) -> 464400 | AS60: =OFFSET(NSA!$C$1,MATCH($G$2,NSA!$D$2:$D$88,0),COUNTA(NSA!1:1)-($C$4-AS$55)) -> 468200 | AT60: =OFFSET(NSA!$C$1,MATCH($G$2,NSA!$D$2:$D$88,0),COUNTA(NSA!1:1)-($C$4-AT$55)) -> 470400 | AU60: =OFFSET(NSA!$C$1,MATCH($G$2,NSA!$D$2:$D$88,0),COUNTA(NSA!1:1)-($C$4-AU$55)) -> 478300 | AV60: =OFFSET(NSA!$C$1,MATCH($G$2,NSA!$D$2:$D$88,0),COUNTA(NSA!1:1)-($C$4-AV$55)) -> 481200 | AW60: =OFFSET(NSA!$C$1,MATCH($G$2,NSA!$D$2:$D$88,0),COUNTA(NSA!1:1)-($C$4-AW$55)) -> 481600 | AX60: =OFFSET(NSA!$C$1,MATCH($G$2,NSA!$D$2:$D$88,0),COUNTA(NSA!1:1)-($C$4-AX$55)) -> 476000 | AY60: =OFFSET(NSA!$C$1,MATCH($G$2,NSA!$D$2:$D$88,0),COUNTA(NSA!1:1)-($C$4-AY$55)) -> 0 | AZ60: =OFFSET(NSA!$C$1,MATCH($G$2,NSA!$D$2:$D$88,0),COUNTA(NSA!1:1)-($C$4-AZ$55)) -> 0 | BA60: =OFFSET(NSA!$C$1,MATCH($G$2,NSA!$D$2:$D$88,0),COUNTA(NSA!1:1)-($C$4-BA$55)) -> 0 | BB60: =OFFSET(NSA!$C$1,MATCH($G$2,NSA!$D$2:$D$88,0),COUNTA(NSA!1:1)-($C$4-BB$55)) -> 0 | BC60: =OFFSET(NSA!$C$1,MATCH($G$2,NSA!$D$2:$D$88,0),COUNTA(NSA!1:1)-($C$4-BC$55)) -> 0 | BD60: =OFFSET(NSA!$C$1,MATCH($G$2,NSA!$D$2:$D$88,0),COUNTA(NSA!1:1)-($C$4-BD$55)) -> 0 | BE60: =OFFSET(NSA!$C$1,MATCH($G$2,NSA!$D$2:$D$88,0),COUNTA(NSA!1:1)-($C$4-BE$55)) -> 0 | BF60: =OFFSET(NSA!$C$1,MATCH($G$2,NSA!$D$2:$D$88,0),COUNTA(NSA!1:1)-($C$4-BF$55)) -> 0 | BG60: =OFFSET(NSA!$C$1,MATCH($G$2,NSA!$D$2:$D$88,0),COUNTA(NSA!1:1)-($C$4-BG$55)) -> 0 | BH60: =OFFSET(NSA!$C$1,MATCH($G$2,NSA!$D$2:$D$88,0),COUNTA(NSA!1:1)-($C$4-BH$55)) -> 0 | BI60: =OFFSET(NSA!$C$1,MATCH($G$2,NSA!$D$2:$D$88,0),COUNTA(NSA!1:1)-($C$4-BI$55)) -> 0 | BJ60: =OFFSET(NSA!$C$1,MATCH($G$2,NSA!$D$2:$D$88,0),COUNTA(NSA!1:1)-($C$4-BJ$55)) -> 0 | BK60: =OFFSET(NSA!$C$1,MATCH($G$2,NSA!$D$2:$D$88,0),COUNTA(NSA!1:1)-($C$4-BK$55)) -> 0 | BL60: =OFFSET(NSA!$C$1,MATCH($G$2,NSA!$D$2:$D$88,0),COUNTA(NSA!1:1)-($C$4-BL$55)) -> 0 | BM60: =OFFSET(NSA!$C$1,MATCH($G$2,NSA!$D$2:$D$88,0),COUNTA(NSA!1:1)-($C$4-BM$55)) -> 0 | BN60: =OFFSET(NSA!$C$1,MATCH($G$2,NSA!$D$2:$D$88,0),COUNTA(NSA!1:1)-($C$4-BN$55)) -> 0 | BO60: =OFFSET(NSA!$C$1,MATCH($G$2,NSA!$D$2:$D$88,0),COUNTA(NSA!1:1)-($C$4-BO$55)) -> 0 | BP60: =OFFSET(NSA!$C$1,MATCH($G$2,NSA!$D$2:$D$88,0),COUNTA(NSA!1:1)-($C$4-BP$55)) -> 0 | BQ60: =OFFSET(NSA!$C$1,MATCH($G$2,NSA!$D$2:$D$88,0),COUNTA(NSA!1:1)-($C$4-BQ$55)) -> 0 | BR60: =OFFSET(NSA!$C$1,MATCH($G$2,NSA!$D$2:$D$88,0),COUNTA(NSA!1:1)-($C$4-BR$55)) -> 0 | BS60: =OFFSET(NSA!$C$1,MATCH($G$2,NSA!$D$2:$D$88,0),COUNTA(NSA!1:1)-($C$4-BS$55)) -> 0 | BT60: =OFFSET(NSA!$C$1,MATCH($G$2,NSA!$D$2:$D$88,0),COUNTA(NSA!1:1)-($C$4-BT$55)) -> 0 | BU60: =OFFSET(NSA!$C$1,MATCH($G$2,NSA!$D$2:$D$88,0),COUNTA(NSA!1:1)-($C$4-BU$55)) -> 0 | BV60: =OFFSET(NSA!$C$1,MATCH($G$2,NSA!$D$2:$D$88,0),COUNTA(NSA!1:1)-($C$4-BV$55)) -> 0 | BW60: =OFFSET(NSA!$C$1,MATCH($G$2,NSA!$D$2:$D$88,0),COUNTA(NSA!1:1)-($C$4-BW$55)) -> 0 | BX60: =OFFSET(NSA!$C$1,MATCH($G$2,NSA!$D$2:$D$88,0),COUNTA(NSA!1:1)-($C$4-BX$55)) -> 0 | BY60: =OFFSET(NSA!$C$1,MATCH($G$2,NSA!$D$2:$D$88,0),COUNTA(NSA!1:1)-($C$4-BY$55)) -> 0 | BZ60: =OFFSET(NSA!$C$1,MATCH($G$2,NSA!$D$2:$D$88,0),COUNTA(NSA!1:1)-($C$4-BZ$55)) -> 0 | CA60: =OFFSET(NSA!$C$1,MATCH($G$2,NSA!$D$2:$D$88,0),COUNTA(NSA!1:1)-($C$4-CA$55)) -> 0 | CB60: =OFFSET(NSA!$C$1,MATCH($G$2,NSA!$D$2:$D$88,0),COUNTA(NSA!1:1)-($C$4-CB$55)) -> 0 | CC60: =OFFSET(NSA!$C$1,MATCH($G$2,NSA!$D$2:$D$88,0),COUNTA(NSA!1:1)-($C$4-CC$55)) -> 0 | CD60: =OFFSET(NSA!$C$1,MATCH($G$2,NSA!$D$2:$D$88,0),COUNTA(NSA!1:1)-($C$4-CD$55)) -> 0 | CE60: =OFFSET(NSA!$C$1,MATCH($G$2,NSA!$D$2:$D$88,0),COUNTA(NSA!1:1)-($C$4-CE$55)) -> 0 | CF60: =OFFSET(NSA!$C$1,MATCH($G$2,NSA!$D$2:$D$88,0),COUNTA(NSA!1:1)-($C$4-CF$55)) -> 0 | CG60: =OFFSET(NSA!$C$1,MATCH($G$2,NSA!$D$2:$D$88,0),COUNTA(NSA!1:1)-($C$4-CG$55)) -> 0 | CH60: =OFFSET(NSA!$C$1,MATCH($G$2,NSA!$D$2:$D$88,0),COUNTA(NSA!1:1)-($C$4-CH$55)) -> 0 | CI60: =OFFSET(NSA!$C$1,MATCH($G$2,NSA!$D$2:$D$88,0),COUNTA(NSA!1:1)-($C$4-CI$55)) -> 0 | CJ60: =OFFSET(NSA!$C$1,MATCH($G$2,NSA!$D$2:$D$88,0),COUNTA(NSA!1:1)-($C$4-CJ$55)) -> 0 | CK60: =OFFSET(NSA!$C$1,MATCH($G$2,NSA!$D$2:$D$88,0),COUNTA(NSA!1:1)-($C$4-CK$55)) -> 0 | CL60: =OFFSET(NSA!$C$1,MATCH($G$2,NSA!$D$2:$D$88,0),COUNTA(NSA!1:1)-($C$4-CL$55)) -> 0 | CM60: =OFFSET(NSA!$C$1,MATCH($G$2,NSA!$D$2:$D$88,0),COUNTA(NSA!1:1)-($C$4-CM$55)) -> 0 | CN60: =OFFSET(NSA!$C$1,MATCH($G$2,NSA!$D$2:$D$88,0),COUNTA(NSA!1:1)-($C$4-CN$55)) -> 0 | CO60: =OFFSET(NSA!$C$1,MATCH($G$2,NSA!$D$2:$D$88,0),COUNTA(NSA!1:1)-($C$4-CO$55)) -> 0 | CP60: =OFFSET(NSA!$C$1,MATCH($G$2,NSA!$D$2:$D$88,0),COUNTA(NSA!1:1)-($C$4-CP$55)) -> 0 | CQ60: =OFFSET(NSA!$C$1,MATCH($G$2,NSA!$D$2:$D$88,0),COUNTA(NSA!1:1)-($C$4-CQ$55)) -> 0 | CR60: =OFFSET(NSA!$C$1,MATCH($G$2,NSA!$D$2:$D$88,0),COUNTA(NSA!1:1)-($C$4-CR$55)) -> 0 | CS60: =OFFSET(NSA!$C$1,MATCH($G$2,NSA!$D$2:$D$88,0),COUNTA(NSA!1:1)-($C$4-CS$55)) -> 0 | CT60: =OFFSET(NSA!$C$1,MATCH($G$2,NSA!$D$2:$D$88,0),COUNTA(NSA!1:1)-($C$4-CT$55)) -> 0 | CU60: =OFFSET(NSA!$C$1,MATCH($G$2,NSA!$D$2:$D$88,0),COUNTA(NSA!1:1)-($C$4-CU$55)) -> 0 | CV60: =OFFSET(NSA!$C$1,MATCH($G$2,NSA!$D$2:$D$88,0),COUNTA(NSA!1:1)-($C$4-CV$55)) -> 0 | CW60: =OFFSET(NSA!$C$1,MATCH($G$2,NSA!$D$2:$D$88,0),COUNTA(NSA!1:1)-($C$4-CW$55)) -> 0 | CX60: =OFFSET(NSA!$C$1,MATCH($G$2,NSA!$D$2:$D$88,0),COUNTA(NSA!1:1)-($C$4-CX$55)) -> 0 | CY60: =OFFSET(NSA!$C$1,MATCH($G$2,NSA!$D$2:$D$88,0),COUNTA(NSA!1:1)-($C$4-CY$55)) -> 0 | CZ60: =OFFSET(NSA!$C$1,MATCH($G$2,NSA!$D$2:$D$88,0),COUNTA(NSA!1:1)-($C$4-CZ$55)) -> 0
B61: =G3 -> Construction | C61: =OFFSET(NSA!$C$1,MATCH($G$3,NSA!$D$2:$D$88,0),COUNTA(NSA!1:1)-($C$4-C$55)) -> 107200 | D61: =OFFSET(NSA!$C$1,MATCH($G$3,NSA!$D$2:$D$88,0),COUNTA(NSA!1:1)-($C$4-D$55)) -> 104400 | E61: =OFFSET(NSA!$C$1,MATCH($G$3,NSA!$D$2:$D$88,0),COUNTA(NSA!1:1)-($C$4-E$55)) -> 96100 | F61: =OFFSET(NSA!$C$1,MATCH($G$3,NSA!$D$2:$D$88,0),COUNTA(NSA!1:1)-($C$4-F$55)) -> 87100 | G61: =OFFSET(NSA!$C$1,MATCH($G$3,NSA!$D$2:$D$88,0),COUNTA(NSA!1:1)-($C$4-G$55)) -> 86200 | H61: =OFFSET(NSA!$C$1,MATCH($G$3,NSA!$D$2:$D$88,0),COUNTA(NSA!1:1)-($C$4-H$55)) -> 89100 | I61: =OFFSET(NSA!$C$1,MATCH($G$3,NSA!$D$2:$D$88,0),COUNTA(NSA!1:1)-($C$4-I$55)) -> 96200 | J61: =OFFSET(NSA!$C$1,MATCH($G$3,NSA!$D$2:$D$88,0),COUNTA(NSA!1:1)-($C$4-J$55)) -> 105200 | K61: =OFFSET(NSA!$C$1,MATCH($G$3,NSA!$D$2:$D$88,0),COUNTA(NSA!1:1)-($C$4-K$55)) -> 111700 | L61: =OFFSET(NSA!$C$1,MATCH($G$3,NSA!$D$2:$D$88,0),COUNTA(NSA!1:1)-($C$4-L$55)) -> 114100 | M61: =OFFSET(NSA!$C$1,MATCH($G$3,NSA!$D$2:$D$88,0),COUNTA(NSA!1:1)-($C$4-M$55)) -> 115100 | N61: =OFFSET(NSA!$C$1,MATCH($G$3,NSA!$D$2:$D$88,0),COUNTA(NSA!1:1)-($C$4-N$55)) -> 113000 | O61: =OFFSET(NSA!$C$1,MATCH($G$3,NSA!$D$2:$D$88,0),COUNTA(NSA!1:1)-($C$4-O$55)) -> 112500 | P61: =OFFSET(NSA!$C$1,MATCH($G$3,NSA!$D$2:$D$88,0),COUNTA(NSA!1:1)-($C$4-P$55)) -> 109400 | Q61: =OFFSET(NSA!$C$1,MATCH($G$3,NSA!$D$2:$D$88,0),COUNTA(NSA!1:1)-($C$4-Q$55)) -> 103100 | R61: =OFFSET(NSA!$C$1,MATCH($G$3,NSA!$D$2:$D$88,0),COUNTA(NSA!1:1)-($C$4-R$55)) -> 94400 | S61: =OFFSET(NSA!$C$1,MATCH($G$3,NSA!$D$2:$D$88,0),COUNTA(NSA!1:1)-($C$4-S$55)) -> 93200 | T61: =OFFSET(NSA!$C$1,MATCH($G$3,NSA!$D$2:$D$88,0),COUNTA(NSA!1:1)-($C$4-T$55)) -> 95500 | U61: =OFFSET(NSA!$C$1,MATCH($G$3,NSA!$D$2:$D$88,0),COUNTA(NSA!1:1)-($C$4-U$55)) -> 105700 | V61: =OFFSET(NSA!$C$1,MATCH($G$3,NSA!$D$2:$D$88,0),COUNTA(NSA!1:1)-($C$4-V$55)) -> 112700 | W61: =OFFSET(NSA!$C$1,MATCH($G$3,NSA!$D$2:$D$88,0),COUNTA(NSA!1:1)-($C$4-W$55)) -> 117700 | X61: =OFFSET(NSA!$C$1,MATCH($G$3,NSA!$D$2:$D$88,0),COUNTA(NSA!1:1)-($C$4-X$55)) -> 120100 | Y61: =OFFSET(NSA!$C$1,MATCH($G$3,NSA!$D$2:$D$88,0),COUNTA(NSA!1:1)-($C$4-Y$55)) -> 119400 | Z61: =OFFSET(NSA!$C$1,MATCH($G$3,NSA!$D$2:$D$88,0),COUNTA(NSA!1:1)-($C$4-Z$55)) -> 116600 | AA61: =OFFSET(NSA!$C$1,MATCH($G$3,NSA!$D$2:$D$88,0),COUNTA(NSA!1:1)-($C$4-AA$55)) -> 116200 | AB61: =OFFSET(NSA!$C$1,MATCH($G$3,NSA!$D$2:$D$88,0),COUNTA(NSA!1:1)-($C$4-AB$55)) -> 113300 | AC61: =OFFSET(NSA!$C$1,MATCH($G$3,NSA!$D$2:$D$88,0),COUNTA(NSA!1:1)-($C$4-AC$55)) -> 108000 | AD61: =OFFSET(NSA!$C$1,MATCH($G$3,NSA!$D$2:$D$88,0),COUNTA(NSA!1:1)-($C$4-AD$55)) -> 98300 | AE61: =OFFSET(NSA!$C$1,MATCH($G$3,NSA!$D$2:$D$88,0),COUNTA(NSA!1:1)-($C$4-AE$55)) -> 98100 | AF61: =OFFSET(NSA!$C$1,MATCH($G$3,NSA!$D$2:$D$88,0),COUNTA(NSA!1:1)-($C$4-AF$55)) -> 101000 | AG61: =OFFSET(NSA!$C$1,MATCH($G$3,NSA!$D$2:$D$88,0),COUNTA(NSA!1:1)-($C$4-AG$55)) -> 109400 | AH61: =OFFSET(NSA!$C$1,MATCH($G$3,NSA!$D$2:$D$88,0),COUNTA(NSA!1:1)-($C$4-AH$55)) -> 114700 | AI61: =OFFSET(NSA!$C$1,MATCH($G$3,NSA!$D$2:$D$88,0),COUNTA(NSA!1:1)-($C$4-AI$55)) -> 119500 | AJ61: =OFFSET(NSA!$C$1,MATCH($G$3,NSA!$D$2:$D$88,0),COUNTA(NSA!1:1)-($C$4-AJ$55)) -> 121700 | AK61: =OFFSET(NSA!$C$1,MATCH($G$3,NSA!$D$2:$D$88,0),COUNTA(NSA!1:1)-($C$4-AK$55)) -> 121600 | AL61: =OFFSET(NSA!$C$1,MATCH($G$3,NSA!$D$2:$D$88,0),COUNTA(NSA!1:1)-($C$4-AL$55)) -> 118900 | AM61: =OFFSET(NSA!$C$1,MATCH($G$3,NSA!$D$2:$D$88,0),COUNTA(NSA!1:1)-($C$4-AM$55)) -> 117500 | AN61: =OFFSET(NSA!$C$1,MATCH($G$3,NSA!$D$2:$D$88,0),COUNTA(NSA!1:1)-($C$4-AN$55)) -> 114800 | AO61: =OFFSET(NSA!$C$1,MATCH($G$3,NSA!$D$2:$D$88,0),COUNTA(NSA!1:1)-($C$4-AO$55)) -> 106300 | AP61: =OFFSET(NSA!$C$1,MATCH($G$3,NSA!$D$2:$D$88,0),COUNTA(NSA!1:1)-($C$4-AP$55)) -> 100700 | AQ61: =OFFSET(NSA!$C$1,MATCH($G$3,NSA!$D$2:$D$88,0),COUNTA(NSA!1:1)-($C$4-AQ$55)) -> 99200 | AR61: =OFFSET(NSA!$C$1,MATCH($G$3,NSA!$D$2:$D$88,0),COUNTA(NSA!1:1)-($C$4-AR$55)) -> 100600 | AS61: =OFFSET(NSA!$C$1,MATCH($G$3,NSA!$D$2:$D$88,0),COUNTA(NSA!1:1)-($C$4-AS$55)) -> 110200 | AT61: =OFFSET(NSA!$C$1,MATCH($G$3,NSA!$D$2:$D$88,0),COUNTA(NSA!1:1)-($C$4-AT$55)) -> 117100 | AU61: =OFFSET(NSA!$C$1,MATCH($G$3,NSA!$D$2:$D$88,0),COUNTA(NSA!1:1)-($C$4-AU$55)) -> 121900 | AV61: =OFFSET(NSA!$C$1,MATCH($G$3,NSA!$D$2:$D$88,0),COUNTA(NSA!1:1)-($C$4-AV$55)) -> 123900 | AW61: =OFFSET(NSA!$C$1,MATCH($G$3,NSA!$D$2:$D$88,0),COUNTA(NSA!1:1)-($C$4-AW$55)) -> 123700 | AX61: =OFFSET(NSA!$C$1,MATCH($G$3,NSA!$D$2:$D$88,0),COUNTA(NSA!1:1)-($C$4-AX$55)) -> 120900 | AY61: =OFFSET(NSA!$C$1,MATCH($G$3,NSA!$D$2:$D$88,0),COUNTA(NSA!1:1)-($C$4-AY$55)) -> 0 | AZ61: =OFFSET(NSA!$C$1,MATCH($G$3,NSA!$D$2:$D$88,0),COUNTA(NSA!1:1)-($C$4-AZ$55)) -> 0 | BA61: =OFFSET(NSA!$C$1,MATCH($G$3,NSA!$D$2:$D$88,0),COUNTA(NSA!1:1)-($C$4-BA$55)) -> 0 | BB61: =OFFSET(NSA!$C$1,MATCH($G$3,NSA!$D$2:$D$88,0),COUNTA(NSA!1:1)-($C$4-BB$55)) -> 0 | BC61: =OFFSET(NSA!$C$1,MATCH($G$3,NSA!$D$2:$D$88,0),COUNTA(NSA!1:1)-($C$4-BC$55)) -> 0 | BD61: =OFFSET(NSA!$C$1,MATCH($G$3,NSA!$D$2:$D$88,0),COUNTA(NSA!1:1)-($C$4-BD$55)) -> 0 | BE61: =OFFSET(NSA!$C$1,MATCH($G$3,NSA!$D$2:$D$88,0),COUNTA(NSA!1:1)-($C$4-BE$55)) -> 0 | BF61: =OFFSET(NSA!$C$1,MATCH($G$3,NSA!$D$2:$D$88,0),COUNTA(NSA!1:1)-($C$4-BF$55)) -> 0 | BG61: =OFFSET(NSA!$C$1,MATCH($G$3,NSA!$D$2:$D$88,0),COUNTA(NSA!1:1)-($C$4-BG$55)) -> 0 | BH61: =OFFSET(NSA!$C$1,MATCH($G$3,NSA!$D$2:$D$88,0),COUNTA(NSA!1:1)-($C$4-BH$55)) -> 0 | BI61: =OFFSET(NSA!$C$1,MATCH($G$3,NSA!$D$2:$D$88,0),COUNTA(NSA!1:1)-($C$4-BI$55)) -> 0 | BJ61: =OFFSET(NSA!$C$1,MATCH($G$3,NSA!$D$2:$D$88,0),COUNTA(NSA!1:1)-($C$4-BJ$55)) -> 0 | BK61: =OFFSET(NSA!$C$1,MATCH($G$3,NSA!$D$2:$D$88,0),COUNTA(NSA!1:1)-($C$4-BK$55)) -> 0 | BL61: =OFFSET(NSA!$C$1,MATCH($G$3,NSA!$D$2:$D$88,0),COUNTA(NSA!1:1)-($C$4-BL$55)) -> 0 | BM61: =OFFSET(NSA!$C$1,MATCH($G$3,NSA!$D$2:$D$88,0),COUNTA(NSA!1:1)-($C$4-BM$55)) -> 0 | BN61: =OFFSET(NSA!$C$1,MATCH($G$3,NSA!$D$2:$D$88,0),COUNTA(NSA!1:1)-($C$4-BN$55)) -> 0 | BO61: =OFFSET(NSA!$C$1,MATCH($G$3,NSA!$D$2:$D$88,0),COUNTA(NSA!1:1)-($C$4-BO$55)) -> 0 | BP61: =OFFSET(NSA!$C$1,MATCH($G$3,NSA!$D$2:$D$88,0),COUNTA(NSA!1:1)-($C$4-BP$55)) -> 0 | BQ61: =OFFSET(NSA!$C$1,MATCH($G$3,NSA!$D$2:$D$88,0),COUNTA(NSA!1:1)-($C$4-BQ$55)) -> 0 | BR61: =OFFSET(NSA!$C$1,MATCH($G$3,NSA!$D$2:$D$88,0),COUNTA(NSA!1:1)-($C$4-BR$55)) -> 0 | BS61: =OFFSET(NSA!$C$1,MATCH($G$3,NSA!$D$2:$D$88,0),COUNTA(NSA!1:1)-($C$4-BS$55)) -> 0 | BT61: =OFFSET(NSA!$C$1,MATCH($G$3,NSA!$D$2:$D$88,0),COUNTA(NSA!1:1)-($C$4-BT$55)) -> 0 | BU61: =OFFSET(NSA!$C$1,MATCH($G$3,NSA!$D$2:$D$88,0),COUNTA(NSA!1:1)-($C$4-BU$55)) -> 0 | BV61: =OFFSET(NSA!$C$1,MATCH($G$3,NSA!$D$2:$D$88,0),COUNTA(NSA!1:1)-($C$4-BV$55)) -> 0 | BW61: =OFFSET(NSA!$C$1,MATCH($G$3,NSA!$D$2:$D$88,0),COUNTA(NSA!1:1)-($C$4-BW$55)) -> 0 | BX61: =OFFSET(NSA!$C$1,MATCH($G$3,NSA!$D$2:$D$88,0),COUNTA(NSA!1:1)-($C$4-BX$55)) -> 0 | BY61: =OFFSET(NSA!$C$1,MATCH($G$3,NSA!$D$2:$D$88,0),COUNTA(NSA!1:1)-($C$4-BY$55)) -> 0 | BZ61: =OFFSET(NSA!$C$1,MATCH($G$3,NSA!$D$2:$D$88,0),COUNTA(NSA!1:1)-($C$4-BZ$55)) -> 0 | CA61: =OFFSET(NSA!$C$1,MATCH($G$3,NSA!$D$2:$D$88,0),COUNTA(NSA!1:1)-($C$4-CA$55)) -> 0 | CB61: =OFFSET(NSA!$C$1,MATCH($G$3,NSA!$D$2:$D$88,0),COUNTA(NSA!1:1)-($C$4-CB$55)) -> 0 | CC61: =OFFSET(NSA!$C$1,MATCH($G$3,NSA!$D$2:$D$88,0),COUNTA(NSA!1:1)-($C$4-CC$55)) -> 0 | CD61: =OFFSET(NSA!$C$1,MATCH($G$3,NSA!$D$2:$D$88,0),COUNTA(NSA!1:1)-($C$4-CD$55)) -> 0 | CE61: =OFFSET(NSA!$C$1,MATCH($G$3,NSA!$D$2:$D$88,0),COUNTA(NSA!1:1)-($C$4-CE$55)) -> 0 | CF61: =OFFSET(NSA!$C$1,MATCH($G$3,NSA!$D$2:$D$88,0),COUNTA(NSA!1:1)-($C$4-CF$55)) -> 0 | CG61: =OFFSET(NSA!$C$1,MATCH($G$3,NSA!$D$2:$D$88,0),COUNTA(NSA!1:1)-($C$4-CG$55)) -> 0 | CH61: =OFFSET(NSA!$C$1,MATCH($G$3,NSA!$D$2:$D$88,0),COUNTA(NSA!1:1)-($C$4-CH$55)) -> 0 | CI61: =OFFSET(NSA!$C$1,MATCH($G$3,NSA!$D$2:$D$88,0),COUNTA(NSA!1:1)-($C$4-CI$55)) -> 0 | CJ61: =OFFSET(NSA!$C$1,MATCH($G$3,NSA!$D$2:$D$88,0),COUNTA(NSA!1:1)-($C$4-CJ$55)) -> 0 | CK61: =OFFSET(NSA!$C$1,MATCH($G$3,NSA!$D$2:$D$88,0),COUNTA(NSA!1:1)-($C$4-CK$55)) -> 0 | CL61: =OFFSET(NSA!$C$1,MATCH($G$3,NSA!$D$2:$D$88,0),COUNTA(NSA!1:1)-($C$4-CL$55)) -> 0 | CM61: =OFFSET(NSA!$C$1,MATCH($G$3,NSA!$D$2:$D$88,0),COUNTA(NSA!1:1)-($C$4-CM$55)) -> 0 | CN61: =OFFSET(NSA!$C$1,MATCH($G$3,NSA!$D$2:$D$88,0),COUNTA(NSA!1:1)-($C$4-CN$55)) -> 0 | CO61: =OFFSET(NSA!$C$1,MATCH($G$3,NSA!$D$2:$D$88,0),COUNTA(NSA!1:1)-($C$4-CO$55)) -> 0 | CP61: =OFFSET(NSA!$C$1,MATCH($G$3,NSA!$D$2:$D$88,0),COUNTA(NSA!1:1)-($C$4-CP$55)) -> 0 | CQ61: =OFFSET(NSA!$C$1,MATCH($G$3,NSA!$D$2:$D$88,0),COUNTA(NSA!1:1)-($C$4-CQ$55)) -> 0 | CR61: =OFFSET(NSA!$C$1,MATCH($G$3,NSA!$D$2:$D$88,0),COUNTA(NSA!1:1)-($C$4-CR$55)) -> 0 | CS61: =OFFSET(NSA!$C$1,MATCH($G$3,NSA!$D$2:$D$88,0),COUNTA(NSA!1:1)-($C$4-CS$55)) -> 0 | CT61: =OFFSET(NSA!$C$1,MATCH($G$3,NSA!$D$2:$D$88,0),COUNTA(NSA!1:1)-($C$4-CT$55)) -> 0 | CU61: =OFFSET(NSA!$C$1,MATCH($G$3,NSA!$D$2:$D$88,0),COUNTA(NSA!1:1)-($C$4-CU$55)) -> 0 | CV61: =OFFSET(NSA!$C$1,MATCH($G$3,NSA!$D$2:$D$88,0),COUNTA(NSA!1:1)-($C$4-CV$55)) -> 0 | CW61: =OFFSET(NSA!$C$1,MATCH($G$3,NSA!$D$2:$D$88,0),COUNTA(NSA!1:1)-($C$4-CW$55)) -> 0 | CX61: =OFFSET(NSA!$C$1,MATCH($G$3,NSA!$D$2:$D$88,0),COUNTA(NSA!1:1)-($C$4-CX$55)) -> 0 | CY61: =OFFSET(NSA!$C$1,MATCH($G$3,NSA!$D$2:$D$88,0),COUNTA(NSA!1:1)-($C$4-CY$55)) -> 0 | CZ61: =OFFSET(NSA!$C$1,MATCH($G$3,NSA!$D$2:$D$88,0),COUNTA(NSA!1:1)-($C$4-CZ$55)) -> 0
B62: OTM 1 | D62: =D57-C57 -> 3600 | E62: -6400 | F62: -85200 | G62: 16700 | H62: 13600 | I62: 35700 | J62: 35200 | K62: 25600 | L62: -21600 | M62: 13300 | N62: 1400 | O62: 11200 | P62: 9900 | Q62: -11700 | R62: -86100 | S62: 19400 | T62: 13700 | U62: 39200 | V62: 28100 | W62: 21900 | X62: -16300 | Y62: 1900 | Z62: 2500 | AA62: 14300 | AB62: -1400 | AC62: 600 | AD62: -81000 | AE62: 20800 | AF62: 9800 | AG62: 40600 | AH62: 14100 | AI62: 18700 | AJ62: =AJ57-AI57 -> -6900 | AK62: 1400 | AL62: -4500 | AM62: 19700 | AN62: -400 | AO62: -26000 | AP62: -61200 | AQ62: 23600 | AR62: 4300 | AS62: 37900 | AT62: 29000 | AU62: 23400 | AV62: -12900 | AW62: -1800 | AX62: -2000 | AY62: -2975500 | AZ62: 0 | BA62: 0 | BB62: 0 | BC62: 0 | BD62: 0 | BE62: 0 | BF62: 0 | BG62: 0 | BH62: 0 | BI62: 0 | BJ62: 0 | BK62: 0 | BL62: 0 | BM62: 0 | BN62: 0 | BO62: 0 | BP62: =BP57-BO57 -> 0 | BQ62: 0 | BR62: 0 | BS62: 0 | BT62: 0 | BU62: 0 | BV62: 0 | BW62: 0 | BX62: 0 | BY62: 0 | BZ62: 0 | CA62: 0 | CB62: 0 | CC62: 0 | CD62: 0 | CE62: 0 | CF62: 0 | CG62: 0 | CH62: 0 | CI62: 0 | CJ62: 0 | CK62: 0 | CL62: 0 | CM62: 0 | CN62: 0 | CO62: 0 | CP62: 0 | CQ62: 0 | CR62: 0 | CS62: 0 | CT62: 0 | CU62: 0 | CV62: 0 | CW62: 0 | CX62: 0 | CY62: 0 | CZ62: 0
B63: OTM 2 | D63: =D58-C58 -> -2800 | E63: -8300 | F63: -9000 | G63: -900 | H63: 2900 | I63: 7100 | J63: 9000 | K63: 6500 | L63: 2400 | M63: 1000 | N63: -2100 | O63: -500 | P63: -3100 | Q63: -6300 | R63: -8700 | S63: -1200 | T63: 2300 | U63: 10200 | V63: 7000 | W63: 5000 | X63: 2400 | Y63: -700 | Z63: -2800 | AA63: -400 | AB63: -2900 | AC63: -5300 | AD63: -9700 | AE63: -200 | AF63: 2900 | AG63: 8400 | AH63: 5300 | AI63: 4800 | AJ63: =AJ58-AI58 -> 2200 | AK63: -100 | AL63: -2700 | AM63: -1400 | AN63: -2700 | AO63: -8500 | AP63: -5600 | AQ63: -1500 | AR63: 1400 | AS63: 9600 | AT63: 6900 | AU63: 4800 | AV63: 2000 | AW63: -200 | AX63: -2800 | AY63: -120900 | AZ63: 0 | BA63: 0 | BB63: 0 | BC63: 0 | BD63: 0 | BE63: 0 | BF63: 0 | BG63: 0 | BH63: 0 | BI63: 0 | BJ63: 0 | BK63: 0 | BL63: 0 | BM63: 0 | BN63: 0 | BO63: 0 | BP63: =BP58-BO58 -> 0 | BQ63: 0 | BR63: 0 | BS63: 0 | BT63: 0 | BU63: 0 | BV63: 0 | BW63: 0 | BX63: 0 | BY63: 0 | BZ63: 0 | CA63: 0 | CB63: 0 | CC63: 0 | CD63: 0 | CE63: 0 | CF63: 0 | CG63: 0 | CH63: 0 | CI63: 0 | CJ63: 0 | CK63: 0 | CL63: 0 | CM63: 0 | CN63: 0 | CO63: 0 | CP63: 0 | CQ63: 0 | CR63: 0 | CS63: 0 | CT63: 0 | CU63: 0 | CV63: 0 | CW63: 0 | CX63: 0 | CY63: 0 | CZ63: 0
B64: %OTM 1 | D64: =D62/C57*100 -> 0.1263246544 | E64: -0.2242938249 | F64: -2.992623815 | G64: 0.6046781085 | H64: 0.4894727371 | I64: 1.2786075 | J64: 1.244783931 | K64: 0.8941669577 | L64: -0.7477670844 | M64: 0.4638995466 | N64: 0.04860604798 | O64: 0.3886594718 | P64: 0.3422171523 | Q64: -0.4030591153 | R64: -2.978105219 | S64: 0.6916221034 | T64: 0.4850587735 | U64: 1.381205736 | V64: 0.9766100163 | W64: 0.7537688442 | X64: -0.5568271103 | Y64: 0.06526966678 | Z64: 0.08582512273 | AA64: 0.4904987309 | AB64: -0.04778646278 | AC64: 0.02048970392 | AD64: -2.765543378 | AE64: 0.7303627234 | AF64: 0.3416181546 | AG64: 1.410456835 | AH64: 0.4830255901 | AI64: 0.6375289786 | AJ64: =AJ62/AI57*100 -> -0.2337477557 | AK64: 0.04753820034 | AL64: -0.1527287537 | AM64: 0.6696352697 | AN64: -0.01350621286 | AO64: -0.8780224233 | AP64: -2.085036795 | AQ64: 0.8211551844 | AR64: 0.1483986748 | AS64: 1.30604087 | AT64: 0.9864616641 | AU64: 0.7881972514 | AV64: -0.4311209144 | AW64: -0.06041687645 | AX64: -0.067170445 | AY64: -100 | BP64: =BP62/BO57*100 -> 
B65: %OTM 2 | D65: =D63/C58*100 -> -2.611940299 | E65: -7.950191571 | F65: -9.365244537 | G65: -1.033295063 | H65: 3.364269142 | I65: 7.968574635 | J65: 9.355509356 | K65: 6.178707224 | L65: 2.148612355 | M65: 0.8764241893 | N65: -1.824500434 | O65: -0.4424778761 | P65: -2.755555556 | Q65: -5.758683729 | R65: -8.438409311 | S65: -1.271186441 | T65: 2.467811159 | U65: 10.68062827 | V65: 6.622516556 | W65: 4.436557232 | X65: 2.039082413 | Y65: -0.582847627 | Z65: -2.345058626 | AA65: -0.3430531732 | AB65: -2.495697074 | AC65: -4.677846425 | AD65: -8.981481481 | AE65: -0.2034587996 | AF65: 2.956167176 | AG65: 8.316831683 | AH65: 4.844606947 | AI65: 4.184829991 | AJ65: =AJ63/AI58*100 -> 1.841004184 | AK65: -0.08216926869 | AL65: -2.220394737 | AM65: -1.17746005 | AN65: -2.29787234 | AO65: -7.404181185 | AP65: -5.268109125 | AQ65: -1.489572989 | AR65: 1.411290323 | AS65: 9.542743539 | AT65: 6.261343013 | AU65: 4.099060632 | AV65: 1.640689089 | AW65: -0.1614205004 | AX65: -2.263540825 | AY65: -100 | BP65: =BP63/BO58*100 -> 
C66: Used for pop-up menus. --> | D66: None | BJ66: =(BJ57-BI57)/(BB57-BI57) -> 
C67: May need to change if | D67: =NSA!D2 -> Total Nonfarm | BJ67: =(BJ58-BI58)/(BB58-BI58) -> 
C68: NSA sector names change. | D68: =NSA!D3 -> Total Private | AK68: =(AK57-AE57)/AE57*100 -> 2.70854394
D69: =NSA!D4 -> Goods Producing
D70: =NSA!D5 -> Service-Providing | M70: <-- Button no longer needed; relevant code called directly when parameter cells change.
D71: =NSA!D6 -> Private Service Providing
D72: =NSA!D7 -> Mining and Logging | K72: Axis range calculations (referenced in axis-manipulation code)
D73: =NSA!D9 -> Construction | K73: Ave | L73: SD | M73: Min | N73: Max | O73: SDMin | P73: SDMax | Q73: AxisSDMin | R73: AxisSDMax | S73: AxisMin | T73: AxisMax
D74: =NSA!D10 -> Construction of Buildings | K74: =AVERAGE(OFFSET($C57,0,0,1,$C$4)) -> 2897472.917 | L74: =STDEV(OFFSET($C57,0,0,1,$C$4)) -> 54731.83655 | M74: =MIN(OFFSET($C57,0,0,1,$C$4))-($C57*0.05) -> 2619310 | N74: =MAX(OFFSET($C57,0,0,1,$C$4))*1.05 -> 3141810 | O74: =(M74-$K74)/$L74 -> -5.08228728 | P74: =(N74-$K74)/$L74 -> 4.464258807 | Q74: =IF(ISNA(O75),FLOOR(O74,0.25),FLOOR(MIN($O$74:$O$75),0.25)) -> -5.25 | R74: =IF(ISNA(P75),CEILING(P74,0.25),CEILING(MAX($P$74:$P$75),0.25)) -> 4.5 | S74: =Q74*$L74+$K74 -> 2610130.775 | T74: =R74*$L74+$K74 -> 3143766.181
D75: =NSA!D11 -> Heavy and Civil Engineering Construction | K75: =AVERAGE(OFFSET($C58,0,0,1,$C$4)) -> 108816.6667 | L75: =STDEV(OFFSET($C58,0,0,1,$C$4)) -> 10337.44142 | M75: =MIN(OFFSET($C58,0,0,1,$C$4))-($C58*0.05) -> 80840 | N75: =MAX(OFFSET($C58,0,0,1,$C$4))*1.05 -> 130095 | O75: =(M75-$K75)/$L75 -> -2.706343431 | P75: =(N75-$K75)/$L75 -> 2.058375228 | Q75: =IF(ISNA(O74),FLOOR(O75,0.25),FLOOR(MIN($O$74:$O$75),0.25)) -> -5.25 | R75: =IF(ISNA(P74),CEILING(P75,0.25),CEILING(MAX($P$74:$P$75),0.25)) -> 4.5 | S75: =Q75*$L75+$K75 -> 54545.09923 | T75: =R75*$L75+$K75 -> 155335.153
D76: =NSA!D12 -> Specialty Trade Contractors
D77: =NSA!D13 -> Building Equipment Contractors
D78: =NSA!D14 -> Manufacturing
D79: =NSA!D15 -> Durable Goods | K79: Ave | L79: SD | M79: Min | N79: Max | O79: SDMin | P79: SDMax | Q79: AxisSDMin | R79: AxisSDMax | S79: AxisMin | T79: AxisMax
D80: =NSA!D16 -> Wood Product Manufacturing | K80: =AVERAGE(OFFSET($C60,0,0,1,$C$4)) -> 466404.1667 | L80: =STDEV(OFFSET($C60,0,0,1,$C$4)) -> 6471.73752 | M80: =MIN(OFFSET($C60,0,0,1,$C$4))-($C60*0.05) -> 431910 | N80: =MAX(OFFSET($C60,0,0,1,$C$4))*1.05 -> 505680 | O80: =(M80-$K80)/$L80 -> -5.329969975 | P80: =(N80-$K80)/$L80 -> 6.068823591 | Q80: =IF(ISNA(O75),FLOOR(O80,0.25),FLOOR(MIN($O$74:$O$75),0.25)) -> -5.25 | R80: =IF(ISNA(P75),CEILING(P80,0.25),CEILING(MAX($P$74:$P$75),0.25)) -> 4.5 | S80: =Q80*$L80+$K80 -> 432427.5447 | T80: =R80*$L80+$K80 -> 495526.9855
D81: =NSA!D17 -> Fabricated Metal Product Manufacturing | K81: =AVERAGE(OFFSET($C61,0,0,1,$C$4)) -> 108816.6667 | L81: =STDEV(OFFSET($C61,0,0,1,$C$4)) -> 10337.44142 | M81: =MIN(OFFSET($C61,0,0,1,$C$4))-($C61*0.05) -> 80840 | N81: =MAX(OFFSET($C61,0,0,1,$C$4))*1.05 -> 130095 | O81: =(M81-$K81)/$L81 -> -2.706343431 | P81: =(N81-$K81)/$L81 -> 2.058375228 | Q81: =IF(ISNA(O80),FLOOR(O81,0.25),FLOOR(MIN($O$74:$O$75),0.25)) -> -5.25 | R81: =IF(ISNA(P80),CEILING(P81,0.25),CEILING(MAX($P$74:$P$75),0.25)) -> 4.5 | S81: =Q81*$L81+$K81 -> 54545.09923 | T81: =R81*$L81+$K81 -> 155335.153
D82: =NSA!D18 -> Machinery Manufacturing
D83: =NSA!D19 -> Electrical Equipment, Appliance, and Component Manufacturing
D84: =NSA!D20 -> Transportation Equipment Manufacturing
D85: =NSA!D21 -> Non-Durable Goods
D86: =NSA!D22 -> Food Manufacturing
D87: =NSA!D23 -> Animal Slaughtering and Processing
D88: =NSA!D24 -> Paper Manufacturing
D89: =NSA!D25 -> Printing and Related Support Activities
D90: =NSA!D26 -> Plastics and Rubber Products Manufacturing
D91: =NSA!D27 -> Plastics Product Manufacturing
D92: =NSA!D28 -> Trade, Transportation, and Utilities
D93: =NSA!D29 -> Wholesale Trade
D94: =NSA!D30 -> Merchant Wholesalers, Durable Goods
D95: =NSA!D31 -> Merchant Wholesalers, Nondurable Goods
D96: =NSA!D32 -> Grocery and Related Product Merchant Wholesalers
D97: =NSA!D33 -> Retail Trade
D98: =NSA!D34 -> Motor Vehicle and Parts Dealers
D99: =NSA!D35 -> Building Material and Garden Equipment and Supplies Dealers
D100: =NSA!D36 -> Food and Beverage Stores
D101: =NSA!D37 -> Grocery Stores
D102: =NSA!D38 -> Gasoline Stations
D103: =NSA!D39 -> General Merchandise Stores
D104: =NSA!D40 -> Department Stores
D105: =NSA!D41 -> Nonstore Retailers
D106: =NSA!D42 -> Electronic Shopping and Mail-Order Houses
D107: =NSA!D43 -> Transportation, Warehousing, and Utilities
D108: =NSA!D44 -> Utilities
D109: =NSA!D45 -> Transportation and Warehousing
D110: =NSA!D46 -> Truck Transportation
D111: =NSA!D47 -> Information
D112: =NSA!D48 -> Financial Activities
D113: =NSA!D49 -> Finance and Insurance
D114: =NSA!D50 -> Credit Intermediation and Related Activities including Monetary Authorities-Central Bank
D115: =NSA!D51 -> Depository Credit Intermediation including Monetary Authorities-Central Bank
D116: =NSA!D52 -> Insurance Carriers and Related Activities
D117: =NSA!D53 -> Real Estate and Rental and Leasing
D118: =NSA!D54 -> Professional and Business Services
D119: =NSA!D55 -> Professional, Scientific, and Technical Services
D120: =NSA!D56 -> Architectural, Engineering, and Related Services
D121: =NSA!D57 -> Management of Companies and Enterprises
D122: =NSA!D58 -> Administrative and Support and Waste Management and Remediation Services
D123: =NSA!D59 -> Employment Services
D124: =NSA!D60 -> Services to Buildings and Dwellings
D125: =NSA!D61 -> Education and Health Services
D126: =NSA!D62 -> Educational Services
D127: =NSA!D63 -> Colleges, Universities, and Professional Schools
D128: =NSA!D64 -> Health Care and Social Assistance
D129: =NSA!D65 -> Ambulatory Health Care Services
D130: =NSA!D66 -> Offices of Physicians
D131: =NSA!D67 -> Outpatient Care Centers
D132: =NSA!D68 -> Hospitals
D133: =NSA!D69 -> Nursing and Residential Care Facilities
D134: =NSA!D70 -> Nursing Care Facilities
D135: =NSA!D71 -> Social Assistance
D136: =NSA!D72 -> Leisure and Hospitality
D137: =NSA!D73 -> Arts, Entertainment, and Recreation
D138: =NSA!D74 -> Accommodation and Food Services
D139: =NSA!D75 -> Accommodation
D140: =NSA!D76 -> Food Services and Drinking Places
D141: =NSA!D77 -> Drinking Places (Alcoholic Beverages)
D142: =NSA!D78 -> Restaurants and Other Eating Places
D143: =NSA!D79 -> Full-service restaurants
D144: =NSA!D80 -> Limited Service Eating Places and Other Eating Places
D145: =NSA!D81 -> Other Services
D146: =NSA!D82 -> Repair and Maintenance
D147: =NSA!D83 -> Personal and Laundry Services
D148: =NSA!D84 -> Religious, Grantmaking, Civic, Professional, and Similar Organizations
D149: =NSA!D85 -> Government
D150: =NSA!D86 -> Federal Government
D151: =NSA!D87 -> State Government
D152: =NSA!D88 -> Local Government
D153: =NSA!D89 -> Local Government Educational Services

Sheet Monthly
A40: This graph is based on your selection in SA charts and shows the monthly fluctuations
F65: 1 | G65: =F65+1 -> 2 | H65: =G65+1 -> 3 | I65: 4 | J65: 5 | K65: 6 | L65: 7 | M65: 8 | N65: 9 | O65: 10 | P65: 11 | Q65: 12 | R65: 13 | S65: 14 | T65: 15 | U65: 16 | V65: 17 | W65: 18 | X65: 19 | Y65: 20 | Z65: 21 | AA65: 22 | AB65: 23 | AC65: 24 | AD65: 25 | AE65: 26 | AF65: 27 | AG65: 28 | AH65: 29 | AI65: 30 | AJ65: 31 | AK65: 32 | AL65: 33 | AM65: 34 | AN65: 35 | AO65: 36 | AP65: 37 | AQ65: 38 | AR65: 39 | AS65: 40 | AT65: 41 | AU65: 42 | AV65: 43 | AW65: 44 | AX65: 45
B66: 3 Month Chg | E66: =AVERAGE('SA Charts'!C44:E44) -> 2850 | F66: =AVERAGE('SA Charts'!D44:F44) -> 3600 | G66: =AVERAGE('SA Charts'!E44:G44) -> 3100 | H66: =AVERAGE('SA Charts'!F44:H44) -> 3300 | I66: =AVERAGE('SA Charts'!G44:I44) -> 3900 | J66: =AVERAGE('SA Charts'!H44:J44) -> 4333.333333 | K66: =AVERAGE('SA Charts'!I44:K44) -> 5333.333333 | L66: =AVERAGE('SA Charts'!J44:L44) -> 3000 | M66: =AVERAGE('SA Charts'!K44:M44) -> 6233.333333 | N66: =AVERAGE('SA Charts'!L44:N44) -> 3333.333333 | O66: =AVERAGE('SA Charts'!M44:O44) -> 3833.333333 | P66: =AVERAGE('SA Charts'!N44:P44) -> 3800 | Q66: =AVERAGE('SA Charts'!O44:Q44) -> 2600 | R66: =AVERAGE('SA Charts'!P44:R44) -> 3766.666667 | S66: =AVERAGE('SA Charts'!Q44:S44) -> 666.6666667 | T66: =AVERAGE('SA Charts'!R44:T44) -> 4033.333333 | U66: =AVERAGE('SA Charts'!S44:U44) -> 2666.666667 | V66: =AVERAGE('SA Charts'!T44:V44) -> 3433.333333 | W66: =AVERAGE('SA Charts'!U44:W44) -> 2900 | X66: =AVERAGE('SA Charts'!V44:X44) -> 3600 | Y66: =AVERAGE('SA Charts'!W44:Y44) -> 2833.333333 | Z66: =AVERAGE('SA Charts'!X44:Z44) -> 1933.333333 | AA66: =AVERAGE('SA Charts'!Y44:AA44) -> 2533.333333 | AB66: =AVERAGE('SA Charts'!Z44:AB44) -> 1666.666667 | AC66: =AVERAGE('SA Charts'!AA44:AC44) -> 3766.666667 | AD66: =AVERAGE('SA Charts'!AB44:AD44) -> 5700 | AE66: =AVERAGE('SA Charts'!AC44:AE44) -> 7000 | AF66: =AVERAGE('SA Charts'!AD44:AF44) -> 5033.333333 | AG66: =AVERAGE('SA Charts'!AE44:AG44) -> 1966.666667 | AH66: =AVERAGE('SA Charts'!AF44:AH44) -> -1966.666667 | AI66: =AVERAGE('SA Charts'!AG44:AI44) -> -2066.666667 | AJ66: =AVERAGE('SA Charts'!AH44:AJ44) -> 1300 | AK66: =AVERAGE('SA Charts'!AI44:AK44) -> 4133.333333 | AL66: =AVERAGE('SA Charts'!AJ44:AL44) -> 2333.333333 | AM66: =AVERAGE('SA Charts'!AK44:AM44) -> 633.3333333 | AN66: =AVERAGE('SA Charts'!AL44:AN44) -> 1566.666667 | AO66: =AVERAGE('SA Charts'!AM44:AO44) -> 3500 | AP66: =AVERAGE('SA Charts'!AN44:AP44) -> 3200 | AQ66: =AVERAGE('SA Charts'!AO44:AQ44) -> 5666.666667 | AR66: =AVERAGE('SA Charts'!AP44:AR44) -> 4266.666667 | AS66: =AVERAGE('SA Charts'!AQ44:AS44) -> 6833.333333 | AT66: =AVERAGE('SA Charts'!AR44:AT44) -> 1900 | AU66: =AVERAGE('SA Charts'!AS44:AU44) -> 1333.333333 | AV66: =AVERAGE('SA Charts'!AT44:AV44) -> -1100 | AW66: =AVERAGE('SA Charts'!AU44:AW44) -> -2233.333333 | AX66: =AVERAGE('SA Charts'!AV44:AX44) -> 2433.333333 | AY66: =AVERAGE('SA Charts'!AW44:AY44) ->  | AZ66: =AVERAGE('SA Charts'!AX44:AZ44) ->  | BA66: =AVERAGE('SA Charts'!AY44:BA44) ->  | BB66: =AVERAGE('SA Charts'!AZ44:BB44) ->  | BC66: =AVERAGE('SA Charts'!BA44:BC44) ->  | BD66: =AVERAGE('SA Charts'!BB44:BD44) ->  | BE66: =AVERAGE('SA Charts'!BC44:BE44) ->  | BF66: =AVERAGE('SA Charts'!BD44:BF44) ->  | BG66: =AVERAGE('SA Charts'!BE44:BG44) ->  | BH66: =AVERAGE('SA Charts'!BF44:BH44) ->  | BI66: =AVERAGE('SA Charts'!BG44:BI44) ->  | BJ66: =AVERAGE('SA Charts'!BH44:BJ44) ->  | BK66: =AVERAGE('SA Charts'!BI44:BK44) ->  | BL66: =AVERAGE('SA Charts'!BJ44:BL44) ->  | BM66: =AVERAGE('SA Charts'!BK44:BM44) ->  | BN66: =AVERAGE('SA Charts'!BL44:BN44) ->  | BO66: =AVERAGE('SA Charts'!BM44:BO44) ->  | BP66: =AVERAGE('SA Charts'!BN44:BP44) ->  | BQ66: =AVERAGE('SA Charts'!BO44:BQ44) ->  | BR66: =AVERAGE('SA Charts'!BP44:BR44) ->  | BS66: =AVERAGE('SA Charts'!BQ44:BS44) ->  | BT66: =AVERAGE('SA Charts'!BR44:BT44) ->  | BU66: =AVERAGE('SA Charts'!BS44:BU44) ->  | BV66: =AVERAGE('SA Charts'!BT44:BV44) ->  | BW66: =AVERAGE('SA Charts'!BU44:BW44) ->  | BX66: =AVERAGE('SA Charts'!BV44:BX44) ->  | BY66: =AVERAGE('SA Charts'!BW44:BY44) ->  | BZ66: =AVERAGE('SA Charts'!BX44:BZ44) ->  | CA66: =AVERAGE('SA Charts'!BY44:CA44) ->  | CB66: =AVERAGE('SA Charts'!BZ44:CB44) ->  | CC66: =AVERAGE('SA Charts'!CA44:CC44) ->  | CD66: =AVERAGE('SA Charts'!CB44:CD44) ->  | CE66: =AVERAGE('SA Charts'!CC44:CE44) ->  | CF66: =AVERAGE('SA Charts'!CD44:CF44) ->  | CG66: =AVERAGE('SA Charts'!CE44:CG44) ->  | CH66: =AVERAGE('SA Charts'!CF44:CH44) ->  | CI66: =AVERAGE('SA Charts'!CG44:CI44) ->  | CJ66: =AVERAGE('SA Charts'!CH44:CJ44) ->  | CK66: =AVERAGE('SA Charts'!CI44:CK44) ->  | CL66: =AVERAGE('SA Charts'!CJ44:CL44) ->  | CM66: =AVERAGE('SA Charts'!CK44:CM44) ->  | CN66: =AVERAGE('SA Charts'!CL44:CN44) ->  | CO66: =AVERAGE('SA Charts'!CM44:CO44) ->  | CP66: =AVERAGE('SA Charts'!CN44:CP44) ->  | CQ66: =AVERAGE('SA Charts'!CO44:CQ44) ->  | CR66: =AVERAGE('SA Charts'!CP44:CR44) ->  | CS66: =AVERAGE('SA Charts'!CQ44:CS44) ->  | CT66: =AVERAGE('SA Charts'!CR44:CT44) ->  | CU66: =AVERAGE('SA Charts'!CS44:CU44) ->  | CV66: =AVERAGE('SA Charts'!CT44:CV44) ->  | CW66: =AVERAGE('SA Charts'!CU44:CW44) ->  | CX66: =AVERAGE('SA Charts'!CV44:CX44) ->  | CY66: =AVERAGE('SA Charts'!CW44:CY44) ->  | CZ66: =AVERAGE('SA Charts'!CX44:CZ44) -> 
B69: 6 mo trend | C69: Current | D69: Diff | E69: Expected value | F69: ='SA Charts'!AX41 -> 2017-09-01 | G69: ='SA Charts'!AW41 -> 2017-08-01 | H69: ='SA Charts'!AL41 -> 2016-09-01 | J69: AVG 48 mo | K69: AVG 24 mo | L69: AVG 12 mo | M69: AVG 6 mo | N69: AVG 3 mo | P69: 12 mo var | Q69: 6 mo var | R69: 3 mo var
A70: ='SA Charts'!C2 -> Total Nonfarm | E70: =(N70)-(F70+G70) -> 933.3333333 | F70: ='SA Charts'!AX44 -> 8600 | G70: ='SA Charts'!AW44 -> -7100 | H70: ='SA Charts'!AL44 -> -5300 | J70: =AVERAGE('SA Charts'!D44:AX44) -> 2931.914894 | K70: =AVERAGE('SA Charts'!AA44:AX44) -> 2575 | L70: =AVERAGE('SA Charts'!AM44:AX44) -> 2883.333333 | M70: =AVERAGE('SA Charts'!AS44:AX44) -> 1883.333333 | N70: =AVERAGE('SA Charts'!AV44:AX44) -> 2433.333333 | P70: =F70-L70 -> 5716.666667 | Q70: =F70-M70 -> 6716.666667 | R70: =F70-N70 -> 6166.666667

Sheet 3Month
A42: This graph is based on your selection in SA charts
A44: This graph shows how providing a 3 month-view of the data smoothes out volatility. Where you see no data are months where the 3 month average=0.

Sheet Historical
A1: CES Historical Analysis | B1: Key | C1: <15% | D1: 15 to 30% | E1: 31 to 45% | F1: 46 to 55% | G1: 56 to 70% | H1: 71 to 85% | I1: >85% | CT1: Key | CU1: <15% | CV1: 15 to 30% | CW1: 31 to 45% | CX1: 46 to 55% | CY1: 56 to 70% | CZ1: 71 to 85% | DA1: >85% | DC1: Key | DD1: Significantly Higher Change (bolded italicized black text)
C2: Bottom 15% | I2: Top 15% | CU2: Bottom 15% | DA2: Top 15% | DD2: Significantly Lower Change (bolded italicized red text)
AW3: GM Closes | DC3: Above Key applies to values starting October 2013 (non-benchmarked data)
N5: Housing Market Prices Peaks | Z5: Housing Market Price Declines Begin | AE5: Peak | AF5: Decline begins | AH5: Floods | AU5: Great Recession | BV5: Act 10 Protests | CA5: Act 10 Passes | CD5: Education Cuts begin | CM5: Severe Drought | DF5: Dodd Frank
DE6: Severe Winter Weather/Late Spring | EM6: Post Benchmark Re-estimates
A7: Year over Year Change | B7: 2005-01-01 | C7: 2005-02-01 | D7: 2005-03-01 | E7: 2005-04-01 | F7: 2005-05-01 | G7: 2005-06-01 | H7: 2005-07-01 | I7: 2005-08-01 | J7: 2005-09-01 | K7: 2005-10-01 | L7: 2005-11-01 | M7: 2005-12-01 | N7: 2006-01-01 | O7: 2006-02-01 | P7: 2006-03-01 | Q7: 2006-04-01 | R7: 2006-05-01 | S7: 2006-06-01 | T7: 2006-07-01 | U7: 2006-08-01 | V7: 2006-09-01 | W7: 2006-10-01 | X7: 2006-11-01 | Y7: 2006-12-01 | Z7: 2007-01-01 | AA7: 2007-02-01 | AB7: 2007-03-01 | AC7: 2007-04-01 | AD7: 2007-05-01 | AE7: 2007-06-01 | AF7: 2007-07-01 | AG7: 2007-08-01 | AH7: 2007-09-01 | AI7: 2007-10-01 | AJ7: 2007-11-01 | AK7: 2007-12-01 | AL7: 2008-01-01 | AM7: 2008-02-01 | AN7: 2008-03-01 | AO7: 2008-04-01 | AP7: 2008-05-01 | AQ7: 2008-06-01 | AR7: 2008-07-01 | AS7: 2008-08-01 | AT7: 2008-09-01 | AU7: 2008-10-01 | AV7: 2008-11-01 | AW7: 2008-12-01 | AX7: 2009-01-01 | AY7: 2009-02-01 | AZ7: 2009-03-01 | BA7: 2009-04-01 | BB7: 2009-05-01 | BC7: 2009-06-01 | BD7: 2009-07-01 | BE7: 2009-08-01 | BF7: 2009-09-01 | BG7: 2009-10-01 | BH7: 2009-11-01 | BI7: 2009-12-01 | BJ7: 2010-01-01 | BK7: 2010-02-01 | BL7: 2010-03-01 | BM7: 2010-04-01 | BN7: 2010-05-01 | BO7: 2010-06-01 | BP7: 2010-07-01 | BQ7: 2010-08-01 | BR7: 2010-09-01 | BS7: 2010-10-01 | BT7: 2010-11-01 | BU7: 2010-12-01 | BV7: 2011-01-01 | BW7: 2011-02-01 | BX7: 2011-03-01 | BY7: 2011-04-01 | BZ7: 2011-05-01 | CA7: 2011-06-01 | CB7: 2011-07-01 | CC7: 2011-08-01 | CD7: 2011-09-01 | CE7: 2011-10-01 | CF7: 2011-11-01 | CG7: 2011-12-01 | CH7: 2012-01-01 | CI7: 2012-02-01 | CJ7: 2012-03-01 | CK7: 2012-04-01 | CL7: 2012-05-01 | CM7: 2012-06-01 | CN7: 2012-07-01 | CO7: 2012-08-01 | CP7: 2012-09-01 | CQ7: 2012-10-01 | CR7: 2012-11-01 | CS7: 2012-12-01 | CT7: 2013-01-01 | CU7: 2013-02-01 | CV7: 2013-03-01 | CW7: 2013-04-01 | CX7: 2013-05-01 | CY7: 2013-06-01 | CZ7: 2013-07-01 | DA7: 2013-08-01 | DB7: 2013-09-01 | DC7: 2013-10-01 | DD7: 2013-11-01 | DE7: 2013-12-01 | DF7: 2014-01-01 | DG7: 2014-02-01 | DH7: 2014-03-01 | DI7: 2014-04-01 | DJ7: 2014-05-01 | DK7: 2014-06-01 | DL7: =EDATE(DK7, 1) -> 2014-07-01 | DM7: =EDATE(DL7, 1) -> 2014-08-01 | DN7: 2014-09-01 | DO7: 2014-10-01 | DP7: 2014-11-01 | DQ7: 2014-12-01 | DR7: 2015-01-01 | DS7: 2015-02-01 | DT7: 2015-03-01 | DU7: 2015-04-01 | DV7: 2015-05-01 | DW7: 2015-06-01 | DX7: 2015-07-01 | DY7: 2015-08-01 | DZ7: 2015-09-01 | EA7: 2015-10-01 | EB7: 2015-11-01 | EC7: 2015-12-01 | ED7: 2016-01-01 | EE7: =EDATE(ED7, 1) -> 2016-02-01 | EF7: =EDATE(EE7, 1) -> 2016-03-01 | EG7: =EDATE(EF7, 1) -> 2016-04-01 | EH7: =EDATE(EG7, 1) -> 2016-05-01 | EI7: =EDATE(EH7, 1) -> 2016-06-01 | EJ7: =EDATE(EI7, 1) -> 2016-07-01 | EK7: =EDATE(EJ7, 1) -> 2016-08-01 | EL7: =EDATE(EK7, 1) -> 2016-09-01 | EM7: 2016-10-01 | EN7: 2016-11-01 | EO7: =EDATE(EN7, 1) -> 2016-12-01 | EP7: =EDATE(EO7, 1) -> 2017-01-01 | EQ7: =EDATE(EP7, 1) -> 2017-02-01 | ER7: =EDATE(EQ7, 1) -> 2017-03-01 | ES7: 2017-04-01 | ET7: 2017-05-01 | EU7: 2017-06-01 | EV7: 2017-07-01 | EW7: 2017-08-01 | EX7: 2017-09-01 | EY7: 2017-10-01 | EZ7: 2017-11-01 | FA7: =EDATE(EZ7, 1) -> 2017-12-01 | FB7: Y/Y Sig | FC7: # Positive Sig Changes since October 2016 | FD7: 12 mo Trend | FE7: Year over Year Change | FF7: Min | FG7: 0.15 | FH7: 0.3 | FI7: 0.45 | FJ7: 0.55 | FK7: 0.7 | FL7: 0.85 | FM7: Max | FN7: Std Deviation
A8: Total Non Farm | B8: =SA!BN2-SA!BB2 -> 37400 | C8: =SA!BO2-SA!BC2 -> 39800 | D8: =SA!BP2-SA!BD2 -> 38700 | E8: =SA!BQ2-SA!BE2 -> 46200 | F8: =SA!BR2-SA!BF2 -> 35700 | G8: =SA!BS2-SA!BG2 -> 28500 | H8: =SA!BT2-SA!BH2 -> 28500 | I8: =SA!BU2-SA!BI2 -> 24000 | J8: =SA!BV2-SA!BJ2 -> 39000 | K8: =SA!BW2-SA!BK2 -> 25700 | L8: =SA!BX2-SA!BL2 -> 27200 | M8: =SA!BY2-SA!BM2 -> 32800 | N8: =SA!BZ2-SA!BN2 -> 31100 | O8: =SA!CA2-SA!BO2 -> 28100 | P8: =SA!CB2-SA!BP2 -> 28000 | Q8: =SA!CC2-SA!BQ2 -> 26100 | R8: =SA!CD2-SA!BR2 -> 23600 | S8: =SA!CE2-SA!BS2 -> 34700 | T8: =SA!CF2-SA!BT2 -> 23800 | U8: =SA!CG2-SA!BU2 -> 21300 | V8: =SA!CH2-SA!BV2 -> 18200 | W8: =SA!CI2-SA!BW2 -> 19500 | X8: =SA!CJ2-SA!BX2 -> 17500 | Y8: =SA!CK2-SA!BY2 -> 15700 | Z8: =SA!CL2-SA!BZ2 -> 21200 | AA8: =SA!CM2-SA!CA2 -> 15900 | AB8: =SA!CN2-SA!CB2 -> 18200 | AC8: =SA!CO2-SA!CC2 -> 10800 | AD8: =SA!CP2-SA!CD2 -> 23400 | AE8: =SA!CQ2-SA!CE2 -> 24700 | AF8: =SA!CR2-SA!CF2 -> 20200 | AG8: =SA!CS2-SA!CG2 -> 19000 | AH8: =SA!CT2-SA!CH2 -> 14800 | AI8: =SA!CU2-SA!CI2 -> 10800 | AJ8: =SA!CV2-SA!CJ2 -> 9700 | AK8: =SA!CW2-SA!CK2 -> 12200 | AL8: =SA!CX2-SA!CL2 -> 12300 | AM8: =SA!CY2-SA!CM2 -> 12900 | AN8: =SA!CZ2-SA!CN2 -> 5200 | AO8: =SA!DA2-SA!CO2 -> 1000 | AP8: =SA!DB2-SA!CP2 -> -1800 | AQ8: =SA!DC2-SA!CQ2 -> -13000 | AR8: =SA!DD2-SA!CR2 -> -8900 | AS8: =SA!DE2-SA!CS2 -> -12500 | AT8: =SA!DF2-SA!CT2 -> -9200 | AU8: =SA!DG2-SA!CU2 -> -15200 | AV8: =SA!DH2-SA!CV2 -> -23400 | AW8: =SA!DI2-SA!CW2 -> -42900 | AX8: =SA!DJ2-SA!CX2 -> -73900 | AY8: =SA!DK2-SA!CY2 -> -89600 | AZ8: =SA!DL2-SA!CZ2 -> -107800 | BA8: =SA!DM2-SA!DA2 -> -126100 | BB8: =SA!DN2-SA!DB2 -> -128900 | BC8: =SA!DO2-SA!DC2 -> -139300 | BD8: =SA!DP2-SA!DD2 -> -148700 | BE8: =SA!DQ2-SA!DE2 -> -151300 | BF8: =SA!DR2-SA!DF2 -> -155300 | BG8: =SA!DS2-SA!DG2 -> -143300 | BH8: =SA!DT2-SA!DH2 -> -137500 | BI8: =SA!DU2-SA!DI2 -> -124300 | BJ8: =SA!DV2-SA!DJ2 -> -98700 | BK8: =SA!DW2-SA!DK2 -> -82200 | BL8: =SA!DX2-SA!DL2 -> -58800 | BM8: =SA!DY2-SA!DM2 -> -25500 | BN8: =SA!DZ2-SA!DN2 -> -22800 | BO8: =SA!EA2-SA!DO2 -> -11700 | BP8: =SA!EB2-SA!DP2 -> 3400 | BQ8: =SA!EC2-SA!DQ2 -> 13400 | BR8: =SA!ED2-SA!DR2 -> 13500 | BS8: =SA!EE2-SA!DS2 -> 22900 | BT8: =SA!EF2-SA!DT2 -> 27200 | BU8: =SA!EG2-SA!DU2 -> 26000 | BV8: =SA!EH2-SA!DV2 -> 30500 | BW8: =SA!EI2-SA!DW2 -> 32600 | BX8: =SA!EJ2-SA!DX2 -> 33100 | BY8: =SA!EK2-SA!DY2 -> 26400 | BZ8: =SA!EL2-SA!DZ2 -> 24100 | CA8: =SA!EM2-SA!EA2 -> 23000 | CB8: =SA!EN2-SA!EB2 -> 33200 | CC8: =SA!EO2-SA!EC2 -> 26800 | CD8: =SA!EP2-SA!ED2 -> 31300 | CE8: =SA!EQ2-SA!EE2 -> 17500 | CF8: =SA!ER2-SA!EF2 -> 16600 | CG8: =SA!ES2-SA!EG2 -> 25100 | CH8: =SA!ET2-SA!EH2 -> 16500 | CI8: =SA!EU2-SA!EI2 -> 20700 | CJ8: =SA!EV2-SA!EJ2 -> 33000 | CK8: =SA!EW2-SA!EK2 -> 37400 | CL8: =SA!EX2-SA!EL2 -> 34600 | CM8: =SA!EY2-SA!EM2 -> 37200 | CN8: =SA!EZ2-SA!EN2 -> 14100 | CO8: =SA!FA2-SA!EO2 -> 22400 | CP8: =SA!FB2-SA!EP2 -> 24900 | CQ8: =SA!FC2-SA!EQ2 -> 33700 | CR8: =SA!FD2-SA!ER2 -> 41000 | CS8: =SA!FE2-SA!ES2 -> 32000 | CT8: =SA!FF2-SA!ET2 -> 27500 | CU8: =SA!FG2-SA!EU2 -> 40500 | CV8: =SA!FH2-SA!EV2 -> 26500 | CW8: =SA!FI2-SA!EW2 -> 9300 | CX8: =SA!FJ2-SA!EX2 -> 20500 | CY8: =SA!FK2-SA!EY2 -> 24200 | CZ8: =SA!FL2-SA!EZ2 -> 32800 | DA8: =SA!FM2-SA!FA2 -> 35500 | DB8: =SA!FN2-SA!FB2 -> 36100 | DC8: =SA!FO2-SA!FC2 -> 31800 | DD8: =SA!FP2-SA!FD2 -> 26900 | DE8: =SA!FQ2-SA!FE2 -> 32800 | DF8: =SA!FR2-SA!FF2 -> 46700 | DG8: =SA!FS2-SA!FG2 -> 28900 | DH8: =SA!FT2-SA!FH2 -> 31600 | DI8: =SA!FU2-SA!FI2 -> 47500 | DJ8: =SA!FV2-SA!FJ2 -> 41300 | DK8: =SA!FW2-SA!FK2 -> 44300 | DL8: =SA!FX2-SA!FL2 -> 45000 | DM8: =SA!FY2-SA!FM2 -> 49900 | DN8: =SA!FZ2-SA!FN2 -> 41900 | DO8: =SA!GA2-SA!FO2 -> 43000 | DP8: =SA!GB2-SA!FP2 -> 52400 | DQ8: =SA!GC2-SA!FQ2 -> 43700 | DR8: =SA!GD2-SA!FR2 -> 43500 | DS8: =SA!GE2-SA!FS2 -> 45100 | DT8: =SA!GF2-SA!FT2 -> 45900 | DU8: =SA!GG2-SA!FU2 -> 39800 | DV8: =SA!GH2-SA!FV2 -> 42400 | DW8: =SA!GI2-SA!FW2 -> 38600 | DX8: =SA!GJ2-SA!FX2 -> 41600 | DY8: =SA!GK2-SA!FY2 -> 32200 | DZ8: =SA!GL2-SA!FZ2 -> 34400 | EA8: =SA!GM2-SA!GA2 -> 37700 | EB8: =SA!GN2-SA!GB2 -> 25800 | EC8: =SA!GO2-SA!GC2 -> 37900 | ED8: =SA!GP2-SA!GD2 -> 43500 | EE8: =SA!GQ2-SA!GE2 -> 44800 | EF8: =SA!GR2-SA!GF2 -> 40900 | EG8: =SA!GS2-SA!GG2 -> 41400 | EH8: =SA!GT2-SA!GH2 -> 28600 | EI8: =SA!GU2-SA!GI2 -> 26000 | EJ8: =SA!GV2-SA!GJ2 -> 34500 | EK8: =SA!GW2-SA!GK2 -> 32500 | EL8: =SA!GX2-SA!GL2 -> 27200 | EM8: =SA!GY2-SA!GM2 -> 28800 | EN8: =SA!GZ2-SA!GN2 -> 32200 | EO8: =SA!HA2-SA!GO2 -> 26400 | EP8: =SA!HB2-SA!GP2 -> 21300 | EQ8: =SA!HC2-SA!GQ2 -> 28200 | ER8: =SA!HD2-SA!GR2 -> 24100 | ES8: =SA!HE2-SA!GS2 -> 35900 | ET8: =SA!HF2-SA!GT2 -> 39800 | EU8: =SA!HG2-SA!GU2 -> 34300 | EV8: =SA!HH2-SA!GV2 -> 28700 | EW8: =SA!HI2-SA!GW2 -> 20700 | EX8: =SA!HJ2-SA!GX2 -> 34600 | EY8: =SA!HK2-SA!GY2 -> -2930100 | EZ8: =SA!HL2-SA!GZ2 -> -2933800 | FA8: =SA!HM2-SA!HA2 -> -2934300 | FB8: 29416 | FC8: =COUNTIF(EM8:FA8, ">" &FB8) -> 5 | FE8: Total Non Farm | FF8: =MIN(B8:EO8) -> -155300 | FG8: =_xlfn.PERCENTILE.EXC($B8:$EO8,0.15) -> -12625 | FH8: =_xlfn.PERCENTILE.EXC($B8:$EO8,0.3) -> 16550 | FI8: =_xlfn.PERCENTILE.EXC($B8:$EO8,0.45) -> 24750 | FJ8: =_xlfn.PERCENTILE.EXC($B8:$EO8,0.55) -> 27200 | FK8: =_xlfn.PERCENTILE.EXC($B8:$EO8,0.7) -> 32900 | FL8: =_xlfn.PERCENTILE.EXC($B8:$EO8,0.85) -> 40600 | FM8: =MAX(B8:EO8) -> 52400 | FN8: =STDEVP(B8:EO8) -> 47422.17235
A9: Total Private | B9: =SA!BN3-SA!BB3 -> 29100 | C9: =SA!BO3-SA!BC3 -> 35300 | D9: =SA!BP3-SA!BD3 -> 36600 | E9: =SA!BQ3-SA!BE3 -> 41500 | F9: =SA!BR3-SA!BF3 -> 32300 | G9: =SA!BS3-SA!BG3 -> 29200 | H9: =SA!BT3-SA!BH3 -> 27200 | I9: =SA!BU3-SA!BI3 -> 24100 | J9: =SA!BV3-SA!BJ3 -> 31000 | K9: =SA!BW3-SA!BK3 -> 23200 | L9: =SA!BX3-SA!BL3 -> 27900 | M9: =SA!BY3-SA!BM3 -> 27900 | N9: =SA!BZ3-SA!BN3 -> 32100 | O9: =SA!CA3-SA!BO3 -> 29700 | P9: =SA!CB3-SA!BP3 -> 26700 | Q9: =SA!CC3-SA!BQ3 -> 25300 | R9: =SA!CD3-SA!BR3 -> 24000 | S9: =SA!CE3-SA!BS3 -> 30600 | T9: =SA!CF3-SA!BT3 -> 22200 | U9: =SA!CG3-SA!BU3 -> 19300 | V9: =SA!CH3-SA!BV3 -> 18500 | W9: =SA!CI3-SA!BW3 -> 21200 | X9: =SA!CJ3-SA!BX3 -> 16600 | Y9: =SA!CK3-SA!BY3 -> 18000 | Z9: =SA!CL3-SA!BZ3 -> 22700 | AA9: =SA!CM3-SA!CA3 -> 17500 | AB9: =SA!CN3-SA!CB3 -> 19900 | AC9: =SA!CO3-SA!CC3 -> 11200 | AD9: =SA!CP3-SA!CD3 -> 21300 | AE9: =SA!CQ3-SA!CE3 -> 21100 | AF9: =SA!CR3-SA!CF3 -> 18900 | AG9: =SA!CS3-SA!CG3 -> 16500 | AH9: =SA!CT3-SA!CH3 -> 11700 | AI9: =SA!CU3-SA!CI3 -> 9400 | AJ9: =SA!CV3-SA!CJ3 -> 10700 | AK9: =SA!CW3-SA!CK3 -> 9100 | AL9: =SA!CX3-SA!CL3 -> 5800 | AM9: =SA!CY3-SA!CM3 -> 6400 | AN9: =SA!CZ3-SA!CN3 -> 600 | AO9: =SA!DA3-SA!CO3 -> -1100 | AP9: =SA!DB3-SA!CP3 -> -5900 | AQ9: =SA!DC3-SA!CQ3 -> -12000 | AR9: =SA!DD3-SA!CR3 -> -13800 | AS9: =SA!DE3-SA!CS3 -> -14800 | AT9: =SA!DF3-SA!CT3 -> -19700 | AU9: =SA!DG3-SA!CU3 -> -24400 | AV9: =SA!DH3-SA!CV3 -> -37900 | AW9: =SA!DI3-SA!CW3 -> -50200 | AX9: =SA!DJ3-SA!CX3 -> -76000 | AY9: =SA!DK3-SA!CY3 -> -93600 | AZ9: =SA!DL3-SA!CZ3 -> -112400 | BA9: =SA!DM3-SA!DA3 -> -131300 | BB9: =SA!DN3-SA!DB3 -> -132600 | BC9: =SA!DO3-SA!DC3 -> -140500 | BD9: =SA!DP3-SA!DD3 -> -147900 | BE9: =SA!DQ3-SA!DE3 -> -149300 | BF9: =SA!DR3-SA!DF3 -> -140500 | BG9: =SA!DS3-SA!DG3 -> -138200 | BH9: =SA!DT3-SA!DH3 -> -127300 | BI9: =SA!DU3-SA!DI3 -> -119700 | BJ9: =SA!DV3-SA!DJ3 -> -95200 | BK9: =SA!DW3-SA!DK3 -> -76000 | BL9: =SA!DX3-SA!DL3 -> -53900 | BM9: =SA!DY3-SA!DM3 -> -24900 | BN9: =SA!DZ3-SA!DN3 -> -24800 | BO9: =SA!EA3-SA!DO3 -> -13900 | BP9: =SA!EB3-SA!DP3 -> 5400 | BQ9: =SA!EC3-SA!DQ3 -> 14700 | BR9: =SA!ED3-SA!DR3 -> 12200 | BS9: =SA!EE3-SA!DS3 -> 24000 | BT9: =SA!EF3-SA!DT3 -> 25700 | BU9: =SA!EG3-SA!DU3 -> 31500 | BV9: =SA!EH3-SA!DV3 -> 32700 | BW9: =SA!EI3-SA!DW3 -> 31300 | BX9: =SA!EJ3-SA!DX3 -> 32500 | BY9: =SA!EK3-SA!DY3 -> 32200 | BZ9: =SA!EL3-SA!DZ3 -> 32300 | CA9: =SA!EM3-SA!EA3 -> 31300 | CB9: =SA!EN3-SA!EB3 -> 33300 | CC9: =SA!EO3-SA!EC3 -> 30200 | CD9: =SA!EP3-SA!ED3 -> 37300 | CE9: =SA!EQ3-SA!EE3 -> 27300 | CF9: =SA!ER3-SA!EF3 -> 29900 | CG9: =SA!ES3-SA!EG3 -> 29000 | CH9: =SA!ET3-SA!EH3 -> 32200 | CI9: =SA!EU3-SA!EI3 -> 35100 | CJ9: =SA!EV3-SA!EJ3 -> 41100 | CK9: =SA!EW3-SA!EK3 -> 39200 | CL9: =SA!EX3-SA!EL3 -> 33900 | CM9: =SA!EY3-SA!EM3 -> 39200 | CN9: =SA!EZ3-SA!EN3 -> 23300 | CO9: =SA!FA3-SA!EO3 -> 23600 | CP9: =SA!FB3-SA!EP3 -> 26300 | CQ9: =SA!FC3-SA!EQ3 -> 31000 | CR9: =SA!FD3-SA!ER3 -> 31600 | CS9: =SA!FE3-SA!ES3 -> 31600 | CT9: =SA!FF3-SA!ET3 -> 28300 | CU9: =SA!FG3-SA!EU3 -> 31800 | CV9: =SA!FH3-SA!EV3 -> 26400 | CW9: =SA!FI3-SA!EW3 -> 14200 | CX9: =SA!FJ3-SA!EX3 -> 30100 | CY9: =SA!FK3-SA!EY3 -> 27900 | CZ9: =SA!FL3-SA!EZ3 -> 33000 | DA9: =SA!FM3-SA!FA3 -> 39000 | DB9: =SA!FN3-SA!FB3 -> 35000 | DC9: =SA!FO3-SA!FC3 -> 32000 | DD9: =SA!FP3-SA!FD3 -> 33200 | DE9: =SA!FQ3-SA!FE3 -> 33400 | DF9: =SA!FR3-SA!FF3 -> 35500 | DG9: =SA!FS3-SA!FG3 -> 32800 | DH9: =SA!FT3-SA!FH3 -> 32100 | DI9: =SA!FU3-SA!FI3 -> 45900 | DJ9: =SA!FV3-SA!FJ3 -> 39500 | DK9: =SA!FW3-SA!FK3 -> 42200 | DL9: =SA!FX3-SA!FL3 -> 42900 | DM9: =SA!FY3-SA!FM3 -> 41800 | DN9: =SA!FZ3-SA!FN3 -> 40800 | DO9: =SA!GA3-SA!FO3 -> 42700 | DP9: =SA!GB3-SA!FP3 -> 45600 | DQ9: =SA!GC3-SA!FQ3 -> 43200 | DR9: =SA!GD3-SA!FR3 -> 45400 | DS9: =SA!GE3-SA!FS3 -> 43200 | DT9: =SA!GF3-SA!FT3 -> 45700 | DU9: =SA!GG3-SA!FU3 -> 40300 | DV9: =SA!GH3-SA!FV3 -> 43500 | DW9: =SA!GI3-SA!FW3 -> 40100 | DX9: =SA!GJ3-SA!FX3 -> 44900 | DY9: =SA!GK3-SA!FY3 -> 41500 | DZ9: =SA!GL3-SA!FZ3 -> 39200 | EA9: =SA!GM3-SA!GA3 -> 41500 | EB9: =SA!GN3-SA!GB3 -> 37400 | EC9: =SA!GO3-SA!GC3 -> 40100 | ED9: =SA!GP3-SA!GD3 -> 43300 | EE9: =SA!GQ3-SA!GE3 -> 45700 | EF9: =SA!GR3-SA!GF3 -> 41500 | EG9: =SA!GS3-SA!GG3 -> 41200 | EH9: =SA!GT3-SA!GH3 -> 30400 | EI9: =SA!GU3-SA!GI3 -> 25600 | EJ9: =SA!GV3-SA!GJ3 -> 30200 | EK9: =SA!GW3-SA!GK3 -> 26000 | EL9: =SA!GX3-SA!GL3 -> 26000 | EM9: =SA!GY3-SA!GM3 -> 21200 | EN9: =SA!GZ3-SA!GN3 -> 16500 | EO9: =SA!HA3-SA!GO3 -> 17200 | EP9: =SA!HB3-SA!GP3 -> 18200 | EQ9: =SA!HC3-SA!GQ3 -> 22200 | ER9: =SA!HD3-SA!GR3 -> 22400 | ES9: =SA!HE3-SA!GS3 -> 27800 | ET9: =SA!HF3-SA!GT3 -> 29800 | EU9: =SA!HG3-SA!GU3 -> 33400 | EV9: =SA!HH3-SA!GV3 -> 24400 | EW9: =SA!HI3-SA!GW3 -> 22800 | EX9: =SA!HJ3-SA!GX3 -> 28800 | EY9: =SA!HK3-SA!GY3 -> -2514500 | EZ9: =SA!HL3-SA!GZ3 -> -2513300 | FA9: =SA!HM3-SA!HA3 -> -2516100 | FB9: 28822 | FC9: =COUNTIF(EM9:FA9, ">" &FB9) -> 2 | FE9: Total Private | FF9: -149300 | FG9: -16025 | FH9: 17350 | FI9: 26000 | FJ9: 29850 | FK9: 32600 | FL9: 40425 | FM9: 45900 | FN9: 47070.93826
A10: Goods Producing | B10: =SA!BN4-SA!BB4 -> 3700 | C10: =SA!BO4-SA!BC4 -> 7500 | D10: =SA!BP4-SA!BD4 -> 6200 | E10: =SA!BQ4-SA!BE4 -> 5200 | F10: =SA!BR4-SA!BF4 -> 3100 | G10: =SA!BS4-SA!BG4 -> 4600 | H10: =SA!BT4-SA!BH4 -> 3200 | I10: =SA!BU4-SA!BI4 -> 1400 | J10: =SA!BV4-SA!BJ4 -> 800 | K10: =SA!BW4-SA!BK4 -> 600 | L10: =SA!BX4-SA!BL4 -> 200 | M10: =SA!BY4-SA!BM4 -> -1300 | N10: =SA!BZ4-SA!BN4 -> 6500 | O10: =SA!CA4-SA!BO4 -> 2200 | P10: =SA!CB4-SA!BP4 -> 2100 | Q10: =SA!CC4-SA!BQ4 -> 3600 | R10: =SA!CD4-SA!BR4 -> 2000 | S10: =SA!CE4-SA!BS4 -> 4100 | T10: =SA!CF4-SA!BT4 -> 700 | U10: =SA!CG4-SA!BU4 -> 300 | V10: =SA!CH4-SA!BV4 -> -400 | W10: =SA!CI4-SA!BW4 -> -1700 | X10: =SA!CJ4-SA!BX4 -> -4300 | Y10: =SA!CK4-SA!BY4 -> -2500 | Z10: =SA!CL4-SA!BZ4 -> -4900 | AA10: =SA!CM4-SA!CA4 -> -7100 | AB10: =SA!CN4-SA!CB4 -> -5200 | AC10: =SA!CO4-SA!CC4 -> -8200 | AD10: =SA!CP4-SA!CD4 -> -4600 | AE10: =SA!CQ4-SA!CE4 -> -6500 | AF10: =SA!CR4-SA!CF4 -> -5900 | AG10: =SA!CS4-SA!CG4 -> -6900 | AH10: =SA!CT4-SA!CH4 -> -7900 | AI10: =SA!CU4-SA!CI4 -> -7000 | AJ10: =SA!CV4-SA!CJ4 -> -4900 | AK10: =SA!CW4-SA!CK4 -> -7200 | AL10: =SA!CX4-SA!CL4 -> -7900 | AM10: =SA!CY4-SA!CM4 -> -6100 | AN10: =SA!CZ4-SA!CN4 -> -8800 | AO10: =SA!DA4-SA!CO4 -> -10900 | AP10: =SA!DB4-SA!CP4 -> -12900 | AQ10: =SA!DC4-SA!CQ4 -> -13100 | AR10: =SA!DD4-SA!CR4 -> -16900 | AS10: =SA!DE4-SA!CS4 -> -18200 | AT10: =SA!DF4-SA!CT4 -> -19700 | AU10: =SA!DG4-SA!CU4 -> -21800 | AV10: =SA!DH4-SA!CV4 -> -27100 | AW10: =SA!DI4-SA!CW4 -> -32800 | AX10: =SA!DJ4-SA!CX4 -> -44600 | AY10: =SA!DK4-SA!CY4 -> -55600 | AZ10: =SA!DL4-SA!CZ4 -> -65900 | BA10: =SA!DM4-SA!DA4 -> -75300 | BB10: =SA!DN4-SA!DB4 -> -80100 | BC10: =SA!DO4-SA!DC4 -> -86500 | BD10: =SA!DP4-SA!DD4 -> -87300 | BE10: =SA!DQ4-SA!DE4 -> -86200 | BF10: =SA!DR4-SA!DF4 -> -78700 | BG10: =SA!DS4-SA!DG4 -> -78600 | BH10: =SA!DT4-SA!DH4 -> -74300 | BI10: =SA!DU4-SA!DI4 -> -68600 | BJ10: =SA!DV4-SA!DJ4 -> -58200 | BK10: =SA!DW4-SA!DK4 -> -46800 | BL10: =SA!DX4-SA!DL4 -> -34200 | BM10: =SA!DY4-SA!DM4 -> -18800 | BN10: =SA!DZ4-SA!DN4 -> -14000 | BO10: =SA!EA4-SA!DO4 -> -6500 | BP10: =SA!EB4-SA!DP4 -> 700 | BQ10: =SA!EC4-SA!DQ4 -> 3800 | BR10: =SA!ED4-SA!DR4 -> 900 | BS10: =SA!EE4-SA!DS4 -> 4500 | BT10: =SA!EF4-SA!DT4 -> 5800 | BU10: =SA!EG4-SA!DU4 -> 7700 | BV10: =SA!EH4-SA!DV4 -> 10300 | BW10: =SA!EI4-SA!DW4 -> 11600 | BX10: =SA!EJ4-SA!DX4 -> 11600 | BY10: =SA!EK4-SA!DY4 -> 11700 | BZ10: =SA!EL4-SA!DZ4 -> 13700 | CA10: =SA!EM4-SA!EA4 -> 13000 | CB10: =SA!EN4-SA!EB4 -> 13900 | CC10: =SA!EO4-SA!EC4 -> 13700 | CD10: =SA!EP4-SA!ED4 -> 13400 | CE10: =SA!EQ4-SA!EE4 -> 11800 | CF10: =SA!ER4-SA!EF4 -> 13400 | CG10: =SA!ES4-SA!EG4 -> 14000 | CH10: =SA!ET4-SA!EH4 -> 14400 | CI10: =SA!EU4-SA!EI4 -> 14400 | CJ10: =SA!EV4-SA!EJ4 -> 15300 | CK10: =SA!EW4-SA!EK4 -> 15500 | CL10: =SA!EX4-SA!EL4 -> 10900 | CM10: =SA!EY4-SA!EM4 -> 12400 | CN10: =SA!EZ4-SA!EN4 -> 9700 | CO10: =SA!FA4-SA!EO4 -> 8400 | CP10: =SA!FB4-SA!EP4 -> 9200 | CQ10: =SA!FC4-SA!EQ4 -> 11600 | CR10: =SA!FD4-SA!ER4 -> 9600 | CS10: =SA!FE4-SA!ES4 -> 10900 | CT10: =SA!FF4-SA!ET4 -> 10000 | CU10: =SA!FG4-SA!EU4 -> 10000 | CV10: =SA!FH4-SA!EV4 -> 7300 | CW10: =SA!FI4-SA!EW4 -> 400 | CX10: =SA!FJ4-SA!EX4 -> 7400 | CY10: =SA!FK4-SA!EY4 -> 6400 | CZ10: =SA!FL4-SA!EZ4 -> 5800 | DA10: =SA!FM4-SA!FA4 -> 7800 | DB10: =SA!FN4-SA!FB4 -> 7700 | DC10: =SA!FO4-SA!FC4 -> 7500 | DD10: =SA!FP4-SA!FD4 -> 8900 | DE10: =SA!FQ4-SA!FE4 -> 5300 | DF10: =SA!FR4-SA!FF4 -> 7000 | DG10: =SA!FS4-SA!FG4 -> 6500 | DH10: =SA!FT4-SA!FH4 -> 7900 | DI10: =SA!FU4-SA!FI4 -> 13400 | DJ10: =SA!FV4-SA!FJ4 -> 11900 | DK10: =SA!FW4-SA!FK4 -> 12700 | DL10: =SA!FX4-SA!FL4 -> 15500 | DM10: =SA!FY4-SA!FM4 -> 15100 | DN10: =SA!FZ4-SA!FN4 -> 15400 | DO10: =SA!GA4-SA!FO4 -> 14600 | DP10: =SA!GB4-SA!FP4 -> 14500 | DQ10: =SA!GC4-SA!FQ4 -> 16400 | DR10: =SA!GD4-SA!FR4 -> 15200 | DS10: =SA!GE4-SA!FS4 -> 15100 | DT10: =SA!GF4-SA!FT4 -> 14000 | DU10: =SA!GG4-SA!FU4 -> 12500 | DV10: =SA!GH4-SA!FV4 -> 10700 | DW10: =SA!GI4-SA!FW4 -> 9300 | DX10: =SA!GJ4-SA!FX4 -> 7200 | DY10: =SA!GK4-SA!FY4 -> 5300 | DZ10: =SA!GL4-SA!FZ4 -> 3800 | EA10: =SA!GM4-SA!GA4 -> 3100 | EB10: =SA!GN4-SA!GB4 -> 2800 | EC10: =SA!GO4-SA!GC4 -> 2800 | ED10: =SA!GP4-SA!GD4 -> 1900 | EE10: =SA!GQ4-SA!GE4 -> 1000 | EF10: =SA!GR4-SA!GF4 -> 2100 | EG10: =SA!GS4-SA!GG4 -> 600 | EH10: =SA!GT4-SA!GH4 -> -1200 | EI10: =SA!GU4-SA!GI4 -> -2200 | EJ10: =SA!GV4-SA!GJ4 -> -2000 | EK10: =SA!GW4-SA!GK4 -> -1300 | EL10: =SA!GX4-SA!GL4 -> -1200 | EM10: =SA!GY4-SA!GM4 -> 1400 | EN10: =SA!GZ4-SA!GN4 -> 300 | EO10: =SA!HA4-SA!GO4 -> 3300 | EP10: =SA!HB4-SA!GP4 -> 4800 | EQ10: =SA!HC4-SA!GQ4 -> 4900 | ER10: =SA!HD4-SA!GR4 -> 3000 | ES10: =SA!HE4-SA!GS4 -> 9800 | ET10: =SA!HF4-SA!GT4 -> 10500 | EU10: =SA!HG4-SA!GU4 -> 9500 | EV10: =SA!HH4-SA!GV4 -> 11800 | EW10: =SA!HI4-SA!GW4 -> 11700 | EX10: =SA!HJ4-SA!GX4 -> 14300 | EY10: =SA!HK4-SA!GY4 -> -581500 | EZ10: =SA!HL4-SA!GZ4 -> -581000 | FA10: =SA!HM4-SA!HA4 -> -584900 | FB10: 11918 | FC10: 1 | FE10: Goods Producing | FF10: -87300 | FG10: -17225 | FH10: -3400 | FI10: 1525 | FJ10: 3800 | FK10: 7850 | FL10: 12775 | FM10: 16400 | FN10: 24104.35581
A11: Service-Providing | B11: =SA!BN5-SA!BB5 -> 33700 | C11: =SA!BO5-SA!BC5 -> 32300 | D11: =SA!BP5-SA!BD5 -> 32500 | E11: =SA!BQ5-SA!BE5 -> 41000 | F11: =SA!BR5-SA!BF5 -> 32600 | G11: =SA!BS5-SA!BG5 -> 23900 | H11: =SA!BT5-SA!BH5 -> 25300 | I11: =SA!BU5-SA!BI5 -> 22600 | J11: =SA!BV5-SA!BJ5 -> 38200 | K11: =SA!BW5-SA!BK5 -> 25100 | L11: =SA!BX5-SA!BL5 -> 27000 | M11: =SA!BY5-SA!BM5 -> 34100 | N11: =SA!BZ5-SA!BN5 -> 24600 | O11: =SA!CA5-SA!BO5 -> 25900 | P11: =SA!CB5-SA!BP5 -> 25900 | Q11: =SA!CC5-SA!BQ5 -> 22500 | R11: =SA!CD5-SA!BR5 -> 21600 | S11: =SA!CE5-SA!BS5 -> 30600 | T11: =SA!CF5-SA!BT5 -> 23100 | U11: =SA!CG5-SA!BU5 -> 21000 | V11: =SA!CH5-SA!BV5 -> 18600 | W11: =SA!CI5-SA!BW5 -> 21200 | X11: =SA!CJ5-SA!BX5 -> 21800 | Y11: =SA!CK5-SA!BY5 -> 18200 | Z11: =SA!CL5-SA!BZ5 -> 26100 | AA11: =SA!CM5-SA!CA5 -> 23000 | AB11: =SA!CN5-SA!CB5 -> 23400 | AC11: =SA!CO5-SA!CC5 -> 19000 | AD11: =SA!CP5-SA!CD5 -> 28000 | AE11: =SA!CQ5-SA!CE5 -> 31200 | AF11: =SA!CR5-SA!CF5 -> 26100 | AG11: =SA!CS5-SA!CG5 -> 25900 | AH11: =SA!CT5-SA!CH5 -> 22700 | AI11: =SA!CU5-SA!CI5 -> 17800 | AJ11: =SA!CV5-SA!CJ5 -> 14600 | AK11: =SA!CW5-SA!CK5 -> 19400 | AL11: =SA!CX5-SA!CL5 -> 20200 | AM11: =SA!CY5-SA!CM5 -> 19000 | AN11: =SA!CZ5-SA!CN5 -> 14000 | AO11: =SA!DA5-SA!CO5 -> 11900 | AP11: =SA!DB5-SA!CP5 -> 11100 | AQ11: =SA!DC5-SA!CQ5 -> 100 | AR11: =SA!DD5-SA!CR5 -> 8000 | AS11: =SA!DE5-SA!CS5 -> 5700 | AT11: =SA!DF5-SA!CT5 -> 10500 | AU11: =SA!DG5-SA!CU5 -> 6600 | AV11: =SA!DH5-SA!CV5 -> 3700 | AW11: =SA!DI5-SA!CW5 -> -10100 | AX11: =SA!DJ5-SA!CX5 -> -29300 | AY11: =SA!DK5-SA!CY5 -> -34000 | AZ11: =SA!DL5-SA!CZ5 -> -41900 | BA11: =SA!DM5-SA!DA5 -> -50800 | BB11: =SA!DN5-SA!DB5 -> -48800 | BC11: =SA!DO5-SA!DC5 -> -52800 | BD11: =SA!DP5-SA!DD5 -> -61400 | BE11: =SA!DQ5-SA!DE5 -> -65100 | BF11: =SA!DR5-SA!DF5 -> -76600 | BG11: =SA!DS5-SA!DG5 -> -64700 | BH11: =SA!DT5-SA!DH5 -> -63200 | BI11: =SA!DU5-SA!DI5 -> -55700 | BJ11: =SA!DV5-SA!DJ5 -> -40500 | BK11: =SA!DW5-SA!DK5 -> -35400 | BL11: =SA!DX5-SA!DL5 -> -24600 | BM11: =SA!DY5-SA!DM5 -> -6700 | BN11: =SA!DZ5-SA!DN5 -> -8800 | BO11: =SA!EA5-SA!DO5 -> -5200 | BP11: =SA!EB5-SA!DP5 -> 2700 | BQ11: =SA!EC5-SA!DQ5 -> 9600 | BR11: =SA!ED5-SA!DR5 -> 12600 | BS11: =SA!EE5-SA!DS5 -> 18400 | BT11: =SA!EF5-SA!DT5 -> 21400 | BU11: =SA!EG5-SA!DU5 -> 18300 | BV11: =SA!EH5-SA!DV5 -> 20200 | BW11: =SA!EI5-SA!DW5 -> 21000 | BX11: =SA!EJ5-SA!DX5 -> 21500 | BY11: =SA!EK5-SA!DY5 -> 14700 | BZ11: =SA!EL5-SA!DZ5 -> 10400 | CA11: =SA!EM5-SA!EA5 -> 10000 | CB11: =SA!EN5-SA!EB5 -> 19300 | CC11: =SA!EO5-SA!EC5 -> 13100 | CD11: =SA!EP5-SA!ED5 -> 17900 | CE11: =SA!EQ5-SA!EE5 -> 5700 | CF11: =SA!ER5-SA!EF5 -> 3200 | CG11: =SA!ES5-SA!EG5 -> 11100 | CH11: =SA!ET5-SA!EH5 -> 2100 | CI11: =SA!EU5-SA!EI5 -> 6300 | CJ11: =SA!EV5-SA!EJ5 -> 17700 | CK11: =SA!EW5-SA!EK5 -> 21900 | CL11: =SA!EX5-SA!EL5 -> 23700 | CM11: =SA!EY5-SA!EM5 -> 24800 | CN11: =SA!EZ5-SA!EN5 -> 4400 | CO11: =SA!FA5-SA!EO5 -> 14000 | CP11: =SA!FB5-SA!EP5 -> 15700 | CQ11: =SA!FC5-SA!EQ5 -> 22100 | CR11: =SA!FD5-SA!ER5 -> 31400 | CS11: =SA!FE5-SA!ES5 -> 21100 | CT11: =SA!FF5-SA!ET5 -> 17500 | CU11: =SA!FG5-SA!EU5 -> 30500 | CV11: =SA!FH5-SA!EV5 -> 19200 | CW11: =SA!FI5-SA!EW5 -> 8900 | CX11: =SA!FJ5-SA!EX5 -> 13100 | CY11: =SA!FK5-SA!EY5 -> 17800 | CZ11: =SA!FL5-SA!EZ5 -> 27000 | DA11: =SA!FM5-SA!FA5 -> 27700 | DB11: =SA!FN5-SA!FB5 -> 28400 | DC11: =SA!FO5-SA!FC5 -> 24300 | DD11: =SA!FP5-SA!FD5 -> 18000 | DE11: =SA!FQ5-SA!FE5 -> 27500 | DF11: =SA!FR5-SA!FF5 -> 39700 | DG11: =SA!FS5-SA!FG5 -> 22400 | DH11: =SA!FT5-SA!FH5 -> 23700 | DI11: =SA!FU5-SA!FI5 -> 34100 | DJ11: =SA!FV5-SA!FJ5 -> 29400 | DK11: =SA!FW5-SA!FK5 -> 31600 | DL11: =SA!FX5-SA!FL5 -> 29500 | DM11: =SA!FY5-SA!FM5 -> 34800 | DN11: =SA!FZ5-SA!FN5 -> 26500 | DO11: =SA!GA5-SA!FO5 -> 28400 | DP11: =SA!GB5-SA!FP5 -> 37900 | DQ11: =SA!GC5-SA!FQ5 -> 27300 | DR11: =SA!GD5-SA!FR5 -> 28300 | DS11: =SA!GE5-SA!FS5 -> 30000 | DT11: =SA!GF5-SA!FT5 -> 31900 | DU11: =SA!GG5-SA!FU5 -> 27300 | DV11: =SA!GH5-SA!FV5 -> 31700 | DW11: =SA!GI5-SA!FW5 -> 29300 | DX11: =SA!GJ5-SA!FX5 -> 34400 | DY11: =SA!GK5-SA!FY5 -> 26900 | DZ11: =SA!GL5-SA!FZ5 -> 30600 | EA11: =SA!GM5-SA!GA5 -> 34600 | EB11: =SA!GN5-SA!GB5 -> 23000 | EC11: =SA!GO5-SA!GC5 -> 35100 | ED11: =SA!GP5-SA!GD5 -> 41600 | EE11: =SA!GQ5-SA!GE5 -> 43800 | EF11: =SA!GR5-SA!GF5 -> 38800 | EG11: =SA!GS5-SA!GG5 -> 40800 | EH11: =SA!GT5-SA!GH5 -> 29800 | EI11: =SA!GU5-SA!GI5 -> 28200 | EJ11: =SA!GV5-SA!GJ5 -> 36500 | EK11: =SA!GW5-SA!GK5 -> 33800 | EL11: =SA!GX5-SA!GL5 -> 28400 | EM11: =SA!GY5-SA!GM5 -> 27400 | EN11: =SA!GZ5-SA!GN5 -> 31900 | EO11: =SA!HA5-SA!GO5 -> 23100 | EP11: =SA!HB5-SA!GP5 -> 16500 | EQ11: =SA!HC5-SA!GQ5 -> 23300 | ER11: =SA!HD5-SA!GR5 -> 21100 | ES11: =SA!HE5-SA!GS5 -> 26100 | ET11: =SA!HF5-SA!GT5 -> 29300 | EU11: =SA!HG5-SA!GU5 -> 24800 | EV11: =SA!HH5-SA!GV5 -> 16900 | EW11: =SA!HI5-SA!GW5 -> 9000 | EX11: =SA!HJ5-SA!GX5 -> 20300 | EY11: =SA!HK5-SA!GY5 -> -2348600 | EZ11: =SA!HL5-SA!GZ5 -> -2352800 | FA11: =SA!HM5-SA!HA5 -> -2349400 | FB11: n/a | FC11: 0 | FE11: Service-Providing | FF11: -76600 | FG11: 2550 | FH11: 14300 | FI11: 21025 | FJ11: 23075 | FK11: 27350 | FL11: 31900 | FM11: 43800 | FN11: 24619.55414
A12: Private Service Providing | B12: =SA!BN6-SA!BB6 -> 25400 | C12: =SA!BO6-SA!BC6 -> 27800 | D12: =SA!BP6-SA!BD6 -> 30400 | E12: =SA!BQ6-SA!BE6 -> 36300 | F12: =SA!BR6-SA!BF6 -> 29200 | G12: =SA!BS6-SA!BG6 -> 24600 | H12: =SA!BT6-SA!BH6 -> 24000 | I12: =SA!BU6-SA!BI6 -> 22700 | J12: =SA!BV6-SA!BJ6 -> 30200 | K12: =SA!BW6-SA!BK6 -> 22600 | L12: =SA!BX6-SA!BL6 -> 27700 | M12: =SA!BY6-SA!BM6 -> 29200 | N12: =SA!BZ6-SA!BN6 -> 25600 | O12: =SA!CA6-SA!BO6 -> 27500 | P12: =SA!CB6-SA!BP6 -> 24600 | Q12: =SA!CC6-SA!BQ6 -> 21700 | R12: =SA!CD6-SA!BR6 -> 22000 | S12: =SA!CE6-SA!BS6 -> 26500 | T12: =SA!CF6-SA!BT6 -> 21500 | U12: =SA!CG6-SA!BU6 -> 19000 | V12: =SA!CH6-SA!BV6 -> 18900 | W12: =SA!CI6-SA!BW6 -> 22900 | X12: =SA!CJ6-SA!BX6 -> 20900 | Y12: =SA!CK6-SA!BY6 -> 20500 | Z12: =SA!CL6-SA!BZ6 -> 27600 | AA12: =SA!CM6-SA!CA6 -> 24600 | AB12: =SA!CN6-SA!CB6 -> 25100 | AC12: =SA!CO6-SA!CC6 -> 19400 | AD12: =SA!CP6-SA!CD6 -> 25900 | AE12: =SA!CQ6-SA!CE6 -> 27600 | AF12: =SA!CR6-SA!CF6 -> 24800 | AG12: =SA!CS6-SA!CG6 -> 23400 | AH12: =SA!CT6-SA!CH6 -> 19600 | AI12: =SA!CU6-SA!CI6 -> 16400 | AJ12: =SA!CV6-SA!CJ6 -> 15600 | AK12: =SA!CW6-SA!CK6 -> 16300 | AL12: =SA!CX6-SA!CL6 -> 13700 | AM12: =SA!CY6-SA!CM6 -> 12500 | AN12: =SA!CZ6-SA!CN6 -> 9400 | AO12: =SA!DA6-SA!CO6 -> 9800 | AP12: =SA!DB6-SA!CP6 -> 7000 | AQ12: =SA!DC6-SA!CQ6 -> 1100 | AR12: =SA!DD6-SA!CR6 -> 3100 | AS12: =SA!DE6-SA!CS6 -> 3400 | AT12: =SA!DF6-SA!CT6 -> 0 | AU12: =SA!DG6-SA!CU6 -> -2600 | AV12: =SA!DH6-SA!CV6 -> -10800 | AW12: =SA!DI6-SA!CW6 -> -17400 | AX12: =SA!DJ6-SA!CX6 -> -31400 | AY12: =SA!DK6-SA!CY6 -> -38000 | AZ12: =SA!DL6-SA!CZ6 -> -46500 | BA12: =SA!DM6-SA!DA6 -> -56000 | BB12: =SA!DN6-SA!DB6 -> -52500 | BC12: =SA!DO6-SA!DC6 -> -54000 | BD12: =SA!DP6-SA!DD6 -> -60600 | BE12: =SA!DQ6-SA!DE6 -> -63100 | BF12: =SA!DR6-SA!DF6 -> -61800 | BG12: =SA!DS6-SA!DG6 -> -59600 | BH12: =SA!DT6-SA!DH6 -> -53000 | BI12: =SA!DU6-SA!DI6 -> -51100 | BJ12: =SA!DV6-SA!DJ6 -> -37000 | BK12: =SA!DW6-SA!DK6 -> -29200 | BL12: =SA!DX6-SA!DL6 -> -19700 | BM12: =SA!DY6-SA!DM6 -> -6100 | BN12: =SA!DZ6-SA!DN6 -> -10800 | BO12: =SA!EA6-SA!DO6 -> -7400 | BP12: =SA!EB6-SA!DP6 -> 4700 | BQ12: =SA!EC6-SA!DQ6 -> 10900 | BR12: =SA!ED6-SA!DR6 -> 11300 | BS12: =SA!EE6-SA!DS6 -> 19500 | BT12: =SA!EF6-SA!DT6 -> 19900 | BU12: =SA!EG6-SA!DU6 -> 23800 | BV12: =SA!EH6-SA!DV6 -> 22400 | BW12: =SA!EI6-SA!DW6 -> 19700 | BX12: =SA!EJ6-SA!DX6 -> 20900 | BY12: =SA!EK6-SA!DY6 -> 20500 | BZ12: =SA!EL6-SA!DZ6 -> 18600 | CA12: =SA!EM6-SA!EA6 -> 18300 | CB12: =SA!EN6-SA!EB6 -> 19400 | CC12: =SA!EO6-SA!EC6 -> 16500 | CD12: =SA!EP6-SA!ED6 -> 23900 | CE12: =SA!EQ6-SA!EE6 -> 15500 | CF12: =SA!ER6-SA!EF6 -> 16500 | CG12: =SA!ES6-SA!EG6 -> 15000 | CH12: =SA!ET6-SA!EH6 -> 17800 | CI12: =SA!EU6-SA!EI6 -> 20700 | CJ12: =SA!EV6-SA!EJ6 -> 25800 | CK12: =SA!EW6-SA!EK6 -> 23700 | CL12: =SA!EX6-SA!EL6 -> 23000 | CM12: =SA!EY6-SA!EM6 -> 26800 | CN12: =SA!EZ6-SA!EN6 -> 13600 | CO12: =SA!FA6-SA!EO6 -> 15200 | CP12: =SA!FB6-SA!EP6 -> 17100 | CQ12: =SA!FC6-SA!EQ6 -> 19400 | CR12: =SA!FD6-SA!ER6 -> 22000 | CS12: =SA!FE6-SA!ES6 -> 20700 | CT12: =SA!FF6-SA!ET6 -> 18300 | CU12: =SA!FG6-SA!EU6 -> 21800 | CV12: =SA!FH6-SA!EV6 -> 19100 | CW12: =SA!FI6-SA!EW6 -> 13800 | CX12: =SA!FJ6-SA!EX6 -> 22700 | CY12: =SA!FK6-SA!EY6 -> 21500 | CZ12: =SA!FL6-SA!EZ6 -> 27200 | DA12: =SA!FM6-SA!FA6 -> 31200 | DB12: =SA!FN6-SA!FB6 -> 27300 | DC12: =SA!FO6-SA!FC6 -> 24500 | DD12: =SA!FP6-SA!FD6 -> 24300 | DE12: =SA!FQ6-SA!FE6 -> 28100 | DF12: =SA!FR6-SA!FF6 -> 28500 | DG12: =SA!FS6-SA!FG6 -> 26300 | DH12: =SA!FT6-SA!FH6 -> 24200 | DI12: =SA!FU6-SA!FI6 -> 32500 | DJ12: =SA!FV6-SA!FJ6 -> 27600 | DK12: =SA!FW6-SA!FK6 -> 29500 | DL12: =SA!FX6-SA!FL6 -> 27400 | DM12: =SA!FY6-SA!FM6 -> 26700 | DN12: =SA!FZ6-SA!FN6 -> 25400 | DO12: =SA!GA6-SA!FO6 -> 28100 | DP12: =SA!GB6-SA!FP6 -> 31100 | DQ12: =SA!GC6-SA!FQ6 -> 26800 | DR12: =SA!GD6-SA!FR6 -> 30200 | DS12: =SA!GE6-SA!FS6 -> 28100 | DT12: =SA!GF6-SA!FT6 -> 31700 | DU12: =SA!GG6-SA!FU6 -> 27800 | DV12: =SA!GH6-SA!FV6 -> 32800 | DW12: =SA!GI6-SA!FW6 -> 30800 | DX12: =SA!GJ6-SA!FX6 -> 37700 | DY12: =SA!GK6-SA!FY6 -> 36200 | DZ12: =SA!GL6-SA!FZ6 -> 35400 | EA12: =SA!GM6-SA!GA6 -> 38400 | EB12: =SA!GN6-SA!GB6 -> 34600 | EC12: =SA!GO6-SA!GC6 -> 37300 | ED12: =SA!GP6-SA!GD6 -> 41400 | EE12: =SA!GQ6-SA!GE6 -> 44700 | EF12: =SA!GR6-SA!GF6 -> 39400 | EG12: =SA!GS6-SA!GG6 -> 40600 | EH12: =SA!GT6-SA!GH6 -> 31600 | EI12: =SA!GU6-SA!GI6 -> 27800 | EJ12: =SA!GV6-SA!GJ6 -> 32200 | EK12: =SA!GW6-SA!GK6 -> 27300 | EL12: =SA!GX6-SA!GL6 -> 27200 | EM12: =SA!GY6-SA!GM6 -> 19800 | EN12: =SA!GZ6-SA!GN6 -> 16200 | EO12: =SA!HA6-SA!GO6 -> 13900 | EP12: =SA!HB6-SA!GP6 -> 13400 | EQ12: =SA!HC6-SA!GQ6 -> 17300 | ER12: =SA!HD6-SA!GR6 -> 19400 | ES12: =SA!HE6-SA!GS6 -> 18000 | ET12: =SA!HF6-SA!GT6 -> 19300 | EU12: =SA!HG6-SA!GU6 -> 23900 | EV12: =SA!HH6-SA!GV6 -> 12600 | EW12: =SA!HI6-SA!GW6 -> 11100 | EX12: =SA!HJ6-SA!GX6 -> 14500 | EY12: =SA!HK6-SA!GY6 -> -1933000 | EZ12: =SA!HL6-SA!GZ6 -> -1932300 | FA12: =SA!HM6-SA!HA6 -> -1931200 | FB12: 26243 | FC12: 0 | FE12: Private Service Providing | FF12: -63100 | FG12: -650 | FH12: 16450 | FI12: 20750 | FJ12: 23300 | FK12: 26800 | FL12: 30200 | FM12: 44700 | FN12: 23813.60658
A13: Mining and Logging | B13: =SA!BN7-SA!BB7 -> 100 | C13: =SA!BO7-SA!BC7 -> 100 | D13: =SA!BP7-SA!BD7 -> 200 | E13: =SA!BQ7-SA!BE7 -> 100 | F13: =SA!BR7-SA!BF7 -> 100 | G13: =SA!BS7-SA!BG7 -> 200 | H13: =SA!BT7-SA!BH7 -> 200 | I13: =SA!BU7-SA!BI7 -> 200 | J13: =SA!BV7-SA!BJ7 -> 200 | K13: =SA!BW7-SA!BK7 -> 0 | L13: =SA!BX7-SA!BL7 -> 0 | M13: =SA!BY7-SA!BM7 -> -100 | N13: =SA!BZ7-SA!BN7 -> 100 | O13: =SA!CA7-SA!BO7 -> 100 | P13: =SA!CB7-SA!BP7 -> 0 | Q13: =SA!CC7-SA!BQ7 -> 100 | R13: =SA!CD7-SA!BR7 -> 100 | S13: =SA!CE7-SA!BS7 -> 0 | T13: =SA!CF7-SA!BT7 -> -100 | U13: =SA!CG7-SA!BU7 -> -100 | V13: =SA!CH7-SA!BV7 -> -100 | W13: =SA!CI7-SA!BW7 -> 0 | X13: =SA!CJ7-SA!BX7 -> -200 | Y13: =SA!CK7-SA!BY7 -> -100 | Z13: =SA!CL7-SA!BZ7 -> -200 | AA13: =SA!CM7-SA!CA7 -> -200 | AB13: =SA!CN7-SA!CB7 -> -200 | AC13: =SA!CO7-SA!CC7 -> -200 | AD13: =SA!CP7-SA!CD7 -> -300 | AE13: =SA!CQ7-SA!CE7 -> -400 | AF13: =SA!CR7-SA!CF7 -> -200 | AG13: =SA!CS7-SA!CG7 -> -300 | AH13: =SA!CT7-SA!CH7 -> -300 | AI13: =SA!CU7-SA!CI7 -> -300 | AJ13: =SA!CV7-SA!CJ7 -> -200 | AK13: =SA!CW7-SA!CK7 -> -400 | AL13: =SA!CX7-SA!CL7 -> -300 | AM13: =SA!CY7-SA!CM7 -> -300 | AN13: =SA!CZ7-SA!CN7 -> -400 | AO13: =SA!DA7-SA!CO7 -> -400 | AP13: =SA!DB7-SA!CP7 -> -400 | AQ13: =SA!DC7-SA!CQ7 -> -200 | AR13: =SA!DD7-SA!CR7 -> -300 | AS13: =SA!DE7-SA!CS7 -> -200 | AT13: =SA!DF7-SA!CT7 -> -200 | AU13: =SA!DG7-SA!CU7 -> -300 | AV13: =SA!DH7-SA!CV7 -> -300 | AW13: =SA!DI7-SA!CW7 -> -200 | AX13: =SA!DJ7-SA!CX7 -> -300 | AY13: =SA!DK7-SA!CY7 -> -400 | AZ13: =SA!DL7-SA!CZ7 -> -400 | BA13: =SA!DM7-SA!DA7 -> -500 | BB13: =SA!DN7-SA!DB7 -> -300 | BC13: =SA!DO7-SA!DC7 -> -500 | BD13: =SA!DP7-SA!DD7 -> -400 | BE13: =SA!DQ7-SA!DE7 -> -400 | BF13: =SA!DR7-SA!DF7 -> -400 | BG13: =SA!DS7-SA!DG7 -> -300 | BH13: =SA!DT7-SA!DH7 -> -400 | BI13: =SA!DU7-SA!DI7 -> -200 | BJ13: =SA!DV7-SA!DJ7 -> -300 | BK13: =SA!DW7-SA!DK7 -> -200 | BL13: =SA!DX7-SA!DL7 -> -100 | BM13: =SA!DY7-SA!DM7 -> 100 | BN13: =SA!DZ7-SA!DN7 -> 0 | BO13: =SA!EA7-SA!DO7 -> 0 | BP13: =SA!EB7-SA!DP7 -> 0 | BQ13: =SA!EC7-SA!DQ7 -> 0 | BR13: =SA!ED7-SA!DR7 -> -100 | BS13: =SA!EE7-SA!DS7 -> 0 | BT13: =SA!EF7-SA!DT7 -> 0 | BU13: =SA!EG7-SA!DU7 -> -100 | BV13: =SA!EH7-SA!DV7 -> 100 | BW13: =SA!EI7-SA!DW7 -> 100 | BX13: =SA!EJ7-SA!DX7 -> 100 | BY13: =SA!EK7-SA!DY7 -> -100 | BZ13: =SA!EL7-SA!DZ7 -> -100 | CA13: =SA!EM7-SA!EA7 -> 200 | CB13: =SA!EN7-SA!EB7 -> 0 | CC13: =SA!EO7-SA!EC7 -> 0 | CD13: =SA!EP7-SA!ED7 -> 200 | CE13: =SA!EQ7-SA!EE7 -> 200 | CF13: =SA!ER7-SA!EF7 -> 400 | CG13: =SA!ES7-SA!EG7 -> 400 | CH13: =SA!ET7-SA!EH7 -> 300 | CI13: =SA!EU7-SA!EI7 -> 400 | CJ13: =SA!EV7-SA!EJ7 -> 500 | CK13: =SA!EW7-SA!EK7 -> 700 | CL13: =SA!EX7-SA!EL7 -> 600 | CM13: =SA!EY7-SA!EM7 -> 400 | CN13: =SA!EZ7-SA!EN7 -> 500 | CO13: =SA!FA7-SA!EO7 -> 500 | CP13: =SA!FB7-SA!EP7 -> 400 | CQ13: =SA!FC7-SA!EQ7 -> 300 | CR13: =SA!FD7-SA!ER7 -> 200 | CS13: =SA!FE7-SA!ES7 -> 300 | CT13: =SA!FF7-SA!ET7 -> 300 | CU13: =SA!FG7-SA!EU7 -> 200 | CV13: =SA!FH7-SA!EV7 -> 0 | CW13: =SA!FI7-SA!EW7 -> 0 | CX13: =SA!FJ7-SA!EX7 -> 200 | CY13: =SA!FK7-SA!EY7 -> 200 | CZ13: =SA!FL7-SA!EZ7 -> 200 | DA13: =SA!FM7-SA!FA7 -> 300 | DB13: =SA!FN7-SA!FB7 -> 300 | DC13: =SA!FO7-SA!FC7 -> 300 | DD13: =SA!FP7-SA!FD7 -> 300 | DE13: =SA!FQ7-SA!FE7 -> 200 | DF13: =SA!FR7-SA!FF7 -> 200 | DG13: =SA!FS7-SA!FG7 -> 300 | DH13: =SA!FT7-SA!FH7 -> 300 | DI13: =SA!FU7-SA!FI7 -> 400 | DJ13: =SA!FV7-SA!FJ7 -> 300 | DK13: =SA!FW7-SA!FK7 -> 300 | DL13: =SA!FX7-SA!FL7 -> 400 | DM13: =SA!FY7-SA!FM7 -> 400 | DN13: =SA!FZ7-SA!FN7 -> 400 | DO13: =SA!GA7-SA!FO7 -> 500 | DP13: =SA!GB7-SA!FP7 -> 500 | DQ13: =SA!GC7-SA!FQ7 -> 600 | DR13: =SA!GD7-SA!FR7 -> 500 | DS13: =SA!GE7-SA!FS7 -> 500 | DT13: =SA!GF7-SA!FT7 -> 500 | DU13: =SA!GG7-SA!FU7 -> 300 | DV13: =SA!GH7-SA!FV7 -> 300 | DW13: =SA!GI7-SA!FW7 -> 200 | DX13: =SA!GJ7-SA!FX7 -> 0 | DY13: =SA!GK7-SA!FY7 -> -100 | DZ13: =SA!GL7-SA!FZ7 -> -200 | EA13: =SA!GM7-SA!GA7 -> -300 | EB13: =SA!GN7-SA!GB7 -> -300 | EC13: =SA!GO7-SA!GC7 -> -400 | ED13: =SA!GP7-SA!GD7 -> -400 | EE13: =SA!GQ7-SA!GE7 -> -500 | EF13: =SA!GR7-SA!GF7 -> -400 | EG13: =SA!GS7-SA!GG7 -> -500 | EH13: =SA!GT7-SA!GH7 -> -500 | EI13: =SA!GU7-SA!GI7 -> -500 | EJ13: =SA!GV7-SA!GJ7 -> -400 | EK13: =SA!GW7-SA!GK7 -> -400 | EL13: =SA!GX7-SA!GL7 -> -400 | EM13: =SA!GY7-SA!GM7 -> -300 | EN13: =SA!GZ7-SA!GN7 -> -200 | EO13: =SA!HA7-SA!GO7 -> -300 | EP13: =SA!HB7-SA!GP7 -> 0 | EQ13: =SA!HC7-SA!GQ7 -> 100 | ER13: =SA!HD7-SA!GR7 -> 0 | ES13: =SA!HE7-SA!GS7 -> 100 | ET13: =SA!HF7-SA!GT7 -> 200 | EU13: =SA!HG7-SA!GU7 -> 300 | EV13: =SA!HH7-SA!GV7 -> 300 | EW13: =SA!HI7-SA!GW7 -> 200 | EX13: =SA!HJ7-SA!GX7 -> 300 | EY13: =SA!HK7-SA!GY7 -> -3700 | EZ13: =SA!HL7-SA!GZ7 -> -3800 | FA13: =SA!HM7-SA!HA7 -> -3700 | FB13: 701 | FC13: 0 | FE13: Mining and Logging | FF13: -500 | FG13: -400 | FH13: -200 | FI13: -100 | FJ13: 0 | FK13: 200 | FL13: 300 | FM13: 700 | FN13: 301.8964939
A14: Construction | B14: =SA!BN9-SA!BB9 -> 1100 | C14: =SA!BO9-SA!BC9 -> 1700 | D14: =SA!BP9-SA!BD9 -> 800 | E14: =SA!BQ9-SA!BE9 -> 1100 | F14: =SA!BR9-SA!BF9 -> 900 | G14: =SA!BS9-SA!BG9 -> 600 | H14: =SA!BT9-SA!BH9 -> 600 | I14: =SA!BU9-SA!BI9 -> 400 | J14: =SA!BV9-SA!BJ9 -> 500 | K14: =SA!BW9-SA!BK9 -> 600 | L14: =SA!BX9-SA!BL9 -> 600 | M14: =SA!BY9-SA!BM9 -> -200 | N14: =SA!BZ9-SA!BN9 -> 2200 | O14: =SA!CA9-SA!BO9 -> 2300 | P14: =SA!CB9-SA!BP9 -> 1400 | Q14: =SA!CC9-SA!BQ9 -> 2300 | R14: =SA!CD9-SA!BR9 -> 500 | S14: =SA!CE9-SA!BS9 -> 1500 | T14: =SA!CF9-SA!BT9 -> -600 | U14: =SA!CG9-SA!BU9 -> -600 | V14: =SA!CH9-SA!BV9 -> -1300 | W14: =SA!CI9-SA!BW9 -> -1800 | X14: =SA!CJ9-SA!BX9 -> -3200 | Y14: =SA!CK9-SA!BY9 -> -1100 | Z14: =SA!CL9-SA!BZ9 -> -1900 | AA14: =SA!CM9-SA!CA9 -> -4400 | AB14: =SA!CN9-SA!CB9 -> -600 | AC14: =SA!CO9-SA!CC9 -> -3600 | AD14: =SA!CP9-SA!CD9 -> -700 | AE14: =SA!CQ9-SA!CE9 -> -1900 | AF14: =SA!CR9-SA!CF9 -> -1100 | AG14: =SA!CS9-SA!CG9 -> -1100 | AH14: =SA!CT9-SA!CH9 -> -1000 | AI14: =SA!CU9-SA!CI9 -> -300 | AJ14: =SA!CV9-SA!CJ9 -> 300 | AK14: =SA!CW9-SA!CK9 -> -2300 | AL14: =SA!CX9-SA!CL9 -> -4600 | AM14: =SA!CY9-SA!CM9 -> -3300 | AN14: =SA!CZ9-SA!CN9 -> -6500 | AO14: =SA!DA9-SA!CO9 -> -7000 | AP14: =SA!DB9-SA!CP9 -> -7500 | AQ14: =SA!DC9-SA!CQ9 -> -7100 | AR14: =SA!DD9-SA!CR9 -> -7200 | AS14: =SA!DE9-SA!CS9 -> -7700 | AT14: =SA!DF9-SA!CT9 -> -8200 | AU14: =SA!DG9-SA!CU9 -> -9500 | AV14: =SA!DH9-SA!CV9 -> -11300 | AW14: =SA!DI9-SA!CW9 -> -12200 | AX14: =SA!DJ9-SA!CX9 -> -14200 | AY14: =SA!DK9-SA!CY9 -> -14300 | AZ14: =SA!DL9-SA!CZ9 -> -16300 | BA14: =SA!DM9-SA!DA9 -> -16700 | BB14: =SA!DN9-SA!DB9 -> -16900 | BC14: =SA!DO9-SA!DC9 -> -18000 | BD14: =SA!DP9-SA!DD9 -> -18500 | BE14: =SA!DQ9-SA!DE9 -> -19000 | BF14: =SA!DR9-SA!DF9 -> -18200 | BG14: =SA!DS9-SA!DG9 -> -17700 | BH14: =SA!DT9-SA!DH9 -> -16000 | BI14: =SA!DU9-SA!DI9 -> -14800 | BJ14: =SA!DV9-SA!DJ9 -> -12000 | BK14: =SA!DW9-SA!DK9 -> -11800 | BL14: =SA!DX9-SA!DL9 -> -9800 | BM14: =SA!DY9-SA!DM9 -> -5900 | BN14: =SA!DZ9-SA!DN9 -> -8500 | BO14: =SA!EA9-SA!DO9 -> -7600 | BP14: =SA!EB9-SA!DP9 -> -6800 | BQ14: =SA!EC9-SA!DQ9 -> -5400 | BR14: =SA!ED9-SA!DR9 -> -5100 | BS14: =SA!EE9-SA!DS9 -> -3500 | BT14: =SA!EF9-SA!DT9 -> -4100 | BU14: =SA!EG9-SA!DU9 -> -3800 | BV14: =SA!EH9-SA!DV9 -> -3500 | BW14: =SA!EI9-SA!DW9 -> -3300 | BX14: =SA!EJ9-SA!DX9 -> -2800 | BY14: =SA!EK9-SA!DY9 -> -4500 | BZ14: =SA!EL9-SA!DZ9 -> -1600 | CA14: =SA!EM9-SA!EA9 -> -1400 | CB14: =SA!EN9-SA!EB9 -> -500 | CC14: =SA!EO9-SA!EC9 -> -700 | CD14: =SA!EP9-SA!ED9 -> -700 | CE14: =SA!EQ9-SA!EE9 -> -2000 | CF14: =SA!ER9-SA!EF9 -> -600 | CG14: =SA!ES9-SA!EG9 -> -100 | CH14: =SA!ET9-SA!EH9 -> 100 | CI14: =SA!EU9-SA!EI9 -> 1000 | CJ14: =SA!EV9-SA!EJ9 -> 1900 | CK14: =SA!EW9-SA!EK9 -> 4100 | CL14: =SA!EX9-SA!EL9 -> 100 | CM14: =SA!EY9-SA!EM9 -> 0 | CN14: =SA!EZ9-SA!EN9 -> -1000 | CO14: =SA!FA9-SA!EO9 -> -1200 | CP14: =SA!FB9-SA!EP9 -> -400 | CQ14: =SA!FC9-SA!EQ9 -> 1200 | CR14: =SA!FD9-SA!ER9 -> 900 | CS14: =SA!FE9-SA!ES9 -> 3000 | CT14: =SA!FF9-SA!ET9 -> 3700 | CU14: =SA!FG9-SA!EU9 -> 4600 | CV14: =SA!FH9-SA!EV9 -> 3400 | CW14: =SA!FI9-SA!EW9 -> -1300 | CX14: =SA!FJ9-SA!EX9 -> 5600 | CY14: =SA!FK9-SA!EY9 -> 5900 | CZ14: =SA!FL9-SA!EZ9 -> 6800 | DA14: =SA!FM9-SA!FA9 -> 7900 | DB14: =SA!FN9-SA!FB9 -> 7300 | DC14: =SA!FO9-SA!FC9 -> 6300 | DD14: =SA!FP9-SA!FD9 -> 6500 | DE14: =SA!FQ9-SA!FE9 -> 3200 | DF14: =SA!FR9-SA!FF9 -> 3600 | DG14: =SA!FS9-SA!FG9 -> 2700 | DH14: =SA!FT9-SA!FH9 -> 3800 | DI14: =SA!FU9-SA!FI9 -> 6400 | DJ14: =SA!FV9-SA!FJ9 -> 4000 | DK14: =SA!FW9-SA!FK9 -> 5300 | DL14: =SA!FX9-SA!FL9 -> 5200 | DM14: =SA!FY9-SA!FM9 -> 5000 | DN14: =SA!FZ9-SA!FN9 -> 5700 | DO14: =SA!GA9-SA!FO9 -> 5700 | DP14: =SA!GB9-SA!FP9 -> 5900 | DQ14: =SA!GC9-SA!FQ9 -> 7100 | DR14: =SA!GD9-SA!FR9 -> 7200 | DS14: =SA!GE9-SA!FS9 -> 6700 | DT14: =SA!GF9-SA!FT9 -> 6400 | DU14: =SA!GG9-SA!FU9 -> 7400 | DV14: =SA!GH9-SA!FV9 -> 7400 | DW14: =SA!GI9-SA!FW9 -> 6100 | DX14: =SA!GJ9-SA!FX9 -> 5800 | DY14: =SA!GK9-SA!FY9 -> 4900 | DZ14: =SA!GL9-SA!FZ9 -> 3800 | EA14: =SA!GM9-SA!GA9 -> 3900 | EB14: =SA!GN9-SA!GB9 -> 4100 | EC14: =SA!GO9-SA!GC9 -> 5000 | ED14: =SA!GP9-SA!GD9 -> 3900 | EE14: =SA!GQ9-SA!GE9 -> 4600 | EF14: =SA!GR9-SA!GF9 -> 5400 | EG14: =SA!GS9-SA!GG9 -> 3400 | EH14: =SA!GT9-SA!GH9 -> 1900 | EI14: =SA!GU9-SA!GI9 -> 1500 | EJ14: =SA!GV9-SA!GJ9 -> 1700 | EK14: =SA!GW9-SA!GK9 -> 2200 | EL14: =SA!GX9-SA!GL9 -> 2600 | EM14: =SA!GY9-SA!GM9 -> 900 | EN14: =SA!GZ9-SA!GN9 -> 600 | EO14: =SA!HA9-SA!GO9 -> 1500 | EP14: =SA!HB9-SA!GP9 -> 3100 | EQ14: =SA!HC9-SA!GQ9 -> 1600 | ER14: =SA!HD9-SA!GR9 -> 700 | ES14: =SA!HE9-SA!GS9 -> 3100 | ET14: =SA!HF9-SA!GT9 -> 3000 | EU14: =SA!HG9-SA!GU9 -> 900 | EV14: =SA!HH9-SA!GV9 -> 1100 | EW14: =SA!HI9-SA!GW9 -> 400 | EX14: =SA!HJ9-SA!GX9 -> 1400 | EY14: =SA!HK9-SA!GY9 -> -110700 | EZ14: =SA!HL9-SA!GZ9 -> -111000 | FA14: =SA!HM9-SA!HA9 -> -112800 | FB14: 7917 | FC14: 0 | FE14: Construction | FF14: -19000 | FG14: -7625 | FH14: -2550 | FI14: -575 | FJ14: 600 | FK14: 2300 | FL14: 5225 | FM14: 7900 | FN14: 6467.490782
A15: Manufacturing | B15: =SA!BN10-SA!BB10 -> 2500 | C15: =SA!BO10-SA!BC10 -> 5700 | D15: =SA!BP10-SA!BD10 -> 5200 | E15: =SA!BQ10-SA!BE10 -> 4000 | F15: =SA!BR10-SA!BF10 -> 2100 | G15: =SA!BS10-SA!BG10 -> 3800 | H15: =SA!BT10-SA!BH10 -> 2400 | I15: =SA!BU10-SA!BI10 -> 800 | J15: =SA!BV10-SA!BJ10 -> 100 | K15: =SA!BW10-SA!BK10 -> 0 | L15: =SA!BX10-SA!BL10 -> -400 | M15: =SA!BY10-SA!BM10 -> -1000 | N15: =SA!BZ10-SA!BN10 -> 4200 | O15: =SA!CA10-SA!BO10 -> -200 | P15: =SA!CB10-SA!BP10 -> 700 | Q15: =SA!CC10-SA!BQ10 -> 1200 | R15: =SA!CD10-SA!BR10 -> 1400 | S15: =SA!CE10-SA!BS10 -> 2600 | T15: =SA!CF10-SA!BT10 -> 1400 | U15: =SA!CG10-SA!BU10 -> 1000 | V15: =SA!CH10-SA!BV10 -> 1000 | W15: =SA!CI10-SA!BW10 -> 100 | X15: =SA!CJ10-SA!BX10 -> -900 | Y15: =SA!CK10-SA!BY10 -> -1300 | Z15: =SA!CL10-SA!BZ10 -> -2800 | AA15: =SA!CM10-SA!CA10 -> -2500 | AB15: =SA!CN10-SA!CB10 -> -4400 | AC15: =SA!CO10-SA!CC10 -> -4400 | AD15: =SA!CP10-SA!CD10 -> -3600 | AE15: =SA!CQ10-SA!CE10 -> -4200 | AF15: =SA!CR10-SA!CF10 -> -4600 | AG15: =SA!CS10-SA!CG10 -> -5500 | AH15: =SA!CT10-SA!CH10 -> -6600 | AI15: =SA!CU10-SA!CI10 -> -6400 | AJ15: =SA!CV10-SA!CJ10 -> -5000 | AK15: =SA!CW10-SA!CK10 -> -4500 | AL15: =SA!CX10-SA!CL10 -> -3000 | AM15: =SA!CY10-SA!CM10 -> -2500 | AN15: =SA!CZ10-SA!CN10 -> -1900 | AO15: =SA!DA10-SA!CO10 -> -3500 | AP15: =SA!DB10-SA!CP10 -> -5000 | AQ15: =SA!DC10-SA!CQ10 -> -5800 | AR15: =SA!DD10-SA!CR10 -> -9400 | AS15: =SA!DE10-SA!CS10 -> -10300 | AT15: =SA!DF10-SA!CT10 -> -11300 | AU15: =SA!DG10-SA!CU10 -> -12000 | AV15: =SA!DH10-SA!CV10 -> -15500 | AW15: =SA!DI10-SA!CW10 -> -20400 | AX15: =SA!DJ10-SA!CX10 -> -30100 | AY15: =SA!DK10-SA!CY10 -> -40900 | AZ15: =SA!DL10-SA!CZ10 -> -49200 | BA15: =SA!DM10-SA!DA10 -> -58100 | BB15: =SA!DN10-SA!DB10 -> -62900 | BC15: =SA!DO10-SA!DC10 -> -68000 | BD15: =SA!DP10-SA!DD10 -> -68400 | BE15: =SA!DQ10-SA!DE10 -> -66800 | BF15: =SA!DR10-SA!DF10 -> -60100 | BG15: =SA!DS10-SA!DG10 -> -60600 | BH15: =SA!DT10-SA!DH10 -> -57900 | BI15: =SA!DU10-SA!DI10 -> -53600 | BJ15: =SA!DV10-SA!DJ10 -> -45900 | BK15: =SA!DW10-SA!DK10 -> -34800 | BL15: =SA!DX10-SA!DL10 -> -24300 | BM15: =SA!DY10-SA!DM10 -> -13000 | BN15: =SA!DZ10-SA!DN10 -> -5500 | BO15: =SA!EA10-SA!DO10 -> 1100 | BP15: =SA!EB10-SA!DP10 -> 7500 | BQ15: =SA!EC10-SA!DQ10 -> 9200 | BR15: =SA!ED10-SA!DR10 -> 6100 | BS15: =SA!EE10-SA!DS10 -> 8000 | BT15: =SA!EF10-SA!DT10 -> 9900 | BU15: =SA!EG10-SA!DU10 -> 11600 | BV15: =SA!EH10-SA!DV10 -> 13700 | BW15: =SA!EI10-SA!DW10 -> 14800 | BX15: =SA!EJ10-SA!DX10 -> 14300 | BY15: =SA!EK10-SA!DY10 -> 16300 | BZ15: =SA!EL10-SA!DZ10 -> 15400 | CA15: =SA!EM10-SA!EA10 -> 14200 | CB15: =SA!EN10-SA!EB10 -> 14400 | CC15: =SA!EO10-SA!EC10 -> 14400 | CD15: =SA!EP10-SA!ED10 -> 13900 | CE15: =SA!EQ10-SA!EE10 -> 13600 | CF15: =SA!ER10-SA!EF10 -> 13600 | CG15: =SA!ES10-SA!EG10 -> 13700 | CH15: =SA!ET10-SA!EH10 -> 14000 | CI15: =SA!EU10-SA!EI10 -> 13000 | CJ15: =SA!EV10-SA!EJ10 -> 12900 | CK15: =SA!EW10-SA!EK10 -> 10700 | CL15: =SA!EX10-SA!EL10 -> 10200 | CM15: =SA!EY10-SA!EM10 -> 12000 | CN15: =SA!EZ10-SA!EN10 -> 10200 | CO15: =SA!FA10-SA!EO10 -> 9100 | CP15: =SA!FB10-SA!EP10 -> 9200 | CQ15: =SA!FC10-SA!EQ10 -> 10100 | CR15: =SA!FD10-SA!ER10 -> 8500 | CS15: =SA!FE10-SA!ES10 -> 7600 | CT15: =SA!FF10-SA!ET10 -> 6000 | CU15: =SA!FG10-SA!EU10 -> 5200 | CV15: =SA!FH10-SA!EV10 -> 3900 | CW15: =SA!FI10-SA!EW10 -> 1700 | CX15: =SA!FJ10-SA!EX10 -> 1600 | CY15: =SA!FK10-SA!EY10 -> 300 | CZ15: =SA!FL10-SA!EZ10 -> -1200 | DA15: =SA!FM10-SA!FA10 -> -400 | DB15: =SA!FN10-SA!FB10 -> 100 | DC15: =SA!FO10-SA!FC10 -> 900 | DD15: =SA!FP10-SA!FD10 -> 2100 | DE15: =SA!FQ10-SA!FE10 -> 1900 | DF15: =SA!FR10-SA!FF10 -> 3200 | DG15: =SA!FS10-SA!FG10 -> 3500 | DH15: =SA!FT10-SA!FH10 -> 3800 | DI15: =SA!FU10-SA!FI10 -> 6600 | DJ15: =SA!FV10-SA!FJ10 -> 7600 | DK15: =SA!FW10-SA!FK10 -> 7100 | DL15: =SA!FX10-SA!FL10 -> 9900 | DM15: =SA!FY10-SA!FM10 -> 9700 | DN15: =SA!FZ10-SA!FN10 -> 9300 | DO15: =SA!GA10-SA!FO10 -> 8400 | DP15: =SA!GB10-SA!FP10 -> 8100 | DQ15: =SA!GC10-SA!FQ10 -> 8700 | DR15: =SA!GD10-SA!FR10 -> 7500 | DS15: =SA!GE10-SA!FS10 -> 7900 | DT15: =SA!GF10-SA!FT10 -> 7100 | DU15: =SA!GG10-SA!FU10 -> 4800 | DV15: =SA!GH10-SA!FV10 -> 3000 | DW15: =SA!GI10-SA!FW10 -> 3000 | DX15: =SA!GJ10-SA!FX10 -> 1400 | DY15: =SA!GK10-SA!FY10 -> 500 | DZ15: =SA!GL10-SA!FZ10 -> 200 | EA15: =SA!GM10-SA!GA10 -> -500 | EB15: =SA!GN10-SA!GB10 -> -1000 | EC15: =SA!GO10-SA!GC10 -> -1800 | ED15: =SA!GP10-SA!GD10 -> -1600 | EE15: =SA!GQ10-SA!GE10 -> -3100 | EF15: =SA!GR10-SA!GF10 -> -2900 | EG15: =SA!GS10-SA!GG10 -> -2300 | EH15: =SA!GT10-SA!GH10 -> -2600 | EI15: =SA!GU10-SA!GI10 -> -3200 | EJ15: =SA!GV10-SA!GJ10 -> -3300 | EK15: =SA!GW10-SA!GK10 -> -3100 | EL15: =SA!GX10-SA!GL10 -> -3400 | EM15: =SA!GY10-SA!GM10 -> 800 | EN15: =SA!GZ10-SA!GN10 -> -100 | EO15: =SA!HA10-SA!GO10 -> 2100 | EP15: =SA!HB10-SA!GP10 -> 1700 | EQ15: =SA!HC10-SA!GQ10 -> 3200 | ER15: =SA!HD10-SA!GR10 -> 2300 | ES15: =SA!HE10-SA!GS10 -> 6600 | ET15: =SA!HF10-SA!GT10 -> 7300 | EU15: =SA!HG10-SA!GU10 -> 8300 | EV15: =SA!HH10-SA!GV10 -> 10400 | EW15: =SA!HI10-SA!GW10 -> 11100 | EX15: =SA!HJ10-SA!GX10 -> 12600 | EY15: =SA!HK10-SA!GY10 -> -467100 | EZ15: =SA!HL10-SA!GZ10 -> -466200 | FA15: =SA!HM10-SA!HA10 -> -468400 | FB15: 8880 | FC15: 3 | FE15: Manufacturing | FF15: -68400 | FG15: -9625 | FH15: -2850 | FI15: 125 | FJ15: 1550 | FK15: 5850 | FL15: 9950 | FM15: 16300 | FN15: 18514.86593
A16: Durable Goods | B16: =SA!BN11-SA!BB11 -> 4600 | C16: =SA!BO11-SA!BC11 -> 8100 | D16: =SA!BP11-SA!BD11 -> 7800 | E16: =SA!BQ11-SA!BE11 -> 7600 | F16: =SA!BR11-SA!BF11 -> 5700 | G16: =SA!BS11-SA!BG11 -> 6900 | H16: =SA!BT11-SA!BH11 -> 4600 | I16: =SA!BU11-SA!BI11 -> 3500 | J16: =SA!BV11-SA!BJ11 -> 3000 | K16: =SA!BW11-SA!BK11 -> 3100 | L16: =SA!BX11-SA!BL11 -> 2000 | M16: =SA!BY11-SA!BM11 -> 1200 | N16: =SA!BZ11-SA!BN11 -> 6200 | O16: =SA!CA11-SA!BO11 -> 1700 | P16: =SA!CB11-SA!BP11 -> 2600 | Q16: =SA!CC11-SA!BQ11 -> 2300 | R16: =SA!CD11-SA!BR11 -> 3000 | S16: =SA!CE11-SA!BS11 -> 3900 | T16: =SA!CF11-SA!BT11 -> 3400 | U16: =SA!CG11-SA!BU11 -> 2900 | V16: =SA!CH11-SA!BV11 -> 2800 | W16: =SA!CI11-SA!BW11 -> 1700 | X16: =SA!CJ11-SA!BX11 -> 1000 | Y16: =SA!CK11-SA!BY11 -> 700 | Z16: =SA!CL11-SA!BZ11 -> -1300 | AA16: =SA!CM11-SA!CA11 -> -1300 | AB16: =SA!CN11-SA!CB11 -> -3400 | AC16: =SA!CO11-SA!CC11 -> -2600 | AD16: =SA!CP11-SA!CD11 -> -2800 | AE16: =SA!CQ11-SA!CE11 -> -4300 | AF16: =SA!CR11-SA!CF11 -> -4400 | AG16: =SA!CS11-SA!CG11 -> -5300 | AH16: =SA!CT11-SA!CH11 -> -6300 | AI16: =SA!CU11-SA!CI11 -> -6000 | AJ16: =SA!CV11-SA!CJ11 -> -5100 | AK16: =SA!CW11-SA!CK11 -> -4900 | AL16: =SA!CX11-SA!CL11 -> -3200 | AM16: =SA!CY11-SA!CM11 -> -2800 | AN16: =SA!CZ11-SA!CN11 -> -2000 | AO16: =SA!DA11-SA!CO11 -> -4000 | AP16: =SA!DB11-SA!CP11 -> -4600 | AQ16: =SA!DC11-SA!CQ11 -> -4700 | AR16: =SA!DD11-SA!CR11 -> -6500 | AS16: =SA!DE11-SA!CS11 -> -7800 | AT16: =SA!DF11-SA!CT11 -> -8400 | AU16: =SA!DG11-SA!CU11 -> -9500 | AV16: =SA!DH11-SA!CV11 -> -11600 | AW16: =SA!DI11-SA!CW11 -> -15300 | AX16: =SA!DJ11-SA!CX11 -> -23300 | AY16: =SA!DK11-SA!CY11 -> -32200 | AZ16: =SA!DL11-SA!CZ11 -> -39400 | BA16: =SA!DM11-SA!DA11 -> -46900 | BB16: =SA!DN11-SA!DB11 -> -51000 | BC16: =SA!DO11-SA!DC11 -> -54900 | BD16: =SA!DP11-SA!DD11 -> -55500 | BE16: =SA!DQ11-SA!DE11 -> -54700 | BF16: =SA!DR11-SA!DF11 -> -49800 | BG16: =SA!DS11-SA!DG11 -> -48700 | BH16: =SA!DT11-SA!DH11 -> -47300 | BI16: =SA!DU11-SA!DI11 -> -44000 | BJ16: =SA!DV11-SA!DJ11 -> -37800 | BK16: =SA!DW11-SA!DK11 -> -28500 | BL16: =SA!DX11-SA!DL11 -> -19600 | BM16: =SA!DY11-SA!DM11 -> -10100 | BN16: =SA!DZ11-SA!DN11 -> -4300 | BO16: =SA!EA11-SA!DO11 -> 700 | BP16: =SA!EB11-SA!DP11 -> 4200 | BQ16: =SA!EC11-SA!DQ11 -> 7100 | BR16: =SA!ED11-SA!DR11 -> 5200 | BS16: =SA!EE11-SA!DS11 -> 5800 | BT16: =SA!EF11-SA!DT11 -> 7500 | BU16: =SA!EG11-SA!DU11 -> 9400 | BV16: =SA!EH11-SA!DV11 -> 11100 | BW16: =SA!EI11-SA!DW11 -> 12200 | BX16: =SA!EJ11-SA!DX11 -> 11700 | BY16: =SA!EK11-SA!DY11 -> 12900 | BZ16: =SA!EL11-SA!DZ11 -> 12300 | CA16: =SA!EM11-SA!EA11 -> 12400 | CB16: =SA!EN11-SA!EB11 -> 13100 | CC16: =SA!EO11-SA!EC11 -> 12000 | CD16: =SA!EP11-SA!ED11 -> 11300 | CE16: =SA!EQ11-SA!EE11 -> 11100 | CF16: =SA!ER11-SA!EF11 -> 11500 | CG16: =SA!ES11-SA!EG11 -> 11100 | CH16: =SA!ET11-SA!EH11 -> 11700 | CI16: =SA!EU11-SA!EI11 -> 10700 | CJ16: =SA!EV11-SA!EJ11 -> 10900 | CK16: =SA!EW11-SA!EK11 -> 9100 | CL16: =SA!EX11-SA!EL11 -> 9000 | CM16: =SA!EY11-SA!EM11 -> 9800 | CN16: =SA!EZ11-SA!EN11 -> 8400 | CO16: =SA!FA11-SA!EO11 -> 7800 | CP16: =SA!FB11-SA!EP11 -> 7700 | CQ16: =SA!FC11-SA!EQ11 -> 8200 | CR16: =SA!FD11-SA!ER11 -> 6600 | CS16: =SA!FE11-SA!ES11 -> 5800 | CT16: =SA!FF11-SA!ET11 -> 4300 | CU16: =SA!FG11-SA!EU11 -> 3400 | CV16: =SA!FH11-SA!EV11 -> 2100 | CW16: =SA!FI11-SA!EW11 -> 800 | CX16: =SA!FJ11-SA!EX11 -> 500 | CY16: =SA!FK11-SA!EY11 -> -600 | CZ16: =SA!FL11-SA!EZ11 -> -2200 | DA16: =SA!FM11-SA!FA11 -> -1600 | DB16: =SA!FN11-SA!FB11 -> -1100 | DC16: =SA!FO11-SA!FC11 -> -500 | DD16: =SA!FP11-SA!FD11 -> 300 | DE16: =SA!FQ11-SA!FE11 -> 100 | DF16: =SA!FR11-SA!FF11 -> 700 | DG16: =SA!FS11-SA!FG11 -> 500 | DH16: =SA!FT11-SA!FH11 -> 800 | DI16: =SA!FU11-SA!FI11 -> 3200 | DJ16: =SA!FV11-SA!FJ11 -> 4100 | DK16: =SA!FW11-SA!FK11 -> 3900 | DL16: =SA!FX11-SA!FL11 -> 6100 | DM16: =SA!FY11-SA!FM11 -> 5900 | DN16: =SA!FZ11-SA!FN11 -> 5700 | DO16: =SA!GA11-SA!FO11 -> 5300 | DP16: =SA!GB11-SA!FP11 -> 5300 | DQ16: =SA!GC11-SA!FQ11 -> 6100 | DR16: =SA!GD11-SA!FR11 -> 5300 | DS16: =SA!GE11-SA!FS11 -> 5800 | DT16: =SA!GF11-SA!FT11 -> 5400 | DU16: =SA!GG11-SA!FU11 -> 3100 | DV16: =SA!GH11-SA!FV11 -> 1200 | DW16: =SA!GI11-SA!FW11 -> 1100 | DX16: =SA!GJ11-SA!FX11 -> 100 | DY16: =SA!GK11-SA!FY11 -> -300 | DZ16: =SA!GL11-SA!FZ11 -> -900 | EA16: =SA!GM11-SA!GA11 -> -2100 | EB16: =SA!GN11-SA!GB11 -> -2800 | EC16: =SA!GO11-SA!GC11 -> -4000 | ED16: =SA!GP11-SA!GD11 -> -3700 | EE16: =SA!GQ11-SA!GE11 -> -4600 | EF16: =SA!GR11-SA!GF11 -> -5000 | EG16: =SA!GS11-SA!GG11 -> -4500 | EH16: =SA!GT11-SA!GH11 -> -4300 | EI16: =SA!GU11-SA!GI11 -> -4900 | EJ16: =SA!GV11-SA!GJ11 -> -4800 | EK16: =SA!GW11-SA!GK11 -> -4700 | EL16: =SA!GX11-SA!GL11 -> -4500 | EM16: =SA!GY11-SA!GM11 -> -2700 | EN16: =SA!GZ11-SA!GN11 -> -2700 | EO16: =SA!HA11-SA!GO11 -> 0 | EP16: =SA!HB11-SA!GP11 -> -200 | EQ16: =SA!HC11-SA!GQ11 -> 600 | ER16: =SA!HD11-SA!GR11 -> 600 | ES16: =SA!HE11-SA!GS11 -> 2700 | ET16: =SA!HF11-SA!GT11 -> 2700 | EU16: =SA!HG11-SA!GU11 -> 4200 | EV16: =SA!HH11-SA!GV11 -> 5400 | EW16: =SA!HI11-SA!GW11 -> 6500 | EX16: =SA!HJ11-SA!GX11 -> 7200 | EY16: =SA!HK11-SA!GY11 -> -280200 | EZ16: =SA!HL11-SA!GZ11 -> -279900 | FA16: =SA!HM11-SA!HA11 -> -282200 | FB16: 6907 | FC16: 1 | FE16: Durable Goods | FF16: -55500 | FG16: -6825 | FH16: -3550 | FI16: 150 | FJ16: 1925 | FK16: 5250 | FL16: 8125 | FM16: 13100 | FN16: 15079.20509
A17: Non-Durable Goods | B17: =SA!BN12-SA!BB12 -> -2100 | C17: =SA!BO12-SA!BC12 -> -2400 | D17: =SA!BP12-SA!BD12 -> -2600 | E17: =SA!BQ12-SA!BE12 -> -3600 | F17: =SA!BR12-SA!BF12 -> -3600 | G17: =SA!BS12-SA!BG12 -> -3100 | H17: =SA!BT12-SA!BH12 -> -2200 | I17: =SA!BU12-SA!BI12 -> -2700 | J17: =SA!BV12-SA!BJ12 -> -2900 | K17: =SA!BW12-SA!BK12 -> -3100 | L17: =SA!BX12-SA!BL12 -> -2400 | M17: =SA!BY12-SA!BM12 -> -2200 | N17: =SA!BZ12-SA!BN12 -> -2000 | O17: =SA!CA12-SA!BO12 -> -1900 | P17: =SA!CB12-SA!BP12 -> -1900 | Q17: =SA!CC12-SA!BQ12 -> -1100 | R17: =SA!CD12-SA!BR12 -> -1600 | S17: =SA!CE12-SA!BS12 -> -1300 | T17: =SA!CF12-SA!BT12 -> -2000 | U17: =SA!CG12-SA!BU12 -> -1900 | V17: =SA!CH12-SA!BV12 -> -1800 | W17: =SA!CI12-SA!BW12 -> -1600 | X17: =SA!CJ12-SA!BX12 -> -1900 | Y17: =SA!CK12-SA!BY12 -> -2000 | Z17: =SA!CL12-SA!BZ12 -> -1500 | AA17: =SA!CM12-SA!CA12 -> -1200 | AB17: =SA!CN12-SA!CB12 -> -1000 | AC17: =SA!CO12-SA!CC12 -> -1800 | AD17: =SA!CP12-SA!CD12 -> -800 | AE17: =SA!CQ12-SA!CE12 -> 100 | AF17: =SA!CR12-SA!CF12 -> -200 | AG17: =SA!CS12-SA!CG12 -> -200 | AH17: =SA!CT12-SA!CH12 -> -300 | AI17: =SA!CU12-SA!CI12 -> -400 | AJ17: =SA!CV12-SA!CJ12 -> 100 | AK17: =SA!CW12-SA!CK12 -> 400 | AL17: =SA!CX12-SA!CL12 -> 200 | AM17: =SA!CY12-SA!CM12 -> 300 | AN17: =SA!CZ12-SA!CN12 -> 100 | AO17: =SA!DA12-SA!CO12 -> 500 | AP17: =SA!DB12-SA!CP12 -> -400 | AQ17: =SA!DC12-SA!CQ12 -> -1100 | AR17: =SA!DD12-SA!CR12 -> -2900 | AS17: =SA!DE12-SA!CS12 -> -2500 | AT17: =SA!DF12-SA!CT12 -> -2900 | AU17: =SA!DG12-SA!CU12 -> -2500 | AV17: =SA!DH12-SA!CV12 -> -3900 | AW17: =SA!DI12-SA!CW12 -> -5100 | AX17: =SA!DJ12-SA!CX12 -> -6800 | AY17: =SA!DK12-SA!CY12 -> -8700 | AZ17: =SA!DL12-SA!CZ12 -> -9800 | BA17: =SA!DM12-SA!DA12 -> -11200 | BB17: =SA!DN12-SA!DB12 -> -11900 | BC17: =SA!DO12-SA!DC12 -> -13100 | BD17: =SA!DP12-SA!DD12 -> -12900 | BE17: =SA!DQ12-SA!DE12 -> -12100 | BF17: =SA!DR12-SA!DF12 -> -10300 | BG17: =SA!DS12-SA!DG12 -> -11900 | BH17: =SA!DT12-SA!DH12 -> -10600 | BI17: =SA!DU12-SA!DI12 -> -9600 | BJ17: =SA!DV12-SA!DJ12 -> -8100 | BK17: =SA!DW12-SA!DK12 -> -6300 | BL17: =SA!DX12-SA!DL12 -> -4700 | BM17: =SA!DY12-SA!DM12 -> -2900 | BN17: =SA!DZ12-SA!DN12 -> -1200 | BO17: =SA!EA12-SA!DO12 -> 400 | BP17: =SA!EB12-SA!DP12 -> 3300 | BQ17: =SA!EC12-SA!DQ12 -> 2100 | BR17: =SA!ED12-SA!DR12 -> 900 | BS17: =SA!EE12-SA!DS12 -> 2200 | BT17: =SA!EF12-SA!DT12 -> 2400 | BU17: =SA!EG12-SA!DU12 -> 2200 | BV17: =SA!EH12-SA!DV12 -> 2600 | BW17: =SA!EI12-SA!DW12 -> 2600 | BX17: =SA!EJ12-SA!DX12 -> 2600 | BY17: =SA!EK12-SA!DY12 -> 3400 | BZ17: =SA!EL12-SA!DZ12 -> 3100 | CA17: =SA!EM12-SA!EA12 -> 1800 | CB17: =SA!EN12-SA!EB12 -> 1300 | CC17: =SA!EO12-SA!EC12 -> 2400 | CD17: =SA!EP12-SA!ED12 -> 2600 | CE17: =SA!EQ12-SA!EE12 -> 2500 | CF17: =SA!ER12-SA!EF12 -> 2100 | CG17: =SA!ES12-SA!EG12 -> 2600 | CH17: =SA!ET12-SA!EH12 -> 2300 | CI17: =SA!EU12-SA!EI12 -> 2300 | CJ17: =SA!EV12-SA!EJ12 -> 2000 | CK17: =SA!EW12-SA!EK12 -> 1600 | CL17: =SA!EX12-SA!EL12 -> 1200 | CM17: =SA!EY12-SA!EM12 -> 2200 | CN17: =SA!EZ12-SA!EN12 -> 1800 | CO17: =SA!FA12-SA!EO12 -> 1300 | CP17: =SA!FB12-SA!EP12 -> 1500 | CQ17: =SA!FC12-SA!EQ12 -> 1900 | CR17: =SA!FD12-SA!ER12 -> 1900 | CS17: =SA!FE12-SA!ES12 -> 1800 | CT17: =SA!FF12-SA!ET12 -> 1700 | CU17: =SA!FG12-SA!EU12 -> 1800 | CV17: =SA!FH12-SA!EV12 -> 1800 | CW17: =SA!FI12-SA!EW12 -> 900 | CX17: =SA!FJ12-SA!EX12 -> 1100 | CY17: =SA!FK12-SA!EY12 -> 900 | CZ17: =SA!FL12-SA!EZ12 -> 1000 | DA17: =SA!FM12-SA!FA12 -> 1200 | DB17: =SA!FN12-SA!FB12 -> 1200 | DC17: =SA!FO12-SA!FC12 -> 1400 | DD17: =SA!FP12-SA!FD12 -> 1800 | DE17: =SA!FQ12-SA!FE12 -> 1800 | DF17: =SA!FR12-SA!FF12 -> 2500 | DG17: =SA!FS12-SA!FG12 -> 3000 | DH17: =SA!FT12-SA!FH12 -> 3000 | DI17: =SA!FU12-SA!FI12 -> 3400 | DJ17: =SA!FV12-SA!FJ12 -> 3500 | DK17: =SA!FW12-SA!FK12 -> 3200 | DL17: =SA!FX12-SA!FL12 -> 3800 | DM17: =SA!FY12-SA!FM12 -> 3800 | DN17: =SA!FZ12-SA!FN12 -> 3600 | DO17: =SA!GA12-SA!FO12 -> 3100 | DP17: =SA!GB12-SA!FP12 -> 2800 | DQ17: =SA!GC12-SA!FQ12 -> 2600 | DR17: =SA!GD12-SA!FR12 -> 2200 | DS17: =SA!GE12-SA!FS12 -> 2100 | DT17: =SA!GF12-SA!FT12 -> 1700 | DU17: =SA!GG12-SA!FU12 -> 1700 | DV17: =SA!GH12-SA!FV12 -> 1800 | DW17: =SA!GI12-SA!FW12 -> 1900 | DX17: =SA!GJ12-SA!FX12 -> 1300 | DY17: =SA!GK12-SA!FY12 -> 800 | DZ17: =SA!GL12-SA!FZ12 -> 1100 | EA17: =SA!GM12-SA!GA12 -> 1600 | EB17: =SA!GN12-SA!GB12 -> 1800 | EC17: =SA!GO12-SA!GC12 -> 2200 | ED17: =SA!GP12-SA!GD12 -> 2100 | EE17: =SA!GQ12-SA!GE12 -> 1500 | EF17: =SA!GR12-SA!GF12 -> 2100 | EG17: =SA!GS12-SA!GG12 -> 2200 | EH17: =SA!GT12-SA!GH12 -> 1700 | EI17: =SA!GU12-SA!GI12 -> 1700 | EJ17: =SA!GV12-SA!GJ12 -> 1500 | EK17: =SA!GW12-SA!GK12 -> 1600 | EL17: =SA!GX12-SA!GL12 -> 1100 | EM17: =SA!GY12-SA!GM12 -> 3500 | EN17: =SA!GZ12-SA!GN12 -> 2600 | EO17: =SA!HA12-SA!GO12 -> 2100 | EP17: =SA!HB12-SA!GP12 -> 1900 | EQ17: =SA!HC12-SA!GQ12 -> 2600 | ER17: =SA!HD12-SA!GR12 -> 1700 | ES17: =SA!HE12-SA!GS12 -> 3900 | ET17: =SA!HF12-SA!GT12 -> 4600 | EU17: =SA!HG12-SA!GU12 -> 4100 | EV17: =SA!HH12-SA!GV12 -> 5000 | EW17: =SA!HI12-SA!GW12 -> 4600 | EX17: =SA!HJ12-SA!GX12 -> 5400 | EY17: =SA!HK12-SA!GY12 -> -186900 | EZ17: =SA!HL12-SA!GZ12 -> -186300 | FA17: =SA!HM12-SA!HA12 -> -186200 | FB17: 5580 | FC17: 0 | FE17: Non-Durable Goods | FF17: -13100 | FG17: -2950 | FH17: -1700 | FI17: 425 | FJ17: 1300 | FK17: 1850 | FL17: 2525 | FM17: 3800 | FN17: 3839.668113
A18: Trade, Transportation, and Utilities | B18: =SA!BN13-SA!BB13 -> 2600 | C18: =SA!BO13-SA!BC13 -> 3900 | D18: =SA!BP13-SA!BD13 -> 4300 | E18: =SA!BQ13-SA!BE13 -> 6200 | F18: =SA!BR13-SA!BF13 -> 4100 | G18: =SA!BS13-SA!BG13 -> 1200 | H18: =SA!BT13-SA!BH13 -> 1900 | I18: =SA!BU13-SA!BI13 -> 3100 | J18: =SA!BV13-SA!BJ13 -> 4200 | K18: =SA!BW13-SA!BK13 -> 6400 | L18: =SA!BX13-SA!BL13 -> 6100 | M18: =SA!BY13-SA!BM13 -> 7700 | N18: =SA!BZ13-SA!BN13 -> 3800 | O18: =SA!CA13-SA!BO13 -> 3800 | P18: =SA!CB13-SA!BP13 -> 3600 | Q18: =SA!CC13-SA!BQ13 -> 1800 | R18: =SA!CD13-SA!BR13 -> 1400 | S18: =SA!CE13-SA!BS13 -> 4000 | T18: =SA!CF13-SA!BT13 -> 600 | U18: =SA!CG13-SA!BU13 -> 0 | V18: =SA!CH13-SA!BV13 -> 300 | W18: =SA!CI13-SA!BW13 -> -2100 | X18: =SA!CJ13-SA!BX13 -> -600 | Y18: =SA!CK13-SA!BY13 -> -400 | Z18: =SA!CL13-SA!BZ13 -> 5100 | AA18: =SA!CM13-SA!CA13 -> 4000 | AB18: =SA!CN13-SA!CB13 -> 3800 | AC18: =SA!CO13-SA!CC13 -> 1400 | AD18: =SA!CP13-SA!CD13 -> 4500 | AE18: =SA!CQ13-SA!CE13 -> 4100 | AF18: =SA!CR13-SA!CF13 -> 4300 | AG18: =SA!CS13-SA!CG13 -> 2100 | AH18: =SA!CT13-SA!CH13 -> 1500 | AI18: =SA!CU13-SA!CI13 -> 700 | AJ18: =SA!CV13-SA!CJ13 -> -700 | AK18: =SA!CW13-SA!CK13 -> -2100 | AL18: =SA!CX13-SA!CL13 -> -1400 | AM18: =SA!CY13-SA!CM13 -> -2600 | AN18: =SA!CZ13-SA!CN13 -> -3200 | AO18: =SA!DA13-SA!CO13 -> -1600 | AP18: =SA!DB13-SA!CP13 -> -5300 | AQ18: =SA!DC13-SA!CQ13 -> -7200 | AR18: =SA!DD13-SA!CR13 -> -6300 | AS18: =SA!DE13-SA!CS13 -> -5600 | AT18: =SA!DF13-SA!CT13 -> -7900 | AU18: =SA!DG13-SA!CU13 -> -9700 | AV18: =SA!DH13-SA!CV13 -> -12600 | AW18: =SA!DI13-SA!CW13 -> -14500 | AX18: =SA!DJ13-SA!CX13 -> -19500 | AY18: =SA!DK13-SA!CY13 -> -20400 | AZ18: =SA!DL13-SA!CZ13 -> -23300 | BA18: =SA!DM13-SA!DA13 -> -26200 | BB18: =SA!DN13-SA!DB13 -> -23700 | BC18: =SA!DO13-SA!DC13 -> -23000 | BD18: =SA!DP13-SA!DD13 -> -25600 | BE18: =SA!DQ13-SA!DE13 -> -25900 | BF18: =SA!DR13-SA!DF13 -> -24900 | BG18: =SA!DS13-SA!DG13 -> -23500 | BH18: =SA!DT13-SA!DH13 -> -22600 | BI18: =SA!DU13-SA!DI13 -> -22300 | BJ18: =SA!DV13-SA!DJ13 -> -19100 | BK18: =SA!DW13-SA!DK13 -> -17500 | BL18: =SA!DX13-SA!DL13 -> -13800 | BM18: =SA!DY13-SA!DM13 -> -10700 | BN18: =SA!DZ13-SA!DN13 -> -11600 | BO18: =SA!EA13-SA!DO13 -> -11100 | BP18: =SA!EB13-SA!DP13 -> -7700 | BQ18: =SA!EC13-SA!DQ13 -> -6900 | BR18: =SA!ED13-SA!DR13 -> -5900 | BS18: =SA!EE13-SA!DS13 -> -2000 | BT18: =SA!EF13-SA!DT13 -> -1600 | BU18: =SA!EG13-SA!DU13 -> 400 | BV18: =SA!EH13-SA!DV13 -> 600 | BW18: =SA!EI13-SA!DW13 -> 1100 | BX18: =SA!EJ13-SA!DX13 -> 1200 | BY18: =SA!EK13-SA!DY13 -> 3100 | BZ18: =SA!EL13-SA!DZ13 -> 1000 | CA18: =SA!EM13-SA!EA13 -> 900 | CB18: =SA!EN13-SA!EB13 -> 2700 | CC18: =SA!EO13-SA!EC13 -> 3500 | CD18: =SA!EP13-SA!ED13 -> 5200 | CE18: =SA!EQ13-SA!EE13 -> 2100 | CF18: =SA!ER13-SA!EF13 -> 3800 | CG18: =SA!ES13-SA!EG13 -> 3400 | CH18: =SA!ET13-SA!EH13 -> 3700 | CI18: =SA!EU13-SA!EI13 -> 3200 | CJ18: =SA!EV13-SA!EJ13 -> 2900 | CK18: =SA!EW13-SA!EK13 -> 400 | CL18: =SA!EX13-SA!EL13 -> 2300 | CM18: =SA!EY13-SA!EM13 -> 3000 | CN18: =SA!EZ13-SA!EN13 -> -500 | CO18: =SA!FA13-SA!EO13 -> -500 | CP18: =SA!FB13-SA!EP13 -> -500 | CQ18: =SA!FC13-SA!EQ13 -> 800 | CR18: =SA!FD13-SA!ER13 -> 1700 | CS18: =SA!FE13-SA!ES13 -> 1800 | CT18: =SA!FF13-SA!ET13 -> 2100 | CU18: =SA!FG13-SA!EU13 -> 3800 | CV18: =SA!FH13-SA!EV13 -> 3500 | CW18: =SA!FI13-SA!EW13 -> 5100 | CX18: =SA!FJ13-SA!EX13 -> 5900 | CY18: =SA!FK13-SA!EY13 -> 5900 | CZ18: =SA!FL13-SA!EZ13 -> 7100 | DA18: =SA!FM13-SA!FA13 -> 7500 | DB18: =SA!FN13-SA!FB13 -> 6300 | DC18: =SA!FO13-SA!FC13 -> 5800 | DD18: =SA!FP13-SA!FD13 -> 4400 | DE18: =SA!FQ13-SA!FE13 -> 6400 | DF18: =SA!FR13-SA!FF13 -> 6300 | DG18: =SA!FS13-SA!FG13 -> 6100 | DH18: =SA!FT13-SA!FH13 -> 7500 | DI18: =SA!FU13-SA!FI13 -> 8800 | DJ18: =SA!FV13-SA!FJ13 -> 7300 | DK18: =SA!FW13-SA!FK13 -> 7300 | DL18: =SA!FX13-SA!FL13 -> 7400 | DM18: =SA!FY13-SA!FM13 -> 6500 | DN18: =SA!FZ13-SA!FN13 -> 6600 | DO18: =SA!GA13-SA!FO13 -> 5900 | DP18: =SA!GB13-SA!FP13 -> 8200 | DQ18: =SA!GC13-SA!FQ13 -> 5800 | DR18: =SA!GD13-SA!FR13 -> 6000 | DS18: =SA!GE13-SA!FS13 -> 4900 | DT18: =SA!GF13-SA!FT13 -> 5300 | DU18: =SA!GG13-SA!FU13 -> 2500 | DV18: =SA!GH13-SA!FV13 -> 5000 | DW18: =SA!GI13-SA!FW13 -> 5700 | DX18: =SA!GJ13-SA!FX13 -> 8400 | DY18: =SA!GK13-SA!FY13 -> 9600 | DZ18: =SA!GL13-SA!FZ13 -> 10500 | EA18: =SA!GM13-SA!GA13 -> 11100 | EB18: =SA!GN13-SA!GB13 -> 8600 | EC18: =SA!GO13-SA!GC13 -> 7600 | ED18: =SA!GP13-SA!GD13 -> 11100 | EE18: =SA!GQ13-SA!GE13 -> 12700 | EF18: =SA!GR13-SA!GF13 -> 11200 | EG18: =SA!GS13-SA!GG13 -> 13200 | EH18: =SA!GT13-SA!GH13 -> 10400 | EI18: =SA!GU13-SA!GI13 -> 9400 | EJ18: =SA!GV13-SA!GJ13 -> 8200 | EK18: =SA!GW13-SA!GK13 -> 6900 | EL18: =SA!GX13-SA!GL13 -> 6100 | EM18: =SA!GY13-SA!GM13 -> 2400 | EN18: =SA!GZ13-SA!GN13 -> 2500 | EO18: =SA!HA13-SA!GO13 -> 1900 | EP18: =SA!HB13-SA!GP13 -> 3600 | EQ18: =SA!HC13-SA!GQ13 -> 4500 | ER18: =SA!HD13-SA!GR13 -> 3900 | ES18: =SA!HE13-SA!GS13 -> 2200 | ET18: =SA!HF13-SA!GT13 -> 4000 | EU18: =SA!HG13-SA!GU13 -> 4300 | EV18: =SA!HH13-SA!GV13 -> 0 | EW18: =SA!HI13-SA!GW13 -> -500 | EX18: =SA!HJ13-SA!GX13 -> 4700 | EY18: =SA!HK13-SA!GY13 -> -538200 | EZ18: =SA!HL13-SA!GZ13 -> -537900 | FA18: =SA!HM13-SA!HA13 -> -535800 | FB18: 14279 | FC18: 0 | FE18: Trade, Transportation, and Utilities | FF18: -26200 | FG18: -8350 | FH18: -200 | FI18: 2100 | FJ18: 3475 | FK18: 5100 | FL18: 7150 | FM18: 13200 | FN18: 9089.481201
A19: Wholesale Trade | B19: =SA!BN14-SA!BB14 -> 2800 | C19: =SA!BO14-SA!BC14 -> 2900 | D19: =SA!BP14-SA!BD14 -> 2500 | E19: =SA!BQ14-SA!BE14 -> 4000 | F19: =SA!BR14-SA!BF14 -> 4200 | G19: =SA!BS14-SA!BG14 -> 4000 | H19: =SA!BT14-SA!BH14 -> 3300 | I19: =SA!BU14-SA!BI14 -> 2600 | J19: =SA!BV14-SA!BJ14 -> 3500 | K19: =SA!BW14-SA!BK14 -> 3200 | L19: =SA!BX14-SA!BL14 -> 3100 | M19: =SA!BY14-SA!BM14 -> 3300 | N19: =SA!BZ14-SA!BN14 -> 3500 | O19: =SA!CA14-SA!BO14 -> 3600 | P19: =SA!CB14-SA!BP14 -> 4000 | Q19: =SA!CC14-SA!BQ14 -> 3000 | R19: =SA!CD14-SA!BR14 -> 2700 | S19: =SA!CE14-SA!BS14 -> 3200 | T19: =SA!CF14-SA!BT14 -> 3000 | U19: =SA!CG14-SA!BU14 -> 2900 | V19: =SA!CH14-SA!BV14 -> 2800 | W19: =SA!CI14-SA!BW14 -> 2500 | X19: =SA!CJ14-SA!BX14 -> 2200 | Y19: =SA!CK14-SA!BY14 -> 2000 | Z19: =SA!CL14-SA!BZ14 -> 1600 | AA19: =SA!CM14-SA!CA14 -> 1600 | AB19: =SA!CN14-SA!CB14 -> 1300 | AC19: =SA!CO14-SA!CC14 -> 1300 | AD19: =SA!CP14-SA!CD14 -> 1500 | AE19: =SA!CQ14-SA!CE14 -> 1400 | AF19: =SA!CR14-SA!CF14 -> 1400 | AG19: =SA!CS14-SA!CG14 -> 1100 | AH19: =SA!CT14-SA!CH14 -> 900 | AI19: =SA!CU14-SA!CI14 -> 900 | AJ19: =SA!CV14-SA!CJ14 -> 1100 | AK19: =SA!CW14-SA!CK14 -> 1000 | AL19: =SA!CX14-SA!CL14 -> 1100 | AM19: =SA!CY14-SA!CM14 -> 700 | AN19: =SA!CZ14-SA!CN14 -> 900 | AO19: =SA!DA14-SA!CO14 -> 800 | AP19: =SA!DB14-SA!CP14 -> 700 | AQ19: =SA!DC14-SA!CQ14 -> 200 | AR19: =SA!DD14-SA!CR14 -> -100 | AS19: =SA!DE14-SA!CS14 -> 100 | AT19: =SA!DF14-SA!CT14 -> -700 | AU19: =SA!DG14-SA!CU14 -> -1500 | AV19: =SA!DH14-SA!CV14 -> -1900 | AW19: =SA!DI14-SA!CW14 -> -2800 | AX19: =SA!DJ14-SA!CX14 -> -3300 | AY19: =SA!DK14-SA!CY14 -> -3900 | AZ19: =SA!DL14-SA!CZ14 -> -4800 | BA19: =SA!DM14-SA!DA14 -> -6700 | BB19: =SA!DN14-SA!DB14 -> -6800 | BC19: =SA!DO14-SA!DC14 -> -7300 | BD19: =SA!DP14-SA!DD14 -> -7900 | BE19: =SA!DQ14-SA!DE14 -> -8400 | BF19: =SA!DR14-SA!DF14 -> -8000 | BG19: =SA!DS14-SA!DG14 -> -7100 | BH19: =SA!DT14-SA!DH14 -> -7400 | BI19: =SA!DU14-SA!DI14 -> -6900 | BJ19: =SA!DV14-SA!DJ14 -> -6900 | BK19: =SA!DW14-SA!DK14 -> -6400 | BL19: =SA!DX14-SA!DL14 -> -5600 | BM19: =SA!DY14-SA!DM14 -> -3500 | BN19: =SA!DZ14-SA!DN14 -> -3600 | BO19: =SA!EA14-SA!DO14 -> -3200 | BP19: =SA!EB14-SA!DP14 -> -1700 | BQ19: =SA!EC14-SA!DQ14 -> -900 | BR19: =SA!ED14-SA!DR14 -> -1100 | BS19: =SA!EE14-SA!DS14 -> -300 | BT19: =SA!EF14-SA!DT14 -> 200 | BU19: =SA!EG14-SA!DU14 -> 600 | BV19: =SA!EH14-SA!DV14 -> 1100 | BW19: =SA!EI14-SA!DW14 -> 1500 | BX19: =SA!EJ14-SA!DX14 -> 1600 | BY19: =SA!EK14-SA!DY14 -> 1800 | BZ19: =SA!EL14-SA!DZ14 -> 2000 | CA19: =SA!EM14-SA!EA14 -> 2200 | CB19: =SA!EN14-SA!EB14 -> 2600 | CC19: =SA!EO14-SA!EC14 -> 2400 | CD19: =SA!EP14-SA!ED14 -> 3200 | CE19: =SA!EQ14-SA!EE14 -> 2500 | CF19: =SA!ER14-SA!EF14 -> 2600 | CG19: =SA!ES14-SA!EG14 -> 2700 | CH19: =SA!ET14-SA!EH14 -> 2900 | CI19: =SA!EU14-SA!EI14 -> 2800 | CJ19: =SA!EV14-SA!EJ14 -> 3200 | CK19: =SA!EW14-SA!EK14 -> 2800 | CL19: =SA!EX14-SA!EL14 -> 2400 | CM19: =SA!EY14-SA!EM14 -> 2600 | CN19: =SA!EZ14-SA!EN14 -> 1200 | CO19: =SA!FA14-SA!EO14 -> 1100 | CP19: =SA!FB14-SA!EP14 -> 1100 | CQ19: =SA!FC14-SA!EQ14 -> 1000 | CR19: =SA!FD14-SA!ER14 -> 1100 | CS19: =SA!FE14-SA!ES14 -> 1100 | CT19: =SA!FF14-SA!ET14 -> 2200 | CU19: =SA!FG14-SA!EU14 -> 2200 | CV19: =SA!FH14-SA!EV14 -> 1600 | CW19: =SA!FI14-SA!EW14 -> 1600 | CX19: =SA!FJ14-SA!EX14 -> 2100 | CY19: =SA!FK14-SA!EY14 -> 1900 | CZ19: =SA!FL14-SA!EZ14 -> 2200 | DA19: =SA!FM14-SA!FA14 -> 2400 | DB19: =SA!FN14-SA!FB14 -> 2200 | DC19: =SA!FO14-SA!FC14 -> 2100 | DD19: =SA!FP14-SA!FD14 -> 2000 | DE19: =SA!FQ14-SA!FE14 -> 1900 | DF19: =SA!FR14-SA!FF14 -> 500 | DG19: =SA!FS14-SA!FG14 -> 600 | DH19: =SA!FT14-SA!FH14 -> 1200 | DI19: =SA!FU14-SA!FI14 -> 1200 | DJ19: =SA!FV14-SA!FJ14 -> 1000 | DK19: =SA!FW14-SA!FK14 -> 1300 | DL19: =SA!FX14-SA!FL14 -> 1400 | DM19: =SA!FY14-SA!FM14 -> 1600 | DN19: =SA!FZ14-SA!FN14 -> 1400 | DO19: =SA!GA14-SA!FO14 -> 1200 | DP19: =SA!GB14-SA!FP14 -> 1300 | DQ19: =SA!GC14-SA!FQ14 -> 1400 | DR19: =SA!GD14-SA!FR14 -> 2000 | DS19: =SA!GE14-SA!FS14 -> 1700 | DT19: =SA!GF14-SA!FT14 -> 1400 | DU19: =SA!GG14-SA!FU14 -> 1700 | DV19: =SA!GH14-SA!FV14 -> 2300 | DW19: =SA!GI14-SA!FW14 -> 2200 | DX19: =SA!GJ14-SA!FX14 -> 2400 | DY19: =SA!GK14-SA!FY14 -> 2200 | DZ19: =SA!GL14-SA!FZ14 -> 2200 | EA19: =SA!GM14-SA!GA14 -> 3000 | EB19: =SA!GN14-SA!GB14 -> 3000 | EC19: =SA!GO14-SA!GC14 -> 2900 | ED19: =SA!GP14-SA!GD14 -> 2500 | EE19: =SA!GQ14-SA!GE14 -> 2700 | EF19: =SA!GR14-SA!GF14 -> 2600 | EG19: =SA!GS14-SA!GG14 -> 2300 | EH19: =SA!GT14-SA!GH14 -> 1600 | EI19: =SA!GU14-SA!GI14 -> 1300 | EJ19: =SA!GV14-SA!GJ14 -> 1600 | EK19: =SA!GW14-SA!GK14 -> 1500 | EL19: =SA!GX14-SA!GL14 -> 1900 | EM19: =SA!GY14-SA!GM14 -> 1100 | EN19: =SA!GZ14-SA!GN14 -> 700 | EO19: =SA!HA14-SA!GO14 -> 0 | EP19: =SA!HB14-SA!GP14 -> 1600 | EQ19: =SA!HC14-SA!GQ14 -> 1800 | ER19: =SA!HD14-SA!GR14 -> 3500 | ES19: =SA!HE14-SA!GS14 -> 4900 | ET19: =SA!HF14-SA!GT14 -> 4400 | EU19: =SA!HG14-SA!GU14 -> 4600 | EV19: =SA!HH14-SA!GV14 -> 1800 | EW19: =SA!HI14-SA!GW14 -> 2800 | EX19: =SA!HJ14-SA!GX14 -> 4500 | EY19: =SA!HK14-SA!GY14 -> -124200 | EZ19: =SA!HL14-SA!GZ14 -> -124000 | FA19: =SA!HM14-SA!HA14 -> -123400 | FB19: 5006 | FC19: 0 | FE19: Wholesale Trade | FF19: -8400 | FG19: -1550 | FH19: 1000 | FI19: 1400 | FJ19: 1675 | FK19: 2300 | FL19: 2900 | FM19: 4200 | FN19: 2866.865757
A20: Retail Trade | B20: =SA!BN15-SA!BB15 -> -2600 | C20: =SA!BO15-SA!BC15 -> -1300 | D20: =SA!BP15-SA!BD15 -> -700 | E20: =SA!BQ15-SA!BE15 -> -300 | F20: =SA!BR15-SA!BF15 -> -1800 | G20: =SA!BS15-SA!BG15 -> -4100 | H20: =SA!BT15-SA!BH15 -> -2600 | I20: =SA!BU15-SA!BI15 -> -1000 | J20: =SA!BV15-SA!BJ15 -> -1000 | K20: =SA!BW15-SA!BK15 -> 3200 | L20: =SA!BX15-SA!BL15 -> 2500 | M20: =SA!BY15-SA!BM15 -> 3300 | N20: =SA!BZ15-SA!BN15 -> -1400 | O20: =SA!CA15-SA!BO15 -> -1700 | P20: =SA!CB15-SA!BP15 -> -2000 | Q20: =SA!CC15-SA!BQ15 -> -2500 | R20: =SA!CD15-SA!BR15 -> -2800 | S20: =SA!CE15-SA!BS15 -> -1100 | T20: =SA!CF15-SA!BT15 -> -3500 | U20: =SA!CG15-SA!BU15 -> -4000 | V20: =SA!CH15-SA!BV15 -> -3900 | W20: =SA!CI15-SA!BW15 -> -6400 | X20: =SA!CJ15-SA!BX15 -> -3900 | Y20: =SA!CK15-SA!BY15 -> -3800 | Z20: =SA!CL15-SA!BZ15 -> 2900 | AA20: =SA!CM15-SA!CA15 -> 1900 | AB20: =SA!CN15-SA!CB15 -> 2200 | AC20: =SA!CO15-SA!CC15 -> 0 | AD20: =SA!CP15-SA!CD15 -> 2400 | AE20: =SA!CQ15-SA!CE15 -> 1700 | AF20: =SA!CR15-SA!CF15 -> 2900 | AG20: =SA!CS15-SA!CG15 -> 600 | AH20: =SA!CT15-SA!CH15 -> 600 | AI20: =SA!CU15-SA!CI15 -> -600 | AJ20: =SA!CV15-SA!CJ15 -> -2600 | AK20: =SA!CW15-SA!CK15 -> -3200 | AL20: =SA!CX15-SA!CL15 -> -3000 | AM20: =SA!CY15-SA!CM15 -> -3400 | AN20: =SA!CZ15-SA!CN15 -> -3900 | AO20: =SA!DA15-SA!CO15 -> -2000 | AP20: =SA!DB15-SA!CP15 -> -4700 | AQ20: =SA!DC15-SA!CQ15 -> -4800 | AR20: =SA!DD15-SA!CR15 -> -4800 | AS20: =SA!DE15-SA!CS15 -> -3400 | AT20: =SA!DF15-SA!CT15 -> -4300 | AU20: =SA!DG15-SA!CU15 -> -5000 | AV20: =SA!DH15-SA!CV15 -> -6900 | AW20: =SA!DI15-SA!CW15 -> -7500 | AX20: =SA!DJ15-SA!CX15 -> -10900 | AY20: =SA!DK15-SA!CY15 -> -11000 | AZ20: =SA!DL15-SA!CZ15 -> -12700 | BA20: =SA!DM15-SA!DA15 -> -14200 | BB20: =SA!DN15-SA!DB15 -> -12600 | BC20: =SA!DO15-SA!DC15 -> -12100 | BD20: =SA!DP15-SA!DD15 -> -13300 | BE20: =SA!DQ15-SA!DE15 -> -13500 | BF20: =SA!DR15-SA!DF15 -> -13200 | BG20: =SA!DS15-SA!DG15 -> -12300 | BH20: =SA!DT15-SA!DH15 -> -10900 | BI20: =SA!DU15-SA!DI15 -> -11200 | BJ20: =SA!DV15-SA!DJ15 -> -8900 | BK20: =SA!DW15-SA!DK15 -> -8500 | BL20: =SA!DX15-SA!DL15 -> -6200 | BM20: =SA!DY15-SA!DM15 -> -5400 | BN20: =SA!DZ15-SA!DN15 -> -5300 | BO20: =SA!EA15-SA!DO15 -> -5300 | BP20: =SA!EB15-SA!DP15 -> -4400 | BQ20: =SA!EC15-SA!DQ15 -> -3700 | BR20: =SA!ED15-SA!DR15 -> -2700 | BS20: =SA!EE15-SA!DS15 -> -500 | BT20: =SA!EF15-SA!DT15 -> -800 | BU20: =SA!EG15-SA!DU15 -> 400 | BV20: =SA!EH15-SA!DV15 -> 200 | BW20: =SA!EI15-SA!DW15 -> 800 | BX20: =SA!EJ15-SA!DX15 -> 800 | BY20: =SA!EK15-SA!DY15 -> 2900 | BZ20: =SA!EL15-SA!DZ15 -> 500 | CA20: =SA!EM15-SA!EA15 -> 500 | CB20: =SA!EN15-SA!EB15 -> 1700 | CC20: =SA!EO15-SA!EC15 -> 2100 | CD20: =SA!EP15-SA!ED15 -> 2700 | CE20: =SA!EQ15-SA!EE15 -> 800 | CF20: =SA!ER15-SA!EF15 -> 2100 | CG20: =SA!ES15-SA!EG15 -> 1700 | CH20: =SA!ET15-SA!EH15 -> 1800 | CI20: =SA!EU15-SA!EI15 -> 1200 | CJ20: =SA!EV15-SA!EJ15 -> 700 | CK20: =SA!EW15-SA!EK15 -> -1200 | CL20: =SA!EX15-SA!EL15 -> 200 | CM20: =SA!EY15-SA!EM15 -> 500 | CN20: =SA!EZ15-SA!EN15 -> -1500 | CO20: =SA!FA15-SA!EO15 -> -1100 | CP20: =SA!FB15-SA!EP15 -> -1300 | CQ20: =SA!FC15-SA!EQ15 -> 0 | CR20: =SA!FD15-SA!ER15 -> 1000 | CS20: =SA!FE15-SA!ES15 -> 900 | CT20: =SA!FF15-SA!ET15 -> 100 | CU20: =SA!FG15-SA!EU15 -> 1600 | CV20: =SA!FH15-SA!EV15 -> 1400 | CW20: =SA!FI15-SA!EW15 -> 2900 | CX20: =SA!FJ15-SA!EX15 -> 4000 | CY20: =SA!FK15-SA!EY15 -> 4800 | CZ20: =SA!FL15-SA!EZ15 -> 5600 | DA20: =SA!FM15-SA!FA15 -> 5200 | DB20: =SA!FN15-SA!FB15 -> 4800 | DC20: =SA!FO15-SA!FC15 -> 4100 | DD20: =SA!FP15-SA!FD15 -> 2500 | DE20: =SA!FQ15-SA!FE15 -> 4800 | DF20: =SA!FR15-SA!FF15 -> 5600 | DG20: =SA!FS15-SA!FG15 -> 5000 | DH20: =SA!FT15-SA!FH15 -> 6000 | DI20: =SA!FU15-SA!FI15 -> 6400 | DJ20: =SA!FV15-SA!FJ15 -> 5200 | DK20: =SA!FW15-SA!FK15 -> 4400 | DL20: =SA!FX15-SA!FL15 -> 4600 | DM20: =SA!FY15-SA!FM15 -> 3800 | DN20: =SA!FZ15-SA!FN15 -> 3600 | DO20: =SA!GA15-SA!FO15 -> 3100 | DP20: =SA!GB15-SA!FP15 -> 4500 | DQ20: =SA!GC15-SA!FQ15 -> 1700 | DR20: =SA!GD15-SA!FR15 -> 2000 | DS20: =SA!GE15-SA!FS15 -> 1600 | DT20: =SA!GF15-SA!FT15 -> 1900 | DU20: =SA!GG15-SA!FU15 -> -400 | DV20: =SA!GH15-SA!FV15 -> 900 | DW20: =SA!GI15-SA!FW15 -> 1100 | DX20: =SA!GJ15-SA!FX15 -> 1700 | DY20: =SA!GK15-SA!FY15 -> 2700 | DZ20: =SA!GL15-SA!FZ15 -> 3600 | EA20: =SA!GM15-SA!GA15 -> 3500 | EB20: =SA!GN15-SA!GB15 -> 1800 | EC20: =SA!GO15-SA!GC15 -> 700 | ED20: =SA!GP15-SA!GD15 -> 4600 | EE20: =SA!GQ15-SA!GE15 -> 5800 | EF20: =SA!GR15-SA!GF15 -> 5000 | EG20: =SA!GS15-SA!GG15 -> 7000 | EH20: =SA!GT15-SA!GH15 -> 5200 | EI20: =SA!GU15-SA!GI15 -> 4900 | EJ20: =SA!GV15-SA!GJ15 -> 5000 | EK20: =SA!GW15-SA!GK15 -> 4200 | EL20: =SA!GX15-SA!GL15 -> 3300 | EM20: =SA!GY15-SA!GM15 -> 500 | EN20: =SA!GZ15-SA!GN15 -> 1000 | EO20: =SA!HA15-SA!GO15 -> 1200 | EP20: =SA!HB15-SA!GP15 -> 1600 | EQ20: =SA!HC15-SA!GQ15 -> 2500 | ER20: =SA!HD15-SA!GR15 -> 600 | ES20: =SA!HE15-SA!GS15 -> -2600 | ET20: =SA!HF15-SA!GT15 -> -400 | EU20: =SA!HG15-SA!GU15 -> 300 | EV20: =SA!HH15-SA!GV15 -> -1900 | EW20: =SA!HI15-SA!GW15 -> -2800 | EX20: =SA!HJ15-SA!GX15 -> -2200 | EY20: =SA!HK15-SA!GY15 -> -306900 | EZ20: =SA!HL15-SA!GZ15 -> -306700 | FA20: =SA!HM15-SA!HA15 -> -304900 | FB20: 9684 | FC20: 0 | FE20: Retail Trade | FF20: -14200 | FG20: -5075 | FH20: -2600 | FI20: 0 | FJ20: 800 | FK20: 2050 | FL20: 4125 | FM20: 7000 | FN20: 4840.438384
A21: Transportation, Warehousing, and Utilities | B21: =SA!BN16-SA!BB16 -> 2400 | C21: =SA!BO16-SA!BC16 -> 2300 | D21: =SA!BP16-SA!BD16 -> 2500 | E21: =SA!BQ16-SA!BE16 -> 2500 | F21: =SA!BR16-SA!BF16 -> 1700 | G21: =SA!BS16-SA!BG16 -> 1300 | H21: =SA!BT16-SA!BH16 -> 1200 | I21: =SA!BU16-SA!BI16 -> 1500 | J21: =SA!BV16-SA!BJ16 -> 1700 | K21: =SA!BW16-SA!BK16 -> 0 | L21: =SA!BX16-SA!BL16 -> 500 | M21: =SA!BY16-SA!BM16 -> 1100 | N21: =SA!BZ16-SA!BN16 -> 1700 | O21: =SA!CA16-SA!BO16 -> 1900 | P21: =SA!CB16-SA!BP16 -> 1600 | Q21: =SA!CC16-SA!BQ16 -> 1300 | R21: =SA!CD16-SA!BR16 -> 1500 | S21: =SA!CE16-SA!BS16 -> 1900 | T21: =SA!CF16-SA!BT16 -> 1100 | U21: =SA!CG16-SA!BU16 -> 1100 | V21: =SA!CH16-SA!BV16 -> 1400 | W21: =SA!CI16-SA!BW16 -> 1800 | X21: =SA!CJ16-SA!BX16 -> 1100 | Y21: =SA!CK16-SA!BY16 -> 1400 | Z21: =SA!CL16-SA!BZ16 -> 600 | AA21: =SA!CM16-SA!CA16 -> 500 | AB21: =SA!CN16-SA!CB16 -> 300 | AC21: =SA!CO16-SA!CC16 -> 100 | AD21: =SA!CP16-SA!CD16 -> 600 | AE21: =SA!CQ16-SA!CE16 -> 1000 | AF21: =SA!CR16-SA!CF16 -> 0 | AG21: =SA!CS16-SA!CG16 -> 400 | AH21: =SA!CT16-SA!CH16 -> 0 | AI21: =SA!CU16-SA!CI16 -> 400 | AJ21: =SA!CV16-SA!CJ16 -> 800 | AK21: =SA!CW16-SA!CK16 -> 100 | AL21: =SA!CX16-SA!CL16 -> 500 | AM21: =SA!CY16-SA!CM16 -> 100 | AN21: =SA!CZ16-SA!CN16 -> -200 | AO21: =SA!DA16-SA!CO16 -> -400 | AP21: =SA!DB16-SA!CP16 -> -1300 | AQ21: =SA!DC16-SA!CQ16 -> -2600 | AR21: =SA!DD16-SA!CR16 -> -1400 | AS21: =SA!DE16-SA!CS16 -> -2300 | AT21: =SA!DF16-SA!CT16 -> -2900 | AU21: =SA!DG16-SA!CU16 -> -3200 | AV21: =SA!DH16-SA!CV16 -> -3800 | AW21: =SA!DI16-SA!CW16 -> -4200 | AX21: =SA!DJ16-SA!CX16 -> -5300 | AY21: =SA!DK16-SA!CY16 -> -5500 | AZ21: =SA!DL16-SA!CZ16 -> -5800 | BA21: =SA!DM16-SA!DA16 -> -5300 | BB21: =SA!DN16-SA!DB16 -> -4300 | BC21: =SA!DO16-SA!DC16 -> -3600 | BD21: =SA!DP16-SA!DD16 -> -4400 | BE21: =SA!DQ16-SA!DE16 -> -4000 | BF21: =SA!DR16-SA!DF16 -> -3700 | BG21: =SA!DS16-SA!DG16 -> -4100 | BH21: =SA!DT16-SA!DH16 -> -4300 | BI21: =SA!DU16-SA!DI16 -> -4200 | BJ21: =SA!DV16-SA!DJ16 -> -3300 | BK21: =SA!DW16-SA!DK16 -> -2600 | BL21: =SA!DX16-SA!DL16 -> -2000 | BM21: =SA!DY16-SA!DM16 -> -1800 | BN21: =SA!DZ16-SA!DN16 -> -2700 | BO21: =SA!EA16-SA!DO16 -> -2600 | BP21: =SA!EB16-SA!DP16 -> -1600 | BQ21: =SA!EC16-SA!DQ16 -> -2300 | BR21: =SA!ED16-SA!DR16 -> -2100 | BS21: =SA!EE16-SA!DS16 -> -1200 | BT21: =SA!EF16-SA!DT16 -> -1000 | BU21: =SA!EG16-SA!DU16 -> -600 | BV21: =SA!EH16-SA!DV16 -> -700 | BW21: =SA!EI16-SA!DW16 -> -1200 | BX21: =SA!EJ16-SA!DX16 -> -1200 | BY21: =SA!EK16-SA!DY16 -> -1600 | BZ21: =SA!EL16-SA!DZ16 -> -1500 | CA21: =SA!EM16-SA!EA16 -> -1800 | CB21: =SA!EN16-SA!EB16 -> -1600 | CC21: =SA!EO16-SA!EC16 -> -1000 | CD21: =SA!EP16-SA!ED16 -> -700 | CE21: =SA!EQ16-SA!EE16 -> -1200 | CF21: =SA!ER16-SA!EF16 -> -900 | CG21: =SA!ES16-SA!EG16 -> -1000 | CH21: =SA!ET16-SA!EH16 -> -1000 | CI21: =SA!EU16-SA!EI16 -> -800 | CJ21: =SA!EV16-SA!EJ16 -> -1000 | CK21: =SA!EW16-SA!EK16 -> -1200 | CL21: =SA!EX16-SA!EL16 -> -300 | CM21: =SA!EY16-SA!EM16 -> -100 | CN21: =SA!EZ16-SA!EN16 -> -200 | CO21: =SA!FA16-SA!EO16 -> -500 | CP21: =SA!FB16-SA!EP16 -> -300 | CQ21: =SA!FC16-SA!EQ16 -> -200 | CR21: =SA!FD16-SA!ER16 -> -400 | CS21: =SA!FE16-SA!ES16 -> -200 | CT21: =SA!FF16-SA!ET16 -> -200 | CU21: =SA!FG16-SA!EU16 -> 0 | CV21: =SA!FH16-SA!EV16 -> 500 | CW21: =SA!FI16-SA!EW16 -> 600 | CX21: =SA!FJ16-SA!EX16 -> -200 | CY21: =SA!FK16-SA!EY16 -> -800 | CZ21: =SA!FL16-SA!EZ16 -> -700 | DA21: =SA!FM16-SA!FA16 -> -100 | DB21: =SA!FN16-SA!FB16 -> -700 | DC21: =SA!FO16-SA!FC16 -> -400 | DD21: =SA!FP16-SA!FD16 -> -100 | DE21: =SA!FQ16-SA!FE16 -> -300 | DF21: =SA!FR16-SA!FF16 -> 200 | DG21: =SA!FS16-SA!FG16 -> 500 | DH21: =SA!FT16-SA!FH16 -> 300 | DI21: =SA!FU16-SA!FI16 -> 1200 | DJ21: =SA!FV16-SA!FJ16 -> 1100 | DK21: =SA!FW16-SA!FK16 -> 1600 | DL21: =SA!FX16-SA!FL16 -> 1400 | DM21: =SA!FY16-SA!FM16 -> 1100 | DN21: =SA!FZ16-SA!FN16 -> 1600 | DO21: =SA!GA16-SA!FO16 -> 1600 | DP21: =SA!GB16-SA!FP16 -> 2400 | DQ21: =SA!GC16-SA!FQ16 -> 2700 | DR21: =SA!GD16-SA!FR16 -> 2000 | DS21: =SA!GE16-SA!FS16 -> 1600 | DT21: =SA!GF16-SA!FT16 -> 2000 | DU21: =SA!GG16-SA!FU16 -> 1200 | DV21: =SA!GH16-SA!FV16 -> 1800 | DW21: =SA!GI16-SA!FW16 -> 2400 | DX21: =SA!GJ16-SA!FX16 -> 4300 | DY21: =SA!GK16-SA!FY16 -> 4700 | DZ21: =SA!GL16-SA!FZ16 -> 4700 | EA21: =SA!GM16-SA!GA16 -> 4600 | EB21: =SA!GN16-SA!GB16 -> 3800 | EC21: =SA!GO16-SA!GC16 -> 4000 | ED21: =SA!GP16-SA!GD16 -> 4000 | EE21: =SA!GQ16-SA!GE16 -> 4200 | EF21: =SA!GR16-SA!GF16 -> 3600 | EG21: =SA!GS16-SA!GG16 -> 3900 | EH21: =SA!GT16-SA!GH16 -> 3600 | EI21: =SA!GU16-SA!GI16 -> 3200 | EJ21: =SA!GV16-SA!GJ16 -> 1600 | EK21: =SA!GW16-SA!GK16 -> 1200 | EL21: =SA!GX16-SA!GL16 -> 900 | EM21: =SA!GY16-SA!GM16 -> 800 | EN21: =SA!GZ16-SA!GN16 -> 800 | EO21: =SA!HA16-SA!GO16 -> 700 | EP21: =SA!HB16-SA!GP16 -> 400 | EQ21: =SA!HC16-SA!GQ16 -> 200 | ER21: =SA!HD16-SA!GR16 -> -200 | ES21: =SA!HE16-SA!GS16 -> -100 | ET21: =SA!HF16-SA!GT16 -> 0 | EU21: =SA!HG16-SA!GU16 -> -600 | EV21: =SA!HH16-SA!GV16 -> 100 | EW21: =SA!HI16-SA!GW16 -> -500 | EX21: =SA!HJ16-SA!GX16 -> 2400 | EY21: =SA!HK16-SA!GY16 -> -107100 | EZ21: =SA!HL16-SA!GZ16 -> -107200 | FA21: =SA!HM16-SA!HA16 -> -107500 | FB21: 9222 | FC21: 0 | FE21: Transportation, Warehousing, and Utilities | FF21: -5800 | FG21: -2375 | FH21: -950 | FI21: -100 | FJ21: 475 | FK21: 1200 | FL21: 1925 | FM21: 4700 | FN21: 2237.463359
A22: Information | B22: =SA!BN17-SA!BB17 -> -700 | C22: =SA!BO17-SA!BC17 -> -400 | D22: =SA!BP17-SA!BD17 -> -600 | E22: =SA!BQ17-SA!BE17 -> 0 | F22: =SA!BR17-SA!BF17 -> 100 | G22: =SA!BS17-SA!BG17 -> 300 | H22: =SA!BT17-SA!BH17 -> -400 | I22: =SA!BU17-SA!BI17 -> -300 | J22: =SA!BV17-SA!BJ17 -> -100 | K22: =SA!BW17-SA!BK17 -> -100 | L22: =SA!BX17-SA!BL17 -> 0 | M22: =SA!BY17-SA!BM17 -> 100 | N22: =SA!BZ17-SA!BN17 -> 0 | O22: =SA!CA17-SA!BO17 -> -100 | P22: =SA!CB17-SA!BP17 -> -100 | Q22: =SA!CC17-SA!BQ17 -> -800 | R22: =SA!CD17-SA!BR17 -> -800 | S22: =SA!CE17-SA!BS17 -> -1000 | T22: =SA!CF17-SA!BT17 -> -600 | U22: =SA!CG17-SA!BU17 -> -600 | V22: =SA!CH17-SA!BV17 -> -700 | W22: =SA!CI17-SA!BW17 -> -300 | X22: =SA!CJ17-SA!BX17 -> -200 | Y22: =SA!CK17-SA!BY17 -> -100 | Z22: =SA!CL17-SA!BZ17 -> 200 | AA22: =SA!CM17-SA!CA17 -> 200 | AB22: =SA!CN17-SA!CB17 -> 300 | AC22: =SA!CO17-SA!CC17 -> 800 | AD22: =SA!CP17-SA!CD17 -> 1000 | AE22: =SA!CQ17-SA!CE17 -> 1300 | AF22: =SA!CR17-SA!CF17 -> 1400 | AG22: =SA!CS17-SA!CG17 -> 1400 | AH22: =SA!CT17-SA!CH17 -> 1400 | AI22: =SA!CU17-SA!CI17 -> 1200 | AJ22: =SA!CV17-SA!CJ17 -> 1000 | AK22: =SA!CW17-SA!CK17 -> 900 | AL22: =SA!CX17-SA!CL17 -> 500 | AM22: =SA!CY17-SA!CM17 -> 500 | AN22: =SA!CZ17-SA!CN17 -> 500 | AO22: =SA!DA17-SA!CO17 -> 500 | AP22: =SA!DB17-SA!CP17 -> 1100 | AQ22: =SA!DC17-SA!CQ17 -> 400 | AR22: =SA!DD17-SA!CR17 -> -200 | AS22: =SA!DE17-SA!CS17 -> -400 | AT22: =SA!DF17-SA!CT17 -> -600 | AU22: =SA!DG17-SA!CU17 -> -800 | AV22: =SA!DH17-SA!CV17 -> -1000 | AW22: =SA!DI17-SA!CW17 -> -1100 | AX22: =SA!DJ17-SA!CX17 -> -1100 | AY22: =SA!DK17-SA!CY17 -> -1000 | AZ22: =SA!DL17-SA!CZ17 -> -1500 | BA22: =SA!DM17-SA!DA17 -> -2200 | BB22: =SA!DN17-SA!DB17 -> -2800 | BC22: =SA!DO17-SA!DC17 -> -2500 | BD22: =SA!DP17-SA!DD17 -> -2500 | BE22: =SA!DQ17-SA!DE17 -> -2500 | BF22: =SA!DR17-SA!DF17 -> -2400 | BG22: =SA!DS17-SA!DG17 -> -2800 | BH22: =SA!DT17-SA!DH17 -> -2400 | BI22: =SA!DU17-SA!DI17 -> -2200 | BJ22: =SA!DV17-SA!DJ17 -> -2400 | BK22: =SA!DW17-SA!DK17 -> -2800 | BL22: =SA!DX17-SA!DL17 -> -2200 | BM22: =SA!DY17-SA!DM17 -> -1900 | BN22: =SA!DZ17-SA!DN17 -> -1900 | BO22: =SA!EA17-SA!DO17 -> -1500 | BP22: =SA!EB17-SA!DP17 -> -1100 | BQ22: =SA!EC17-SA!DQ17 -> -800 | BR22: =SA!ED17-SA!DR17 -> -700 | BS22: =SA!EE17-SA!DS17 -> -400 | BT22: =SA!EF17-SA!DT17 -> -100 | BU22: =SA!EG17-SA!DU17 -> -200 | BV22: =SA!EH17-SA!DV17 -> 100 | BW22: =SA!EI17-SA!DW17 -> 500 | BX22: =SA!EJ17-SA!DX17 -> 300 | BY22: =SA!EK17-SA!DY17 -> 700 | BZ22: =SA!EL17-SA!DZ17 -> 400 | CA22: =SA!EM17-SA!EA17 -> -200 | CB22: =SA!EN17-SA!EB17 -> 100 | CC22: =SA!EO17-SA!EC17 -> -100 | CD22: =SA!EP17-SA!ED17 -> 0 | CE22: =SA!EQ17-SA!EE17 -> 200 | CF22: =SA!ER17-SA!EF17 -> -200 | CG22: =SA!ES17-SA!EG17 -> -300 | CH22: =SA!ET17-SA!EH17 -> -500 | CI22: =SA!EU17-SA!EI17 -> -600 | CJ22: =SA!EV17-SA!EJ17 -> -600 | CK22: =SA!EW17-SA!EK17 -> -700 | CL22: =SA!EX17-SA!EL17 -> -600 | CM22: =SA!EY17-SA!EM17 -> 100 | CN22: =SA!EZ17-SA!EN17 -> -400 | CO22: =SA!FA17-SA!EO17 -> -200 | CP22: =SA!FB17-SA!EP17 -> -200 | CQ22: =SA!FC17-SA!EQ17 -> -100 | CR22: =SA!FD17-SA!ER17 -> 0 | CS22: =SA!FE17-SA!ES17 -> -100 | CT22: =SA!FF17-SA!ET17 -> 500 | CU22: =SA!FG17-SA!EU17 -> 700 | CV22: =SA!FH17-SA!EV17 -> 800 | CW22: =SA!FI17-SA!EW17 -> 800 | CX22: =SA!FJ17-SA!EX17 -> 900 | CY22: =SA!FK17-SA!EY17 -> 700 | CZ22: =SA!FL17-SA!EZ17 -> 900 | DA22: =SA!FM17-SA!FA17 -> 800 | DB22: =SA!FN17-SA!FB17 -> 700 | DC22: =SA!FO17-SA!FC17 -> 700 | DD22: =SA!FP17-SA!FD17 -> 700 | DE22: =SA!FQ17-SA!FE17 -> 1000 | DF22: =SA!FR17-SA!FF17 -> 600 | DG22: =SA!FS17-SA!FG17 -> 500 | DH22: =SA!FT17-SA!FH17 -> 600 | DI22: =SA!FU17-SA!FI17 -> 400 | DJ22: =SA!FV17-SA!FJ17 -> 400 | DK22: =SA!FW17-SA!FK17 -> 500 | DL22: =SA!FX17-SA!FL17 -> 700 | DM22: =SA!FY17-SA!FM17 -> 800 | DN22: =SA!FZ17-SA!FN17 -> 600 | DO22: =SA!GA17-SA!FO17 -> 1000 | DP22: =SA!GB17-SA!FP17 -> 900 | DQ22: =SA!GC17-SA!FQ17 -> 900 | DR22: =SA!GD17-SA!FR17 -> 1100 | DS22: =SA!GE17-SA!FS17 -> 800 | DT22: =SA!GF17-SA!FT17 -> 700 | DU22: =SA!GG17-SA!FU17 -> 1000 | DV22: =SA!GH17-SA!FV17 -> 1100 | DW22: =SA!GI17-SA!FW17 -> 800 | DX22: =SA!GJ17-SA!FX17 -> 1000 | DY22: =SA!GK17-SA!FY17 -> 1100 | DZ22: =SA!GL17-SA!FZ17 -> 1400 | EA22: =SA!GM17-SA!GA17 -> 1100 | EB22: =SA!GN17-SA!GB17 -> 1100 | EC22: =SA!GO17-SA!GC17 -> 900 | ED22: =SA!GP17-SA!GD17 -> 700 | EE22: =SA!GQ17-SA!GE17 -> 1000 | EF22: =SA!GR17-SA!GF17 -> 1100 | EG22: =SA!GS17-SA!GG17 -> 1000 | EH22: =SA!GT17-SA!GH17 -> 600 | EI22: =SA!GU17-SA!GI17 -> 600 | EJ22: =SA!GV17-SA!GJ17 -> 100 | EK22: =SA!GW17-SA!GK17 -> -300 | EL22: =SA!GX17-SA!GL17 -> -500 | EM22: =SA!GY17-SA!GM17 -> -1300 | EN22: =SA!GZ17-SA!GN17 -> -1700 | EO22: =SA!HA17-SA!GO17 -> -1600 | EP22: =SA!HB17-SA!GP17 -> -1500 | EQ22: =SA!HC17-SA!GQ17 -> -1200 | ER22: =SA!HD17-SA!GR17 -> -1600 | ES22: =SA!HE17-SA!GS17 -> -1700 | ET22: =SA!HF17-SA!GT17 -> -2300 | EU22: =SA!HG17-SA!GU17 -> -2400 | EV22: =SA!HH17-SA!GV17 -> -2700 | EW22: =SA!HI17-SA!GW17 -> -2900 | EX22: =SA!HJ17-SA!GX17 -> -2700 | EY22: =SA!HK17-SA!GY17 -> -48100 | EZ22: =SA!HL17-SA!GZ17 -> -47700 | FA22: =SA!HM17-SA!HA17 -> -47700 | FB22: 2744 | FC22: 0 | FE22: Information | FF22: -2800 | FG22: -1100 | FH22: -400 | FI22: -100 | FJ22: 200 | FK22: 650 | FL22: 925 | FM22: 1400 | FN22: 1032.995156
A23: Financial Activities | B23: =SA!BN18-SA!BB18 -> 1300 | C23: =SA!BO18-SA!BC18 -> 1100 | D23: =SA!BP18-SA!BD18 -> 1300 | E23: =SA!BQ18-SA!BE18 -> 900 | F23: =SA!BR18-SA!BF18 -> 900 | G23: =SA!BS18-SA!BG18 -> 800 | H23: =SA!BT18-SA!BH18 -> 700 | I23: =SA!BU18-SA!BI18 -> 600 | J23: =SA!BV18-SA!BJ18 -> 1400 | K23: =SA!BW18-SA!BK18 -> 700 | L23: =SA!BX18-SA!BL18 -> 700 | M23: =SA!BY18-SA!BM18 -> 500 | N23: =SA!BZ18-SA!BN18 -> 1000 | O23: =SA!CA18-SA!BO18 -> 1300 | P23: =SA!CB18-SA!BP18 -> 1000 | Q23: =SA!CC18-SA!BQ18 -> 1800 | R23: =SA!CD18-SA!BR18 -> 2100 | S23: =SA!CE18-SA!BS18 -> 1900 | T23: =SA!CF18-SA!BT18 -> 2200 | U23: =SA!CG18-SA!BU18 -> 1900 | V23: =SA!CH18-SA!BV18 -> 2100 | W23: =SA!CI18-SA!BW18 -> 2100 | X23: =SA!CJ18-SA!BX18 -> 2000 | Y23: =SA!CK18-SA!BY18 -> 2300 | Z23: =SA!CL18-SA!BZ18 -> 2300 | AA23: =SA!CM18-SA!CA18 -> 2400 | AB23: =SA!CN18-SA!CB18 -> 2000 | AC23: =SA!CO18-SA!CC18 -> 1400 | AD23: =SA!CP18-SA!CD18 -> 700 | AE23: =SA!CQ18-SA!CE18 -> 1200 | AF23: =SA!CR18-SA!CF18 -> 200 | AG23: =SA!CS18-SA!CG18 -> 0 | AH23: =SA!CT18-SA!CH18 -> -100 | AI23: =SA!CU18-SA!CI18 -> 1100 | AJ23: =SA!CV18-SA!CJ18 -> 1000 | AK23: =SA!CW18-SA!CK18 -> 1000 | AL23: =SA!CX18-SA!CL18 -> 1000 | AM23: =SA!CY18-SA!CM18 -> 1500 | AN23: =SA!CZ18-SA!CN18 -> 1500 | AO23: =SA!DA18-SA!CO18 -> 1500 | AP23: =SA!DB18-SA!CP18 -> 2300 | AQ23: =SA!DC18-SA!CQ18 -> 1400 | AR23: =SA!DD18-SA!CR18 -> 2000 | AS23: =SA!DE18-SA!CS18 -> 2100 | AT23: =SA!DF18-SA!CT18 -> 1200 | AU23: =SA!DG18-SA!CU18 -> -400 | AV23: =SA!DH18-SA!CV18 -> -500 | AW23: =SA!DI18-SA!CW18 -> -1000 | AX23: =SA!DJ18-SA!CX18 -> -900 | AY23: =SA!DK18-SA!CY18 -> -2100 | AZ23: =SA!DL18-SA!CZ18 -> -2300 | BA23: =SA!DM18-SA!DA18 -> -2400 | BB23: =SA!DN18-SA!DB18 -> -3100 | BC23: =SA!DO18-SA!DC18 -> -3000 | BD23: =SA!DP18-SA!DD18 -> -3800 | BE23: =SA!DQ18-SA!DE18 -> -3600 | BF23: =SA!DR18-SA!DF18 -> -3700 | BG23: =SA!DS18-SA!DG18 -> -3500 | BH23: =SA!DT18-SA!DH18 -> -3600 | BI23: =SA!DU18-SA!DI18 -> -3800 | BJ23: =SA!DV18-SA!DJ18 -> -4200 | BK23: =SA!DW18-SA!DK18 -> -3900 | BL23: =SA!DX18-SA!DL18 -> -3300 | BM23: =SA!DY18-SA!DM18 -> -3800 | BN23: =SA!DZ18-SA!DN18 -> -3900 | BO23: =SA!EA18-SA!DO18 -> -3700 | BP23: =SA!EB18-SA!DP18 -> -3200 | BQ23: =SA!EC18-SA!DQ18 -> -3600 | BR23: =SA!ED18-SA!DR18 -> -2900 | BS23: =SA!EE18-SA!DS18 -> -2500 | BT23: =SA!EF18-SA!DT18 -> -2200 | BU23: =SA!EG18-SA!DU18 -> -2200 | BV23: =SA!EH18-SA!DV18 -> -2100 | BW23: =SA!EI18-SA!DW18 -> -1800 | BX23: =SA!EJ18-SA!DX18 -> -2000 | BY23: =SA!EK18-SA!DY18 -> -1600 | BZ23: =SA!EL18-SA!DZ18 -> -1500 | CA23: =SA!EM18-SA!EA18 -> -1600 | CB23: =SA!EN18-SA!EB18 -> -1200 | CC23: =SA!EO18-SA!EC18 -> -1200 | CD23: =SA!EP18-SA!ED18 -> -900 | CE23: =SA!EQ18-SA!EE18 -> -1100 | CF23: =SA!ER18-SA!EF18 -> -1000 | CG23: =SA!ES18-SA!EG18 -> -600 | CH23: =SA!ET18-SA!EH18 -> 0 | CI23: =SA!EU18-SA!EI18 -> -100 | CJ23: =SA!EV18-SA!EJ18 -> 0 | CK23: =SA!EW18-SA!EK18 -> 0 | CL23: =SA!EX18-SA!EL18 -> 300 | CM23: =SA!EY18-SA!EM18 -> 400 | CN23: =SA!EZ18-SA!EN18 -> 100 | CO23: =SA!FA18-SA!EO18 -> 500 | CP23: =SA!FB18-SA!EP18 -> 200 | CQ23: =SA!FC18-SA!EQ18 -> 100 | CR23: =SA!FD18-SA!ER18 -> 0 | CS23: =SA!FE18-SA!ES18 -> -100 | CT23: =SA!FF18-SA!ET18 -> -600 | CU23: =SA!FG18-SA!EU18 -> -500 | CV23: =SA!FH18-SA!EV18 -> -400 | CW23: =SA!FI18-SA!EW18 -> -600 | CX23: =SA!FJ18-SA!EX18 -> -600 | CY23: =SA!FK18-SA!EY18 -> -400 | CZ23: =SA!FL18-SA!EZ18 -> -100 | DA23: =SA!FM18-SA!FA18 -> -200 | DB23: =SA!FN18-SA!FB18 -> -200 | DC23: =SA!FO18-SA!FC18 -> -400 | DD23: =SA!FP18-SA!FD18 -> -400 | DE23: =SA!FQ18-SA!FE18 -> -400 | DF23: =SA!FR18-SA!FF18 -> -1600 | DG23: =SA!FS18-SA!FG18 -> -1200 | DH23: =SA!FT18-SA!FH18 -> -1200 | DI23: =SA!FU18-SA!FI18 -> -500 | DJ23: =SA!FV18-SA!FJ18 -> -500 | DK23: =SA!FW18-SA!FK18 -> -400 | DL23: =SA!FX18-SA!FL18 -> -700 | DM23: =SA!FY18-SA!FM18 -> -200 | DN23: =SA!FZ18-SA!FN18 -> 200 | DO23: =SA!GA18-SA!FO18 -> 200 | DP23: =SA!GB18-SA!FP18 -> 200 | DQ23: =SA!GC18-SA!FQ18 -> 500 | DR23: =SA!GD18-SA!FR18 -> 1800 | DS23: =SA!GE18-SA!FS18 -> 1700 | DT23: =SA!GF18-SA!FT18 -> 1600 | DU23: =SA!GG18-SA!FU18 -> 1100 | DV23: =SA!GH18-SA!FV18 -> 1400 | DW23: =SA!GI18-SA!FW18 -> 1200 | DX23: =SA!GJ18-SA!FX18 -> 1400 | DY23: =SA!GK18-SA!FY18 -> 600 | DZ23: =SA!GL18-SA!FZ18 -> 400 | EA23: =SA!GM18-SA!GA18 -> 1000 | EB23: =SA!GN18-SA!GB18 -> 1000 | EC23: =SA!GO18-SA!GC18 -> 700 | ED23: =SA!GP18-SA!GD18 -> 400 | EE23: =SA!GQ18-SA!GE18 -> 400 | EF23: =SA!GR18-SA!GF18 -> 300 | EG23: =SA!GS18-SA!GG18 -> 500 | EH23: =SA!GT18-SA!GH18 -> 200 | EI23: =SA!GU18-SA!GI18 -> 100 | EJ23: =SA!GV18-SA!GJ18 -> 600 | EK23: =SA!GW18-SA!GK18 -> 900 | EL23: =SA!GX18-SA!GL18 -> 600 | EM23: =SA!GY18-SA!GM18 -> 300 | EN23: =SA!GZ18-SA!GN18 -> 100 | EO23: =SA!HA18-SA!GO18 -> 800 | EP23: =SA!HB18-SA!GP18 -> 2800 | EQ23: =SA!HC18-SA!GQ18 -> 1800 | ER23: =SA!HD18-SA!GR18 -> 2300 | ES23: =SA!HE18-SA!GS18 -> 2300 | ET23: =SA!HF18-SA!GT18 -> 1300 | EU23: =SA!HG18-SA!GU18 -> 800 | EV23: =SA!HH18-SA!GV18 -> -300 | EW23: =SA!HI18-SA!GW18 -> 900 | EX23: =SA!HJ18-SA!GX18 -> 1500 | EY23: =SA!HK18-SA!GY18 -> -151800 | EZ23: =SA!HL18-SA!GZ18 -> -151600 | FA23: =SA!HM18-SA!HA18 -> -152200 | FB23: 5141 | FC23: 0 | FE23: Financial Activities | FF23: -4200 | FG23: -2200 | FH23: -600 | FI23: 0 | FJ23: 300 | FK23: 900 | FL23: 1425 | FM23: 2400 | FN23: 1674.540285
A24: Real Estate and Rental and Leasing | B24: =SA!BN19-SA!BB19 -> 700 | C24: =SA!BO19-SA!BC19 -> 500 | D24: =SA!BP19-SA!BD19 -> 600 | E24: =SA!BQ19-SA!BE19 -> 600 | F24: =SA!BR19-SA!BF19 -> 400 | G24: =SA!BS19-SA!BG19 -> 400 | H24: =SA!BT19-SA!BH19 -> 300 | I24: =SA!BU19-SA!BI19 -> 100 | J24: =SA!BV19-SA!BJ19 -> 300 | K24: =SA!BW19-SA!BK19 -> 100 | L24: =SA!BX19-SA!BL19 -> 200 | M24: =SA!BY19-SA!BM19 -> 400 | N24: =SA!BZ19-SA!BN19 -> 200 | O24: =SA!CA19-SA!BO19 -> 300 | P24: =SA!CB19-SA!BP19 -> 100 | Q24: =SA!CC19-SA!BQ19 -> 100 | R24: =SA!CD19-SA!BR19 -> 200 | S24: =SA!CE19-SA!BS19 -> 400 | T24: =SA!CF19-SA!BT19 -> 300 | U24: =SA!CG19-SA!BU19 -> 300 | V24: =SA!CH19-SA!BV19 -> 100 | W24: =SA!CI19-SA!BW19 -> 200 | X24: =SA!CJ19-SA!BX19 -> 100 | Y24: =SA!CK19-SA!BY19 -> 0 | Z24: =SA!CL19-SA!BZ19 -> 0 | AA24: =SA!CM19-SA!CA19 -> 100 | AB24: =SA!CN19-SA!CB19 -> 100 | AC24: =SA!CO19-SA!CC19 -> 0 | AD24: =SA!CP19-SA!CD19 -> 0 | AE24: =SA!CQ19-SA!CE19 -> -100 | AF24: =SA!CR19-SA!CF19 -> -400 | AG24: =SA!CS19-SA!CG19 -> -300 | AH24: =SA!CT19-SA!CH19 -> -300 | AI24: =SA!CU19-SA!CI19 -> -100 | AJ24: =SA!CV19-SA!CJ19 -> -300 | AK24: =SA!CW19-SA!CK19 -> -300 | AL24: =SA!CX19-SA!CL19 -> -500 | AM24: =SA!CY19-SA!CM19 -> -400 | AN24: =SA!CZ19-SA!CN19 -> -500 | AO24: =SA!DA19-SA!CO19 -> -600 | AP24: =SA!DB19-SA!CP19 -> -700 | AQ24: =SA!DC19-SA!CQ19 -> -800 | AR24: =SA!DD19-SA!CR19 -> -800 | AS24: =SA!DE19-SA!CS19 -> -900 | AT24: =SA!DF19-SA!CT19 -> -1100 | AU24: =SA!DG19-SA!CU19 -> -1100 | AV24: =SA!DH19-SA!CV19 -> -1000 | AW24: =SA!DI19-SA!CW19 -> -1100 | AX24: =SA!DJ19-SA!CX19 -> -1400 | AY24: =SA!DK19-SA!CY19 -> -1700 | AZ24: =SA!DL19-SA!CZ19 -> -1800 | BA24: =SA!DM19-SA!DA19 -> -2000 | BB24: =SA!DN19-SA!DB19 -> -1800 | BC24: =SA!DO19-SA!DC19 -> -1700 | BD24: =SA!DP19-SA!DD19 -> -1800 | BE24: =SA!DQ19-SA!DE19 -> -1600 | BF24: =SA!DR19-SA!DF19 -> -1500 | BG24: =SA!DS19-SA!DG19 -> -1700 | BH24: =SA!DT19-SA!DH19 -> -1800 | BI24: =SA!DU19-SA!DI19 -> -1700 | BJ24: =SA!DV19-SA!DJ19 -> -1000 | BK24: =SA!DW19-SA!DK19 -> -900 | BL24: =SA!DX19-SA!DL19 -> -800 | BM24: =SA!DY19-SA!DM19 -> -700 | BN24: =SA!DZ19-SA!DN19 -> -900 | BO24: =SA!EA19-SA!DO19 -> -1100 | BP24: =SA!EB19-SA!DP19 -> -900 | BQ24: =SA!EC19-SA!DQ19 -> -1000 | BR24: =SA!ED19-SA!DR19 -> -1000 | BS24: =SA!EE19-SA!DS19 -> -700 | BT24: =SA!EF19-SA!DT19 -> -600 | BU24: =SA!EG19-SA!DU19 -> -600 | BV24: =SA!EH19-SA!DV19 -> -900 | BW24: =SA!EI19-SA!DW19 -> -800 | BX24: =SA!EJ19-SA!DX19 -> -600 | BY24: =SA!EK19-SA!DY19 -> -400 | BZ24: =SA!EL19-SA!DZ19 -> -600 | CA24: =SA!EM19-SA!EA19 -> -300 | CB24: =SA!EN19-SA!EB19 -> -400 | CC24: =SA!EO19-SA!EC19 -> -400 | CD24: =SA!EP19-SA!ED19 -> -200 | CE24: =SA!EQ19-SA!EE19 -> -500 | CF24: =SA!ER19-SA!EF19 -> -400 | CG24: =SA!ES19-SA!EG19 -> -400 | CH24: =SA!ET19-SA!EH19 -> -200 | CI24: =SA!EU19-SA!EI19 -> -300 | CJ24: =SA!EV19-SA!EJ19 -> -400 | CK24: =SA!EW19-SA!EK19 -> -400 | CL24: =SA!EX19-SA!EL19 -> 0 | CM24: =SA!EY19-SA!EM19 -> -100 | CN24: =SA!EZ19-SA!EN19 -> 100 | CO24: =SA!FA19-SA!EO19 -> 100 | CP24: =SA!FB19-SA!EP19 -> -100 | CQ24: =SA!FC19-SA!EQ19 -> 100 | CR24: =SA!FD19-SA!ER19 -> 0 | CS24: =SA!FE19-SA!ES19 -> 100 | CT24: =SA!FF19-SA!ET19 -> 100 | CU24: =SA!FG19-SA!EU19 -> 200 | CV24: =SA!FH19-SA!EV19 -> 300 | CW24: =SA!FI19-SA!EW19 -> 200 | CX24: =SA!FJ19-SA!EX19 -> 300 | CY24: =SA!FK19-SA!EY19 -> 200 | CZ24: =SA!FL19-SA!EZ19 -> 200 | DA24: =SA!FM19-SA!FA19 -> 200 | DB24: =SA!FN19-SA!FB19 -> 400 | DC24: =SA!FO19-SA!FC19 -> 100 | DD24: =SA!FP19-SA!FD19 -> 300 | DE24: =SA!FQ19-SA!FE19 -> 100 | DF24: =SA!FR19-SA!FF19 -> -100 | DG24: =SA!FS19-SA!FG19 -> 0 | DH24: =SA!FT19-SA!FH19 -> 0 | DI24: =SA!FU19-SA!FI19 -> 100 | DJ24: =SA!FV19-SA!FJ19 -> -100 | DK24: =SA!FW19-SA!FK19 -> 100 | DL24: =SA!FX19-SA!FL19 -> -100 | DM24: =SA!FY19-SA!FM19 -> 0 | DN24: =SA!FZ19-SA!FN19 -> 0 | DO24: =SA!GA19-SA!FO19 -> 100 | DP24: =SA!GB19-SA!FP19 -> 0 | DQ24: =SA!GC19-SA!FQ19 -> 100 | DR24: =SA!GD19-SA!FR19 -> 200 | DS24: =SA!GE19-SA!FS19 -> 200 | DT24: =SA!GF19-SA!FT19 -> 200 | DU24: =SA!GG19-SA!FU19 -> 100 | DV24: =SA!GH19-SA!FV19 -> 400 | DW24: =SA!GI19-SA!FW19 -> 400 | DX24: =SA!GJ19-SA!FX19 -> 700 | DY24: =SA!GK19-SA!FY19 -> 700 | DZ24: =SA!GL19-SA!FZ19 -> 700 | EA24: =SA!GM19-SA!GA19 -> 900 | EB24: =SA!GN19-SA!GB19 -> 1000 | EC24: =SA!GO19-SA!GC19 -> 1000 | ED24: =SA!GP19-SA!GD19 -> 700 | EE24: =SA!GQ19-SA!GE19 -> 900 | EF24: =SA!GR19-SA!GF19 -> 700 | EG24: =SA!GS19-SA!GG19 -> 900 | EH24: =SA!GT19-SA!GH19 -> 600 | EI24: =SA!GU19-SA!GI19 -> 500 | EJ24: =SA!GV19-SA!GJ19 -> 200 | EK24: =SA!GW19-SA!GK19 -> 300 | EL24: =SA!GX19-SA!GL19 -> 200 | EM24: =SA!GY19-SA!GM19 -> 100 | EN24: =SA!GZ19-SA!GN19 -> 0 | EO24: =SA!HA19-SA!GO19 -> -200 | EP24: =SA!HB19-SA!GP19 -> 700 | EQ24: =SA!HC19-SA!GQ19 -> 400 | ER24: =SA!HD19-SA!GR19 -> 600 | ES24: =SA!HE19-SA!GS19 -> 600 | ET24: =SA!HF19-SA!GT19 -> 500 | EU24: =SA!HG19-SA!GU19 -> 400 | EV24: =SA!HH19-SA!GV19 -> 500 | EW24: =SA!HI19-SA!GW19 -> 500 | EX24: =SA!HJ19-SA!GX19 -> 700 | EY24: =SA!HK19-SA!GY19 -> -25400 | EZ24: =SA!HL19-SA!GZ19 -> -25400 | FA24: =SA!HM19-SA!HA19 -> -25200 | FB24: 1943 | FC24: 0 | FE24: Real Estate and Rental and Leasing | FF24: -2000 | FG24: -900 | FH24: -400 | FI24: -75 | FJ24: 100 | FK24: 200 | FL24: 400 | FM24: 1000 | FN24: 662.5553203
A25: Professional and Business Services | B25: =SA!BN20-SA!BB20 -> 9800 | C25: =SA!BO20-SA!BC20 -> 10400 | D25: =SA!BP20-SA!BD20 -> 11600 | E25: =SA!BQ20-SA!BE20 -> 13100 | F25: =SA!BR20-SA!BF20 -> 10700 | G25: =SA!BS20-SA!BG20 -> 8600 | H25: =SA!BT20-SA!BH20 -> 11000 | I25: =SA!BU20-SA!BI20 -> 8600 | J25: =SA!BV20-SA!BJ20 -> 11600 | K25: =SA!BW20-SA!BK20 -> 7200 | L25: =SA!BX20-SA!BL20 -> 9000 | M25: =SA!BY20-SA!BM20 -> 9800 | N25: =SA!BZ20-SA!BN20 -> 7600 | O25: =SA!CA20-SA!BO20 -> 8400 | P25: =SA!CB20-SA!BP20 -> 7300 | Q25: =SA!CC20-SA!BQ20 -> 9200 | R25: =SA!CD20-SA!BR20 -> 9500 | S25: =SA!CE20-SA!BS20 -> 10100 | T25: =SA!CF20-SA!BT20 -> 7100 | U25: =SA!CG20-SA!BU20 -> 6200 | V25: =SA!CH20-SA!BV20 -> 6600 | W25: =SA!CI20-SA!BW20 -> 9200 | X25: =SA!CJ20-SA!BX20 -> 7700 | Y25: =SA!CK20-SA!BY20 -> 5600 | Z25: =SA!CL20-SA!BZ20 -> 8200 | AA25: =SA!CM20-SA!CA20 -> 7100 | AB25: =SA!CN20-SA!CB20 -> 8100 | AC25: =SA!CO20-SA!CC20 -> 6400 | AD25: =SA!CP20-SA!CD20 -> 7900 | AE25: =SA!CQ20-SA!CE20 -> 9000 | AF25: =SA!CR20-SA!CF20 -> 9000 | AG25: =SA!CS20-SA!CG20 -> 9500 | AH25: =SA!CT20-SA!CH20 -> 8300 | AI25: =SA!CU20-SA!CI20 -> 6900 | AJ25: =SA!CV20-SA!CJ20 -> 7600 | AK25: =SA!CW20-SA!CK20 -> 10100 | AL25: =SA!CX20-SA!CL20 -> 8600 | AM25: =SA!CY20-SA!CM20 -> 9300 | AN25: =SA!CZ20-SA!CN20 -> 6900 | AO25: =SA!DA20-SA!CO20 -> 4100 | AP25: =SA!DB20-SA!CP20 -> 3900 | AQ25: =SA!DC20-SA!CQ20 -> 2700 | AR25: =SA!DD20-SA!CR20 -> 2800 | AS25: =SA!DE20-SA!CS20 -> 3100 | AT25: =SA!DF20-SA!CT20 -> 1800 | AU25: =SA!DG20-SA!CU20 -> -1300 | AV25: =SA!DH20-SA!CV20 -> -5400 | AW25: =SA!DI20-SA!CW20 -> -8900 | AX25: =SA!DJ20-SA!CX20 -> -14800 | AY25: =SA!DK20-SA!CY20 -> -20600 | AZ25: =SA!DL20-SA!CZ20 -> -24200 | BA25: =SA!DM20-SA!DA20 -> -25800 | BB25: =SA!DN20-SA!DB20 -> -26100 | BC25: =SA!DO20-SA!DC20 -> -28300 | BD25: =SA!DP20-SA!DD20 -> -28200 | BE25: =SA!DQ20-SA!DE20 -> -29500 | BF25: =SA!DR20-SA!DF20 -> -27500 | BG25: =SA!DS20-SA!DG20 -> -21700 | BH25: =SA!DT20-SA!DH20 -> -16200 | BI25: =SA!DU20-SA!DI20 -> -13200 | BJ25: =SA!DV20-SA!DJ20 -> -7300 | BK25: =SA!DW20-SA!DK20 -> 500 | BL25: =SA!DX20-SA!DL20 -> 3900 | BM25: =SA!DY20-SA!DM20 -> 11800 | BN25: =SA!DZ20-SA!DN20 -> 12600 | BO25: =SA!EA20-SA!DO20 -> 14700 | BP25: =SA!EB20-SA!DP20 -> 17300 | BQ25: =SA!EC20-SA!DQ20 -> 20500 | BR25: =SA!ED20-SA!DR20 -> 20200 | BS25: =SA!EE20-SA!DS20 -> 21100 | BT25: =SA!EF20-SA!DT20 -> 20100 | BU25: =SA!EG20-SA!DU20 -> 21000 | BV25: =SA!EH20-SA!DV20 -> 21500 | BW25: =SA!EI20-SA!DW20 -> 18200 | BX25: =SA!EJ20-SA!DX20 -> 21500 | BY25: =SA!EK20-SA!DY20 -> 14600 | BZ25: =SA!EL20-SA!DZ20 -> 13500 | CA25: =SA!EM20-SA!EA20 -> 13900 | CB25: =SA!EN20-SA!EB20 -> 12900 | CC25: =SA!EO20-SA!EC20 -> 10500 | CD25: =SA!EP20-SA!ED20 -> 12200 | CE25: =SA!EQ20-SA!EE20 -> 8300 | CF25: =SA!ER20-SA!EF20 -> 7600 | CG25: =SA!ES20-SA!EG20 -> 5400 | CH25: =SA!ET20-SA!EH20 -> 5600 | CI25: =SA!EU20-SA!EI20 -> 6400 | CJ25: =SA!EV20-SA!EJ20 -> 7600 | CK25: =SA!EW20-SA!EK20 -> 9400 | CL25: =SA!EX20-SA!EL20 -> 8200 | CM25: =SA!EY20-SA!EM20 -> 8100 | CN25: =SA!EZ20-SA!EN20 -> 5600 | CO25: =SA!FA20-SA!EO20 -> 5200 | CP25: =SA!FB20-SA!EP20 -> 5000 | CQ25: =SA!FC20-SA!EQ20 -> 6200 | CR25: =SA!FD20-SA!ER20 -> 7400 | CS25: =SA!FE20-SA!ES20 -> 5400 | CT25: =SA!FF20-SA!ET20 -> 4900 | CU25: =SA!FG20-SA!EU20 -> 6800 | CV25: =SA!FH20-SA!EV20 -> 6600 | CW25: =SA!FI20-SA!EW20 -> 3100 | CX25: =SA!FJ20-SA!EX20 -> 6500 | CY25: =SA!FK20-SA!EY20 -> 7700 | CZ25: =SA!FL20-SA!EZ20 -> 9300 | DA25: =SA!FM20-SA!FA20 -> 10300 | DB25: =SA!FN20-SA!FB20 -> 8900 | DC25: =SA!FO20-SA!FC20 -> 7400 | DD25: =SA!FP20-SA!FD20 -> 7500 | DE25: =SA!FQ20-SA!FE20 -> 10200 | DF25: =SA!FR20-SA!FF20 -> 10000 | DG25: =SA!FS20-SA!FG20 -> 7600 | DH25: =SA!FT20-SA!FH20 -> 4200 | DI25: =SA!FU20-SA!FI20 -> 7600 | DJ25: =SA!FV20-SA!FJ20 -> 6600 | DK25: =SA!FW20-SA!FK20 -> 5200 | DL25: =SA!FX20-SA!FL20 -> 4300 | DM25: =SA!FY20-SA!FM20 -> 4800 | DN25: =SA!FZ20-SA!FN20 -> 4600 | DO25: =SA!GA20-SA!FO20 -> 7000 | DP25: =SA!GB20-SA!FP20 -> 6600 | DQ25: =SA!GC20-SA!FQ20 -> 3900 | DR25: =SA!GD20-SA!FR20 -> 4700 | DS25: =SA!GE20-SA!FS20 -> 4200 | DT25: =SA!GF20-SA!FT20 -> 5300 | DU25: =SA!GG20-SA!FU20 -> 6200 | DV25: =SA!GH20-SA!FV20 -> 6500 | DW25: =SA!GI20-SA!FW20 -> 6700 | DX25: =SA!GJ20-SA!FX20 -> 8600 | DY25: =SA!GK20-SA!FY20 -> 9000 | DZ25: =SA!GL20-SA!FZ20 -> 7900 | EA25: =SA!GM20-SA!GA20 -> 7200 | EB25: =SA!GN20-SA!GB20 -> 6300 | EC25: =SA!GO20-SA!GC20 -> 10100 | ED25: =SA!GP20-SA!GD20 -> 11800 | EE25: =SA!GQ20-SA!GE20 -> 12400 | EF25: =SA!GR20-SA!GF20 -> 11400 | EG25: =SA!GS20-SA!GG20 -> 10500 | EH25: =SA!GT20-SA!GH20 -> 8100 | EI25: =SA!GU20-SA!GI20 -> 6400 | EJ25: =SA!GV20-SA!GJ20 -> 6800 | EK25: =SA!GW20-SA!GK20 -> 4500 | EL25: =SA!GX20-SA!GL20 -> 6000 | EM25: =SA!GY20-SA!GM20 -> 4000 | EN25: =SA!GZ20-SA!GN20 -> 2800 | EO25: =SA!HA20-SA!GO20 -> 800 | EP25: =SA!HB20-SA!GP20 -> -800 | EQ25: =SA!HC20-SA!GQ20 -> 300 | ER25: =SA!HD20-SA!GR20 -> 3700 | ES25: =SA!HE20-SA!GS20 -> 1700 | ET25: =SA!HF20-SA!GT20 -> 5200 | EU25: =SA!HG20-SA!GU20 -> 1500 | EV25: =SA!HH20-SA!GV20 -> 2200 | EW25: =SA!HI20-SA!GW20 -> -700 | EX25: =SA!HJ20-SA!GX20 -> 600 | EY25: =SA!HK20-SA!GY20 -> -321100 | EZ25: =SA!HL20-SA!GZ20 -> -320700 | FA25: =SA!HM20-SA!HA20 -> -320300 | FB25: 12130 | FC25: 0 | FE25: Professional and Business Services | FF25: -29500 | FG25: 2800 | FH25: 5500 | FI25: 6925 | FJ25: 7600 | FK25: 9100 | FL25: 11600 | FM25: 21500 | FN25: 9898.207586
A26: Professional, Scientific, and Technical Services | B26: =SA!BN21-SA!BB21 -> 3100 | C26: =SA!BO21-SA!BC21 -> 3100 | D26: =SA!BP21-SA!BD21 -> 3200 | E26: =SA!BQ21-SA!BE21 -> 2800 | F26: =SA!BR21-SA!BF21 -> 2500 | G26: =SA!BS21-SA!BG21 -> 2700 | H26: =SA!BT21-SA!BH21 -> 3000 | I26: =SA!BU21-SA!BI21 -> 3200 | J26: =SA!BV21-SA!BJ21 -> 3600 | K26: =SA!BW21-SA!BK21 -> 3400 | L26: =SA!BX21-SA!BL21 -> 3300 | M26: =SA!BY21-SA!BM21 -> 3700 | N26: =SA!BZ21-SA!BN21 -> 3200 | O26: =SA!CA21-SA!BO21 -> 3200 | P26: =SA!CB21-SA!BP21 -> 3000 | Q26: =SA!CC21-SA!BQ21 -> 3900 | R26: =SA!CD21-SA!BR21 -> 3600 | S26: =SA!CE21-SA!BS21 -> 3600 | T26: =SA!CF21-SA!BT21 -> 3100 | U26: =SA!CG21-SA!BU21 -> 2700 | V26: =SA!CH21-SA!BV21 -> 2500 | W26: =SA!CI21-SA!BW21 -> 2600 | X26: =SA!CJ21-SA!BX21 -> 2300 | Y26: =SA!CK21-SA!BY21 -> 1700 | Z26: =SA!CL21-SA!BZ21 -> 2300 | AA26: =SA!CM21-SA!CA21 -> 2200 | AB26: =SA!CN21-SA!CB21 -> 2600 | AC26: =SA!CO21-SA!CC21 -> 2300 | AD26: =SA!CP21-SA!CD21 -> 2800 | AE26: =SA!CQ21-SA!CE21 -> 2800 | AF26: =SA!CR21-SA!CF21 -> 3000 | AG26: =SA!CS21-SA!CG21 -> 3200 | AH26: =SA!CT21-SA!CH21 -> 3200 | AI26: =SA!CU21-SA!CI21 -> 3000 | AJ26: =SA!CV21-SA!CJ21 -> 3200 | AK26: =SA!CW21-SA!CK21 -> 3400 | AL26: =SA!CX21-SA!CL21 -> 2900 | AM26: =SA!CY21-SA!CM21 -> 3100 | AN26: =SA!CZ21-SA!CN21 -> 2700 | AO26: =SA!DA21-SA!CO21 -> 3400 | AP26: =SA!DB21-SA!CP21 -> 2700 | AQ26: =SA!DC21-SA!CQ21 -> 2500 | AR26: =SA!DD21-SA!CR21 -> 2100 | AS26: =SA!DE21-SA!CS21 -> 2100 | AT26: =SA!DF21-SA!CT21 -> 2100 | AU26: =SA!DG21-SA!CU21 -> 1700 | AV26: =SA!DH21-SA!CV21 -> 1000 | AW26: =SA!DI21-SA!CW21 -> 600 | AX26: =SA!DJ21-SA!CX21 -> -400 | AY26: =SA!DK21-SA!CY21 -> -1400 | AZ26: =SA!DL21-SA!CZ21 -> -2300 | BA26: =SA!DM21-SA!DA21 -> -4800 | BB26: =SA!DN21-SA!DB21 -> -5600 | BC26: =SA!DO21-SA!DC21 -> -6100 | BD26: =SA!DP21-SA!DD21 -> -6900 | BE26: =SA!DQ21-SA!DE21 -> -7700 | BF26: =SA!DR21-SA!DF21 -> -8000 | BG26: =SA!DS21-SA!DG21 -> -7700 | BH26: =SA!DT21-SA!DH21 -> -6800 | BI26: =SA!DU21-SA!DI21 -> -7000 | BJ26: =SA!DV21-SA!DJ21 -> -6200 | BK26: =SA!DW21-SA!DK21 -> -5600 | BL26: =SA!DX21-SA!DL21 -> -4600 | BM26: =SA!DY21-SA!DM21 -> -3400 | BN26: =SA!DZ21-SA!DN21 -> -2200 | BO26: =SA!EA21-SA!DO21 -> -1800 | BP26: =SA!EB21-SA!DP21 -> -400 | BQ26: =SA!EC21-SA!DQ21 -> 300 | BR26: =SA!ED21-SA!DR21 -> 300 | BS26: =SA!EE21-SA!DS21 -> 1200 | BT26: =SA!EF21-SA!DT21 -> 1000 | BU26: =SA!EG21-SA!DU21 -> 2000 | BV26: =SA!EH21-SA!DV21 -> 2300 | BW26: =SA!EI21-SA!DW21 -> 2700 | BX26: =SA!EJ21-SA!DX21 -> 2500 | BY26: =SA!EK21-SA!DY21 -> 3300 | BZ26: =SA!EL21-SA!DZ21 -> 3000 | CA26: =SA!EM21-SA!EA21 -> 2700 | CB26: =SA!EN21-SA!EB21 -> 2500 | CC26: =SA!EO21-SA!EC21 -> 2600 | CD26: =SA!EP21-SA!ED21 -> 3200 | CE26: =SA!EQ21-SA!EE21 -> 2300 | CF26: =SA!ER21-SA!EF21 -> 2800 | CG26: =SA!ES21-SA!EG21 -> 1800 | CH26: =SA!ET21-SA!EH21 -> 1800 | CI26: =SA!EU21-SA!EI21 -> 1700 | CJ26: =SA!EV21-SA!EJ21 -> 2100 | CK26: =SA!EW21-SA!EK21 -> 1600 | CL26: =SA!EX21-SA!EL21 -> 1900 | CM26: =SA!EY21-SA!EM21 -> 2700 | CN26: =SA!EZ21-SA!EN21 -> 1900 | CO26: =SA!FA21-SA!EO21 -> 1800 | CP26: =SA!FB21-SA!EP21 -> 1500 | CQ26: =SA!FC21-SA!EQ21 -> 2100 | CR26: =SA!FD21-SA!ER21 -> 2900 | CS26: =SA!FE21-SA!ES21 -> 1800 | CT26: =SA!FF21-SA!ET21 -> 1700 | CU26: =SA!FG21-SA!EU21 -> 1900 | CV26: =SA!FH21-SA!EV21 -> 1700 | CW26: =SA!FI21-SA!EW21 -> 1400 | CX26: =SA!FJ21-SA!EX21 -> 1600 | CY26: =SA!FK21-SA!EY21 -> 1100 | CZ26: =SA!FL21-SA!EZ21 -> 2300 | DA26: =SA!FM21-SA!FA21 -> 2000 | DB26: =SA!FN21-SA!FB21 -> 2100 | DC26: =SA!FO21-SA!FC21 -> 1700 | DD26: =SA!FP21-SA!FD21 -> 500 | DE26: =SA!FQ21-SA!FE21 -> 2300 | DF26: =SA!FR21-SA!FF21 -> 1700 | DG26: =SA!FS21-SA!FG21 -> 1300 | DH26: =SA!FT21-SA!FH21 -> 1500 | DI26: =SA!FU21-SA!FI21 -> 1500 | DJ26: =SA!FV21-SA!FJ21 -> 1300 | DK26: =SA!FW21-SA!FK21 -> 2000 | DL26: =SA!FX21-SA!FL21 -> 1200 | DM26: =SA!FY21-SA!FM21 -> 1600 | DN26: =SA!FZ21-SA!FN21 -> 1100 | DO26: =SA!GA21-SA!FO21 -> 1000 | DP26: =SA!GB21-SA!FP21 -> 900 | DQ26: =SA!GC21-SA!FQ21 -> 1100 | DR26: =SA!GD21-SA!FR21 -> 2600 | DS26: =SA!GE21-SA!FS21 -> 2500 | DT26: =SA!GF21-SA!FT21 -> 2700 | DU26: =SA!GG21-SA!FU21 -> 3000 | DV26: =SA!GH21-SA!FV21 -> 3400 | DW26: =SA!GI21-SA!FW21 -> 3200 | DX26: =SA!GJ21-SA!FX21 -> 3500 | DY26: =SA!GK21-SA!FY21 -> 3400 | DZ26: =SA!GL21-SA!FZ21 -> 3900 | EA26: =SA!GM21-SA!GA21 -> 4400 | EB26: =SA!GN21-SA!GB21 -> 4400 | EC26: =SA!GO21-SA!GC21 -> 4100 | ED26: =SA!GP21-SA!GD21 -> 3400 | EE26: =SA!GQ21-SA!GE21 -> 3700 | EF26: =SA!GR21-SA!GF21 -> 3300 | EG26: =SA!GS21-SA!GG21 -> 3300 | EH26: =SA!GT21-SA!GH21 -> 2900 | EI26: =SA!GU21-SA!GI21 -> 2300 | EJ26: =SA!GV21-SA!GJ21 -> 2800 | EK26: =SA!GW21-SA!GK21 -> 2800 | EL26: =SA!GX21-SA!GL21 -> 3000 | EM26: =SA!GY21-SA!GM21 -> 800 | EN26: =SA!GZ21-SA!GN21 -> 500 | EO26: =SA!HA21-SA!GO21 -> -500 | EP26: =SA!HB21-SA!GP21 -> -600 | EQ26: =SA!HC21-SA!GQ21 -> -400 | ER26: =SA!HD21-SA!GR21 -> 1100 | ES26: =SA!HE21-SA!GS21 -> 500 | ET26: =SA!HF21-SA!GT21 -> 1900 | EU26: =SA!HG21-SA!GU21 -> -200 | EV26: =SA!HH21-SA!GV21 -> -1400 | EW26: =SA!HI21-SA!GW21 -> -3400 | EX26: =SA!HJ21-SA!GX21 -> -3700 | EY26: =SA!HK21-SA!GY21 -> -106600 | EZ26: =SA!HL21-SA!GZ21 -> -106500 | FA26: =SA!HM21-SA!HA21 -> -105600 | FB26: 5461 | FC26: 0 | FE26: Professional, Scientific, and Technical Services | FF26: -8000 | FG26: 300 | FH26: 1600 | FI26: 2100 | FJ26: 2500 | FK26: 2900 | FL26: 3225 | FM26: 4400 | FN26: 2704.445928
A27: Administrative and Support and Waste Management and Remediation Services | B27: =SA!BN23-SA!BB23 -> 6000 | C27: =SA!BO23-SA!BC23 -> 6400 | D27: =SA!BP23-SA!BD23 -> 7300 | E27: =SA!BQ23-SA!BE23 -> 9000 | F27: =SA!BR23-SA!BF23 -> 7200 | G27: =SA!BS23-SA!BG23 -> 5000 | H27: =SA!BT23-SA!BH23 -> 7000 | I27: =SA!BU23-SA!BI23 -> 4500 | J27: =SA!BV23-SA!BJ23 -> 7000 | K27: =SA!BW23-SA!BK23 -> 3300 | L27: =SA!BX23-SA!BL23 -> 5200 | M27: =SA!BY23-SA!BM23 -> 5500 | N27: =SA!BZ23-SA!BN23 -> 4200 | O27: =SA!CA23-SA!BO23 -> 5300 | P27: =SA!CB23-SA!BP23 -> 4500 | Q27: =SA!CC23-SA!BQ23 -> 5100 | R27: =SA!CD23-SA!BR23 -> 5600 | S27: =SA!CE23-SA!BS23 -> 6000 | T27: =SA!CF23-SA!BT23 -> 3400 | U27: =SA!CG23-SA!BU23 -> 2900 | V27: =SA!CH23-SA!BV23 -> 3300 | W27: =SA!CI23-SA!BW23 -> 5200 | X27: =SA!CJ23-SA!BX23 -> 4000 | Y27: =SA!CK23-SA!BY23 -> 2500 | Z27: =SA!CL23-SA!BZ23 -> 3600 | AA27: =SA!CM23-SA!CA23 -> 2300 | AB27: =SA!CN23-SA!CB23 -> 2800 | AC27: =SA!CO23-SA!CC23 -> 1600 | AD27: =SA!CP23-SA!CD23 -> 2600 | AE27: =SA!CQ23-SA!CE23 -> 4000 | AF27: =SA!CR23-SA!CF23 -> 4300 | AG27: =SA!CS23-SA!CG23 -> 4800 | AH27: =SA!CT23-SA!CH23 -> 3800 | AI27: =SA!CU23-SA!CI23 -> 2700 | AJ27: =SA!CV23-SA!CJ23 -> 3200 | AK27: =SA!CW23-SA!CK23 -> 5600 | AL27: =SA!CX23-SA!CL23 -> 4800 | AM27: =SA!CY23-SA!CM23 -> 5300 | AN27: =SA!CZ23-SA!CN23 -> 3500 | AO27: =SA!DA23-SA!CO23 -> 100 | AP27: =SA!DB23-SA!CP23 -> 200 | AQ27: =SA!DC23-SA!CQ23 -> -900 | AR27: =SA!DD23-SA!CR23 -> -1300 | AS27: =SA!DE23-SA!CS23 -> -1200 | AT27: =SA!DF23-SA!CT23 -> -2700 | AU27: =SA!DG23-SA!CU23 -> -5100 | AV27: =SA!DH23-SA!CV23 -> -8600 | AW27: =SA!DI23-SA!CW23 -> -11800 | AX27: =SA!DJ23-SA!CX23 -> -16000 | AY27: =SA!DK23-SA!CY23 -> -20600 | AZ27: =SA!DL23-SA!CZ23 -> -23100 | BA27: =SA!DM23-SA!DA23 -> -21800 | BB27: =SA!DN23-SA!DB23 -> -21000 | BC27: =SA!DO23-SA!DC23 -> -22700 | BD27: =SA!DP23-SA!DD23 -> -21500 | BE27: =SA!DQ23-SA!DE23 -> -21900 | BF27: =SA!DR23-SA!DF23 -> -19600 | BG27: =SA!DS23-SA!DG23 -> -14200 | BH27: =SA!DT23-SA!DH23 -> -9500 | BI27: =SA!DU23-SA!DI23 -> -6500 | BJ27: =SA!DV23-SA!DJ23 -> -1100 | BK27: =SA!DW23-SA!DK23 -> 5500 | BL27: =SA!DX23-SA!DL23 -> 7400 | BM27: =SA!DY23-SA!DM23 -> 13400 | BN27: =SA!DZ23-SA!DN23 -> 13000 | BO27: =SA!EA23-SA!DO23 -> 14500 | BP27: =SA!EB23-SA!DP23 -> 16000 | BQ27: =SA!EC23-SA!DQ23 -> 17700 | BR27: =SA!ED23-SA!DR23 -> 17500 | BS27: =SA!EE23-SA!DS23 -> 17100 | BT27: =SA!EF23-SA!DT23 -> 16000 | BU27: =SA!EG23-SA!DU23 -> 15800 | BV27: =SA!EH23-SA!DV23 -> 15300 | BW27: =SA!EI23-SA!DW23 -> 11900 | BX27: =SA!EJ23-SA!DX23 -> 15500 | BY27: =SA!EK23-SA!DY23 -> 8000 | BZ27: =SA!EL23-SA!DZ23 -> 7100 | CA27: =SA!EM23-SA!EA23 -> 7900 | CB27: =SA!EN23-SA!EB23 -> 6800 | CC27: =SA!EO23-SA!EC23 -> 4800 | CD27: =SA!EP23-SA!ED23 -> 5600 | CE27: =SA!EQ23-SA!EE23 -> 2800 | CF27: =SA!ER23-SA!EF23 -> 1900 | CG27: =SA!ES23-SA!EG23 -> 900 | CH27: =SA!ET23-SA!EH23 -> 900 | CI27: =SA!EU23-SA!EI23 -> 2000 | CJ27: =SA!EV23-SA!EJ23 -> 2700 | CK27: =SA!EW23-SA!EK23 -> 5100 | CL27: =SA!EX23-SA!EL23 -> 3700 | CM27: =SA!EY23-SA!EM23 -> 2700 | CN27: =SA!EZ23-SA!EN23 -> 1200 | CO27: =SA!FA23-SA!EO23 -> 1200 | CP27: =SA!FB23-SA!EP23 -> 1700 | CQ27: =SA!FC23-SA!EQ23 -> 2300 | CR27: =SA!FD23-SA!ER23 -> 2500 | CS27: =SA!FE23-SA!ES23 -> 1500 | CT27: =SA!FF23-SA!ET23 -> 1100 | CU27: =SA!FG23-SA!EU23 -> 2600 | CV27: =SA!FH23-SA!EV23 -> 2400 | CW27: =SA!FI23-SA!EW23 -> -400 | CX27: =SA!FJ23-SA!EX23 -> 2800 | CY27: =SA!FK23-SA!EY23 -> 4400 | CZ27: =SA!FL23-SA!EZ23 -> 5000 | DA27: =SA!FM23-SA!FA23 -> 6200 | DB27: =SA!FN23-SA!FB23 -> 4600 | DC27: =SA!FO23-SA!FC23 -> 3500 | DD27: =SA!FP23-SA!FD23 -> 5000 | DE27: =SA!FQ23-SA!FE23 -> 6000 | DF27: =SA!FR23-SA!FF23 -> 6800 | DG27: =SA!FS23-SA!FG23 -> 5100 | DH27: =SA!FT23-SA!FH23 -> 1900 | DI27: =SA!FU23-SA!FI23 -> 5100 | DJ27: =SA!FV23-SA!FJ23 -> 4200 | DK27: =SA!FW23-SA!FK23 -> 2300 | DL27: =SA!FX23-SA!FL23 -> 2300 | DM27: =SA!FY23-SA!FM23 -> 2100 | DN27: =SA!FZ23-SA!FN23 -> 2500 | DO27: =SA!GA23-SA!FO23 -> 5300 | DP27: =SA!GB23-SA!FP23 -> 5000 | DQ27: =SA!GC23-SA!FQ23 -> 2400 | DR27: =SA!GD23-SA!FR23 -> -300 | DS27: =SA!GE23-SA!FS23 -> -900 | DT27: =SA!GF23-SA!FT23 -> -100 | DU27: =SA!GG23-SA!FU23 -> 200 | DV27: =SA!GH23-SA!FV23 -> -300 | DW27: =SA!GI23-SA!FW23 -> -200 | DX27: =SA!GJ23-SA!FX23 -> 300 | DY27: =SA!GK23-SA!FY23 -> 500 | DZ27: =SA!GL23-SA!FZ23 -> -1500 | EA27: =SA!GM23-SA!GA23 -> -3400 | EB27: =SA!GN23-SA!GB23 -> -4600 | EC27: =SA!GO23-SA!GC23 -> -1100 | ED27: =SA!GP23-SA!GD23 -> 1800 | EE27: =SA!GQ23-SA!GE23 -> 2200 | EF27: =SA!GR23-SA!GF23 -> 1300 | EG27: =SA!GS23-SA!GG23 -> 700 | EH27: =SA!GT23-SA!GH23 -> -600 | EI27: =SA!GU23-SA!GI23 -> -1100 | EJ27: =SA!GV23-SA!GJ23 -> -600 | EK27: =SA!GW23-SA!GK23 -> -2100 | EL27: =SA!GX23-SA!GL23 -> -400 | EM27: =SA!GY23-SA!GM23 -> -100 | EN27: =SA!GZ23-SA!GN23 -> -800 | EO27: =SA!HA23-SA!GO23 -> -1500 | EP27: =SA!HB23-SA!GP23 -> -1400 | EQ27: =SA!HC23-SA!GQ23 -> -600 | ER27: =SA!HD23-SA!GR23 -> 1400 | ES27: =SA!HE23-SA!GS23 -> 300 | ET27: =SA!HF23-SA!GT23 -> 2200 | EU27: =SA!HG23-SA!GU23 -> 900 | EV27: =SA!HH23-SA!GV23 -> 2500 | EW27: =SA!HI23-SA!GW23 -> 1200 | EX27: =SA!HJ23-SA!GX23 -> 2600 | EY27: =SA!HK23-SA!GY23 -> -145300 | EZ27: =SA!HL23-SA!GZ23 -> -144800 | FA27: =SA!HM23-SA!HA23 -> -145100 | FB27: 10285 | FC27: 0 | FE27: Administrative and Support and Waste Management and Remediation Services | FF27: -23100 | FG27: -1350 | FH27: 600 | FI27: 2425 | FJ27: 3300 | FK27: 5000 | FL27: 6850 | FM27: 17700 | FN27: 7783.255883
A28: Education and Health Services | B28: =SA!BN24-SA!BB24 -> 7600 | C28: =SA!BO24-SA!BC24 -> 6600 | D28: =SA!BP24-SA!BD24 -> 7200 | E28: =SA!BQ24-SA!BE24 -> 6900 | F28: =SA!BR24-SA!BF24 -> 6900 | G28: =SA!BS24-SA!BG24 -> 7500 | H28: =SA!BT24-SA!BH24 -> 7300 | I28: =SA!BU24-SA!BI24 -> 6900 | J28: =SA!BV24-SA!BJ24 -> 8400 | K28: =SA!BW24-SA!BK24 -> 7500 | L28: =SA!BX24-SA!BL24 -> 7900 | M28: =SA!BY24-SA!BM24 -> 7300 | N28: =SA!BZ24-SA!BN24 -> 7600 | O28: =SA!CA24-SA!BO24 -> 8400 | P28: =SA!CB24-SA!BP24 -> 7100 | Q28: =SA!CC24-SA!BQ24 -> 7500 | R28: =SA!CD24-SA!BR24 -> 7400 | S28: =SA!CE24-SA!BS24 -> 7300 | T28: =SA!CF24-SA!BT24 -> 8000 | U28: =SA!CG24-SA!BU24 -> 7600 | V28: =SA!CH24-SA!BV24 -> 7300 | W28: =SA!CI24-SA!BW24 -> 8400 | X28: =SA!CJ24-SA!BX24 -> 7800 | Y28: =SA!CK24-SA!BY24 -> 7400 | Z28: =SA!CL24-SA!BZ24 -> 6300 | AA28: =SA!CM24-SA!CA24 -> 5800 | AB28: =SA!CN24-SA!CB24 -> 6500 | AC28: =SA!CO24-SA!CC24 -> 6000 | AD28: =SA!CP24-SA!CD24 -> 6000 | AE28: =SA!CQ24-SA!CE24 -> 6400 | AF28: =SA!CR24-SA!CF24 -> 6100 | AG28: =SA!CS24-SA!CG24 -> 6600 | AH28: =SA!CT24-SA!CH24 -> 6800 | AI28: =SA!CU24-SA!CI24 -> 3500 | AJ28: =SA!CV24-SA!CJ24 -> 2800 | AK28: =SA!CW24-SA!CK24 -> 4000 | AL28: =SA!CX24-SA!CL24 -> 4600 | AM28: =SA!CY24-SA!CM24 -> 4400 | AN28: =SA!CZ24-SA!CN24 -> 4600 | AO28: =SA!DA24-SA!CO24 -> 5400 | AP28: =SA!DB24-SA!CP24 -> 5400 | AQ28: =SA!DC24-SA!CQ24 -> 5500 | AR28: =SA!DD24-SA!CR24 -> 5700 | AS28: =SA!DE24-SA!CS24 -> 5800 | AT28: =SA!DF24-SA!CT24 -> 5800 | AU28: =SA!DG24-SA!CU24 -> 9700 | AV28: =SA!DH24-SA!CV24 -> 11400 | AW28: =SA!DI24-SA!CW24 -> 12000 | AX28: =SA!DJ24-SA!CX24 -> 10700 | AY28: =SA!DK24-SA!CY24 -> 11100 | AZ28: =SA!DL24-SA!CZ24 -> 10700 | BA28: =SA!DM24-SA!DA24 -> 8700 | BB28: =SA!DN24-SA!DB24 -> 8800 | BC28: =SA!DO24-SA!DC24 -> 9200 | BD28: =SA!DP24-SA!DD24 -> 7700 | BE28: =SA!DQ24-SA!DE24 -> 7400 | BF28: =SA!DR24-SA!DF24 -> 4700 | BG28: =SA!DS24-SA!DG24 -> 3900 | BH28: =SA!DT24-SA!DH24 -> 2100 | BI28: =SA!DU24-SA!DI24 -> -400 | BJ28: =SA!DV24-SA!DJ24 -> 2300 | BK28: =SA!DW24-SA!DK24 -> 1900 | BL28: =SA!DX24-SA!DL24 -> 2200 | BM28: =SA!DY24-SA!DM24 -> 300 | BN28: =SA!DZ24-SA!DN24 -> -700 | BO28: =SA!EA24-SA!DO24 -> -1000 | BP28: =SA!EB24-SA!DP24 -> 1000 | BQ28: =SA!EC24-SA!DQ24 -> 1400 | BR28: =SA!ED24-SA!DR24 -> 1200 | BS28: =SA!EE24-SA!DS24 -> 900 | BT28: =SA!EF24-SA!DT24 -> 1500 | BU28: =SA!EG24-SA!DU24 -> 2400 | BV28: =SA!EH24-SA!DV24 -> 600 | BW28: =SA!EI24-SA!DW24 -> 0 | BX28: =SA!EJ24-SA!DX24 -> -1500 | BY28: =SA!EK24-SA!DY24 -> 3700 | BZ28: =SA!EL24-SA!DZ24 -> 4600 | CA28: =SA!EM24-SA!EA24 -> 3700 | CB28: =SA!EN24-SA!EB24 -> 3200 | CC28: =SA!EO24-SA!EC24 -> 2300 | CD28: =SA!EP24-SA!ED24 -> 5400 | CE28: =SA!EQ24-SA!EE24 -> 5200 | CF28: =SA!ER24-SA!EF24 -> 5600 | CG28: =SA!ES24-SA!EG24 -> 6300 | CH28: =SA!ET24-SA!EH24 -> 6600 | CI28: =SA!EU24-SA!EI24 -> 7600 | CJ28: =SA!EV24-SA!EJ24 -> 9500 | CK28: =SA!EW24-SA!EK24 -> 7600 | CL28: =SA!EX24-SA!EL24 -> 7200 | CM28: =SA!EY24-SA!EM24 -> 7600 | CN28: =SA!EZ24-SA!EN24 -> 3800 | CO28: =SA!FA24-SA!EO24 -> 6200 | CP28: =SA!FB24-SA!EP24 -> 7300 | CQ28: =SA!FC24-SA!EQ24 -> 8800 | CR28: =SA!FD24-SA!ER24 -> 8500 | CS28: =SA!FE24-SA!ES24 -> 8300 | CT28: =SA!FF24-SA!ET24 -> 7200 | CU28: =SA!FG24-SA!EU24 -> 7300 | CV28: =SA!FH24-SA!EV24 -> 6400 | CW28: =SA!FI24-SA!EW24 -> 6000 | CX28: =SA!FJ24-SA!EX24 -> 6400 | CY28: =SA!FK24-SA!EY24 -> 5600 | CZ28: =SA!FL24-SA!EZ24 -> 6200 | DA28: =SA!FM24-SA!FA24 -> 6900 | DB28: =SA!FN24-SA!FB24 -> 5400 | DC28: =SA!FO24-SA!FC24 -> 4200 | DD28: =SA!FP24-SA!FD24 -> 4600 | DE28: =SA!FQ24-SA!FE24 -> 3700 | DF28: =SA!FR24-SA!FF24 -> 5900 | DG28: =SA!FS24-SA!FG24 -> 5600 | DH28: =SA!FT24-SA!FH24 -> 5800 | DI28: =SA!FU24-SA!FI24 -> 6100 | DJ28: =SA!FV24-SA!FJ24 -> 6000 | DK28: =SA!FW24-SA!FK24 -> 7300 | DL28: =SA!FX24-SA!FL24 -> 7900 | DM28: =SA!FY24-SA!FM24 -> 7000 | DN28: =SA!FZ24-SA!FN24 -> 6600 | DO28: =SA!GA24-SA!FO24 -> 5700 | DP28: =SA!GB24-SA!FP24 -> 6500 | DQ28: =SA!GC24-SA!FQ24 -> 6800 | DR28: =SA!GD24-SA!FR24 -> 4800 | DS28: =SA!GE24-SA!FS24 -> 5200 | DT28: =SA!GF24-SA!FT24 -> 5800 | DU28: =SA!GG24-SA!FU24 -> 5000 | DV28: =SA!GH24-SA!FV24 -> 5900 | DW28: =SA!GI24-SA!FW24 -> 5200 | DX28: =SA!GJ24-SA!FX24 -> 6500 | DY28: =SA!GK24-SA!FY24 -> 5300 | DZ28: =SA!GL24-SA!FZ24 -> 4800 | EA28: =SA!GM24-SA!GA24 -> 6200 | EB28: =SA!GN24-SA!GB24 -> 5600 | EC28: =SA!GO24-SA!GC24 -> 6800 | ED28: =SA!GP24-SA!GD24 -> 8300 | EE28: =SA!GQ24-SA!GE24 -> 8500 | EF28: =SA!GR24-SA!GF24 -> 8000 | EG28: =SA!GS24-SA!GG24 -> 9100 | EH28: =SA!GT24-SA!GH24 -> 7400 | EI28: =SA!GU24-SA!GI24 -> 7600 | EJ28: =SA!GV24-SA!GJ24 -> 10600 | EK28: =SA!GW24-SA!GK24 -> 9800 | EL28: =SA!GX24-SA!GL24 -> 10200 | EM28: =SA!GY24-SA!GM24 -> 10900 | EN28: =SA!GZ24-SA!GN24 -> 10900 | EO28: =SA!HA24-SA!GO24 -> 9200 | EP28: =SA!HB24-SA!GP24 -> 9600 | EQ28: =SA!HC24-SA!GQ24 -> 6500 | ER28: =SA!HD24-SA!GR24 -> 7500 | ES28: =SA!HE24-SA!GS24 -> 6800 | ET28: =SA!HF24-SA!GT24 -> 5400 | EU28: =SA!HG24-SA!GU24 -> 5500 | EV28: =SA!HH24-SA!GV24 -> 3400 | EW28: =SA!HI24-SA!GW24 -> 4400 | EX28: =SA!HJ24-SA!GX24 -> 4300 | EY28: =SA!HK24-SA!GY24 -> -448800 | EZ28: =SA!HL24-SA!GZ24 -> -449600 | FA28: =SA!HM24-SA!HA24 -> -449200 | FB28: 7179 | FC28: 5 | FE28: Education and Health Services | FF28: -1500 | FG28: 3650 | FH28: 5400 | FI28: 6125 | FJ28: 6600 | FK28: 7400 | FL28: 8400 | FM28: 12000 | FN28: 2640.294856
A29: Educational Services | B29: =SA!BN25-SA!BB25 -> 1600 | C29: =SA!BO25-SA!BC25 -> 900 | D29: =SA!BP25-SA!BD25 -> 1200 | E29: =SA!BQ25-SA!BE25 -> 900 | F29: =SA!BR25-SA!BF25 -> 1100 | G29: =SA!BS25-SA!BG25 -> 1000 | H29: =SA!BT25-SA!BH25 -> 800 | I29: =SA!BU25-SA!BI25 -> 700 | J29: =SA!BV25-SA!BJ25 -> 1100 | K29: =SA!BW25-SA!BK25 -> 700 | L29: =SA!BX25-SA!BL25 -> 1000 | M29: =SA!BY25-SA!BM25 -> 600 | N29: =SA!BZ25-SA!BN25 -> 700 | O29: =SA!CA25-SA!BO25 -> 900 | P29: =SA!CB25-SA!BP25 -> 600 | Q29: =SA!CC25-SA!BQ25 -> 1000 | R29: =SA!CD25-SA!BR25 -> 1200 | S29: =SA!CE25-SA!BS25 -> 800 | T29: =SA!CF25-SA!BT25 -> 1300 | U29: =SA!CG25-SA!BU25 -> 700 | V29: =SA!CH25-SA!BV25 -> 1000 | W29: =SA!CI25-SA!BW25 -> 1300 | X29: =SA!CJ25-SA!BX25 -> 1400 | Y29: =SA!CK25-SA!BY25 -> 1100 | Z29: =SA!CL25-SA!BZ25 -> 800 | AA29: =SA!CM25-SA!CA25 -> 700 | AB29: =SA!CN25-SA!CB25 -> 1000 | AC29: =SA!CO25-SA!CC25 -> 300 | AD29: =SA!CP25-SA!CD25 -> 400 | AE29: =SA!CQ25-SA!CE25 -> 400 | AF29: =SA!CR25-SA!CF25 -> 400 | AG29: =SA!CS25-SA!CG25 -> 900 | AH29: =SA!CT25-SA!CH25 -> 800 | AI29: =SA!CU25-SA!CI25 -> -1700 | AJ29: =SA!CV25-SA!CJ25 -> -2900 | AK29: =SA!CW25-SA!CK25 -> -2100 | AL29: =SA!CX25-SA!CL25 -> -2000 | AM29: =SA!CY25-SA!CM25 -> -2100 | AN29: =SA!CZ25-SA!CN25 -> -2400 | AO29: =SA!DA25-SA!CO25 -> -1300 | AP29: =SA!DB25-SA!CP25 -> -1800 | AQ29: =SA!DC25-SA!CQ25 -> -1100 | AR29: =SA!DD25-SA!CR25 -> -900 | AS29: =SA!DE25-SA!CS25 -> -1000 | AT29: =SA!DF25-SA!CT25 -> -500 | AU29: =SA!DG25-SA!CU25 -> 2900 | AV29: =SA!DH25-SA!CV25 -> 4000 | AW29: =SA!DI25-SA!CW25 -> 4400 | AX29: =SA!DJ25-SA!CX25 -> 3900 | AY29: =SA!DK25-SA!CY25 -> 3900 | AZ29: =SA!DL25-SA!CZ25 -> 4000 | BA29: =SA!DM25-SA!DA25 -> 2300 | BB29: =SA!DN25-SA!DB25 -> 2500 | BC29: =SA!DO25-SA!DC25 -> 3200 | BD29: =SA!DP25-SA!DD25 -> 2600 | BE29: =SA!DQ25-SA!DE25 -> 2600 | BF29: =SA!DR25-SA!DF25 -> 800 | BG29: =SA!DS25-SA!DG25 -> -300 | BH29: =SA!DT25-SA!DH25 -> -800 | BI29: =SA!DU25-SA!DI25 -> -1900 | BJ29: =SA!DV25-SA!DJ25 -> -1100 | BK29: =SA!DW25-SA!DK25 -> -1000 | BL29: =SA!DX25-SA!DL25 -> -900 | BM29: =SA!DY25-SA!DM25 -> -800 | BN29: =SA!DZ25-SA!DN25 -> -1500 | BO29: =SA!EA25-SA!DO25 -> -1500 | BP29: =SA!EB25-SA!DP25 -> -400 | BQ29: =SA!EC25-SA!DQ25 -> 200 | BR29: =SA!ED25-SA!DR25 -> 300 | BS29: =SA!EE25-SA!DS25 -> -300 | BT29: =SA!EF25-SA!DT25 -> -400 | BU29: =SA!EG25-SA!DU25 -> -100 | BV29: =SA!EH25-SA!DV25 -> -300 | BW29: =SA!EI25-SA!DW25 -> -800 | BX29: =SA!EJ25-SA!DX25 -> -1800 | BY29: =SA!EK25-SA!DY25 -> 400 | BZ29: =SA!EL25-SA!DZ25 -> 1500 | CA29: =SA!EM25-SA!EA25 -> 100 | CB29: =SA!EN25-SA!EB25 -> -400 | CC29: =SA!EO25-SA!EC25 -> -900 | CD29: =SA!EP25-SA!ED25 -> 200 | CE29: =SA!EQ25-SA!EE25 -> 1000 | CF29: =SA!ER25-SA!EF25 -> 1500 | CG29: =SA!ES25-SA!EG25 -> 1400 | CH29: =SA!ET25-SA!EH25 -> 100 | CI29: =SA!EU25-SA!EI25 -> 600 | CJ29: =SA!EV25-SA!EJ25 -> 1900 | CK29: =SA!EW25-SA!EK25 -> 600 | CL29: =SA!EX25-SA!EL25 -> 400 | CM29: =SA!EY25-SA!EM25 -> 300 | CN29: =SA!EZ25-SA!EN25 -> -4200 | CO29: =SA!FA25-SA!EO25 -> -2500 | CP29: =SA!FB25-SA!EP25 -> -1200 | CQ29: =SA!FC25-SA!EQ25 -> -600 | CR29: =SA!FD25-SA!ER25 -> -800 | CS29: =SA!FE25-SA!ES25 -> -500 | CT29: =SA!FF25-SA!ET25 -> 400 | CU29: =SA!FG25-SA!EU25 -> 600 | CV29: =SA!FH25-SA!EV25 -> -100 | CW29: =SA!FI25-SA!EW25 -> -200 | CX29: =SA!FJ25-SA!EX25 -> -700 | CY29: =SA!FK25-SA!EY25 -> -700 | CZ29: =SA!FL25-SA!EZ25 -> 800 | DA29: =SA!FM25-SA!FA25 -> 800 | DB29: =SA!FN25-SA!FB25 -> 100 | DC29: =SA!FO25-SA!FC25 -> -200 | DD29: =SA!FP25-SA!FD25 -> -100 | DE29: =SA!FQ25-SA!FE25 -> -300 | DF29: =SA!FR25-SA!FF25 -> -100 | DG29: =SA!FS25-SA!FG25 -> -300 | DH29: =SA!FT25-SA!FH25 -> -200 | DI29: =SA!FU25-SA!FI25 -> -100 | DJ29: =SA!FV25-SA!FJ25 -> 500 | DK29: =SA!FW25-SA!FK25 -> 500 | DL29: =SA!FX25-SA!FL25 -> 1300 | DM29: =SA!FY25-SA!FM25 -> 900 | DN29: =SA!FZ25-SA!FN25 -> 500 | DO29: =SA!GA25-SA!FO25 -> 100 | DP29: =SA!GB25-SA!FP25 -> -100 | DQ29: =SA!GC25-SA!FQ25 -> 200 | DR29: =SA!GD25-SA!FR25 -> 0 | DS29: =SA!GE25-SA!FS25 -> 300 | DT29: =SA!GF25-SA!FT25 -> 500 | DU29: =SA!GG25-SA!FU25 -> 100 | DV29: =SA!GH25-SA!FV25 -> 100 | DW29: =SA!GI25-SA!FW25 -> 200 | DX29: =SA!GJ25-SA!FX25 -> 1100 | DY29: =SA!GK25-SA!FY25 -> 400 | DZ29: =SA!GL25-SA!FZ25 -> 0 | EA29: =SA!GM25-SA!GA25 -> 100 | EB29: =SA!GN25-SA!GB25 -> 200 | EC29: =SA!GO25-SA!GC25 -> 100 | ED29: =SA!GP25-SA!GD25 -> 200 | EE29: =SA!GQ25-SA!GE25 -> -100 | EF29: =SA!GR25-SA!GF25 -> 0 | EG29: =SA!GS25-SA!GG25 -> 400 | EH29: =SA!GT25-SA!GH25 -> -300 | EI29: =SA!GU25-SA!GI25 -> 600 | EJ29: =SA!GV25-SA!GJ25 -> 1000 | EK29: =SA!GW25-SA!GK25 -> 1000 | EL29: =SA!GX25-SA!GL25 -> 1500 | EM29: =SA!GY25-SA!GM25 -> 2200 | EN29: =SA!GZ25-SA!GN25 -> 2400 | EO29: =SA!HA25-SA!GO25 -> 2200 | EP29: =SA!HB25-SA!GP25 -> 1500 | EQ29: =SA!HC25-SA!GQ25 -> 1400 | ER29: =SA!HD25-SA!GR25 -> 1000 | ES29: =SA!HE25-SA!GS25 -> 500 | ET29: =SA!HF25-SA!GT25 -> 900 | EU29: =SA!HG25-SA!GU25 -> -1000 | EV29: =SA!HH25-SA!GV25 -> -1300 | EW29: =SA!HI25-SA!GW25 -> 100 | EX29: =SA!HJ25-SA!GX25 -> 600 | EY29: =SA!HK25-SA!GY25 -> -52300 | EZ29: =SA!HL25-SA!GZ25 -> -52500 | FA29: =SA!HM25-SA!HA25 -> -52500 | FB29: 4410 | FC29: 0 | FE29: Educational Services | FF29: -4200 | FG29: -900 | FH29: -150 | FI29: 200 | FJ29: 475 | FK29: 850 | FL29: 1325 | FM29: 4400 | FN29: 1347.111787
A30: Health Care and Social Assistance | B30: =SA!BN26-SA!BB26 -> 6000 | C30: =SA!BO26-SA!BC26 -> 5700 | D30: =SA!BP26-SA!BD26 -> 6000 | E30: =SA!BQ26-SA!BE26 -> 6000 | F30: =SA!BR26-SA!BF26 -> 5800 | G30: =SA!BS26-SA!BG26 -> 6500 | H30: =SA!BT26-SA!BH26 -> 6500 | I30: =SA!BU26-SA!BI26 -> 6200 | J30: =SA!BV26-SA!BJ26 -> 7300 | K30: =SA!BW26-SA!BK26 -> 6800 | L30: =SA!BX26-SA!BL26 -> 6900 | M30: =SA!BY26-SA!BM26 -> 6700 | N30: =SA!BZ26-SA!BN26 -> 6900 | O30: =SA!CA26-SA!BO26 -> 7500 | P30: =SA!CB26-SA!BP26 -> 6500 | Q30: =SA!CC26-SA!BQ26 -> 6500 | R30: =SA!CD26-SA!BR26 -> 6200 | S30: =SA!CE26-SA!BS26 -> 6500 | T30: =SA!CF26-SA!BT26 -> 6700 | U30: =SA!CG26-SA!BU26 -> 6900 | V30: =SA!CH26-SA!BV26 -> 6300 | W30: =SA!CI26-SA!BW26 -> 7100 | X30: =SA!CJ26-SA!BX26 -> 6400 | Y30: =SA!CK26-SA!BY26 -> 6300 | Z30: =SA!CL26-SA!BZ26 -> 5500 | AA30: =SA!CM26-SA!CA26 -> 5100 | AB30: =SA!CN26-SA!CB26 -> 5500 | AC30: =SA!CO26-SA!CC26 -> 5700 | AD30: =SA!CP26-SA!CD26 -> 5600 | AE30: =SA!CQ26-SA!CE26 -> 6000 | AF30: =SA!CR26-SA!CF26 -> 5700 | AG30: =SA!CS26-SA!CG26 -> 5700 | AH30: =SA!CT26-SA!CH26 -> 6000 | AI30: =SA!CU26-SA!CI26 -> 5200 | AJ30: =SA!CV26-SA!CJ26 -> 5700 | AK30: =SA!CW26-SA!CK26 -> 6100 | AL30: =SA!CX26-SA!CL26 -> 6600 | AM30: =SA!CY26-SA!CM26 -> 6500 | AN30: =SA!CZ26-SA!CN26 -> 7000 | AO30: =SA!DA26-SA!CO26 -> 6700 | AP30: =SA!DB26-SA!CP26 -> 7200 | AQ30: =SA!DC26-SA!CQ26 -> 6600 | AR30: =SA!DD26-SA!CR26 -> 6600 | AS30: =SA!DE26-SA!CS26 -> 6800 | AT30: =SA!DF26-SA!CT26 -> 6300 | AU30: =SA!DG26-SA!CU26 -> 6800 | AV30: =SA!DH26-SA!CV26 -> 7400 | AW30: =SA!DI26-SA!CW26 -> 7600 | AX30: =SA!DJ26-SA!CX26 -> 6800 | AY30: =SA!DK26-SA!CY26 -> 7200 | AZ30: =SA!DL26-SA!CZ26 -> 6700 | BA30: =SA!DM26-SA!DA26 -> 6400 | BB30: =SA!DN26-SA!DB26 -> 6300 | BC30: =SA!DO26-SA!DC26 -> 6000 | BD30: =SA!DP26-SA!DD26 -> 5100 | BE30: =SA!DQ26-SA!DE26 -> 4800 | BF30: =SA!DR26-SA!DF26 -> 3900 | BG30: =SA!DS26-SA!DG26 -> 4200 | BH30: =SA!DT26-SA!DH26 -> 2900 | BI30: =SA!DU26-SA!DI26 -> 1500 | BJ30: =SA!DV26-SA!DJ26 -> 3400 | BK30: =SA!DW26-SA!DK26 -> 2900 | BL30: =SA!DX26-SA!DL26 -> 3100 | BM30: =SA!DY26-SA!DM26 -> 1100 | BN30: =SA!DZ26-SA!DN26 -> 800 | BO30: =SA!EA26-SA!DO26 -> 500 | BP30: =SA!EB26-SA!DP26 -> 1400 | BQ30: =SA!EC26-SA!DQ26 -> 1200 | BR30: =SA!ED26-SA!DR26 -> 900 | BS30: =SA!EE26-SA!DS26 -> 1200 | BT30: =SA!EF26-SA!DT26 -> 1900 | BU30: =SA!EG26-SA!DU26 -> 2500 | BV30: =SA!EH26-SA!DV26 -> 900 | BW30: =SA!EI26-SA!DW26 -> 800 | BX30: =SA!EJ26-SA!DX26 -> 300 | BY30: =SA!EK26-SA!DY26 -> 3300 | BZ30: =SA!EL26-SA!DZ26 -> 3100 | CA30: =SA!EM26-SA!EA26 -> 3600 | CB30: =SA!EN26-SA!EB26 -> 3600 | CC30: =SA!EO26-SA!EC26 -> 3200 | CD30: =SA!EP26-SA!ED26 -> 5200 | CE30: =SA!EQ26-SA!EE26 -> 4200 | CF30: =SA!ER26-SA!EF26 -> 4100 | CG30: =SA!ES26-SA!EG26 -> 4900 | CH30: =SA!ET26-SA!EH26 -> 6500 | CI30: =SA!EU26-SA!EI26 -> 7000 | CJ30: =SA!EV26-SA!EJ26 -> 7600 | CK30: =SA!EW26-SA!EK26 -> 7000 | CL30: =SA!EX26-SA!EL26 -> 6800 | CM30: =SA!EY26-SA!EM26 -> 7300 | CN30: =SA!EZ26-SA!EN26 -> 8000 | CO30: =SA!FA26-SA!EO26 -> 8700 | CP30: =SA!FB26-SA!EP26 -> 8500 | CQ30: =SA!FC26-SA!EQ26 -> 9400 | CR30: =SA!FD26-SA!ER26 -> 9300 | CS30: =SA!FE26-SA!ES26 -> 8800 | CT30: =SA!FF26-SA!ET26 -> 6800 | CU30: =SA!FG26-SA!EU26 -> 6700 | CV30: =SA!FH26-SA!EV26 -> 6500 | CW30: =SA!FI26-SA!EW26 -> 6200 | CX30: =SA!FJ26-SA!EX26 -> 7100 | CY30: =SA!FK26-SA!EY26 -> 6300 | CZ30: =SA!FL26-SA!EZ26 -> 5400 | DA30: =SA!FM26-SA!FA26 -> 6100 | DB30: =SA!FN26-SA!FB26 -> 5300 | DC30: =SA!FO26-SA!FC26 -> 4400 | DD30: =SA!FP26-SA!FD26 -> 4700 | DE30: =SA!FQ26-SA!FE26 -> 4000 | DF30: =SA!FR26-SA!FF26 -> 6000 | DG30: =SA!FS26-SA!FG26 -> 5900 | DH30: =SA!FT26-SA!FH26 -> 6000 | DI30: =SA!FU26-SA!FI26 -> 6200 | DJ30: =SA!FV26-SA!FJ26 -> 5500 | DK30: =SA!FW26-SA!FK26 -> 6800 | DL30: =SA!FX26-SA!FL26 -> 6600 | DM30: =SA!FY26-SA!FM26 -> 6100 | DN30: =SA!FZ26-SA!FN26 -> 6100 | DO30: =SA!GA26-SA!FO26 -> 5600 | DP30: =SA!GB26-SA!FP26 -> 6600 | DQ30: =SA!GC26-SA!FQ26 -> 6600 | DR30: =SA!GD26-SA!FR26 -> 4800 | DS30: =SA!GE26-SA!FS26 -> 4900 | DT30: =SA!GF26-SA!FT26 -> 5300 | DU30: =SA!GG26-SA!FU26 -> 4900 | DV30: =SA!GH26-SA!FV26 -> 5800 | DW30: =SA!GI26-SA!FW26 -> 5000 | DX30: =SA!GJ26-SA!FX26 -> 5400 | DY30: =SA!GK26-SA!FY26 -> 4900 | DZ30: =SA!GL26-SA!FZ26 -> 4800 | EA30: =SA!GM26-SA!GA26 -> 6100 | EB30: =SA!GN26-SA!GB26 -> 5400 | EC30: =SA!GO26-SA!GC26 -> 6700 | ED30: =SA!GP26-SA!GD26 -> 8100 | EE30: =SA!GQ26-SA!GE26 -> 8600 | EF30: =SA!GR26-SA!GF26 -> 8000 | EG30: =SA!GS26-SA!GG26 -> 8700 | EH30: =SA!GT26-SA!GH26 -> 7700 | EI30: =SA!GU26-SA!GI26 -> 7000 | EJ30: =SA!GV26-SA!GJ26 -> 9600 | EK30: =SA!GW26-SA!GK26 -> 8800 | EL30: =SA!GX26-SA!GL26 -> 8700 | EM30: =SA!GY26-SA!GM26 -> 8700 | EN30: =SA!GZ26-SA!GN26 -> 8500 | EO30: =SA!HA26-SA!GO26 -> 7000 | EP30: =SA!HB26-SA!GP26 -> 8100 | EQ30: =SA!HC26-SA!GQ26 -> 5100 | ER30: =SA!HD26-SA!GR26 -> 6500 | ES30: =SA!HE26-SA!GS26 -> 6300 | ET30: =SA!HF26-SA!GT26 -> 4500 | EU30: =SA!HG26-SA!GU26 -> 6500 | EV30: =SA!HH26-SA!GV26 -> 4700 | EW30: =SA!HI26-SA!GW26 -> 4300 | EX30: =SA!HJ26-SA!GX26 -> 3700 | EY30: =SA!HK26-SA!GY26 -> -396500 | EZ30: =SA!HL26-SA!GZ26 -> -397100 | FA30: =SA!HM26-SA!HA26 -> -396700 | FB30: 5664 | FC30: 7 | FE30: Health Care and Social Assistance | FF30: 300 | FG30: 3600 | FH30: 5350 | FI30: 6000 | FJ30: 6300 | FK30: 6700 | FL30: 7300 | FM30: 9600 | FN30: 1975.614746
A31: Leisure and Hospitality | B31: =SA!BN27-SA!BB27 -> 3100 | C31: =SA!BO27-SA!BC27 -> 4600 | D31: =SA!BP27-SA!BD27 -> 5200 | E31: =SA!BQ27-SA!BE27 -> 7700 | F31: =SA!BR27-SA!BF27 -> 5200 | G31: =SA!BS27-SA!BG27 -> 5600 | H31: =SA!BT27-SA!BH27 -> 2800 | I31: =SA!BU27-SA!BI27 -> 3300 | J31: =SA!BV27-SA!BJ27 -> 4200 | K31: =SA!BW27-SA!BK27 -> 2100 | L31: =SA!BX27-SA!BL27 -> 4000 | M31: =SA!BY27-SA!BM27 -> 3100 | N31: =SA!BZ27-SA!BN27 -> 5500 | O31: =SA!CA27-SA!BO27 -> 6000 | P31: =SA!CB27-SA!BP27 -> 5900 | Q31: =SA!CC27-SA!BQ27 -> 2700 | R31: =SA!CD27-SA!BR27 -> 2800 | S31: =SA!CE27-SA!BS27 -> 4100 | T31: =SA!CF27-SA!BT27 -> 4200 | U31: =SA!CG27-SA!BU27 -> 4000 | V31: =SA!CH27-SA!BV27 -> 3200 | W31: =SA!CI27-SA!BW27 -> 5400 | X31: =SA!CJ27-SA!BX27 -> 3800 | Y31: =SA!CK27-SA!BY27 -> 5100 | Z31: =SA!CL27-SA!BZ27 -> 4300 | AA31: =SA!CM27-SA!CA27 -> 3600 | AB31: =SA!CN27-SA!CB27 -> 2900 | AC31: =SA!CO27-SA!CC27 -> 1600 | AD31: =SA!CP27-SA!CD27 -> 3900 | AE31: =SA!CQ27-SA!CE27 -> 3800 | AF31: =SA!CR27-SA!CF27 -> 2000 | AG31: =SA!CS27-SA!CG27 -> 2300 | AH31: =SA!CT27-SA!CH27 -> 700 | AI31: =SA!CU27-SA!CI27 -> 1300 | AJ31: =SA!CV27-SA!CJ27 -> 2200 | AK31: =SA!CW27-SA!CK27 -> 900 | AL31: =SA!CX27-SA!CL27 -> -500 | AM31: =SA!CY27-SA!CM27 -> -1500 | AN31: =SA!CZ27-SA!CN27 -> -1800 | AO31: =SA!DA27-SA!CO27 -> -1200 | AP31: =SA!DB27-SA!CP27 -> -1600 | AQ31: =SA!DC27-SA!CQ27 -> -2900 | AR31: =SA!DD27-SA!CR27 -> -2100 | AS31: =SA!DE27-SA!CS27 -> -3300 | AT31: =SA!DF27-SA!CT27 -> -2200 | AU31: =SA!DG27-SA!CU27 -> -3400 | AV31: =SA!DH27-SA!CV27 -> -4800 | AW31: =SA!DI27-SA!CW27 -> -5300 | AX31: =SA!DJ27-SA!CX27 -> -7000 | AY31: =SA!DK27-SA!CY27 -> -5900 | AZ31: =SA!DL27-SA!CZ27 -> -6700 | BA31: =SA!DM27-SA!DA27 -> -7800 | BB31: =SA!DN27-SA!DB27 -> -5000 | BC31: =SA!DO27-SA!DC27 -> -5600 | BD31: =SA!DP27-SA!DD27 -> -7000 | BE31: =SA!DQ27-SA!DE27 -> -7400 | BF31: =SA!DR27-SA!DF27 -> -6500 | BG31: =SA!DS27-SA!DG27 -> -8300 | BH31: =SA!DT27-SA!DH27 -> -7700 | BI31: =SA!DU27-SA!DI27 -> -7000 | BJ31: =SA!DV27-SA!DJ27 -> -4000 | BK31: =SA!DW27-SA!DK27 -> -5300 | BL31: =SA!DX27-SA!DL27 -> -4500 | BM31: =SA!DY27-SA!DM27 -> -700 | BN31: =SA!DZ27-SA!DN27 -> -3900 | BO31: =SA!EA27-SA!DO27 -> -3400 | BP31: =SA!EB27-SA!DP27 -> -700 | BQ31: =SA!EC27-SA!DQ27 -> 1000 | BR31: =SA!ED27-SA!DR27 -> 200 | BS31: =SA!EE27-SA!DS27 -> 2400 | BT31: =SA!EF27-SA!DT27 -> 2700 | BU31: =SA!EG27-SA!DU27 -> 2800 | BV31: =SA!EH27-SA!DV27 -> 1500 | BW31: =SA!EI27-SA!DW27 -> 1600 | BX31: =SA!EJ27-SA!DX27 -> 1300 | BY31: =SA!EK27-SA!DY27 -> 0 | BZ31: =SA!EL27-SA!DZ27 -> 300 | CA31: =SA!EM27-SA!EA27 -> 1400 | CB31: =SA!EN27-SA!EB27 -> 1100 | CC31: =SA!EO27-SA!EC27 -> 1100 | CD31: =SA!EP27-SA!ED27 -> 1600 | CE31: =SA!EQ27-SA!EE27 -> 1200 | CF31: =SA!ER27-SA!EF27 -> 500 | CG31: =SA!ES27-SA!EG27 -> 100 | CH31: =SA!ET27-SA!EH27 -> 1900 | CI31: =SA!EU27-SA!EI27 -> 3300 | CJ31: =SA!EV27-SA!EJ27 -> 5800 | CK31: =SA!EW27-SA!EK27 -> 6400 | CL31: =SA!EX27-SA!EL27 -> 5100 | CM31: =SA!EY27-SA!EM27 -> 5700 | CN31: =SA!EZ27-SA!EN27 -> 4700 | CO31: =SA!FA27-SA!EO27 -> 3500 | CP31: =SA!FB27-SA!EP27 -> 4800 | CQ31: =SA!FC27-SA!EQ27 -> 3100 | CR31: =SA!FD27-SA!ER27 -> 3900 | CS31: =SA!FE27-SA!ES27 -> 5400 | CT31: =SA!FF27-SA!ET27 -> 4400 | CU31: =SA!FG27-SA!EU27 -> 4300 | CV31: =SA!FH27-SA!EV27 -> 2400 | CW31: =SA!FI27-SA!EW27 -> -100 | CX31: =SA!FJ27-SA!EX27 -> 3600 | CY31: =SA!FK27-SA!EY27 -> 2900 | CZ31: =SA!FL27-SA!EZ27 -> 4000 | DA31: =SA!FM27-SA!FA27 -> 5800 | DB31: =SA!FN27-SA!FB27 -> 5100 | DC31: =SA!FO27-SA!FC27 -> 6300 | DD31: =SA!FP27-SA!FD27 -> 5900 | DE31: =SA!FQ27-SA!FE27 -> 5100 | DF31: =SA!FR27-SA!FF27 -> 4300 | DG31: =SA!FS27-SA!FG27 -> 3900 | DH31: =SA!FT27-SA!FH27 -> 3600 | DI31: =SA!FU27-SA!FI27 -> 5600 | DJ31: =SA!FV27-SA!FJ27 -> 3100 | DK31: =SA!FW27-SA!FK27 -> 4400 | DL31: =SA!FX27-SA!FL27 -> 1600 | DM31: =SA!FY27-SA!FM27 -> 1100 | DN31: =SA!FZ27-SA!FN27 -> 600 | DO31: =SA!GA27-SA!FO27 -> 1200 | DP31: =SA!GB27-SA!FP27 -> 2300 | DQ31: =SA!GC27-SA!FQ27 -> 2600 | DR31: =SA!GD27-SA!FR27 -> 5000 | DS31: =SA!GE27-SA!FS27 -> 4800 | DT31: =SA!GF27-SA!FT27 -> 6300 | DU31: =SA!GG27-SA!FU27 -> 5600 | DV31: =SA!GH27-SA!FV27 -> 6800 | DW31: =SA!GI27-SA!FW27 -> 5900 | DX31: =SA!GJ27-SA!FX27 -> 7300 | DY31: =SA!GK27-SA!FY27 -> 7100 | DZ31: =SA!GL27-SA!FZ27 -> 7100 | EA31: =SA!GM27-SA!GA27 -> 8600 | EB31: =SA!GN27-SA!GB27 -> 9300 | EC31: =SA!GO27-SA!GC27 -> 8500 | ED31: =SA!GP27-SA!GD27 -> 7300 | EE31: =SA!GQ27-SA!GE27 -> 8400 | EF31: =SA!GR27-SA!GF27 -> 6400 | EG31: =SA!GS27-SA!GG27 -> 5700 | EH31: =SA!GT27-SA!GH27 -> 4600 | EI31: =SA!GU27-SA!GI27 -> 3300 | EJ31: =SA!GV27-SA!GJ27 -> 5000 | EK31: =SA!GW27-SA!GK27 -> 4300 | EL31: =SA!GX27-SA!GL27 -> 3600 | EM31: =SA!GY27-SA!GM27 -> 1500 | EN31: =SA!GZ27-SA!GN27 -> -500 | EO31: =SA!HA27-SA!GO27 -> -200 | EP31: =SA!HB27-SA!GP27 -> -2200 | EQ31: =SA!HC27-SA!GQ27 -> 1900 | ER31: =SA!HD27-SA!GR27 -> 400 | ES31: =SA!HE27-SA!GS27 -> 2600 | ET31: =SA!HF27-SA!GT27 -> 4100 | EU31: =SA!HG27-SA!GU27 -> 10800 | EV31: =SA!HH27-SA!GV27 -> 7000 | EW31: =SA!HI27-SA!GW27 -> 6900 | EX31: =SA!HJ27-SA!GX27 -> 3800 | EY31: =SA!HK27-SA!GY27 -> -274600 | EZ31: =SA!HL27-SA!GZ27 -> -274300 | FA31: =SA!HM27-SA!HA27 -> -274300 | FB31: 13821 | FC31: 0 | FE31: Leisure and Hospitality | FF31: -8300 | FG31: -3000 | FH31: 1050 | FI31: 2450 | FJ31: 3300 | FK31: 4350 | FL31: 5700 | FM31: 9300 | FN31: 3996.612908
A32: Arts, Entertainment, and Recreation | B32: =SA!BN28-SA!BB28 -> -600 | C32: =SA!BO28-SA!BC28 -> -800 | D32: =SA!BP28-SA!BD28 -> -200 | E32: =SA!BQ28-SA!BE28 -> 700 | F32: =SA!BR28-SA!BF28 -> 0 | G32: =SA!BS28-SA!BG28 -> 300 | H32: =SA!BT28-SA!BH28 -> -100 | I32: =SA!BU28-SA!BI28 -> 100 | J32: =SA!BV28-SA!BJ28 -> 400 | K32: =SA!BW28-SA!BK28 -> 100 | L32: =SA!BX28-SA!BL28 -> 100 | M32: =SA!BY28-SA!BM28 -> -200 | N32: =SA!BZ28-SA!BN28 -> 100 | O32: =SA!CA28-SA!BO28 -> 900 | P32: =SA!CB28-SA!BP28 -> 700 | Q32: =SA!CC28-SA!BQ28 -> 600 | R32: =SA!CD28-SA!BR28 -> 500 | S32: =SA!CE28-SA!BS28 -> 500 | T32: =SA!CF28-SA!BT28 -> 500 | U32: =SA!CG28-SA!BU28 -> 600 | V32: =SA!CH28-SA!BV28 -> 500 | W32: =SA!CI28-SA!BW28 -> 400 | X32: =SA!CJ28-SA!BX28 -> 100 | Y32: =SA!CK28-SA!BY28 -> 500 | Z32: =SA!CL28-SA!BZ28 -> 900 | AA32: =SA!CM28-SA!CA28 -> 800 | AB32: =SA!CN28-SA!CB28 -> 1000 | AC32: =SA!CO28-SA!CC28 -> -400 | AD32: =SA!CP28-SA!CD28 -> 1300 | AE32: =SA!CQ28-SA!CE28 -> 1400 | AF32: =SA!CR28-SA!CF28 -> 1100 | AG32: =SA!CS28-SA!CG28 -> 900 | AH32: =SA!CT28-SA!CH28 -> 700 | AI32: =SA!CU28-SA!CI28 -> 1000 | AJ32: =SA!CV28-SA!CJ28 -> 1500 | AK32: =SA!CW28-SA!CK28 -> 1300 | AL32: =SA!CX28-SA!CL28 -> 900 | AM32: =SA!CY28-SA!CM28 -> 400 | AN32: =SA!CZ28-SA!CN28 -> -100 | AO32: =SA!DA28-SA!CO28 -> -100 | AP32: =SA!DB28-SA!CP28 -> -300 | AQ32: =SA!DC28-SA!CQ28 -> -500 | AR32: =SA!DD28-SA!CR28 -> -300 | AS32: =SA!DE28-SA!CS28 -> -100 | AT32: =SA!DF28-SA!CT28 -> -800 | AU32: =SA!DG28-SA!CU28 -> -200 | AV32: =SA!DH28-SA!CV28 -> -1300 | AW32: =SA!DI28-SA!CW28 -> -1000 | AX32: =SA!DJ28-SA!CX28 -> -1400 | AY32: =SA!DK28-SA!CY28 -> -1600 | AZ32: =SA!DL28-SA!CZ28 -> -1300 | BA32: =SA!DM28-SA!DA28 -> -1600 | BB32: =SA!DN28-SA!DB28 -> -500 | BC32: =SA!DO28-SA!DC28 -> -700 | BD32: =SA!DP28-SA!DD28 -> -1200 | BE32: =SA!DQ28-SA!DE28 -> -1500 | BF32: =SA!DR28-SA!DF28 -> -300 | BG32: =SA!DS28-SA!DG28 -> -1900 | BH32: =SA!DT28-SA!DH28 -> -800 | BI32: =SA!DU28-SA!DI28 -> -1400 | BJ32: =SA!DV28-SA!DJ28 -> -900 | BK32: =SA!DW28-SA!DK28 -> -600 | BL32: =SA!DX28-SA!DL28 -> -200 | BM32: =SA!DY28-SA!DM28 -> 1700 | BN32: =SA!DZ28-SA!DN28 -> -600 | BO32: =SA!EA28-SA!DO28 -> -1300 | BP32: =SA!EB28-SA!DP28 -> 200 | BQ32: =SA!EC28-SA!DQ28 -> 500 | BR32: =SA!ED28-SA!DR28 -> -200 | BS32: =SA!EE28-SA!DS28 -> 600 | BT32: =SA!EF28-SA!DT28 -> 300 | BU32: =SA!EG28-SA!DU28 -> 700 | BV32: =SA!EH28-SA!DV28 -> 400 | BW32: =SA!EI28-SA!DW28 -> 700 | BX32: =SA!EJ28-SA!DX28 -> -100 | BY32: =SA!EK28-SA!DY28 -> -700 | BZ32: =SA!EL28-SA!DZ28 -> -500 | CA32: =SA!EM28-SA!EA28 -> 800 | CB32: =SA!EN28-SA!EB28 -> 500 | CC32: =SA!EO28-SA!EC28 -> 300 | CD32: =SA!EP28-SA!ED28 -> 600 | CE32: =SA!EQ28-SA!EE28 -> 1000 | CF32: =SA!ER28-SA!EF28 -> 900 | CG32: =SA!ES28-SA!EG28 -> 800 | CH32: =SA!ET28-SA!EH28 -> 1000 | CI32: =SA!EU28-SA!EI28 -> 500 | CJ32: =SA!EV28-SA!EJ28 -> 2100 | CK32: =SA!EW28-SA!EK28 -> 2700 | CL32: =SA!EX28-SA!EL28 -> 1400 | CM32: =SA!EY28-SA!EM28 -> 900 | CN32: =SA!EZ28-SA!EN28 -> 300 | CO32: =SA!FA28-SA!EO28 -> 100 | CP32: =SA!FB28-SA!EP28 -> 800 | CQ32: =SA!FC28-SA!EQ28 -> -100 | CR32: =SA!FD28-SA!ER28 -> -200 | CS32: =SA!FE28-SA!ES28 -> 100 | CT32: =SA!FF28-SA!ET28 -> 200 | CU32: =SA!FG28-SA!EU28 -> 400 | CV32: =SA!FH28-SA!EV28 -> -1000 | CW32: =SA!FI28-SA!EW28 -> -2500 | CX32: =SA!FJ28-SA!EX28 -> 400 | CY32: =SA!FK28-SA!EY28 -> 300 | CZ32: =SA!FL28-SA!EZ28 -> 200 | DA32: =SA!FM28-SA!FA28 -> 700 | DB32: =SA!FN28-SA!FB28 -> 400 | DC32: =SA!FO28-SA!FC28 -> 900 | DD32: =SA!FP28-SA!FD28 -> 1300 | DE32: =SA!FQ28-SA!FE28 -> 1200 | DF32: =SA!FR28-SA!FF28 -> 800 | DG32: =SA!FS28-SA!FG28 -> 1000 | DH32: =SA!FT28-SA!FH28 -> 1000 | DI32: =SA!FU28-SA!FI28 -> 1700 | DJ32: =SA!FV28-SA!FJ28 -> 100 | DK32: =SA!FW28-SA!FK28 -> 800 | DL32: =SA!FX28-SA!FL28 -> 1100 | DM32: =SA!FY28-SA!FM28 -> 700 | DN32: =SA!FZ28-SA!FN28 -> 300 | DO32: =SA!GA28-SA!FO28 -> 0 | DP32: =SA!GB28-SA!FP28 -> 300 | DQ32: =SA!GC28-SA!FQ28 -> 300 | DR32: =SA!GD28-SA!FR28 -> 1000 | DS32: =SA!GE28-SA!FS28 -> 500 | DT32: =SA!GF28-SA!FT28 -> 1200 | DU32: =SA!GG28-SA!FU28 -> 900 | DV32: =SA!GH28-SA!FV28 -> 1700 | DW32: =SA!GI28-SA!FW28 -> 1600 | DX32: =SA!GJ28-SA!FX28 -> 600 | DY32: =SA!GK28-SA!FY28 -> 1000 | DZ32: =SA!GL28-SA!FZ28 -> 1200 | EA32: =SA!GM28-SA!GA28 -> 2300 | EB32: =SA!GN28-SA!GB28 -> 2300 | EC32: =SA!GO28-SA!GC28 -> 1300 | ED32: =SA!GP28-SA!GD28 -> 1500 | EE32: =SA!GQ28-SA!GE28 -> 2200 | EF32: =SA!GR28-SA!GF28 -> 1800 | EG32: =SA!GS28-SA!GG28 -> 1700 | EH32: =SA!GT28-SA!GH28 -> 1500 | EI32: =SA!GU28-SA!GI28 -> 1200 | EJ32: =SA!GV28-SA!GJ28 -> 2300 | EK32: =SA!GW28-SA!GK28 -> 2100 | EL32: =SA!GX28-SA!GL28 -> 1800 | EM32: =SA!GY28-SA!GM28 -> 500 | EN32: =SA!GZ28-SA!GN28 -> -500 | EO32: =SA!HA28-SA!GO28 -> -300 | EP32: =SA!HB28-SA!GP28 -> -1700 | EQ32: =SA!HC28-SA!GQ28 -> -2500 | ER32: =SA!HD28-SA!GR28 -> -900 | ES32: =SA!HE28-SA!GS28 -> 700 | ET32: =SA!HF28-SA!GT28 -> 400 | EU32: =SA!HG28-SA!GU28 -> 3100 | EV32: =SA!HH28-SA!GV28 -> 2200 | EW32: =SA!HI28-SA!GW28 -> 2300 | EX32: =SA!HJ28-SA!GX28 -> 2000 | EY32: =SA!HK28-SA!GY28 -> -39200 | EZ32: =SA!HL28-SA!GZ28 -> -38700 | FA32: =SA!HM28-SA!HA28 -> -38100 | FB32: 9225 | FC32: 0 | FE32: Arts, Entertainment, and Recreation | FF32: -2500 | FG32: -600 | FH32: -50 | FI32: 400 | FJ32: 500 | FK32: 900 | FL32: 1300 | FM32: 2700 | FN32: 933.6843648
A33: Accommodation and Food Services | B33: =SA!BN29-SA!BB29 -> 3700 | C33: =SA!BO29-SA!BC29 -> 5400 | D33: =SA!BP29-SA!BD29 -> 5400 | E33: =SA!BQ29-SA!BE29 -> 7000 | F33: =SA!BR29-SA!BF29 -> 5200 | G33: =SA!BS29-SA!BG29 -> 5300 | H33: =SA!BT29-SA!BH29 -> 2900 | I33: =SA!BU29-SA!BI29 -> 3200 | J33: =SA!BV29-SA!BJ29 -> 3800 | K33: =SA!BW29-SA!BK29 -> 2000 | L33: =SA!BX29-SA!BL29 -> 3900 | M33: =SA!BY29-SA!BM29 -> 3300 | N33: =SA!BZ29-SA!BN29 -> 5400 | O33: =SA!CA29-SA!BO29 -> 5100 | P33: =SA!CB29-SA!BP29 -> 5200 | Q33: =SA!CC29-SA!BQ29 -> 2100 | R33: =SA!CD29-SA!BR29 -> 2300 | S33: =SA!CE29-SA!BS29 -> 3600 | T33: =SA!CF29-SA!BT29 -> 3700 | U33: =SA!CG29-SA!BU29 -> 3400 | V33: =SA!CH29-SA!BV29 -> 2700 | W33: =SA!CI29-SA!BW29 -> 5000 | X33: =SA!CJ29-SA!BX29 -> 3700 | Y33: =SA!CK29-SA!BY29 -> 4600 | Z33: =SA!CL29-SA!BZ29 -> 3400 | AA33: =SA!CM29-SA!CA29 -> 2800 | AB33: =SA!CN29-SA!CB29 -> 1900 | AC33: =SA!CO29-SA!CC29 -> 2000 | AD33: =SA!CP29-SA!CD29 -> 2600 | AE33: =SA!CQ29-SA!CE29 -> 2400 | AF33: =SA!CR29-SA!CF29 -> 900 | AG33: =SA!CS29-SA!CG29 -> 1400 | AH33: =SA!CT29-SA!CH29 -> 0 | AI33: =SA!CU29-SA!CI29 -> 300 | AJ33: =SA!CV29-SA!CJ29 -> 700 | AK33: =SA!CW29-SA!CK29 -> -400 | AL33: =SA!CX29-SA!CL29 -> -1400 | AM33: =SA!CY29-SA!CM29 -> -1900 | AN33: =SA!CZ29-SA!CN29 -> -1700 | AO33: =SA!DA29-SA!CO29 -> -1100 | AP33: =SA!DB29-SA!CP29 -> -1300 | AQ33: =SA!DC29-SA!CQ29 -> -2400 | AR33: =SA!DD29-SA!CR29 -> -1800 | AS33: =SA!DE29-SA!CS29 -> -3200 | AT33: =SA!DF29-SA!CT29 -> -1400 | AU33: =SA!DG29-SA!CU29 -> -3200 | AV33: =SA!DH29-SA!CV29 -> -3500 | AW33: =SA!DI29-SA!CW29 -> -4300 | AX33: =SA!DJ29-SA!CX29 -> -5600 | AY33: =SA!DK29-SA!CY29 -> -4300 | AZ33: =SA!DL29-SA!CZ29 -> -5400 | BA33: =SA!DM29-SA!DA29 -> -6200 | BB33: =SA!DN29-SA!DB29 -> -4500 | BC33: =SA!DO29-SA!DC29 -> -4900 | BD33: =SA!DP29-SA!DD29 -> -5800 | BE33: =SA!DQ29-SA!DE29 -> -5900 | BF33: =SA!DR29-SA!DF29 -> -6200 | BG33: =SA!DS29-SA!DG29 -> -6400 | BH33: =SA!DT29-SA!DH29 -> -6900 | BI33: =SA!DU29-SA!DI29 -> -5600 | BJ33: =SA!DV29-SA!DJ29 -> -3100 | BK33: =SA!DW29-SA!DK29 -> -4700 | BL33: =SA!DX29-SA!DL29 -> -4300 | BM33: =SA!DY29-SA!DM29 -> -2400 | BN33: =SA!DZ29-SA!DN29 -> -3300 | BO33: =SA!EA29-SA!DO29 -> -2100 | BP33: =SA!EB29-SA!DP29 -> -900 | BQ33: =SA!EC29-SA!DQ29 -> 500 | BR33: =SA!ED29-SA!DR29 -> 400 | BS33: =SA!EE29-SA!DS29 -> 1800 | BT33: =SA!EF29-SA!DT29 -> 2400 | BU33: =SA!EG29-SA!DU29 -> 2100 | BV33: =SA!EH29-SA!DV29 -> 1100 | BW33: =SA!EI29-SA!DW29 -> 900 | BX33: =SA!EJ29-SA!DX29 -> 1400 | BY33: =SA!EK29-SA!DY29 -> 700 | BZ33: =SA!EL29-SA!DZ29 -> 800 | CA33: =SA!EM29-SA!EA29 -> 600 | CB33: =SA!EN29-SA!EB29 -> 600 | CC33: =SA!EO29-SA!EC29 -> 800 | CD33: =SA!EP29-SA!ED29 -> 1000 | CE33: =SA!EQ29-SA!EE29 -> 200 | CF33: =SA!ER29-SA!EF29 -> -400 | CG33: =SA!ES29-SA!EG29 -> -700 | CH33: =SA!ET29-SA!EH29 -> 900 | CI33: =SA!EU29-SA!EI29 -> 2800 | CJ33: =SA!EV29-SA!EJ29 -> 3700 | CK33: =SA!EW29-SA!EK29 -> 3700 | CL33: =SA!EX29-SA!EL29 -> 3700 | CM33: =SA!EY29-SA!EM29 -> 4800 | CN33: =SA!EZ29-SA!EN29 -> 4400 | CO33: =SA!FA29-SA!EO29 -> 3400 | CP33: =SA!FB29-SA!EP29 -> 4000 | CQ33: =SA!FC29-SA!EQ29 -> 3200 | CR33: =SA!FD29-SA!ER29 -> 4100 | CS33: =SA!FE29-SA!ES29 -> 5300 | CT33: =SA!FF29-SA!ET29 -> 4200 | CU33: =SA!FG29-SA!EU29 -> 3900 | CV33: =SA!FH29-SA!EV29 -> 3400 | CW33: =SA!FI29-SA!EW29 -> 2400 | CX33: =SA!FJ29-SA!EX29 -> 3200 | CY33: =SA!FK29-SA!EY29 -> 2600 | CZ33: =SA!FL29-SA!EZ29 -> 3800 | DA33: =SA!FM29-SA!FA29 -> 5100 | DB33: =SA!FN29-SA!FB29 -> 4700 | DC33: =SA!FO29-SA!FC29 -> 5400 | DD33: =SA!FP29-SA!FD29 -> 4600 | DE33: =SA!FQ29-SA!FE29 -> 3900 | DF33: =SA!FR29-SA!FF29 -> 3500 | DG33: =SA!FS29-SA!FG29 -> 2900 | DH33: =SA!FT29-SA!FH29 -> 2600 | DI33: =SA!FU29-SA!FI29 -> 3900 | DJ33: =SA!FV29-SA!FJ29 -> 3000 | DK33: =SA!FW29-SA!FK29 -> 3600 | DL33: =SA!FX29-SA!FL29 -> 500 | DM33: =SA!FY29-SA!FM29 -> 400 | DN33: =SA!FZ29-SA!FN29 -> 300 | DO33: =SA!GA29-SA!FO29 -> 1200 | DP33: =SA!GB29-SA!FP29 -> 2000 | DQ33: =SA!GC29-SA!FQ29 -> 2300 | DR33: =SA!GD29-SA!FR29 -> 4000 | DS33: =SA!GE29-SA!FS29 -> 4300 | DT33: =SA!GF29-SA!FT29 -> 5100 | DU33: =SA!GG29-SA!FU29 -> 4700 | DV33: =SA!GH29-SA!FV29 -> 5100 | DW33: =SA!GI29-SA!FW29 -> 4300 | DX33: =SA!GJ29-SA!FX29 -> 6700 | DY33: =SA!GK29-SA!FY29 -> 6100 | DZ33: =SA!GL29-SA!FZ29 -> 5900 | EA33: =SA!GM29-SA!GA29 -> 6300 | EB33: =SA!GN29-SA!GB29 -> 7000 | EC33: =SA!GO29-SA!GC29 -> 7200 | ED33: =SA!GP29-SA!GD29 -> 5800 | EE33: =SA!GQ29-SA!GE29 -> 6200 | EF33: =SA!GR29-SA!GF29 -> 4600 | EG33: =SA!GS29-SA!GG29 -> 4000 | EH33: =SA!GT29-SA!GH29 -> 3100 | EI33: =SA!GU29-SA!GI29 -> 2100 | EJ33: =SA!GV29-SA!GJ29 -> 2700 | EK33: =SA!GW29-SA!GK29 -> 2200 | EL33: =SA!GX29-SA!GL29 -> 1800 | EM33: =SA!GY29-SA!GM29 -> 1000 | EN33: =SA!GZ29-SA!GN29 -> 0 | EO33: =SA!HA29-SA!GO29 -> 100 | EP33: =SA!HB29-SA!GP29 -> -500 | EQ33: =SA!HC29-SA!GQ29 -> 4400 | ER33: =SA!HD29-SA!GR29 -> 1300 | ES33: =SA!HE29-SA!GS29 -> 1900 | ET33: =SA!HF29-SA!GT29 -> 3700 | EU33: =SA!HG29-SA!GU29 -> 7700 | EV33: =SA!HH29-SA!GV29 -> 4800 | EW33: =SA!HI29-SA!GW29 -> 4600 | EX33: =SA!HJ29-SA!GX29 -> 1800 | EY33: =SA!HK29-SA!GY29 -> -235400 | EZ33: =SA!HL29-SA!GZ29 -> -235600 | FA33: =SA!HM29-SA!HA29 -> -236200 | FB33: 10293 | FC33: 0 | FE33: Accommodation and Food Services | FF33: -6900 | FG33: -2400 | FH33: 500 | FI33: 2025 | FJ33: 2775 | FK33: 3700 | FL33: 5025 | FM33: 7200 | FN33: 3366.181824
A34: Other Services | B34: =SA!BN30-SA!BB30 -> 1700 | C34: =SA!BO30-SA!BC30 -> 1600 | D34: =SA!BP30-SA!BD30 -> 1400 | E34: =SA!BQ30-SA!BE30 -> 1500 | F34: =SA!BR30-SA!BF30 -> 1300 | G34: =SA!BS30-SA!BG30 -> 600 | H34: =SA!BT30-SA!BH30 -> 700 | I34: =SA!BU30-SA!BI30 -> 500 | J34: =SA!BV30-SA!BJ30 -> 500 | K34: =SA!BW30-SA!BK30 -> -1200 | L34: =SA!BX30-SA!BL30 -> 0 | M34: =SA!BY30-SA!BM30 -> 700 | N34: =SA!BZ30-SA!BN30 -> 100 | O34: =SA!CA30-SA!BO30 -> -300 | P34: =SA!CB30-SA!BP30 -> -200 | Q34: =SA!CC30-SA!BQ30 -> -500 | R34: =SA!CD30-SA!BR30 -> -400 | S34: =SA!CE30-SA!BS30 -> 100 | T34: =SA!CF30-SA!BT30 -> 0 | U34: =SA!CG30-SA!BU30 -> -100 | V34: =SA!CH30-SA!BV30 -> 100 | W34: =SA!CI30-SA!BW30 -> 200 | X34: =SA!CJ30-SA!BX30 -> 400 | Y34: =SA!CK30-SA!BY30 -> 600 | Z34: =SA!CL30-SA!BZ30 -> 1200 | AA34: =SA!CM30-SA!CA30 -> 1500 | AB34: =SA!CN30-SA!CB30 -> 1500 | AC34: =SA!CO30-SA!CC30 -> 1800 | AD34: =SA!CP30-SA!CD30 -> 1900 | AE34: =SA!CQ30-SA!CE30 -> 1800 | AF34: =SA!CR30-SA!CF30 -> 1800 | AG34: =SA!CS30-SA!CG30 -> 1500 | AH34: =SA!CT30-SA!CH30 -> 1000 | AI34: =SA!CU30-SA!CI30 -> 1700 | AJ34: =SA!CV30-SA!CJ30 -> 1700 | AK34: =SA!CW30-SA!CK30 -> 1500 | AL34: =SA!CX30-SA!CL30 -> 900 | AM34: =SA!CY30-SA!CM30 -> 900 | AN34: =SA!CZ30-SA!CN30 -> 900 | AO34: =SA!DA30-SA!CO30 -> 1100 | AP34: =SA!DB30-SA!CP30 -> 1200 | AQ34: =SA!DC30-SA!CQ30 -> 1200 | AR34: =SA!DD30-SA!CR30 -> 1200 | AS34: =SA!DE30-SA!CS30 -> 1700 | AT34: =SA!DF30-SA!CT30 -> 1900 | AU34: =SA!DG30-SA!CU30 -> 3300 | AV34: =SA!DH30-SA!CV30 -> 2100 | AW34: =SA!DI30-SA!CW30 -> 1400 | AX34: =SA!DJ30-SA!CX30 -> 1200 | AY34: =SA!DK30-SA!CY30 -> 900 | AZ34: =SA!DL30-SA!CZ30 -> 800 | BA34: =SA!DM30-SA!DA30 -> -300 | BB34: =SA!DN30-SA!DB30 -> -600 | BC34: =SA!DO30-SA!DC30 -> -800 | BD34: =SA!DP30-SA!DD30 -> -1200 | BE34: =SA!DQ30-SA!DE30 -> -1600 | BF34: =SA!DR30-SA!DF30 -> -1500 | BG34: =SA!DS30-SA!DG30 -> -3700 | BH34: =SA!DT30-SA!DH30 -> -2600 | BI34: =SA!DU30-SA!DI30 -> -2200 | BJ34: =SA!DV30-SA!DJ30 -> -2300 | BK34: =SA!DW30-SA!DK30 -> -2100 | BL34: =SA!DX30-SA!DL30 -> -2000 | BM34: =SA!DY30-SA!DM30 -> -1100 | BN34: =SA!DZ30-SA!DN30 -> -1400 | BO34: =SA!EA30-SA!DO30 -> -1400 | BP34: =SA!EB30-SA!DP30 -> -900 | BQ34: =SA!EC30-SA!DQ30 -> -700 | BR34: =SA!ED30-SA!DR30 -> -800 | BS34: =SA!EE30-SA!DS30 -> 0 | BT34: =SA!EF30-SA!DT30 -> -500 | BU34: =SA!EG30-SA!DU30 -> -400 | BV34: =SA!EH30-SA!DV30 -> 200 | BW34: =SA!EI30-SA!DW30 -> 100 | BX34: =SA!EJ30-SA!DX30 -> 100 | BY34: =SA!EK30-SA!DY30 -> 0 | BZ34: =SA!EL30-SA!DZ30 -> 300 | CA34: =SA!EM30-SA!EA30 -> 200 | CB34: =SA!EN30-SA!EB30 -> 600 | CC34: =SA!EO30-SA!EC30 -> 400 | CD34: =SA!EP30-SA!ED30 -> 400 | CE34: =SA!EQ30-SA!EE30 -> -400 | CF34: =SA!ER30-SA!EF30 -> 200 | CG34: =SA!ES30-SA!EG30 -> 700 | CH34: =SA!ET30-SA!EH30 -> 500 | CI34: =SA!EU30-SA!EI30 -> 900 | CJ34: =SA!EV30-SA!EJ30 -> 600 | CK34: =SA!EW30-SA!EK30 -> 600 | CL34: =SA!EX30-SA!EL30 -> 500 | CM34: =SA!EY30-SA!EM30 -> 1900 | CN34: =SA!EZ30-SA!EN30 -> 300 | CO34: =SA!FA30-SA!EO30 -> 500 | CP34: =SA!FB30-SA!EP30 -> 500 | CQ34: =SA!FC30-SA!EQ30 -> 500 | CR34: =SA!FD30-SA!ER30 -> 500 | CS34: =SA!FE30-SA!ES30 -> 0 | CT34: =SA!FF30-SA!ET30 -> -200 | CU34: =SA!FG30-SA!EU30 -> -600 | CV34: =SA!FH30-SA!EV30 -> -200 | CW34: =SA!FI30-SA!EW30 -> -500 | CX34: =SA!FJ30-SA!EX30 -> 0 | CY34: =SA!FK30-SA!EY30 -> -900 | CZ34: =SA!FL30-SA!EZ30 -> -200 | DA34: =SA!FM30-SA!FA30 -> 100 | DB34: =SA!FN30-SA!FB30 -> 1100 | DC34: =SA!FO30-SA!FC30 -> 500 | DD34: =SA!FP30-SA!FD30 -> 1600 | DE34: =SA!FQ30-SA!FE30 -> 2100 | DF34: =SA!FR30-SA!FF30 -> 3000 | DG34: =SA!FS30-SA!FG30 -> 3800 | DH34: =SA!FT30-SA!FH30 -> 3700 | DI34: =SA!FU30-SA!FI30 -> 4500 | DJ34: =SA!FV30-SA!FJ30 -> 4700 | DK34: =SA!FW30-SA!FK30 -> 5200 | DL34: =SA!FX30-SA!FL30 -> 6200 | DM34: =SA!FY30-SA!FM30 -> 6700 | DN34: =SA!FZ30-SA!FN30 -> 6200 | DO34: =SA!GA30-SA!FO30 -> 7100 | DP34: =SA!GB30-SA!FP30 -> 6400 | DQ34: =SA!GC30-SA!FQ30 -> 6300 | DR34: =SA!GD30-SA!FR30 -> 6800 | DS34: =SA!GE30-SA!FS30 -> 6500 | DT34: =SA!GF30-SA!FT30 -> 6700 | DU34: =SA!GG30-SA!FU30 -> 6400 | DV34: =SA!GH30-SA!FV30 -> 6100 | DW34: =SA!GI30-SA!FW30 -> 5300 | DX34: =SA!GJ30-SA!FX30 -> 4500 | DY34: =SA!GK30-SA!FY30 -> 3500 | DZ34: =SA!GL30-SA!FZ30 -> 3300 | EA34: =SA!GM30-SA!GA30 -> 3200 | EB34: =SA!GN30-SA!GB30 -> 2700 | EC34: =SA!GO30-SA!GC30 -> 2700 | ED34: =SA!GP30-SA!GD30 -> 1800 | EE34: =SA!GQ30-SA!GE30 -> 1300 | EF34: =SA!GR30-SA!GF30 -> 1000 | EG34: =SA!GS30-SA!GG30 -> 600 | EH34: =SA!GT30-SA!GH30 -> 300 | EI34: =SA!GU30-SA!GI30 -> 400 | EJ34: =SA!GV30-SA!GJ30 -> 900 | EK34: =SA!GW30-SA!GK30 -> 1200 | EL34: =SA!GX30-SA!GL30 -> 1200 | EM34: =SA!GY30-SA!GM30 -> 2000 | EN34: =SA!GZ30-SA!GN30 -> 2100 | EO34: =SA!HA30-SA!GO30 -> 3000 | EP34: =SA!HB30-SA!GP30 -> 1900 | EQ34: =SA!HC30-SA!GQ30 -> 3500 | ER34: =SA!HD30-SA!GR30 -> 3200 | ES34: =SA!HE30-SA!GS30 -> 4100 | ET34: =SA!HF30-SA!GT30 -> 1600 | EU34: =SA!HG30-SA!GU30 -> 3400 | EV34: =SA!HH30-SA!GV30 -> 3000 | EW34: =SA!HI30-SA!GW30 -> 3000 | EX34: =SA!HJ30-SA!GX30 -> 2300 | EY34: =SA!HK30-SA!GY30 -> -150400 | EZ34: =SA!HL30-SA!GZ30 -> -150500 | FA34: =SA!HM30-SA!HA30 -> -151700 | FB34: 7819 | FC34: 0 | FE34: Other Services | FF34: -3700 | FG34: -500 | FH34: 100 | FI34: 525 | FJ34: 900 | FK34: 1550 | FL34: 3225 | FM34: 7100 | FN34: 2116.039113
A35: Government | B35: =SA!BN31-SA!BB31 -> 8300 | C35: =SA!BO31-SA!BC31 -> 4500 | D35: =SA!BP31-SA!BD31 -> 2100 | E35: =SA!BQ31-SA!BE31 -> 4700 | F35: =SA!BR31-SA!BF31 -> 3400 | G35: =SA!BS31-SA!BG31 -> -700 | H35: =SA!BT31-SA!BH31 -> 1300 | I35: =SA!BU31-SA!BI31 -> -100 | J35: =SA!BV31-SA!BJ31 -> 8000 | K35: =SA!BW31-SA!BK31 -> 2500 | L35: =SA!BX31-SA!BL31 -> -700 | M35: =SA!BY31-SA!BM31 -> 4900 | N35: =SA!BZ31-SA!BN31 -> -1000 | O35: =SA!CA31-SA!BO31 -> -1600 | P35: =SA!CB31-SA!BP31 -> 1300 | Q35: =SA!CC31-SA!BQ31 -> 800 | R35: =SA!CD31-SA!BR31 -> -400 | S35: =SA!CE31-SA!BS31 -> 4100 | T35: =SA!CF31-SA!BT31 -> 1600 | U35: =SA!CG31-SA!BU31 -> 2000 | V35: =SA!CH31-SA!BV31 -> -300 | W35: =SA!CI31-SA!BW31 -> -1700 | X35: =SA!CJ31-SA!BX31 -> 900 | Y35: =SA!CK31-SA!BY31 -> -2300 | Z35: =SA!CL31-SA!BZ31 -> -1500 | AA35: =SA!CM31-SA!CA31 -> -1600 | AB35: =SA!CN31-SA!CB31 -> -1700 | AC35: =SA!CO31-SA!CC31 -> -400 | AD35: =SA!CP31-SA!CD31 -> 2100 | AE35: =SA!CQ31-SA!CE31 -> 3600 | AF35: =SA!CR31-SA!CF31 -> 1300 | AG35: =SA!CS31-SA!CG31 -> 2500 | AH35: =SA!CT31-SA!CH31 -> 3100 | AI35: =SA!CU31-SA!CI31 -> 1400 | AJ35: =SA!CV31-SA!CJ31 -> -1000 | AK35: =SA!CW31-SA!CK31 -> 3100 | AL35: =SA!CX31-SA!CL31 -> 6500 | AM35: =SA!CY31-SA!CM31 -> 6500 | AN35: =SA!CZ31-SA!CN31 -> 4600 | AO35: =SA!DA31-SA!CO31 -> 2100 | AP35: =SA!DB31-SA!CP31 -> 4100 | AQ35: =SA!DC31-SA!CQ31 -> -1000 | AR35: =SA!DD31-SA!CR31 -> 4900 | AS35: =SA!DE31-SA!CS31 -> 2300 | AT35: =SA!DF31-SA!CT31 -> 10500 | AU35: =SA!DG31-SA!CU31 -> 9200 | AV35: =SA!DH31-SA!CV31 -> 14500 | AW35: =SA!DI31-SA!CW31 -> 7300 | AX35: =SA!DJ31-SA!CX31 -> 2100 | AY35: =SA!DK31-SA!CY31 -> 4000 | AZ35: =SA!DL31-SA!CZ31 -> 4600 | BA35: =SA!DM31-SA!DA31 -> 5200 | BB35: =SA!DN31-SA!DB31 -> 3700 | BC35: =SA!DO31-SA!DC31 -> 1200 | BD35: =SA!DP31-SA!DD31 -> -800 | BE35: =SA!DQ31-SA!DE31 -> -2000 | BF35: =SA!DR31-SA!DF31 -> -14800 | BG35: =SA!DS31-SA!DG31 -> -5100 | BH35: =SA!DT31-SA!DH31 -> -10200 | BI35: =SA!DU31-SA!DI31 -> -4600 | BJ35: =SA!DV31-SA!DJ31 -> -3500 | BK35: =SA!DW31-SA!DK31 -> -6200 | BL35: =SA!DX31-SA!DL31 -> -4900 | BM35: =SA!DY31-SA!DM31 -> -600 | BN35: =SA!DZ31-SA!DN31 -> 2000 | BO35: =SA!EA31-SA!DO31 -> 2200 | BP35: =SA!EB31-SA!DP31 -> -2000 | BQ35: =SA!EC31-SA!DQ31 -> -1300 | BR35: =SA!ED31-SA!DR31 -> 1300 | BS35: =SA!EE31-SA!DS31 -> -1100 | BT35: =SA!EF31-SA!DT31 -> 1500 | BU35: =SA!EG31-SA!DU31 -> -5500 | BV35: =SA!EH31-SA!DV31 -> -2200 | BW35: =SA!EI31-SA!DW31 -> 1300 | BX35: =SA!EJ31-SA!DX31 -> 600 | BY35: =SA!EK31-SA!DY31 -> -5800 | BZ35: =SA!EL31-SA!DZ31 -> -8200 | CA35: =SA!EM31-SA!EA31 -> -8300 | CB35: =SA!EN31-SA!EB31 -> -100 | CC35: =SA!EO31-SA!EC31 -> -3400 | CD35: =SA!EP31-SA!ED31 -> -6000 | CE35: =SA!EQ31-SA!EE31 -> -9800 | CF35: =SA!ER31-SA!EF31 -> -13300 | CG35: =SA!ES31-SA!EG31 -> -3900 | CH35: =SA!ET31-SA!EH31 -> -15700 | CI35: =SA!EU31-SA!EI31 -> -14400 | CJ35: =SA!EV31-SA!EJ31 -> -8100 | CK35: =SA!EW31-SA!EK31 -> -1800 | CL35: =SA!EX31-SA!EL31 -> 700 | CM35: =SA!EY31-SA!EM31 -> -2000 | CN35: =SA!EZ31-SA!EN31 -> -9200 | CO35: =SA!FA31-SA!EO31 -> -1200 | CP35: =SA!FB31-SA!EP31 -> -1400 | CQ35: =SA!FC31-SA!EQ31 -> 2700 | CR35: =SA!FD31-SA!ER31 -> 9400 | CS35: =SA!FE31-SA!ES31 -> 400 | CT35: =SA!FF31-SA!ET31 -> -800 | CU35: =SA!FG31-SA!EU31 -> 8700 | CV35: =SA!FH31-SA!EV31 -> 100 | CW35: =SA!FI31-SA!EW31 -> -4900 | CX35: =SA!FJ31-SA!EX31 -> -9600 | CY35: =SA!FK31-SA!EY31 -> -3700 | CZ35: =SA!FL31-SA!EZ31 -> -200 | DA35: =SA!FM31-SA!FA31 -> -3500 | DB35: =SA!FN31-SA!FB31 -> 1100 | DC35: =SA!FO31-SA!FC31 -> -200 | DD35: =SA!FP31-SA!FD31 -> -6300 | DE35: =SA!FQ31-SA!FE31 -> -600 | DF35: =SA!FR31-SA!FF31 -> 11200 | DG35: =SA!FS31-SA!FG31 -> -3900 | DH35: =SA!FT31-SA!FH31 -> -500 | DI35: =SA!FU31-SA!FI31 -> 1600 | DJ35: =SA!FV31-SA!FJ31 -> 1800 | DK35: =SA!FW31-SA!FK31 -> 2100 | DL35: =SA!FX31-SA!FL31 -> 2100 | DM35: =SA!FY31-SA!FM31 -> 8100 | DN35: =SA!FZ31-SA!FN31 -> 1100 | DO35: =SA!GA31-SA!FO31 -> 300 | DP35: =SA!GB31-SA!FP31 -> 6800 | DQ35: =SA!GC31-SA!FQ31 -> 500 | DR35: =SA!GD31-SA!FR31 -> -1900 | DS35: =SA!GE31-SA!FS31 -> 1900 | DT35: =SA!GF31-SA!FT31 -> 200 | DU35: =SA!GG31-SA!FU31 -> -500 | DV35: =SA!GH31-SA!FV31 -> -1100 | DW35: =SA!GI31-SA!FW31 -> -1500 | DX35: =SA!GJ31-SA!FX31 -> -3300 | DY35: =SA!GK31-SA!FY31 -> -9300 | DZ35: =SA!GL31-SA!FZ31 -> -4800 | EA35: =SA!GM31-SA!GA31 -> -3800 | EB35: =SA!GN31-SA!GB31 -> -11600 | EC35: =SA!GO31-SA!GC31 -> -2200 | ED35: =SA!GP31-SA!GD31 -> 200 | EE35: =SA!GQ31-SA!GE31 -> -900 | EF35: =SA!GR31-SA!GF31 -> -600 | EG35: =SA!GS31-SA!GG31 -> 200 | EH35: =SA!GT31-SA!GH31 -> -1800 | EI35: =SA!GU31-SA!GI31 -> 400 | EJ35: =SA!GV31-SA!GJ31 -> 4300 | EK35: =SA!GW31-SA!GK31 -> 6500 | EL35: =SA!GX31-SA!GL31 -> 1200 | EM35: =SA!GY31-SA!GM31 -> 7600 | EN35: =SA!GZ31-SA!GN31 -> 15700 | EO35: =SA!HA31-SA!GO31 -> 9200 | EP35: =SA!HB31-SA!GP31 -> 3100 | EQ35: =SA!HC31-SA!GQ31 -> 6000 | ER35: =SA!HD31-SA!GR31 -> 1700 | ES35: =SA!HE31-SA!GS31 -> 8100 | ET35: =SA!HF31-SA!GT31 -> 10000 | EU35: =SA!HG31-SA!GU31 -> 900 | EV35: =SA!HH31-SA!GV31 -> 4300 | EW35: =SA!HI31-SA!GW31 -> -2100 | EX35: =SA!HJ31-SA!GX31 -> 5800 | EY35: =SA!HK31-SA!GY31 -> -415600 | EZ35: =SA!HL31-SA!GZ31 -> -420500 | FA35: =SA!HM31-SA!HA31 -> -418200 | FB35: n/a | FE35: Government | FF35: -15700 | FG35: -4825 | FH35: -1600 | FI35: -400 | FJ35: 575 | FK35: 2100 | FL35: 4625 | FM35: 15700 | FN35: 5277.127838
A36: Federal Government | B36: =SA!BN32-SA!BB32 -> -200 | C36: =SA!BO32-SA!BC32 -> -200 | D36: =SA!BP32-SA!BD32 -> -200 | E36: =SA!BQ32-SA!BE32 -> -300 | F36: =SA!BR32-SA!BF32 -> -100 | G36: =SA!BS32-SA!BG32 -> -300 | H36: =SA!BT32-SA!BH32 -> -400 | I36: =SA!BU32-SA!BI32 -> -500 | J36: =SA!BV32-SA!BJ32 -> -300 | K36: =SA!BW32-SA!BK32 -> -500 | L36: =SA!BX32-SA!BL32 -> -500 | M36: =SA!BY32-SA!BM32 -> -300 | N36: =SA!BZ32-SA!BN32 -> -300 | O36: =SA!CA32-SA!BO32 -> -300 | P36: =SA!CB32-SA!BP32 -> 0 | Q36: =SA!CC32-SA!BQ32 -> -100 | R36: =SA!CD32-SA!BR32 -> -200 | S36: =SA!CE32-SA!BS32 -> 100 | T36: =SA!CF32-SA!BT32 -> 100 | U36: =SA!CG32-SA!BU32 -> 0 | V36: =SA!CH32-SA!BV32 -> 100 | W36: =SA!CI32-SA!BW32 -> 100 | X36: =SA!CJ32-SA!BX32 -> 200 | Y36: =SA!CK32-SA!BY32 -> 200 | Z36: =SA!CL32-SA!BZ32 -> 300 | AA36: =SA!CM32-SA!CA32 -> 100 | AB36: =SA!CN32-SA!CB32 -> -100 | AC36: =SA!CO32-SA!CC32 -> -100 | AD36: =SA!CP32-SA!CD32 -> 0 | AE36: =SA!CQ32-SA!CE32 -> 0 | AF36: =SA!CR32-SA!CF32 -> -100 | AG36: =SA!CS32-SA!CG32 -> 100 | AH36: =SA!CT32-SA!CH32 -> -100 | AI36: =SA!CU32-SA!CI32 -> 200 | AJ36: =SA!CV32-SA!CJ32 -> 0 | AK36: =SA!CW32-SA!CK32 -> -200 | AL36: =SA!CX32-SA!CL32 -> 0 | AM36: =SA!CY32-SA!CM32 -> 300 | AN36: =SA!CZ32-SA!CN32 -> 300 | AO36: =SA!DA32-SA!CO32 -> 300 | AP36: =SA!DB32-SA!CP32 -> 400 | AQ36: =SA!DC32-SA!CQ32 -> 300 | AR36: =SA!DD32-SA!CR32 -> 600 | AS36: =SA!DE32-SA!CS32 -> 500 | AT36: =SA!DF32-SA!CT32 -> 600 | AU36: =SA!DG32-SA!CU32 -> 200 | AV36: =SA!DH32-SA!CV32 -> 400 | AW36: =SA!DI32-SA!CW32 -> 700 | AX36: =SA!DJ32-SA!CX32 -> 500 | AY36: =SA!DK32-SA!CY32 -> 400 | AZ36: =SA!DL32-SA!CZ32 -> 200 | BA36: =SA!DM32-SA!DA32 -> 2400 | BB36: =SA!DN32-SA!DB32 -> 2300 | BC36: =SA!DO32-SA!DC32 -> 200 | BD36: =SA!DP32-SA!DD32 -> -200 | BE36: =SA!DQ32-SA!DE32 -> -100 | BF36: =SA!DR32-SA!DF32 -> -200 | BG36: =SA!DS32-SA!DG32 -> 200 | BH36: =SA!DT32-SA!DH32 -> 0 | BI36: =SA!DU32-SA!DI32 -> -100 | BJ36: =SA!DV32-SA!DJ32 -> -300 | BK36: =SA!DW32-SA!DK32 -> -300 | BL36: =SA!DX32-SA!DL32 -> 600 | BM36: =SA!DY32-SA!DM32 -> 1600 | BN36: =SA!DZ32-SA!DN32 -> 6000 | BO36: =SA!EA32-SA!DO32 -> 4500 | BP36: =SA!EB32-SA!DP32 -> 2800 | BQ36: =SA!EC32-SA!DQ32 -> 800 | BR36: =SA!ED32-SA!DR32 -> 100 | BS36: =SA!EE32-SA!DS32 -> -200 | BT36: =SA!EF32-SA!DT32 -> -100 | BU36: =SA!EG32-SA!DU32 -> -200 | BV36: =SA!EH32-SA!DV32 -> -100 | BW36: =SA!EI32-SA!DW32 -> -200 | BX36: =SA!EJ32-SA!DX32 -> -800 | BY36: =SA!EK32-SA!DY32 -> -4000 | BZ36: =SA!EL32-SA!DZ32 -> -8500 | CA36: =SA!EM32-SA!EA32 -> -4900 | CB36: =SA!EN32-SA!EB32 -> -2900 | CC36: =SA!EO32-SA!EC32 -> -1100 | CD36: =SA!EP32-SA!ED32 -> -300 | CE36: =SA!EQ32-SA!EE32 -> -200 | CF36: =SA!ER32-SA!EF32 -> -500 | CG36: =SA!ES32-SA!EG32 -> -400 | CH36: =SA!ET32-SA!EH32 -> -500 | CI36: =SA!EU32-SA!EI32 -> -400 | CJ36: =SA!EV32-SA!EJ32 -> -400 | CK36: =SA!EW32-SA!EK32 -> -500 | CL36: =SA!EX32-SA!EL32 -> -400 | CM36: =SA!EY32-SA!EM32 -> -400 | CN36: =SA!EZ32-SA!EN32 -> -400 | CO36: =SA!FA32-SA!EO32 -> -300 | CP36: =SA!FB32-SA!EP32 -> -400 | CQ36: =SA!FC32-SA!EQ32 -> -300 | CR36: =SA!FD32-SA!ER32 -> -400 | CS36: =SA!FE32-SA!ES32 -> -200 | CT36: =SA!FF32-SA!ET32 -> -200 | CU36: =SA!FG32-SA!EU32 -> -100 | CV36: =SA!FH32-SA!EV32 -> -500 | CW36: =SA!FI32-SA!EW32 -> -300 | CX36: =SA!FJ32-SA!EX32 -> -300 | CY36: =SA!FK32-SA!EY32 -> -300 | CZ36: =SA!FL32-SA!EZ32 -> -500 | DA36: =SA!FM32-SA!FA32 -> -700 | DB36: =SA!FN32-SA!FB32 -> -500 | DC36: =SA!FO32-SA!FC32 -> -600 | DD36: =SA!FP32-SA!FD32 -> -100 | DE36: =SA!FQ32-SA!FE32 -> -400 | DF36: =SA!FR32-SA!FF32 -> -200 | DG36: =SA!FS32-SA!FG32 -> -300 | DH36: =SA!FT32-SA!FH32 -> 0 | DI36: =SA!FU32-SA!FI32 -> -200 | DJ36: =SA!FV32-SA!FJ32 -> -100 | DK36: =SA!FW32-SA!FK32 -> -100 | DL36: =SA!FX32-SA!FL32 -> 0 | DM36: =SA!FY32-SA!FM32 -> 200 | DN36: =SA!FZ32-SA!FN32 -> 100 | DO36: =SA!GA32-SA!FO32 -> 100 | DP36: =SA!GB32-SA!FP32 -> 100 | DQ36: =SA!GC32-SA!FQ32 -> 400 | DR36: =SA!GD32-SA!FR32 -> 100 | DS36: =SA!GE32-SA!FS32 -> 100 | DT36: =SA!GF32-SA!FT32 -> 100 | DU36: =SA!GG32-SA!FU32 -> 300 | DV36: =SA!GH32-SA!FV32 -> 200 | DW36: =SA!GI32-SA!FW32 -> 400 | DX36: =SA!GJ32-SA!FX32 -> 400 | DY36: =SA!GK32-SA!FY32 -> 200 | DZ36: =SA!GL32-SA!FZ32 -> 100 | EA36: =SA!GM32-SA!GA32 -> 100 | EB36: =SA!GN32-SA!GB32 -> 100 | EC36: =SA!GO32-SA!GC32 -> 200 | ED36: =SA!GP32-SA!GD32 -> 200 | EE36: =SA!GQ32-SA!GE32 -> 200 | EF36: =SA!GR32-SA!GF32 -> 300 | EG36: =SA!GS32-SA!GG32 -> 100 | EH36: =SA!GT32-SA!GH32 -> 100 | EI36: =SA!GU32-SA!GI32 -> 0 | EJ36: =SA!GV32-SA!GJ32 -> 0 | EK36: =SA!GW32-SA!GK32 -> 300 | EL36: =SA!GX32-SA!GL32 -> 500 | EM36: =SA!GY32-SA!GM32 -> 500 | EN36: =SA!GZ32-SA!GN32 -> 300 | EO36: =SA!HA32-SA!GO32 -> 100 | EP36: =SA!HB32-SA!GP32 -> 600 | EQ36: =SA!HC32-SA!GQ32 -> 300 | ER36: =SA!HD32-SA!GR32 -> 200 | ES36: =SA!HE32-SA!GS32 -> 100 | ET36: =SA!HF32-SA!GT32 -> 300 | EU36: =SA!HG32-SA!GU32 -> 200 | EV36: =SA!HH32-SA!GV32 -> 300 | EW36: =SA!HI32-SA!GW32 -> 0 | EX36: =SA!HJ32-SA!GX32 -> 0 | EY36: =SA!HK32-SA!GY32 -> -29200 | EZ36: =SA!HL32-SA!GZ32 -> -29100 | FA36: =SA!HM32-SA!HA32 -> -29200 | FB36: n/a | FE36: Federal Government | FF36: -8500 | FG36: -400 | FH36: -200 | FI36: -100 | FJ36: 0 | FK36: 150 | FL36: 325 | FM36: 6000 | FN36: 1214.540252
A37: State Government | B37: =SA!BN33-SA!BB33 -> 5200 | C37: =SA!BO33-SA!BC33 -> 2000 | D37: =SA!BP33-SA!BD33 -> 1500 | E37: =SA!BQ33-SA!BE33 -> 1100 | F37: =SA!BR33-SA!BF33 -> 1700 | G37: =SA!BS33-SA!BG33 -> -1500 | H37: =SA!BT33-SA!BH33 -> -500 | I37: =SA!BU33-SA!BI33 -> -2000 | J37: =SA!BV33-SA!BJ33 -> 300 | K37: =SA!BW33-SA!BK33 -> -800 | L37: =SA!BX33-SA!BL33 -> -900 | M37: =SA!BY33-SA!BM33 -> 600 | N37: =SA!BZ33-SA!BN33 -> -800 | O37: =SA!CA33-SA!BO33 -> 700 | P37: =SA!CB33-SA!BP33 -> 700 | Q37: =SA!CC33-SA!BQ33 -> 1100 | R37: =SA!CD33-SA!BR33 -> 400 | S37: =SA!CE33-SA!BS33 -> 3600 | T37: =SA!CF33-SA!BT33 -> 2100 | U37: =SA!CG33-SA!BU33 -> 3200 | V37: =SA!CH33-SA!BV33 -> 1200 | W37: =SA!CI33-SA!BW33 -> 1400 | X37: =SA!CJ33-SA!BX33 -> 600 | Y37: =SA!CK33-SA!BY33 -> -100 | Z37: =SA!CL33-SA!BZ33 -> -1000 | AA37: =SA!CM33-SA!CA33 -> 600 | AB37: =SA!CN33-SA!CB33 -> 1800 | AC37: =SA!CO33-SA!CC33 -> 800 | AD37: =SA!CP33-SA!CD33 -> 2300 | AE37: =SA!CQ33-SA!CE33 -> 300 | AF37: =SA!CR33-SA!CF33 -> -300 | AG37: =SA!CS33-SA!CG33 -> 100 | AH37: =SA!CT33-SA!CH33 -> -1300 | AI37: =SA!CU33-SA!CI33 -> -900 | AJ37: =SA!CV33-SA!CJ33 -> 0 | AK37: =SA!CW33-SA!CK33 -> 300 | AL37: =SA!CX33-SA!CL33 -> 2100 | AM37: =SA!CY33-SA!CM33 -> 600 | AN37: =SA!CZ33-SA!CN33 -> -400 | AO37: =SA!DA33-SA!CO33 -> -200 | AP37: =SA!DB33-SA!CP33 -> 200 | AQ37: =SA!DC33-SA!CQ33 -> -1100 | AR37: =SA!DD33-SA!CR33 -> 800 | AS37: =SA!DE33-SA!CS33 -> 0 | AT37: =SA!DF33-SA!CT33 -> -700 | AU37: =SA!DG33-SA!CU33 -> 2400 | AV37: =SA!DH33-SA!CV33 -> 1900 | AW37: =SA!DI33-SA!CW33 -> 800 | AX37: =SA!DJ33-SA!CX33 -> -1300 | AY37: =SA!DK33-SA!CY33 -> -700 | AZ37: =SA!DL33-SA!CZ33 -> -200 | BA37: =SA!DM33-SA!DA33 -> -3000 | BB37: =SA!DN33-SA!DB33 -> -3000 | BC37: =SA!DO33-SA!DC33 -> -3800 | BD37: =SA!DP33-SA!DD33 -> -5000 | BE37: =SA!DQ33-SA!DE33 -> -4900 | BF37: =SA!DR33-SA!DF33 -> -6300 | BG37: =SA!DS33-SA!DG33 -> -7600 | BH37: =SA!DT33-SA!DH33 -> -6200 | BI37: =SA!DU33-SA!DI33 -> -5100 | BJ37: =SA!DV33-SA!DJ33 -> -5800 | BK37: =SA!DW33-SA!DK33 -> -4800 | BL37: =SA!DX33-SA!DL33 -> -5500 | BM37: =SA!DY33-SA!DM33 -> -200 | BN37: =SA!DZ33-SA!DN33 -> -1500 | BO37: =SA!EA33-SA!DO33 -> 1300 | BP37: =SA!EB33-SA!DP33 -> 1500 | BQ37: =SA!EC33-SA!DQ33 -> 1600 | BR37: =SA!ED33-SA!DR33 -> 2900 | BS37: =SA!EE33-SA!DS33 -> 2200 | BT37: =SA!EF33-SA!DT33 -> 800 | BU37: =SA!EG33-SA!DU33 -> -1900 | BV37: =SA!EH33-SA!DV33 -> -500 | BW37: =SA!EI33-SA!DW33 -> -800 | BX37: =SA!EJ33-SA!DX33 -> 400 | BY37: =SA!EK33-SA!DY33 -> -2600 | BZ37: =SA!EL33-SA!DZ33 -> 500 | CA37: =SA!EM33-SA!EA33 -> -3700 | CB37: =SA!EN33-SA!EB33 -> -3700 | CC37: =SA!EO33-SA!EC33 -> -9000 | CD37: =SA!EP33-SA!ED33 -> -5800 | CE37: =SA!EQ33-SA!EE33 -> -4000 | CF37: =SA!ER33-SA!EF33 -> -3300 | CG37: =SA!ES33-SA!EG33 -> -900 | CH37: =SA!ET33-SA!EH33 -> -10100 | CI37: =SA!EU33-SA!EI33 -> -7200 | CJ37: =SA!EV33-SA!EJ33 -> -2400 | CK37: =SA!EW33-SA!EK33 -> -500 | CL37: =SA!EX33-SA!EL33 -> -3200 | CM37: =SA!EY33-SA!EM33 -> -2300 | CN37: =SA!EZ33-SA!EN33 -> -800 | CO37: =SA!FA33-SA!EO33 -> 4100 | CP37: =SA!FB33-SA!EP33 -> 3200 | CQ37: =SA!FC33-SA!EQ33 -> 1400 | CR37: =SA!FD33-SA!ER33 -> 1300 | CS37: =SA!FE33-SA!ES33 -> 100 | CT37: =SA!FF33-SA!ET33 -> -900 | CU37: =SA!FG33-SA!EU33 -> 6200 | CV37: =SA!FH33-SA!EV33 -> 800 | CW37: =SA!FI33-SA!EW33 -> 300 | CX37: =SA!FJ33-SA!EX33 -> -2000 | CY37: =SA!FK33-SA!EY33 -> 1200 | CZ37: =SA!FL33-SA!EZ33 -> 800 | DA37: =SA!FM33-SA!FA33 -> 1700 | DB37: =SA!FN33-SA!FB33 -> 800 | DC37: =SA!FO33-SA!FC33 -> 1200 | DD37: =SA!FP33-SA!FD33 -> 1400 | DE37: =SA!FQ33-SA!FE33 -> 1300 | DF37: =SA!FR33-SA!FF33 -> 13300 | DG37: =SA!FS33-SA!FG33 -> 1700 | DH37: =SA!FT33-SA!FH33 -> 1000 | DI37: =SA!FU33-SA!FI33 -> 1200 | DJ37: =SA!FV33-SA!FJ33 -> 2700 | DK37: =SA!FW33-SA!FK33 -> 1500 | DL37: =SA!FX33-SA!FL33 -> 900 | DM37: =SA!FY33-SA!FM33 -> 900 | DN37: =SA!FZ33-SA!FN33 -> 700 | DO37: =SA!GA33-SA!FO33 -> 300 | DP37: =SA!GB33-SA!FP33 -> 200 | DQ37: =SA!GC33-SA!FQ33 -> 800 | DR37: =SA!GD33-SA!FR33 -> -1000 | DS37: =SA!GE33-SA!FS33 -> 300 | DT37: =SA!GF33-SA!FT33 -> 900 | DU37: =SA!GG33-SA!FU33 -> 400 | DV37: =SA!GH33-SA!FV33 -> -500 | DW37: =SA!GI33-SA!FW33 -> -900 | DX37: =SA!GJ33-SA!FX33 -> -1700 | DY37: =SA!GK33-SA!FY33 -> -2700 | DZ37: =SA!GL33-SA!FZ33 -> -3100 | EA37: =SA!GM33-SA!GA33 -> -2500 | EB37: =SA!GN33-SA!GB33 -> -2900 | EC37: =SA!GO33-SA!GC33 -> -2500 | ED37: =SA!GP33-SA!GD33 -> -2900 | EE37: =SA!GQ33-SA!GE33 -> -2900 | EF37: =SA!GR33-SA!GF33 -> -2700 | EG37: =SA!GS33-SA!GG33 -> -2900 | EH37: =SA!GT33-SA!GH33 -> -1400 | EI37: =SA!GU33-SA!GI33 -> -800 | EJ37: =SA!GV33-SA!GJ33 -> 0 | EK37: =SA!GW33-SA!GK33 -> -400 | EL37: =SA!GX33-SA!GL33 -> -2600 | EM37: =SA!GY33-SA!GM33 -> 500 | EN37: =SA!GZ33-SA!GN33 -> 2700 | EO37: =SA!HA33-SA!GO33 -> 3900 | EP37: =SA!HB33-SA!GP33 -> 700 | EQ37: =SA!HC33-SA!GQ33 -> 3400 | ER37: =SA!HD33-SA!GR33 -> -1700 | ES37: =SA!HE33-SA!GS33 -> 3800 | ET37: =SA!HF33-SA!GT33 -> 5100 | EU37: =SA!HG33-SA!GU33 -> 300 | EV37: =SA!HH33-SA!GV33 -> 600 | EW37: =SA!HI33-SA!GW33 -> 100 | EX37: =SA!HJ33-SA!GX33 -> 3600 | EY37: =SA!HK33-SA!GY33 -> -96500 | EZ37: =SA!HL33-SA!GZ33 -> -98400 | FA37: =SA!HM33-SA!HA33 -> -100000 | FB37: n/a | FE37: State Government | FF37: -10100 | FG37: -3000 | FH37: -1200 | FI37: -275 | FJ37: 300 | FK37: 800 | FL37: 1700 | FM37: 13300 | FN37: 2866.88056
A38: Local Government | B38: =SA!BN34-SA!BB34 -> 3300 | C38: =SA!BO34-SA!BC34 -> 2700 | D38: =SA!BP34-SA!BD34 -> 800 | E38: =SA!BQ34-SA!BE34 -> 3900 | F38: =SA!BR34-SA!BF34 -> 1800 | G38: =SA!BS34-SA!BG34 -> 1100 | H38: =SA!BT34-SA!BH34 -> 2200 | I38: =SA!BU34-SA!BI34 -> 2400 | J38: =SA!BV34-SA!BJ34 -> 8000 | K38: =SA!BW34-SA!BK34 -> 3800 | L38: =SA!BX34-SA!BL34 -> 700 | M38: =SA!BY34-SA!BM34 -> 4600 | N38: =SA!BZ34-SA!BN34 -> 100 | O38: =SA!CA34-SA!BO34 -> -2000 | P38: =SA!CB34-SA!BP34 -> 600 | Q38: =SA!CC34-SA!BQ34 -> -200 | R38: =SA!CD34-SA!BR34 -> -600 | S38: =SA!CE34-SA!BS34 -> 400 | T38: =SA!CF34-SA!BT34 -> -600 | U38: =SA!CG34-SA!BU34 -> -1200 | V38: =SA!CH34-SA!BV34 -> -1600 | W38: =SA!CI34-SA!BW34 -> -3200 | X38: =SA!CJ34-SA!BX34 -> 100 | Y38: =SA!CK34-SA!BY34 -> -2400 | Z38: =SA!CL34-SA!BZ34 -> -800 | AA38: =SA!CM34-SA!CA34 -> -2300 | AB38: =SA!CN34-SA!CB34 -> -3400 | AC38: =SA!CO34-SA!CC34 -> -1100 | AD38: =SA!CP34-SA!CD34 -> -200 | AE38: =SA!CQ34-SA!CE34 -> 3300 | AF38: =SA!CR34-SA!CF34 -> 1700 | AG38: =SA!CS34-SA!CG34 -> 2300 | AH38: =SA!CT34-SA!CH34 -> 4500 | AI38: =SA!CU34-SA!CI34 -> 2100 | AJ38: =SA!CV34-SA!CJ34 -> -1000 | AK38: =SA!CW34-SA!CK34 -> 3000 | AL38: =SA!CX34-SA!CL34 -> 4400 | AM38: =SA!CY34-SA!CM34 -> 5600 | AN38: =SA!CZ34-SA!CN34 -> 4700 | AO38: =SA!DA34-SA!CO34 -> 2000 | AP38: =SA!DB34-SA!CP34 -> 3500 | AQ38: =SA!DC34-SA!CQ34 -> -200 | AR38: =SA!DD34-SA!CR34 -> 3500 | AS38: =SA!DE34-SA!CS34 -> 1800 | AT38: =SA!DF34-SA!CT34 -> 10600 | AU38: =SA!DG34-SA!CU34 -> 6600 | AV38: =SA!DH34-SA!CV34 -> 12200 | AW38: =SA!DI34-SA!CW34 -> 5800 | AX38: =SA!DJ34-SA!CX34 -> 2900 | AY38: =SA!DK34-SA!CY34 -> 4300 | AZ38: =SA!DL34-SA!CZ34 -> 4600 | BA38: =SA!DM34-SA!DA34 -> 5800 | BB38: =SA!DN34-SA!DB34 -> 4400 | BC38: =SA!DO34-SA!DC34 -> 4800 | BD38: =SA!DP34-SA!DD34 -> 4400 | BE38: =SA!DQ34-SA!DE34 -> 3000 | BF38: =SA!DR34-SA!DF34 -> -8300 | BG38: =SA!DS34-SA!DG34 -> 2300 | BH38: =SA!DT34-SA!DH34 -> -4000 | BI38: =SA!DU34-SA!DI34 -> 600 | BJ38: =SA!DV34-SA!DJ34 -> 2600 | BK38: =SA!DW34-SA!DK34 -> -1100 | BL38: =SA!DX34-SA!DL34 -> 0 | BM38: =SA!DY34-SA!DM34 -> -2000 | BN38: =SA!DZ34-SA!DN34 -> -2500 | BO38: =SA!EA34-SA!DO34 -> -3600 | BP38: =SA!EB34-SA!DP34 -> -6300 | BQ38: =SA!EC34-SA!DQ34 -> -3700 | BR38: =SA!ED34-SA!DR34 -> -1700 | BS38: =SA!EE34-SA!DS34 -> -3100 | BT38: =SA!EF34-SA!DT34 -> 800 | BU38: =SA!EG34-SA!DU34 -> -3400 | BV38: =SA!EH34-SA!DV34 -> -1600 | BW38: =SA!EI34-SA!DW34 -> 2300 | BX38: =SA!EJ34-SA!DX34 -> 1000 | BY38: =SA!EK34-SA!DY34 -> 800 | BZ38: =SA!EL34-SA!DZ34 -> -200 | CA38: =SA!EM34-SA!EA34 -> 300 | CB38: =SA!EN34-SA!EB34 -> 6500 | CC38: =SA!EO34-SA!EC34 -> 6700 | CD38: =SA!EP34-SA!ED34 -> 100 | CE38: =SA!EQ34-SA!EE34 -> -5600 | CF38: =SA!ER34-SA!EF34 -> -9500 | CG38: =SA!ES34-SA!EG34 -> -2600 | CH38: =SA!ET34-SA!EH34 -> -5100 | CI38: =SA!EU34-SA!EI34 -> -6800 | CJ38: =SA!EV34-SA!EJ34 -> -5300 | CK38: =SA!EW34-SA!EK34 -> -800 | CL38: =SA!EX34-SA!EL34 -> 4300 | CM38: =SA!EY34-SA!EM34 -> 700 | CN38: =SA!EZ34-SA!EN34 -> -8000 | CO38: =SA!FA34-SA!EO34 -> -5000 | CP38: =SA!FB34-SA!EP34 -> -4200 | CQ38: =SA!FC34-SA!EQ34 -> 1600 | CR38: =SA!FD34-SA!ER34 -> 8500 | CS38: =SA!FE34-SA!ES34 -> 500 | CT38: =SA!FF34-SA!ET34 -> 300 | CU38: =SA!FG34-SA!EU34 -> 2600 | CV38: =SA!FH34-SA!EV34 -> -200 | CW38: =SA!FI34-SA!EW34 -> -4900 | CX38: =SA!FJ34-SA!EX34 -> -7300 | CY38: =SA!FK34-SA!EY34 -> -4600 | CZ38: =SA!FL34-SA!EZ34 -> -500 | DA38: =SA!FM34-SA!FA34 -> -4500 | DB38: =SA!FN34-SA!FB34 -> 800 | DC38: =SA!FO34-SA!FC34 -> -800 | DD38: =SA!FP34-SA!FD34 -> -7600 | DE38: =SA!FQ34-SA!FE34 -> -1500 | DF38: =SA!FR34-SA!FF34 -> -1900 | DG38: =SA!FS34-SA!FG34 -> -5300 | DH38: =SA!FT34-SA!FH34 -> -1500 | DI38: =SA!FU34-SA!FI34 -> 600 | DJ38: =SA!FV34-SA!FJ34 -> -800 | DK38: =SA!FW34-SA!FK34 -> 700 | DL38: =SA!FX34-SA!FL34 -> 1200 | DM38: =SA!FY34-SA!FM34 -> 7000 | DN38: =SA!FZ34-SA!FN34 -> 300 | DO38: =SA!GA34-SA!FO34 -> -100 | DP38: =SA!GB34-SA!FP34 -> 6500 | DQ38: =SA!GC34-SA!FQ34 -> -700 | DR38: =SA!GD34-SA!FR34 -> -1000 | DS38: =SA!GE34-SA!FS34 -> 1500 | DT38: =SA!GF34-SA!FT34 -> -800 | DU38: =SA!GG34-SA!FU34 -> -1200 | DV38: =SA!GH34-SA!FV34 -> -800 | DW38: =SA!GI34-SA!FW34 -> -1000 | DX38: =SA!GJ34-SA!FX34 -> -2000 | DY38: =SA!GK34-SA!FY34 -> -6800 | DZ38: =SA!GL34-SA!FZ34 -> -1800 | EA38: =SA!GM34-SA!GA34 -> -1400 | EB38: =SA!GN34-SA!GB34 -> -8800 | EC38: =SA!GO34-SA!GC34 -> 100 | ED38: =SA!GP34-SA!GD34 -> 2900 | EE38: =SA!GQ34-SA!GE34 -> 1800 | EF38: =SA!GR34-SA!GF34 -> 1800 | EG38: =SA!GS34-SA!GG34 -> 3000 | EH38: =SA!GT34-SA!GH34 -> -500 | EI38: =SA!GU34-SA!GI34 -> 1200 | EJ38: =SA!GV34-SA!GJ34 -> 4300 | EK38: =SA!GW34-SA!GK34 -> 6600 | EL38: =SA!GX34-SA!GL34 -> 3300 | EM38: =SA!GY34-SA!GM34 -> 6600 | EN38: =SA!GZ34-SA!GN34 -> 12700 | EO38: =SA!HA34-SA!GO34 -> 5200 | EP38: =SA!HB34-SA!GP34 -> 1800 | EQ38: =SA!HC34-SA!GQ34 -> 2300 | ER38: =SA!HD34-SA!GR34 -> 3200 | ES38: =SA!HE34-SA!GS34 -> 4200 | ET38: =SA!HF34-SA!GT34 -> 4600 | EU38: =SA!HG34-SA!GU34 -> 400 | EV38: =SA!HH34-SA!GV34 -> 3400 | EW38: =SA!HI34-SA!GW34 -> -2200 | EX38: =SA!HJ34-SA!GX34 -> 2200 | EY38: =SA!HK34-SA!GY34 -> -289900 | EZ38: =SA!HL34-SA!GZ34 -> -293000 | FA38: =SA!HM34-SA!HA34 -> -289000 | FB38: n/a | FE38: Local Government | FF38: -9500 | FG38: -3450 | FH38: -1100 | FI38: 25 | FJ38: 700 | FK38: 2350 | FL38: 4425 | FM38: 12700 | FN38: 4010.091197
N40: Housing Market Prices Peaks | Z40: Housing Market Price Declines Begin | AE40: Peak | AF40: Decline begins | AH40: Floods | AW40: GM Closes | BV40: Act 10 Protests | CA40: Act 10 Passes | CD40: Education Cuts begin | CM40: Severe Drought | DE40: Severe Winter Weather/Late Spring
AU41: Great Recession | DF41: Dodd Frank | DS41: Cold winter/summer | EM41: Post Benchmark Re-estimates
A42: Month over Month Change | B42: 2005-01-01 | C42: 2005-02-01 | D42: 2005-03-01 | E42: 2005-04-01 | F42: 2005-05-01 | G42: 2005-06-01 | H42: 2005-07-01 | I42: 2005-08-01 | J42: 2005-09-01 | K42: 2005-10-01 | L42: 2005-11-01 | M42: 2005-12-01 | N42: 2006-01-01 | O42: 2006-02-01 | P42: 2006-03-01 | Q42: 2006-04-01 | R42: 2006-05-01 | S42: 2006-06-01 | T42: 2006-07-01 | U42: 2006-08-01 | V42: 2006-09-01 | W42: 2006-10-01 | X42: 2006-11-01 | Y42: 2006-12-01 | Z42: 2007-01-01 | AA42: 2007-02-01 | AB42: 2007-03-01 | AC42: 2007-04-01 | AD42: 2007-05-01 | AE42: 2007-06-01 | AF42: 2007-07-01 | AG42: 2007-08-01 | AH42: 2007-09-01 | AI42: 2007-10-01 | AJ42: 2007-11-01 | AK42: 2007-12-01 | AL42: 2008-01-01 | AM42: 2008-02-01 | AN42: 2008-03-01 | AO42: 2008-04-01 | AP42: 2008-05-01 | AQ42: 2008-06-01 | AR42: 2008-07-01 | AS42: 2008-08-01 | AT42: 2008-09-01 | AU42: 2008-10-01 | AV42: 2008-11-01 | AW42: 2008-12-01 | AX42: 2009-01-01 | AY42: 2009-02-01 | AZ42: 2009-03-01 | BA42: 2009-04-01 | BB42: 2009-05-01 | BC42: 2009-06-01 | BD42: 2009-07-01 | BE42: 2009-08-01 | BF42: 2009-09-01 | BG42: 2009-10-01 | BH42: 2009-11-01 | BI42: 2009-12-01 | BJ42: 2010-01-01 | BK42: 2010-02-01 | BL42: 2010-03-01 | BM42: 2010-04-01 | BN42: 2010-05-01 | BO42: 2010-06-01 | BP42: 2010-07-01 | BQ42: 2010-08-01 | BR42: 2010-09-01 | BS42: 2010-10-01 | BT42: 2010-11-01 | BU42: 2010-12-01 | BV42: 2011-01-01 | BW42: 2011-02-01 | BX42: 2011-03-01 | BY42: 2011-04-01 | BZ42: 2011-05-01 | CA42: 2011-06-01 | CB42: 2011-07-01 | CC42: 2011-08-01 | CD42: 2011-09-01 | CE42: 2011-10-01 | CF42: 2011-11-01 | CG42: 2011-12-01 | CH42: 2012-01-01 | CI42: 2012-02-01 | CJ42: 2012-03-01 | CK42: 2012-04-01 | CL42: 2012-05-01 | CM42: 2012-06-01 | CN42: 2012-07-01 | CO42: 2012-08-01 | CP42: 2012-09-01 | CQ42: 2012-10-01 | CR42: 2012-11-01 | CS42: 2012-12-01 | CT42: 2013-01-01 | CU42: 2013-02-01 | CV42: 2013-03-01 | CW42: 2013-04-01 | CX42: 2013-05-01 | CY42: 2013-06-01 | CZ42: 2013-07-01 | DA42: 2013-08-01 | DB42: 2013-09-01 | DC42: 2013-10-01 | DD42: 2013-11-01 | DE42: 2013-12-01 | DF42: 2014-01-01 | DG42: 2014-02-01 | DH42: 2014-03-01 | DI42: 2014-04-01 | DJ42: 2014-05-01 | DK42: 2014-06-01 | DL42: =EDATE(DK42, 1) -> 2014-07-01 | DM42: =EDATE(DL42, 1) -> 2014-08-01 | DN42: 2014-09-01 | DO42: 2014-10-01 | DP42: 2014-11-01 | DQ42: 2014-12-01 | DR42: 2015-01-01 | DS42: =EDATE(DR42, 1) -> 2015-02-01 | DT42: =EDATE(DS42, 1) -> 2015-03-01 | DU42: =EDATE(DT42, 1) -> 2015-04-01 | DV42: =EDATE(DU42, 1) -> 2015-05-01 | DW42: =EDATE(DV42, 1) -> 2015-06-01 | DX42: =EDATE(DW42, 1) -> 2015-07-01 | DY42: 2015-08-01 | DZ42: 2015-09-01 | EA42: 2015-10-01 | EB42: 2015-11-01 | EC42: 2015-12-01 | ED42: 2016-01-01 | EE42: =EDATE(ED42, 1) -> 2016-02-01 | EF42: =EDATE(EE42, 1) -> 2016-03-01 | EG42: =EDATE(EF42, 1) -> 2016-04-01 | EH42: =EDATE(EG42, 1) -> 2016-05-01 | EI42: =EDATE(EH42, 1) -> 2016-06-01 | EJ42: =EDATE(EI42, 1) -> 2016-07-01 | EK42: =EDATE(EJ42, 1) -> 2016-08-01 | EL42: =EDATE(EK42, 1) -> 2016-09-01 | EM42: 2016-10-01 | EN42: 2016-11-01 | EO42: =EDATE(EN42, 1) -> 2016-12-01 | EP42: =EDATE(EO42, 1) -> 2017-01-01 | EQ42: =EDATE(EP42, 1) -> 2017-02-01 | ER42: =EDATE(EQ42, 1) -> 2017-03-01 | ES42: 2017-04-01 | ET42: 2017-05-01 | EU42: 2017-06-01 | EV42: 2017-07-01 | EW42: 2017-08-01 | EX42: 2017-09-01 | EY42: 2017-10-01 | EZ42: 2017-11-01 | FA42: =EDATE(EZ42, 1) -> 2017-12-01 | FB42: M/M Sig | FC42: # Positive Sig Changes since October 2016 | FD42: 12 mo Trend | FE42: Month over Month Change | FF42: Min | FG42: 0.15 | FH42: 0.3 | FI42: 0.45 | FJ42: 0.55 | FK42: 0.7 | FL42: 0.85 | FM42: Max | FN42: Std Deviation
A43: Total Non Farm | B43: =SA!BN2-SA!BM2 -> 1300 | C43: =SA!BO2-SA!BN2 -> 6700 | D43: =SA!BP2-SA!BO2 -> 2300 | E43: =SA!BQ2-SA!BP2 -> 9000 | F43: =SA!BR2-SA!BQ2 -> -4500 | G43: =SA!BS2-SA!BR2 -> -3600 | H43: =SA!BT2-SA!BS2 -> 9100 | I43: =SA!BU2-SA!BT2 -> 2700 | J43: =SA!BV2-SA!BU2 -> 6100 | K43: =SA!BW2-SA!BV2 -> -3100 | L43: =SA!BX2-SA!BW2 -> 2500 | M43: =SA!BY2-SA!BX2 -> 4300 | N43: =SA!BZ2-SA!BY2 -> -400 | O43: =SA!CA2-SA!BZ2 -> 3700 | P43: =SA!CB2-SA!CA2 -> 2200 | Q43: =SA!CC2-SA!CB2 -> 7100 | R43: =SA!CD2-SA!CC2 -> -7000 | S43: =SA!CE2-SA!CD2 -> 7500 | T43: =SA!CF2-SA!CE2 -> -1800 | U43: =SA!CG2-SA!CF2 -> 200 | V43: =SA!CH2-SA!CG2 -> 3000 | W43: =SA!CI2-SA!CH2 -> -1800 | X43: =SA!CJ2-SA!CI2 -> 500 | Y43: =SA!CK2-SA!CJ2 -> 2500 | Z43: =SA!CL2-SA!CK2 -> 5100 | AA43: =SA!CM2-SA!CL2 -> -1600 | AB43: =SA!CN2-SA!CM2 -> 4500 | AC43: =SA!CO2-SA!CN2 -> -300 | AD43: =SA!CP2-SA!CO2 -> 5600 | AE43: =SA!CQ2-SA!CP2 -> 8800 | AF43: =SA!CR2-SA!CQ2 -> -6300 | AG43: =SA!CS2-SA!CR2 -> -1000 | AH43: =SA!CT2-SA!CS2 -> -1200 | AI43: =SA!CU2-SA!CT2 -> -5800 | AJ43: =SA!CV2-SA!CU2 -> -600 | AK43: =SA!CW2-SA!CV2 -> 5000 | AL43: =SA!CX2-SA!CW2 -> 5200 | AM43: =SA!CY2-SA!CX2 -> -1000 | AN43: =SA!CZ2-SA!CY2 -> -3200 | AO43: =SA!DA2-SA!CZ2 -> -4500 | AP43: =SA!DB2-SA!DA2 -> 2800 | AQ43: =SA!DC2-SA!DB2 -> -2400 | AR43: =SA!DD2-SA!DC2 -> -2200 | AS43: =SA!DE2-SA!DD2 -> -4600 | AT43: =SA!DF2-SA!DE2 -> 2100 | AU43: =SA!DG2-SA!DF2 -> -11800 | AV43: =SA!DH2-SA!DG2 -> -8800 | AW43: =SA!DI2-SA!DH2 -> -14500 | AX43: =SA!DJ2-SA!DI2 -> -25800 | AY43: =SA!DK2-SA!DJ2 -> -16700 | AZ43: =SA!DL2-SA!DK2 -> -21400 | BA43: =SA!DM2-SA!DL2 -> -22800 | BB43: =SA!DN2-SA!DM2 -> 0 | BC43: =SA!DO2-SA!DN2 -> -12800 | BD43: =SA!DP2-SA!DO2 -> -11600 | BE43: =SA!DQ2-SA!DP2 -> -7200 | BF43: =SA!DR2-SA!DQ2 -> -1900 | BG43: =SA!DS2-SA!DR2 -> 200 | BH43: =SA!DT2-SA!DS2 -> -3000 | BI43: =SA!DU2-SA!DT2 -> -1300 | BJ43: =SA!DV2-SA!DU2 -> -200 | BK43: =SA!DW2-SA!DV2 -> -200 | BL43: =SA!DX2-SA!DW2 -> 2000 | BM43: =SA!DY2-SA!DX2 -> 10500 | BN43: =SA!DZ2-SA!DY2 -> 2700 | BO43: =SA!EA2-SA!DZ2 -> -1700 | BP43: =SA!EB2-SA!EA2 -> 3500 | BQ43: =SA!EC2-SA!EB2 -> 2800 | BR43: =SA!ED2-SA!EC2 -> -1800 | BS43: =SA!EE2-SA!ED2 -> 9600 | BT43: =SA!EF2-SA!EE2 -> 1300 | BU43: =SA!EG2-SA!EF2 -> -2500 | BV43: =SA!EH2-SA!EG2 -> 4300 | BW43: =SA!EI2-SA!EH2 -> 1900 | BX43: =SA!EJ2-SA!EI2 -> 2500 | BY43: =SA!EK2-SA!EJ2 -> 3800 | BZ43: =SA!EL2-SA!EK2 -> 400 | CA43: =SA!EM2-SA!EL2 -> -2800 | CB43: =SA!EN2-SA!EM2 -> 13700 | CC43: =SA!EO2-SA!EN2 -> -3600 | CD43: =SA!EP2-SA!EO2 -> 2700 | CE43: =SA!EQ2-SA!EP2 -> -4200 | CF43: =SA!ER2-SA!EQ2 -> 400 | CG43: =SA!ES2-SA!ER2 -> 6000 | CH43: =SA!ET2-SA!ES2 -> -4300 | CI43: =SA!EU2-SA!ET2 -> 6100 | CJ43: =SA!EV2-SA!EU2 -> 14800 | CK43: =SA!EW2-SA!EV2 -> 8200 | CL43: =SA!EX2-SA!EW2 -> -2400 | CM43: =SA!EY2-SA!EX2 -> -200 | CN43: =SA!EZ2-SA!EY2 -> -9400 | CO43: =SA!FA2-SA!EZ2 -> 4700 | CP43: =SA!FB2-SA!FA2 -> 5200 | CQ43: =SA!FC2-SA!FB2 -> 4600 | CR43: =SA!FD2-SA!FC2 -> 7700 | CS43: =SA!FE2-SA!FD2 -> -3000 | CT43: =SA!FF2-SA!FE2 -> -8800 | CU43: =SA!FG2-SA!FF2 -> 19100 | CV43: =SA!FH2-SA!FG2 -> 800 | CW43: =SA!FI2-SA!FH2 -> -9000 | CX43: =SA!FJ2-SA!FI2 -> 8800 | CY43: =SA!FK2-SA!FJ2 -> 3500 | CZ43: =SA!FL2-SA!FK2 -> -800 | DA43: =SA!FM2-SA!FL2 -> 7400 | DB43: =SA!FN2-SA!FM2 -> 5800 | DC43: =SA!FO2-SA!FN2 -> 300 | DD43: =SA!FP2-SA!FO2 -> 2800 | DE43: =SA!FQ2-SA!FP2 -> 2900 | DF43: =SA!FR2-SA!FQ2 -> 5100 | DG43: =SA!FS2-SA!FR2 -> 1300 | DH43: =SA!FT2-SA!FS2 -> 3500 | DI43: =SA!FU2-SA!FT2 -> 6900 | DJ43: =SA!FV2-SA!FU2 -> 2600 | DK43: =SA!FW2-SA!FV2 -> 6500 | DL43: =SA!FX2-SA!FW2 -> -100 | DM43: =SA!FY2-SA!FX2 -> 12300 | DN43: =SA!FZ2-SA!FY2 -> -2200 | DO43: =SA!GA2-SA!FZ2 -> 1400 | DP43: =SA!GB2-SA!GA2 -> 12200 | DQ43: =SA!GC2-SA!GB2 -> -5800 | DR43: =SA!GD2-SA!GC2 -> 4900 | DS43: =SA!GE2-SA!GD2 -> 2900 | DT43: =SA!GF2-SA!GE2 -> 4300 | DU43: =SA!GG2-SA!GF2 -> 800 | DV43: =SA!GH2-SA!GG2 -> 5200 | DW43: =SA!GI2-SA!GH2 -> 2700 | DX43: =SA!GJ2-SA!GI2 -> 2900 | DY43: =SA!GK2-SA!GJ2 -> 2900 | DZ43: =SA!GL2-SA!GK2 -> 0 | EA43: =SA!GM2-SA!GL2 -> 4700 | EB43: =SA!GN2-SA!GM2 -> 300 | EC43: =SA!GO2-SA!GN2 -> 6300 | ED43: =SA!GP2-SA!GO2 -> 10500 | EE43: =SA!GQ2-SA!GP2 -> 4200 | EF43: =SA!GR2-SA!GQ2 -> 400 | EG43: =SA!GS2-SA!GR2 -> 1300 | EH43: =SA!GT2-SA!GS2 -> -7600 | EI43: =SA!GU2-SA!GT2 -> 100 | EJ43: =SA!GV2-SA!GU2 -> 11400 | EK43: =SA!GW2-SA!GV2 -> 900 | EL43: =SA!GX2-SA!GW2 -> -5300 | EM43: =SA!GY2-SA!GX2 -> 6300 | EN43: =SA!GZ2-SA!GY2 -> 3700 | EO43: =SA!HA2-SA!GZ2 -> 500 | EP43: =SA!HB2-SA!HA2 -> 5400 | EQ43: =SA!HC2-SA!HB2 -> 11100 | ER43: =SA!HD2-SA!HC2 -> -3700 | ES43: =SA!HE2-SA!HD2 -> 13100 | ET43: =SA!HF2-SA!HE2 -> -3700 | EU43: =SA!HG2-SA!HF2 -> -5400 | EV43: =SA!HH2-SA!HG2 -> 5800 | EW43: =SA!HI2-SA!HH2 -> -7100 | EX43: =SA!HJ2-SA!HI2 -> 8600 | EY43: =SA!HK2-SA!HJ2 -> -2958400 | EZ43: =SA!HL2-SA!HK2 -> 0 | FA43: =SA!HM2-SA!HL2 -> 0 | FB43: 9268 | FC43: =COUNTIF(EM43:FA43, ">" &FB43) -> 2 | FE43: Total Non Farm | FF43: =MIN(B43:EO43) -> -25800 | FG43: =_xlfn.PERCENTILE.EXC($B43:$EO43,0.15) -> -4500 | FH43: =_xlfn.PERCENTILE.EXC($B43:$EO43,0.3) -> -1250 | FI43: =_xlfn.PERCENTILE.EXC($B43:$EO43,0.45) -> 500 | FJ43: =_xlfn.PERCENTILE.EXC($B43:$EO43,0.55) -> 2450 | FK43: =_xlfn.PERCENTILE.EXC($B43:$EO43,0.7) -> 4000 | FL43: =_xlfn.PERCENTILE.EXC($B43:$EO43,0.85) -> 6350 | FM43: =MAX(B43:EO43) -> 19100 | FN43: =STDEVP(B43:EO43) -> 6666.399156
A44: Total Private | B44: =SA!BN3-SA!BM3 -> -3500 | C44: =SA!BO3-SA!BN3 -> 7200 | D44: =SA!BP3-SA!BO3 -> 4300 | E44: =SA!BQ3-SA!BP3 -> 8600 | F44: =SA!BR3-SA!BQ3 -> -4100 | G44: =SA!BS3-SA!BR3 -> -2200 | H44: =SA!BT3-SA!BS3 -> 7700 | I44: =SA!BU3-SA!BT3 -> 3000 | J44: =SA!BV3-SA!BU3 -> 1600 | K44: =SA!BW3-SA!BV3 -> -800 | L44: =SA!BX3-SA!BW3 -> 4500 | M44: =SA!BY3-SA!BX3 -> 1600 | N44: =SA!BZ3-SA!BY3 -> 700 | O44: =SA!CA3-SA!BZ3 -> 4800 | P44: =SA!CB3-SA!CA3 -> 1300 | Q44: =SA!CC3-SA!CB3 -> 7200 | R44: =SA!CD3-SA!CC3 -> -5400 | S44: =SA!CE3-SA!CD3 -> 4400 | T44: =SA!CF3-SA!CE3 -> -700 | U44: =SA!CG3-SA!CF3 -> 100 | V44: =SA!CH3-SA!CG3 -> 800 | W44: =SA!CI3-SA!CH3 -> 1900 | X44: =SA!CJ3-SA!CI3 -> -100 | Y44: =SA!CK3-SA!CJ3 -> 3000 | Z44: =SA!CL3-SA!CK3 -> 5400 | AA44: =SA!CM3-SA!CL3 -> -400 | AB44: =SA!CN3-SA!CM3 -> 3700 | AC44: =SA!CO3-SA!CN3 -> -1500 | AD44: =SA!CP3-SA!CO3 -> 4700 | AE44: =SA!CQ3-SA!CP3 -> 4200 | AF44: =SA!CR3-SA!CQ3 -> -2900 | AG44: =SA!CS3-SA!CR3 -> -2300 | AH44: =SA!CT3-SA!CS3 -> -4000 | AI44: =SA!CU3-SA!CT3 -> -400 | AJ44: =SA!CV3-SA!CU3 -> 1200 | AK44: =SA!CW3-SA!CV3 -> 1400 | AL44: =SA!CX3-SA!CW3 -> 2100 | AM44: =SA!CY3-SA!CX3 -> 200 | AN44: =SA!CZ3-SA!CY3 -> -2100 | AO44: =SA!DA3-SA!CZ3 -> -3200 | AP44: =SA!DB3-SA!DA3 -> -100 | AQ44: =SA!DC3-SA!DB3 -> -1900 | AR44: =SA!DD3-SA!DC3 -> -4700 | AS44: =SA!DE3-SA!DD3 -> -3300 | AT44: =SA!DF3-SA!DE3 -> -8900 | AU44: =SA!DG3-SA!DF3 -> -5100 | AV44: =SA!DH3-SA!DG3 -> -12300 | AW44: =SA!DI3-SA!DH3 -> -10900 | AX44: =SA!DJ3-SA!DI3 -> -23700 | AY44: =SA!DK3-SA!DJ3 -> -17400 | AZ44: =SA!DL3-SA!DK3 -> -20900 | BA44: =SA!DM3-SA!DL3 -> -22100 | BB44: =SA!DN3-SA!DM3 -> -1400 | BC44: =SA!DO3-SA!DN3 -> -9800 | BD44: =SA!DP3-SA!DO3 -> -12100 | BE44: =SA!DQ3-SA!DP3 -> -4700 | BF44: =SA!DR3-SA!DQ3 -> -100 | BG44: =SA!DS3-SA!DR3 -> -2800 | BH44: =SA!DT3-SA!DS3 -> -1400 | BI44: =SA!DU3-SA!DT3 -> -3300 | BJ44: =SA!DV3-SA!DU3 -> 800 | BK44: =SA!DW3-SA!DV3 -> 1800 | BL44: =SA!DX3-SA!DW3 -> 1200 | BM44: =SA!DY3-SA!DX3 -> 6900 | BN44: =SA!DZ3-SA!DY3 -> -1300 | BO44: =SA!EA3-SA!DZ3 -> 1100 | BP44: =SA!EB3-SA!EA3 -> 7200 | BQ44: =SA!EC3-SA!EB3 -> 4600 | BR44: =SA!ED3-SA!EC3 -> -2600 | BS44: =SA!EE3-SA!ED3 -> 9000 | BT44: =SA!EF3-SA!EE3 -> 300 | BU44: =SA!EG3-SA!EF3 -> 2500 | BV44: =SA!EH3-SA!EG3 -> 2000 | BW44: =SA!EI3-SA!EH3 -> 400 | BX44: =SA!EJ3-SA!EI3 -> 2400 | BY44: =SA!EK3-SA!EJ3 -> 6600 | BZ44: =SA!EL3-SA!EK3 -> -1200 | CA44: =SA!EM3-SA!EL3 -> 100 | CB44: =SA!EN3-SA!EM3 -> 9200 | CC44: =SA!EO3-SA!EN3 -> 1500 | CD44: =SA!EP3-SA!EO3 -> 4500 | CE44: =SA!EQ3-SA!EP3 -> -1000 | CF44: =SA!ER3-SA!EQ3 -> 2900 | CG44: =SA!ES3-SA!ER3 -> 1600 | CH44: =SA!ET3-SA!ES3 -> 5200 | CI44: =SA!EU3-SA!ET3 -> 3300 | CJ44: =SA!EV3-SA!EU3 -> 8400 | CK44: =SA!EW3-SA!EV3 -> 4700 | CL44: =SA!EX3-SA!EW3 -> -6500 | CM44: =SA!EY3-SA!EX3 -> 5400 | CN44: =SA!EZ3-SA!EY3 -> -6700 | CO44: =SA!FA3-SA!EZ3 -> 1800 | CP44: =SA!FB3-SA!FA3 -> 7200 | CQ44: =SA!FC3-SA!FB3 -> 3700 | CR44: =SA!FD3-SA!FC3 -> 3500 | CS44: =SA!FE3-SA!FD3 -> 1600 | CT44: =SA!FF3-SA!FE3 -> 1900 | CU44: =SA!FG3-SA!FF3 -> 6800 | CV44: =SA!FH3-SA!FG3 -> 3000 | CW44: =SA!FI3-SA!FH3 -> -7500 | CX44: =SA!FJ3-SA!FI3 -> 9400 | CY44: =SA!FK3-SA!FJ3 -> 3200 | CZ44: =SA!FL3-SA!FK3 -> -1600 | DA44: =SA!FM3-SA!FL3 -> 7800 | DB44: =SA!FN3-SA!FM3 -> 3200 | DC44: =SA!FO3-SA!FN3 -> 700 | DD44: =SA!FP3-SA!FO3 -> 4700 | DE44: =SA!FQ3-SA!FP3 -> 1800 | DF44: =SA!FR3-SA!FQ3 -> 4000 | DG44: =SA!FS3-SA!FR3 -> 4100 | DH44: =SA!FT3-SA!FS3 -> 2300 | DI44: =SA!FU3-SA!FT3 -> 6300 | DJ44: =SA!FV3-SA!FU3 -> 3000 | DK44: =SA!FW3-SA!FV3 -> 5900 | DL44: =SA!FX3-SA!FW3 -> -900 | DM44: =SA!FY3-SA!FX3 -> 6700 | DN44: =SA!FZ3-SA!FY3 -> 2200 | DO44: =SA!GA3-SA!FZ3 -> 2600 | DP44: =SA!GB3-SA!GA3 -> 7600 | DQ44: =SA!GC3-SA!GB3 -> -600 | DR44: =SA!GD3-SA!GC3 -> 6200 | DS44: =SA!GE3-SA!GD3 -> 1900 | DT44: =SA!GF3-SA!GE3 -> 4800 | DU44: =SA!GG3-SA!GF3 -> 900 | DV44: =SA!GH3-SA!GG3 -> 6200 | DW44: =SA!GI3-SA!GH3 -> 2500 | DX44: =SA!GJ3-SA!GI3 -> 3900 | DY44: =SA!GK3-SA!GJ3 -> 3300 | DZ44: =SA!GL3-SA!GK3 -> -100 | EA44: =SA!GM3-SA!GL3 -> 4900 | EB44: =SA!GN3-SA!GM3 -> 3500 | EC44: =SA!GO3-SA!GN3 -> 2100 | ED44: =SA!GP3-SA!GO3 -> 9400 | EE44: =SA!GQ3-SA!GP3 -> 4300 | EF44: =SA!GR3-SA!GQ3 -> 600 | EG44: =SA!GS3-SA!GR3 -> 600 | EH44: =SA!GT3-SA!GS3 -> -4600 | EI44: =SA!GU3-SA!GT3 -> -2300 | EJ44: =SA!GV3-SA!GU3 -> 8500 | EK44: =SA!GW3-SA!GV3 -> -900 | EL44: =SA!GX3-SA!GW3 -> -100 | EM44: =SA!GY3-SA!GX3 -> 100 | EN44: =SA!GZ3-SA!GY3 -> -1200 | EO44: =SA!HA3-SA!GZ3 -> 2800 | EP44: =SA!HB3-SA!HA3 -> 10400 | EQ44: =SA!HC3-SA!HB3 -> 8300 | ER44: =SA!HD3-SA!HC3 -> 800 | ES44: =SA!HE3-SA!HD3 -> 6000 | ET44: =SA!HF3-SA!HE3 -> -2600 | EU44: =SA!HG3-SA!HF3 -> 1300 | EV44: =SA!HH3-SA!HG3 -> -500 | EW44: =SA!HI3-SA!HH3 -> -2500 | EX44: =SA!HJ3-SA!HI3 -> 5900 | EY44: =SA!HK3-SA!HJ3 -> -2543200 | EZ44: =SA!HL3-SA!HK3 -> 0 | FA44: =SA!HM3-SA!HL3 -> 0 | FB44: 9084 | FC44: 1 | FE44: Total Private | FF44: -23700 | FG44: -3300 | FH44: -650 | FI44: 1125 | FJ44: 1900 | FK44: 3600 | FL44: 5975 | FM44: 9400 | FN44: 5666.429691
A45: Goods Producing | B45: =SA!BN4-SA!BM4 -> -4800 | C45: =SA!BO4-SA!BN4 -> 4700 | D45: =SA!BP4-SA!BO4 -> -100 | E45: =SA!BQ4-SA!BP4 -> 500 | F45: =SA!BR4-SA!BQ4 -> -800 | G45: =SA!BS4-SA!BR4 -> -400 | H45: =SA!BT4-SA!BS4 -> 1800 | I45: =SA!BU4-SA!BT4 -> -400 | J45: =SA!BV4-SA!BU4 -> -900 | K45: =SA!BW4-SA!BV4 -> -400 | L45: =SA!BX4-SA!BW4 -> 200 | M45: =SA!BY4-SA!BX4 -> -700 | N45: =SA!BZ4-SA!BY4 -> 3000 | O45: =SA!CA4-SA!BZ4 -> 400 | P45: =SA!CB4-SA!CA4 -> -200 | Q45: =SA!CC4-SA!CB4 -> 2000 | R45: =SA!CD4-SA!CC4 -> -2400 | S45: =SA!CE4-SA!CD4 -> 1700 | T45: =SA!CF4-SA!CE4 -> -1600 | U45: =SA!CG4-SA!CF4 -> -800 | V45: =SA!CH4-SA!CG4 -> -1600 | W45: =SA!CI4-SA!CH4 -> -1700 | X45: =SA!CJ4-SA!CI4 -> -2400 | Y45: =SA!CK4-SA!CJ4 -> 1100 | Z45: =SA!CL4-SA!CK4 -> 600 | AA45: =SA!CM4-SA!CL4 -> -1800 | AB45: =SA!CN4-SA!CM4 -> 1700 | AC45: =SA!CO4-SA!CN4 -> -1000 | AD45: =SA!CP4-SA!CO4 -> 1200 | AE45: =SA!CQ4-SA!CP4 -> -200 | AF45: =SA!CR4-SA!CQ4 -> -1000 | AG45: =SA!CS4-SA!CR4 -> -1800 | AH45: =SA!CT4-SA!CS4 -> -2600 | AI45: =SA!CU4-SA!CT4 -> -800 | AJ45: =SA!CV4-SA!CU4 -> -300 | AK45: =SA!CW4-SA!CV4 -> -1200 | AL45: =SA!CX4-SA!CW4 -> -100 | AM45: =SA!CY4-SA!CX4 -> 0 | AN45: =SA!CZ4-SA!CY4 -> -1000 | AO45: =SA!DA4-SA!CZ4 -> -3100 | AP45: =SA!DB4-SA!DA4 -> -800 | AQ45: =SA!DC4-SA!DB4 -> -400 | AR45: =SA!DD4-SA!DC4 -> -4800 | AS45: =SA!DE4-SA!DD4 -> -3100 | AT45: =SA!DF4-SA!DE4 -> -4100 | AU45: =SA!DG4-SA!DF4 -> -2900 | AV45: =SA!DH4-SA!DG4 -> -5600 | AW45: =SA!DI4-SA!DH4 -> -6900 | AX45: =SA!DJ4-SA!DI4 -> -11900 | AY45: =SA!DK4-SA!DJ4 -> -11000 | AZ45: =SA!DL4-SA!DK4 -> -11300 | BA45: =SA!DM4-SA!DL4 -> -12500 | BB45: =SA!DN4-SA!DM4 -> -5600 | BC45: =SA!DO4-SA!DN4 -> -6800 | BD45: =SA!DP4-SA!DO4 -> -5600 | BE45: =SA!DQ4-SA!DP4 -> -2000 | BF45: =SA!DR4-SA!DQ4 -> 3400 | BG45: =SA!DS4-SA!DR4 -> -2800 | BH45: =SA!DT4-SA!DS4 -> -1300 | BI45: =SA!DU4-SA!DT4 -> -1200 | BJ45: =SA!DV4-SA!DU4 -> -1500 | BK45: =SA!DW4-SA!DV4 -> 400 | BL45: =SA!DX4-SA!DW4 -> 1300 | BM45: =SA!DY4-SA!DX4 -> 2900 | BN45: =SA!DZ4-SA!DY4 -> -800 | BO45: =SA!EA4-SA!DZ4 -> 700 | BP45: =SA!EB4-SA!EA4 -> 1600 | BQ45: =SA!EC4-SA!EB4 -> 1100 | BR45: =SA!ED4-SA!EC4 -> 500 | BS45: =SA!EE4-SA!ED4 -> 800 | BT45: =SA!EF4-SA!EE4 -> 0 | BU45: =SA!EG4-SA!EF4 -> 700 | BV45: =SA!EH4-SA!EG4 -> 1100 | BW45: =SA!EI4-SA!EH4 -> 1700 | BX45: =SA!EJ4-SA!EI4 -> 1300 | BY45: =SA!EK4-SA!EJ4 -> 3000 | BZ45: =SA!EL4-SA!EK4 -> 1200 | CA45: =SA!EM4-SA!EL4 -> 0 | CB45: =SA!EN4-SA!EM4 -> 2500 | CC45: =SA!EO4-SA!EN4 -> 900 | CD45: =SA!EP4-SA!EO4 -> 200 | CE45: =SA!EQ4-SA!EP4 -> -800 | CF45: =SA!ER4-SA!EQ4 -> 1600 | CG45: =SA!ES4-SA!ER4 -> 1300 | CH45: =SA!ET4-SA!ES4 -> 1500 | CI45: =SA!EU4-SA!ET4 -> 1700 | CJ45: =SA!EV4-SA!EU4 -> 2200 | CK45: =SA!EW4-SA!EV4 -> 3200 | CL45: =SA!EX4-SA!EW4 -> -3400 | CM45: =SA!EY4-SA!EX4 -> 1500 | CN45: =SA!EZ4-SA!EY4 -> -200 | CO45: =SA!FA4-SA!EZ4 -> -400 | CP45: =SA!FB4-SA!FA4 -> 1000 | CQ45: =SA!FC4-SA!FB4 -> 1600 | CR45: =SA!FD4-SA!FC4 -> -400 | CS45: =SA!FE4-SA!FD4 -> 2600 | CT45: =SA!FF4-SA!FE4 -> 600 | CU45: =SA!FG4-SA!FF4 -> 1700 | CV45: =SA!FH4-SA!FG4 -> -500 | CW45: =SA!FI4-SA!FH4 -> -3700 | CX45: =SA!FJ4-SA!FI4 -> 3600 | CY45: =SA!FK4-SA!FJ4 -> 500 | CZ45: =SA!FL4-SA!FK4 -> -800 | DA45: =SA!FM4-SA!FL4 -> 1600 | DB45: =SA!FN4-SA!FM4 -> 900 | DC45: =SA!FO4-SA!FN4 -> 1400 | DD45: =SA!FP4-SA!FO4 -> 1000 | DE45: =SA!FQ4-SA!FP4 -> -1000 | DF45: =SA!FR4-SA!FQ4 -> 2300 | DG45: =SA!FS4-SA!FR4 -> 1200 | DH45: =SA!FT4-SA!FS4 -> 900 | DI45: =SA!FU4-SA!FT4 -> 1800 | DJ45: =SA!FV4-SA!FU4 -> 2100 | DK45: =SA!FW4-SA!FV4 -> 1300 | DL45: =SA!FX4-SA!FW4 -> 2000 | DM45: =SA!FY4-SA!FX4 -> 1200 | DN45: =SA!FZ4-SA!FY4 -> 1200 | DO45: =SA!GA4-SA!FZ4 -> 600 | DP45: =SA!GB4-SA!GA4 -> 900 | DQ45: =SA!GC4-SA!GB4 -> 900 | DR45: =SA!GD4-SA!GC4 -> 1100 | DS45: =SA!GE4-SA!GD4 -> 1100 | DT45: =SA!GF4-SA!GE4 -> -200 | DU45: =SA!GG4-SA!GF4 -> 300 | DV45: =SA!GH4-SA!GG4 -> 300 | DW45: =SA!GI4-SA!GH4 -> -100 | DX45: =SA!GJ4-SA!GI4 -> -100 | DY45: =SA!GK4-SA!GJ4 -> -700 | DZ45: =SA!GL4-SA!GK4 -> -300 | EA45: =SA!GM4-SA!GL4 -> -100 | EB45: =SA!GN4-SA!GM4 -> 600 | EC45: =SA!GO4-SA!GN4 -> 900 | ED45: =SA!GP4-SA!GO4 -> 200 | EE45: =SA!GQ4-SA!GP4 -> 200 | EF45: =SA!GR4-SA!GQ4 -> 900 | EG45: =SA!GS4-SA!GR4 -> -1200 | EH45: =SA!GT4-SA!GS4 -> -1500 | EI45: =SA!GU4-SA!GT4 -> -1100 | EJ45: =SA!GV4-SA!GU4 -> 100 | EK45: =SA!GW4-SA!GV4 -> 0 | EL45: =SA!GX4-SA!GW4 -> -200 | EM45: =SA!GY4-SA!GX4 -> 2500 | EN45: =SA!GZ4-SA!GY4 -> -500 | EO45: =SA!HA4-SA!GZ4 -> 3900 | EP45: =SA!HB4-SA!HA4 -> 1700 | EQ45: =SA!HC4-SA!HB4 -> 300 | ER45: =SA!HD4-SA!HC4 -> -1000 | ES45: =SA!HE4-SA!HD4 -> 5600 | ET45: =SA!HF4-SA!HE4 -> -800 | EU45: =SA!HG4-SA!HF4 -> -2100 | EV45: =SA!HH4-SA!HG4 -> 2400 | EW45: =SA!HI4-SA!HH4 -> -100 | EX45: =SA!HJ4-SA!HI4 -> 2400 | EY45: =SA!HK4-SA!HJ4 -> -593300 | EZ45: =SA!HL4-SA!HK4 -> 0 | FA45: =SA!HM4-SA!HL4 -> 0 | FB45: 3846 | FC45: 2 | FE45: Goods Producing | FF45: -12500 | FG45: -2100 | FH45: -800 | FI45: -100 | FJ45: 375 | FK45: 1100 | FL45: 1700 | FM45: 4700 | FN45: 2776.416333
A46: Service-Providing | B46: =SA!BN5-SA!BM5 -> 6100 | C46: =SA!BO5-SA!BN5 -> 2000 | D46: =SA!BP5-SA!BO5 -> 2400 | E46: =SA!BQ5-SA!BP5 -> 8500 | F46: =SA!BR5-SA!BQ5 -> -3700 | G46: =SA!BS5-SA!BR5 -> -3200 | H46: =SA!BT5-SA!BS5 -> 7300 | I46: =SA!BU5-SA!BT5 -> 3100 | J46: =SA!BV5-SA!BU5 -> 7000 | K46: =SA!BW5-SA!BV5 -> -2700 | L46: =SA!BX5-SA!BW5 -> 2300 | M46: =SA!BY5-SA!BX5 -> 5000 | N46: =SA!BZ5-SA!BY5 -> -3400 | O46: =SA!CA5-SA!BZ5 -> 3300 | P46: =SA!CB5-SA!CA5 -> 2400 | Q46: =SA!CC5-SA!CB5 -> 5100 | R46: =SA!CD5-SA!CC5 -> -4600 | S46: =SA!CE5-SA!CD5 -> 5800 | T46: =SA!CF5-SA!CE5 -> -200 | U46: =SA!CG5-SA!CF5 -> 1000 | V46: =SA!CH5-SA!CG5 -> 4600 | W46: =SA!CI5-SA!CH5 -> -100 | X46: =SA!CJ5-SA!CI5 -> 2900 | Y46: =SA!CK5-SA!CJ5 -> 1400 | Z46: =SA!CL5-SA!CK5 -> 4500 | AA46: =SA!CM5-SA!CL5 -> 200 | AB46: =SA!CN5-SA!CM5 -> 2800 | AC46: =SA!CO5-SA!CN5 -> 700 | AD46: =SA!CP5-SA!CO5 -> 4400 | AE46: =SA!CQ5-SA!CP5 -> 9000 | AF46: =SA!CR5-SA!CQ5 -> -5300 | AG46: =SA!CS5-SA!CR5 -> 800 | AH46: =SA!CT5-SA!CS5 -> 1400 | AI46: =SA!CU5-SA!CT5 -> -5000 | AJ46: =SA!CV5-SA!CU5 -> -300 | AK46: =SA!CW5-SA!CV5 -> 6200 | AL46: =SA!CX5-SA!CW5 -> 5300 | AM46: =SA!CY5-SA!CX5 -> -1000 | AN46: =SA!CZ5-SA!CY5 -> -2200 | AO46: =SA!DA5-SA!CZ5 -> -1400 | AP46: =SA!DB5-SA!DA5 -> 3600 | AQ46: =SA!DC5-SA!DB5 -> -2000 | AR46: =SA!DD5-SA!DC5 -> 2600 | AS46: =SA!DE5-SA!DD5 -> -1500 | AT46: =SA!DF5-SA!DE5 -> 6200 | AU46: =SA!DG5-SA!DF5 -> -8900 | AV46: =SA!DH5-SA!DG5 -> -3200 | AW46: =SA!DI5-SA!DH5 -> -7600 | AX46: =SA!DJ5-SA!DI5 -> -13900 | AY46: =SA!DK5-SA!DJ5 -> -5700 | AZ46: =SA!DL5-SA!DK5 -> -10100 | BA46: =SA!DM5-SA!DL5 -> -10300 | BB46: =SA!DN5-SA!DM5 -> 5600 | BC46: =SA!DO5-SA!DN5 -> -6000 | BD46: =SA!DP5-SA!DO5 -> -6000 | BE46: =SA!DQ5-SA!DP5 -> -5200 | BF46: =SA!DR5-SA!DQ5 -> -5300 | BG46: =SA!DS5-SA!DR5 -> 3000 | BH46: =SA!DT5-SA!DS5 -> -1700 | BI46: =SA!DU5-SA!DT5 -> -100 | BJ46: =SA!DV5-SA!DU5 -> 1300 | BK46: =SA!DW5-SA!DV5 -> -600 | BL46: =SA!DX5-SA!DW5 -> 700 | BM46: =SA!DY5-SA!DX5 -> 7600 | BN46: =SA!DZ5-SA!DY5 -> 3500 | BO46: =SA!EA5-SA!DZ5 -> -2400 | BP46: =SA!EB5-SA!EA5 -> 1900 | BQ46: =SA!EC5-SA!EB5 -> 1700 | BR46: =SA!ED5-SA!EC5 -> -2300 | BS46: =SA!EE5-SA!ED5 -> 8800 | BT46: =SA!EF5-SA!EE5 -> 1300 | BU46: =SA!EG5-SA!EF5 -> -3200 | BV46: =SA!EH5-SA!EG5 -> 3200 | BW46: =SA!EI5-SA!EH5 -> 200 | BX46: =SA!EJ5-SA!EI5 -> 1200 | BY46: =SA!EK5-SA!EJ5 -> 800 | BZ46: =SA!EL5-SA!EK5 -> -800 | CA46: =SA!EM5-SA!EL5 -> -2800 | CB46: =SA!EN5-SA!EM5 -> 11200 | CC46: =SA!EO5-SA!EN5 -> -4500 | CD46: =SA!EP5-SA!EO5 -> 2500 | CE46: =SA!EQ5-SA!EP5 -> -3400 | CF46: =SA!ER5-SA!EQ5 -> -1200 | CG46: =SA!ES5-SA!ER5 -> 4700 | CH46: =SA!ET5-SA!ES5 -> -5800 | CI46: =SA!EU5-SA!ET5 -> 4400 | CJ46: =SA!EV5-SA!EU5 -> 12600 | CK46: =SA!EW5-SA!EV5 -> 5000 | CL46: =SA!EX5-SA!EW5 -> 1000 | CM46: =SA!EY5-SA!EX5 -> -1700 | CN46: =SA!EZ5-SA!EY5 -> -9200 | CO46: =SA!FA5-SA!EZ5 -> 5100 | CP46: =SA!FB5-SA!FA5 -> 4200 | CQ46: =SA!FC5-SA!FB5 -> 3000 | CR46: =SA!FD5-SA!FC5 -> 8100 | CS46: =SA!FE5-SA!FD5 -> -5600 | CT46: =SA!FF5-SA!FE5 -> -9400 | CU46: =SA!FG5-SA!FF5 -> 17400 | CV46: =SA!FH5-SA!FG5 -> 1300 | CW46: =SA!FI5-SA!FH5 -> -5300 | CX46: =SA!FJ5-SA!FI5 -> 5200 | CY46: =SA!FK5-SA!FJ5 -> 3000 | CZ46: =SA!FL5-SA!FK5 -> 0 | DA46: =SA!FM5-SA!FL5 -> 5800 | DB46: =SA!FN5-SA!FM5 -> 4900 | DC46: =SA!FO5-SA!FN5 -> -1100 | DD46: =SA!FP5-SA!FO5 -> 1800 | DE46: =SA!FQ5-SA!FP5 -> 3900 | DF46: =SA!FR5-SA!FQ5 -> 2800 | DG46: =SA!FS5-SA!FR5 -> 100 | DH46: =SA!FT5-SA!FS5 -> 2600 | DI46: =SA!FU5-SA!FT5 -> 5100 | DJ46: =SA!FV5-SA!FU5 -> 500 | DK46: =SA!FW5-SA!FV5 -> 5200 | DL46: =SA!FX5-SA!FW5 -> -2100 | DM46: =SA!FY5-SA!FX5 -> 11100 | DN46: =SA!FZ5-SA!FY5 -> -3400 | DO46: =SA!GA5-SA!FZ5 -> 800 | DP46: =SA!GB5-SA!GA5 -> 11300 | DQ46: =SA!GC5-SA!GB5 -> -6700 | DR46: =SA!GD5-SA!GC5 -> 3800 | DS46: =SA!GE5-SA!GD5 -> 1800 | DT46: =SA!GF5-SA!GE5 -> 4500 | DU46: =SA!GG5-SA!GF5 -> 500 | DV46: =SA!GH5-SA!GG5 -> 4900 | DW46: =SA!GI5-SA!GH5 -> 2800 | DX46: =SA!GJ5-SA!GI5 -> 3000 | DY46: =SA!GK5-SA!GJ5 -> 3600 | DZ46: =SA!GL5-SA!GK5 -> 300 | EA46: =SA!GM5-SA!GL5 -> 4800 | EB46: =SA!GN5-SA!GM5 -> -300 | EC46: =SA!GO5-SA!GN5 -> 5400 | ED46: =SA!GP5-SA!GO5 -> 10300 | EE46: =SA!GQ5-SA!GP5 -> 4000 | EF46: =SA!GR5-SA!GQ5 -> -500 | EG46: =SA!GS5-SA!GR5 -> 2500 | EH46: =SA!GT5-SA!GS5 -> -6100 | EI46: =SA!GU5-SA!GT5 -> 1200 | EJ46: =SA!GV5-SA!GU5 -> 11300 | EK46: =SA!GW5-SA!GV5 -> 900 | EL46: =SA!GX5-SA!GW5 -> -5100 | EM46: =SA!GY5-SA!GX5 -> 3800 | EN46: =SA!GZ5-SA!GY5 -> 4200 | EO46: =SA!HA5-SA!GZ5 -> -3400 | EP46: =SA!HB5-SA!HA5 -> 3700 | EQ46: =SA!HC5-SA!HB5 -> 10800 | ER46: =SA!HD5-SA!HC5 -> -2700 | ES46: =SA!HE5-SA!HD5 -> 7500 | ET46: =SA!HF5-SA!HE5 -> -2900 | EU46: =SA!HG5-SA!HF5 -> -3300 | EV46: =SA!HH5-SA!HG5 -> 3400 | EW46: =SA!HI5-SA!HH5 -> -7000 | EX46: =SA!HJ5-SA!HI5 -> 6200 | EY46: =SA!HK5-SA!HJ5 -> -2365100 | EZ46: =SA!HL5-SA!HK5 -> 0 | FA46: =SA!HM5-SA!HL5 -> 0 | FB46: n/a | FC46: 0 | FE46: Service-Providing | FF46: -13900 | FG46: -4525 | FH46: -1050 | FI46: 925 | FJ46: 2225 | FK46: 3800 | FL46: 5325 | FM46: 17400 | FN46: 4997.513078
A47: Private Service Providing | B47: =SA!BN6-SA!BM6 -> 1300 | C47: =SA!BO6-SA!BN6 -> 2500 | D47: =SA!BP6-SA!BO6 -> 4400 | E47: =SA!BQ6-SA!BP6 -> 8100 | F47: =SA!BR6-SA!BQ6 -> -3300 | G47: =SA!BS6-SA!BR6 -> -1800 | H47: =SA!BT6-SA!BS6 -> 5900 | I47: =SA!BU6-SA!BT6 -> 3400 | J47: =SA!BV6-SA!BU6 -> 2500 | K47: =SA!BW6-SA!BV6 -> -400 | L47: =SA!BX6-SA!BW6 -> 4300 | M47: =SA!BY6-SA!BX6 -> 2300 | N47: =SA!BZ6-SA!BY6 -> -2300 | O47: =SA!CA6-SA!BZ6 -> 4400 | P47: =SA!CB6-SA!CA6 -> 1500 | Q47: =SA!CC6-SA!CB6 -> 5200 | R47: =SA!CD6-SA!CC6 -> -3000 | S47: =SA!CE6-SA!CD6 -> 2700 | T47: =SA!CF6-SA!CE6 -> 900 | U47: =SA!CG6-SA!CF6 -> 900 | V47: =SA!CH6-SA!CG6 -> 2400 | W47: =SA!CI6-SA!CH6 -> 3600 | X47: =SA!CJ6-SA!CI6 -> 2300 | Y47: =SA!CK6-SA!CJ6 -> 1900 | Z47: =SA!CL6-SA!CK6 -> 4800 | AA47: =SA!CM6-SA!CL6 -> 1400 | AB47: =SA!CN6-SA!CM6 -> 2000 | AC47: =SA!CO6-SA!CN6 -> -500 | AD47: =SA!CP6-SA!CO6 -> 3500 | AE47: =SA!CQ6-SA!CP6 -> 4400 | AF47: =SA!CR6-SA!CQ6 -> -1900 | AG47: =SA!CS6-SA!CR6 -> -500 | AH47: =SA!CT6-SA!CS6 -> -1400 | AI47: =SA!CU6-SA!CT6 -> 400 | AJ47: =SA!CV6-SA!CU6 -> 1500 | AK47: =SA!CW6-SA!CV6 -> 2600 | AL47: =SA!CX6-SA!CW6 -> 2200 | AM47: =SA!CY6-SA!CX6 -> 200 | AN47: =SA!CZ6-SA!CY6 -> -1100 | AO47: =SA!DA6-SA!CZ6 -> -100 | AP47: =SA!DB6-SA!DA6 -> 700 | AQ47: =SA!DC6-SA!DB6 -> -1500 | AR47: =SA!DD6-SA!DC6 -> 100 | AS47: =SA!DE6-SA!DD6 -> -200 | AT47: =SA!DF6-SA!DE6 -> -4800 | AU47: =SA!DG6-SA!DF6 -> -2200 | AV47: =SA!DH6-SA!DG6 -> -6700 | AW47: =SA!DI6-SA!DH6 -> -4000 | AX47: =SA!DJ6-SA!DI6 -> -11800 | AY47: =SA!DK6-SA!DJ6 -> -6400 | AZ47: =SA!DL6-SA!DK6 -> -9600 | BA47: =SA!DM6-SA!DL6 -> -9600 | BB47: =SA!DN6-SA!DM6 -> 4200 | BC47: =SA!DO6-SA!DN6 -> -3000 | BD47: =SA!DP6-SA!DO6 -> -6500 | BE47: =SA!DQ6-SA!DP6 -> -2700 | BF47: =SA!DR6-SA!DQ6 -> -3500 | BG47: =SA!DS6-SA!DR6 -> 0 | BH47: =SA!DT6-SA!DS6 -> -100 | BI47: =SA!DU6-SA!DT6 -> -2100 | BJ47: =SA!DV6-SA!DU6 -> 2300 | BK47: =SA!DW6-SA!DV6 -> 1400 | BL47: =SA!DX6-SA!DW6 -> -100 | BM47: =SA!DY6-SA!DX6 -> 4000 | BN47: =SA!DZ6-SA!DY6 -> -500 | BO47: =SA!EA6-SA!DZ6 -> 400 | BP47: =SA!EB6-SA!EA6 -> 5600 | BQ47: =SA!EC6-SA!EB6 -> 3500 | BR47: =SA!ED6-SA!EC6 -> -3100 | BS47: =SA!EE6-SA!ED6 -> 8200 | BT47: =SA!EF6-SA!EE6 -> 300 | BU47: =SA!EG6-SA!EF6 -> 1800 | BV47: =SA!EH6-SA!EG6 -> 900 | BW47: =SA!EI6-SA!EH6 -> -1300 | BX47: =SA!EJ6-SA!EI6 -> 1100 | BY47: =SA!EK6-SA!EJ6 -> 3600 | BZ47: =SA!EL6-SA!EK6 -> -2400 | CA47: =SA!EM6-SA!EL6 -> 100 | CB47: =SA!EN6-SA!EM6 -> 6700 | CC47: =SA!EO6-SA!EN6 -> 600 | CD47: =SA!EP6-SA!EO6 -> 4300 | CE47: =SA!EQ6-SA!EP6 -> -200 | CF47: =SA!ER6-SA!EQ6 -> 1300 | CG47: =SA!ES6-SA!ER6 -> 300 | CH47: =SA!ET6-SA!ES6 -> 3700 | CI47: =SA!EU6-SA!ET6 -> 1600 | CJ47: =SA!EV6-SA!EU6 -> 6200 | CK47: =SA!EW6-SA!EV6 -> 1500 | CL47: =SA!EX6-SA!EW6 -> -3100 | CM47: =SA!EY6-SA!EX6 -> 3900 | CN47: =SA!EZ6-SA!EY6 -> -6500 | CO47: =SA!FA6-SA!EZ6 -> 2200 | CP47: =SA!FB6-SA!FA6 -> 6200 | CQ47: =SA!FC6-SA!FB6 -> 2100 | CR47: =SA!FD6-SA!FC6 -> 3900 | CS47: =SA!FE6-SA!FD6 -> -1000 | CT47: =SA!FF6-SA!FE6 -> 1300 | CU47: =SA!FG6-SA!FF6 -> 5100 | CV47: =SA!FH6-SA!FG6 -> 3500 | CW47: =SA!FI6-SA!FH6 -> -3800 | CX47: =SA!FJ6-SA!FI6 -> 5800 | CY47: =SA!FK6-SA!FJ6 -> 2700 | CZ47: =SA!FL6-SA!FK6 -> -800 | DA47: =SA!FM6-SA!FL6 -> 6200 | DB47: =SA!FN6-SA!FM6 -> 2300 | DC47: =SA!FO6-SA!FN6 -> -700 | DD47: =SA!FP6-SA!FO6 -> 3700 | DE47: =SA!FQ6-SA!FP6 -> 2800 | DF47: =SA!FR6-SA!FQ6 -> 1700 | DG47: =SA!FS6-SA!FR6 -> 2900 | DH47: =SA!FT6-SA!FS6 -> 1400 | DI47: =SA!FU6-SA!FT6 -> 4500 | DJ47: =SA!FV6-SA!FU6 -> 900 | DK47: =SA!FW6-SA!FV6 -> 4600 | DL47: =SA!FX6-SA!FW6 -> -2900 | DM47: =SA!FY6-SA!FX6 -> 5500 | DN47: =SA!FZ6-SA!FY6 -> 1000 | DO47: =SA!GA6-SA!FZ6 -> 2000 | DP47: =SA!GB6-SA!GA6 -> 6700 | DQ47: =SA!GC6-SA!GB6 -> -1500 | DR47: =SA!GD6-SA!GC6 -> 5100 | DS47: =SA!GE6-SA!GD6 -> 800 | DT47: =SA!GF6-SA!GE6 -> 5000 | DU47: =SA!GG6-SA!GF6 -> 600 | DV47: =SA!GH6-SA!GG6 -> 5900 | DW47: =SA!GI6-SA!GH6 -> 2600 | DX47: =SA!GJ6-SA!GI6 -> 4000 | DY47: =SA!GK6-SA!GJ6 -> 4000 | DZ47: =SA!GL6-SA!GK6 -> 200 | EA47: =SA!GM6-SA!GL6 -> 5000 | EB47: =SA!GN6-SA!GM6 -> 2900 | EC47: =SA!GO6-SA!GN6 -> 1200 | ED47: =SA!GP6-SA!GO6 -> 9200 | EE47: =SA!GQ6-SA!GP6 -> 4100 | EF47: =SA!GR6-SA!GQ6 -> -300 | EG47: =SA!GS6-SA!GR6 -> 1800 | EH47: =SA!GT6-SA!GS6 -> -3100 | EI47: =SA!GU6-SA!GT6 -> -1200 | EJ47: =SA!GV6-SA!GU6 -> 8400 | EK47: =SA!GW6-SA!GV6 -> -900 | EL47: =SA!GX6-SA!GW6 -> 100 | EM47: =SA!GY6-SA!GX6 -> -2400 | EN47: =SA!GZ6-SA!GY6 -> -700 | EO47: =SA!HA6-SA!GZ6 -> -1100 | EP47: =SA!HB6-SA!HA6 -> 8700 | EQ47: =SA!HC6-SA!HB6 -> 8000 | ER47: =SA!HD6-SA!HC6 -> 1800 | ES47: =SA!HE6-SA!HD6 -> 400 | ET47: =SA!HF6-SA!HE6 -> -1800 | EU47: =SA!HG6-SA!HF6 -> 3400 | EV47: =SA!HH6-SA!HG6 -> -2900 | EW47: =SA!HI6-SA!HH6 -> -2400 | EX47: =SA!HJ6-SA!HI6 -> 3500 | EY47: =SA!HK6-SA!HJ6 -> -1949900 | EZ47: =SA!HL6-SA!HK6 -> 0 | FA47: =SA!HM6-SA!HL6 -> 0 | FB47: 8230 | FC47: 1 | FE47: Private Service Providing | FF47: -11800 | FG47: -2325 | FH47: -250 | FI47: 900 | FJ47: 1675 | FK47: 2900 | FL47: 4525 | FM47: 9200 | FN47: 3550.935516
A48: Mining and Logging | B48: =SA!BN7-SA!BM7 -> -100 | C48: =SA!BO7-SA!BN7 -> 0 | D48: =SA!BP7-SA!BO7 -> 100 | E48: =SA!BQ7-SA!BP7 -> -100 | F48: =SA!BR7-SA!BQ7 -> 0 | G48: =SA!BS7-SA!BR7 -> 100 | H48: =SA!BT7-SA!BS7 -> 0 | I48: =SA!BU7-SA!BT7 -> 0 | J48: =SA!BV7-SA!BU7 -> 0 | K48: =SA!BW7-SA!BV7 -> -100 | L48: =SA!BX7-SA!BW7 -> 100 | M48: =SA!BY7-SA!BX7 -> -100 | N48: =SA!BZ7-SA!BY7 -> 100 | O48: =SA!CA7-SA!BZ7 -> 0 | P48: =SA!CB7-SA!CA7 -> 0 | Q48: =SA!CC7-SA!CB7 -> 0 | R48: =SA!CD7-SA!CC7 -> 0 | S48: =SA!CE7-SA!CD7 -> 0 | T48: =SA!CF7-SA!CE7 -> -100 | U48: =SA!CG7-SA!CF7 -> 0 | V48: =SA!CH7-SA!CG7 -> 0 | W48: =SA!CI7-SA!CH7 -> 0 | X48: =SA!CJ7-SA!CI7 -> -100 | Y48: =SA!CK7-SA!CJ7 -> 0 | Z48: =SA!CL7-SA!CK7 -> 0 | AA48: =SA!CM7-SA!CL7 -> 0 | AB48: =SA!CN7-SA!CM7 -> 0 | AC48: =SA!CO7-SA!CN7 -> 0 | AD48: =SA!CP7-SA!CO7 -> -100 | AE48: =SA!CQ7-SA!CP7 -> -100 | AF48: =SA!CR7-SA!CQ7 -> 100 | AG48: =SA!CS7-SA!CR7 -> -100 | AH48: =SA!CT7-SA!CS7 -> 0 | AI48: =SA!CU7-SA!CT7 -> 0 | AJ48: =SA!CV7-SA!CU7 -> 0 | AK48: =SA!CW7-SA!CV7 -> -200 | AL48: =SA!CX7-SA!CW7 -> 100 | AM48: =SA!CY7-SA!CX7 -> 0 | AN48: =SA!CZ7-SA!CY7 -> -100 | AO48: =SA!DA7-SA!CZ7 -> 0 | AP48: =SA!DB7-SA!DA7 -> -100 | AQ48: =SA!DC7-SA!DB7 -> 100 | AR48: =SA!DD7-SA!DC7 -> 0 | AS48: =SA!DE7-SA!DD7 -> 0 | AT48: =SA!DF7-SA!DE7 -> 0 | AU48: =SA!DG7-SA!DF7 -> -100 | AV48: =SA!DH7-SA!DG7 -> 0 | AW48: =SA!DI7-SA!DH7 -> -100 | AX48: =SA!DJ7-SA!DI7 -> 0 | AY48: =SA!DK7-SA!DJ7 -> -100 | AZ48: =SA!DL7-SA!DK7 -> -100 | BA48: =SA!DM7-SA!DL7 -> -100 | BB48: =SA!DN7-SA!DM7 -> 100 | BC48: =SA!DO7-SA!DN7 -> -100 | BD48: =SA!DP7-SA!DO7 -> 100 | BE48: =SA!DQ7-SA!DP7 -> 0 | BF48: =SA!DR7-SA!DQ7 -> 0 | BG48: =SA!DS7-SA!DR7 -> 0 | BH48: =SA!DT7-SA!DS7 -> -100 | BI48: =SA!DU7-SA!DT7 -> 100 | BJ48: =SA!DV7-SA!DU7 -> -100 | BK48: =SA!DW7-SA!DV7 -> 0 | BL48: =SA!DX7-SA!DW7 -> 0 | BM48: =SA!DY7-SA!DX7 -> 100 | BN48: =SA!DZ7-SA!DY7 -> 0 | BO48: =SA!EA7-SA!DZ7 -> -100 | BP48: =SA!EB7-SA!EA7 -> 100 | BQ48: =SA!EC7-SA!EB7 -> 0 | BR48: =SA!ED7-SA!EC7 -> -100 | BS48: =SA!EE7-SA!ED7 -> 100 | BT48: =SA!EF7-SA!EE7 -> -100 | BU48: =SA!EG7-SA!EF7 -> 0 | BV48: =SA!EH7-SA!EG7 -> 100 | BW48: =SA!EI7-SA!EH7 -> 0 | BX48: =SA!EJ7-SA!EI7 -> 0 | BY48: =SA!EK7-SA!EJ7 -> -100 | BZ48: =SA!EL7-SA!EK7 -> 0 | CA48: =SA!EM7-SA!EL7 -> 200 | CB48: =SA!EN7-SA!EM7 -> -100 | CC48: =SA!EO7-SA!EN7 -> 0 | CD48: =SA!EP7-SA!EO7 -> 100 | CE48: =SA!EQ7-SA!EP7 -> 100 | CF48: =SA!ER7-SA!EQ7 -> 100 | CG48: =SA!ES7-SA!ER7 -> 0 | CH48: =SA!ET7-SA!ES7 -> 0 | CI48: =SA!EU7-SA!ET7 -> 100 | CJ48: =SA!EV7-SA!EU7 -> 100 | CK48: =SA!EW7-SA!EV7 -> 100 | CL48: =SA!EX7-SA!EW7 -> -100 | CM48: =SA!EY7-SA!EX7 -> 0 | CN48: =SA!EZ7-SA!EY7 -> 0 | CO48: =SA!FA7-SA!EZ7 -> 0 | CP48: =SA!FB7-SA!FA7 -> 0 | CQ48: =SA!FC7-SA!FB7 -> 0 | CR48: =SA!FD7-SA!FC7 -> 0 | CS48: =SA!FE7-SA!FD7 -> 100 | CT48: =SA!FF7-SA!FE7 -> 0 | CU48: =SA!FG7-SA!FF7 -> 0 | CV48: =SA!FH7-SA!FG7 -> -100 | CW48: =SA!FI7-SA!FH7 -> 100 | CX48: =SA!FJ7-SA!FI7 -> 100 | CY48: =SA!FK7-SA!FJ7 -> 0 | CZ48: =SA!FL7-SA!FK7 -> 0 | DA48: =SA!FM7-SA!FL7 -> 100 | DB48: =SA!FN7-SA!FM7 -> 0 | DC48: =SA!FO7-SA!FN7 -> 0 | DD48: =SA!FP7-SA!FO7 -> 0 | DE48: =SA!FQ7-SA!FP7 -> 0 | DF48: =SA!FR7-SA!FQ7 -> 0 | DG48: =SA!FS7-SA!FR7 -> 100 | DH48: =SA!FT7-SA!FS7 -> -100 | DI48: =SA!FU7-SA!FT7 -> 200 | DJ48: =SA!FV7-SA!FU7 -> 0 | DK48: =SA!FW7-SA!FV7 -> 0 | DL48: =SA!FX7-SA!FW7 -> 100 | DM48: =SA!FY7-SA!FX7 -> 100 | DN48: =SA!FZ7-SA!FY7 -> 0 | DO48: =SA!GA7-SA!FZ7 -> 100 | DP48: =SA!GB7-SA!GA7 -> 0 | DQ48: =SA!GC7-SA!GB7 -> 100 | DR48: =SA!GD7-SA!GC7 -> -100 | DS48: =SA!GE7-SA!GD7 -> 100 | DT48: =SA!GF7-SA!GE7 -> -100 | DU48: =SA!GG7-SA!GF7 -> 0 | DV48: =SA!GH7-SA!GG7 -> 0 | DW48: =SA!GI7-SA!GH7 -> -100 | DX48: =SA!GJ7-SA!GI7 -> -100 | DY48: =SA!GK7-SA!GJ7 -> 0 | DZ48: =SA!GL7-SA!GK7 -> -100 | EA48: =SA!GM7-SA!GL7 -> 0 | EB48: =SA!GN7-SA!GM7 -> 0 | EC48: =SA!GO7-SA!GN7 -> 0 | ED48: =SA!GP7-SA!GO7 -> -100 | EE48: =SA!GQ7-SA!GP7 -> 0 | EF48: =SA!GR7-SA!GQ7 -> 0 | EG48: =SA!GS7-SA!GR7 -> -100 | EH48: =SA!GT7-SA!GS7 -> 0 | EI48: =SA!GU7-SA!GT7 -> -100 | EJ48: =SA!GV7-SA!GU7 -> 0 | EK48: =SA!GW7-SA!GV7 -> 0 | EL48: =SA!GX7-SA!GW7 -> -100 | EM48: =SA!GY7-SA!GX7 -> 100 | EN48: =SA!GZ7-SA!GY7 -> 100 | EO48: =SA!HA7-SA!GZ7 -> -100 | EP48: =SA!HB7-SA!HA7 -> 200 | EQ48: =SA!HC7-SA!HB7 -> 100 | ER48: =SA!HD7-SA!HC7 -> -100 | ES48: =SA!HE7-SA!HD7 -> 0 | ET48: =SA!HF7-SA!HE7 -> 100 | EU48: =SA!HG7-SA!HF7 -> 0 | EV48: =SA!HH7-SA!HG7 -> 0 | EW48: =SA!HI7-SA!HH7 -> -100 | EX48: =SA!HJ7-SA!HI7 -> 0 | EY48: =SA!HK7-SA!HJ7 -> -3900 | EZ48: =SA!HL7-SA!HK7 -> 0 | FA48: =SA!HM7-SA!HL7 -> 0 | FB48: 207 | FC48: 0 | FE48: Mining and Logging | FF48: -200 | FG48: -100 | FH48: 0 | FI48: 0 | FJ48: 0 | FK48: 0 | FL48: 100 | FM48: 200 | FN48: 74.97105923
A49: Construction | B49: =SA!BN9-SA!BM9 -> -500 | C49: =SA!BO9-SA!BN9 -> 400 | D49: =SA!BP9-SA!BO9 -> -300 | E49: =SA!BQ9-SA!BP9 -> 700 | F49: =SA!BR9-SA!BQ9 -> -500 | G49: =SA!BS9-SA!BR9 -> -300 | H49: =SA!BT9-SA!BS9 -> 800 | I49: =SA!BU9-SA!BT9 -> -200 | J49: =SA!BV9-SA!BU9 -> 0 | K49: =SA!BW9-SA!BV9 -> -100 | L49: =SA!BX9-SA!BW9 -> 400 | M49: =SA!BY9-SA!BX9 -> -600 | N49: =SA!BZ9-SA!BY9 -> 1900 | O49: =SA!CA9-SA!BZ9 -> 500 | P49: =SA!CB9-SA!CA9 -> -1200 | Q49: =SA!CC9-SA!CB9 -> 1600 | R49: =SA!CD9-SA!CC9 -> -2300 | S49: =SA!CE9-SA!CD9 -> 700 | T49: =SA!CF9-SA!CE9 -> -1300 | U49: =SA!CG9-SA!CF9 -> -200 | V49: =SA!CH9-SA!CG9 -> -700 | W49: =SA!CI9-SA!CH9 -> -600 | X49: =SA!CJ9-SA!CI9 -> -1000 | Y49: =SA!CK9-SA!CJ9 -> 1500 | Z49: =SA!CL9-SA!CK9 -> 1100 | AA49: =SA!CM9-SA!CL9 -> -2000 | AB49: =SA!CN9-SA!CM9 -> 2600 | AC49: =SA!CO9-SA!CN9 -> -1400 | AD49: =SA!CP9-SA!CO9 -> 600 | AE49: =SA!CQ9-SA!CP9 -> -500 | AF49: =SA!CR9-SA!CQ9 -> -500 | AG49: =SA!CS9-SA!CR9 -> -200 | AH49: =SA!CT9-SA!CS9 -> -600 | AI49: =SA!CU9-SA!CT9 -> 100 | AJ49: =SA!CV9-SA!CU9 -> -400 | AK49: =SA!CW9-SA!CV9 -> -1100 | AL49: =SA!CX9-SA!CW9 -> -1200 | AM49: =SA!CY9-SA!CX9 -> -700 | AN49: =SA!CZ9-SA!CY9 -> -600 | AO49: =SA!DA9-SA!CZ9 -> -1900 | AP49: =SA!DB9-SA!DA9 -> 100 | AQ49: =SA!DC9-SA!DB9 -> -100 | AR49: =SA!DD9-SA!DC9 -> -600 | AS49: =SA!DE9-SA!DD9 -> -700 | AT49: =SA!DF9-SA!DE9 -> -1100 | AU49: =SA!DG9-SA!DF9 -> -1200 | AV49: =SA!DH9-SA!DG9 -> -2200 | AW49: =SA!DI9-SA!DH9 -> -2000 | AX49: =SA!DJ9-SA!DI9 -> -3200 | AY49: =SA!DK9-SA!DJ9 -> -800 | AZ49: =SA!DL9-SA!DK9 -> -2600 | BA49: =SA!DM9-SA!DL9 -> -2300 | BB49: =SA!DN9-SA!DM9 -> -100 | BC49: =SA!DO9-SA!DN9 -> -1200 | BD49: =SA!DP9-SA!DO9 -> -1100 | BE49: =SA!DQ9-SA!DP9 -> -1200 | BF49: =SA!DR9-SA!DQ9 -> -300 | BG49: =SA!DS9-SA!DR9 -> -700 | BH49: =SA!DT9-SA!DS9 -> -500 | BI49: =SA!DU9-SA!DT9 -> -800 | BJ49: =SA!DV9-SA!DU9 -> -400 | BK49: =SA!DW9-SA!DV9 -> -600 | BL49: =SA!DX9-SA!DW9 -> -600 | BM49: =SA!DY9-SA!DX9 -> 1600 | BN49: =SA!DZ9-SA!DY9 -> -2700 | BO49: =SA!EA9-SA!DZ9 -> -300 | BP49: =SA!EB9-SA!EA9 -> -300 | BQ49: =SA!EC9-SA!EB9 -> 200 | BR49: =SA!ED9-SA!EC9 -> 0 | BS49: =SA!EE9-SA!ED9 -> 900 | BT49: =SA!EF9-SA!EE9 -> -1100 | BU49: =SA!EG9-SA!EF9 -> -500 | BV49: =SA!EH9-SA!EG9 -> -100 | BW49: =SA!EI9-SA!EH9 -> -400 | BX49: =SA!EJ9-SA!EI9 -> -100 | BY49: =SA!EK9-SA!EJ9 -> -100 | BZ49: =SA!EL9-SA!EK9 -> 200 | CA49: =SA!EM9-SA!EL9 -> -100 | CB49: =SA!EN9-SA!EM9 -> 600 | CC49: =SA!EO9-SA!EN9 -> 0 | CD49: =SA!EP9-SA!EO9 -> 0 | CE49: =SA!EQ9-SA!EP9 -> -400 | CF49: =SA!ER9-SA!EQ9 -> 300 | CG49: =SA!ES9-SA!ER9 -> 0 | CH49: =SA!ET9-SA!ES9 -> 100 | CI49: =SA!EU9-SA!ET9 -> 500 | CJ49: =SA!EV9-SA!EU9 -> 800 | CK49: =SA!EW9-SA!EV9 -> 2100 | CL49: =SA!EX9-SA!EW9 -> -3800 | CM49: =SA!EY9-SA!EX9 -> -200 | CN49: =SA!EZ9-SA!EY9 -> -400 | CO49: =SA!FA9-SA!EZ9 -> -200 | CP49: =SA!FB9-SA!FA9 -> 800 | CQ49: =SA!FC9-SA!FB9 -> 1200 | CR49: =SA!FD9-SA!FC9 -> 0 | CS49: =SA!FE9-SA!FD9 -> 2100 | CT49: =SA!FF9-SA!FE9 -> 800 | CU49: =SA!FG9-SA!FF9 -> 1400 | CV49: =SA!FH9-SA!FG9 -> -400 | CW49: =SA!FI9-SA!FH9 -> -2600 | CX49: =SA!FJ9-SA!FI9 -> 3100 | CY49: =SA!FK9-SA!FJ9 -> 100 | CZ49: =SA!FL9-SA!FK9 -> 500 | DA49: =SA!FM9-SA!FL9 -> 900 | DB49: =SA!FN9-SA!FM9 -> 200 | DC49: =SA!FO9-SA!FN9 -> 200 | DD49: =SA!FP9-SA!FO9 -> 200 | DE49: =SA!FQ9-SA!FP9 -> -1200 | DF49: =SA!FR9-SA!FQ9 -> 1200 | DG49: =SA!FS9-SA!FR9 -> 500 | DH49: =SA!FT9-SA!FS9 -> 700 | DI49: =SA!FU9-SA!FT9 -> 0 | DJ49: =SA!FV9-SA!FU9 -> 700 | DK49: =SA!FW9-SA!FV9 -> 1400 | DL49: =SA!FX9-SA!FW9 -> 400 | DM49: =SA!FY9-SA!FX9 -> 700 | DN49: =SA!FZ9-SA!FY9 -> 900 | DO49: =SA!GA9-SA!FZ9 -> 200 | DP49: =SA!GB9-SA!GA9 -> 400 | DQ49: =SA!GC9-SA!GB9 -> 0 | DR49: =SA!GD9-SA!GC9 -> 1300 | DS49: =SA!GE9-SA!GD9 -> 0 | DT49: =SA!GF9-SA!GE9 -> 400 | DU49: =SA!GG9-SA!GF9 -> 1000 | DV49: =SA!GH9-SA!GG9 -> 700 | DW49: =SA!GI9-SA!GH9 -> 100 | DX49: =SA!GJ9-SA!GI9 -> 100 | DY49: =SA!GK9-SA!GJ9 -> -200 | DZ49: =SA!GL9-SA!GK9 -> -200 | EA49: =SA!GM9-SA!GL9 -> 300 | EB49: =SA!GN9-SA!GM9 -> 600 | EC49: =SA!GO9-SA!GN9 -> 900 | ED49: =SA!GP9-SA!GO9 -> 200 | EE49: =SA!GQ9-SA!GP9 -> 700 | EF49: =SA!GR9-SA!GQ9 -> 1200 | EG49: =SA!GS9-SA!GR9 -> -1000 | EH49: =SA!GT9-SA!GS9 -> -800 | EI49: =SA!GU9-SA!GT9 -> -300 | EJ49: =SA!GV9-SA!GU9 -> 300 | EK49: =SA!GW9-SA!GV9 -> 300 | EL49: =SA!GX9-SA!GW9 -> 200 | EM49: =SA!GY9-SA!GX9 -> -1400 | EN49: =SA!GZ9-SA!GY9 -> 300 | EO49: =SA!HA9-SA!GZ9 -> 1800 | EP49: =SA!HB9-SA!HA9 -> 1800 | EQ49: =SA!HC9-SA!HB9 -> -800 | ER49: =SA!HD9-SA!HC9 -> 300 | ES49: =SA!HE9-SA!HD9 -> 1400 | ET49: =SA!HF9-SA!HE9 -> -900 | EU49: =SA!HG9-SA!HF9 -> -2400 | EV49: =SA!HH9-SA!HG9 -> 500 | EW49: =SA!HI9-SA!HH9 -> -400 | EX49: =SA!HJ9-SA!HI9 -> 1200 | EY49: =SA!HK9-SA!HJ9 -> -113500 | EZ49: =SA!HL9-SA!HK9 -> 0 | FA49: =SA!HM9-SA!HL9 -> 0 | FB49: 2540 | FC49: 0 | FE49: Construction | FF49: -3800 | FG49: -1100 | FH49: -500 | FI49: -175 | FJ49: 0 | FK49: 400 | FL49: 825 | FM49: 3100 | FN49: 1074.804165
A50: Manufacturing | B50: =SA!BN10-SA!BM10 -> -4200 | C50: =SA!BO10-SA!BN10 -> 4300 | D50: =SA!BP10-SA!BO10 -> 100 | E50: =SA!BQ10-SA!BP10 -> -100 | F50: =SA!BR10-SA!BQ10 -> -300 | G50: =SA!BS10-SA!BR10 -> -200 | H50: =SA!BT10-SA!BS10 -> 1000 | I50: =SA!BU10-SA!BT10 -> -200 | J50: =SA!BV10-SA!BU10 -> -900 | K50: =SA!BW10-SA!BV10 -> -200 | L50: =SA!BX10-SA!BW10 -> -300 | M50: =SA!BY10-SA!BX10 -> 0 | N50: =SA!BZ10-SA!BY10 -> 1000 | O50: =SA!CA10-SA!BZ10 -> -100 | P50: =SA!CB10-SA!CA10 -> 1000 | Q50: =SA!CC10-SA!CB10 -> 400 | R50: =SA!CD10-SA!CC10 -> -100 | S50: =SA!CE10-SA!CD10 -> 1000 | T50: =SA!CF10-SA!CE10 -> -200 | U50: =SA!CG10-SA!CF10 -> -600 | V50: =SA!CH10-SA!CG10 -> -900 | W50: =SA!CI10-SA!CH10 -> -1100 | X50: =SA!CJ10-SA!CI10 -> -1300 | Y50: =SA!CK10-SA!CJ10 -> -400 | Z50: =SA!CL10-SA!CK10 -> -500 | AA50: =SA!CM10-SA!CL10 -> 200 | AB50: =SA!CN10-SA!CM10 -> -900 | AC50: =SA!CO10-SA!CN10 -> 400 | AD50: =SA!CP10-SA!CO10 -> 700 | AE50: =SA!CQ10-SA!CP10 -> 400 | AF50: =SA!CR10-SA!CQ10 -> -600 | AG50: =SA!CS10-SA!CR10 -> -1500 | AH50: =SA!CT10-SA!CS10 -> -2000 | AI50: =SA!CU10-SA!CT10 -> -900 | AJ50: =SA!CV10-SA!CU10 -> 100 | AK50: =SA!CW10-SA!CV10 -> 100 | AL50: =SA!CX10-SA!CW10 -> 1000 | AM50: =SA!CY10-SA!CX10 -> 700 | AN50: =SA!CZ10-SA!CY10 -> -300 | AO50: =SA!DA10-SA!CZ10 -> -1200 | AP50: =SA!DB10-SA!DA10 -> -800 | AQ50: =SA!DC10-SA!DB10 -> -400 | AR50: =SA!DD10-SA!DC10 -> -4200 | AS50: =SA!DE10-SA!DD10 -> -2400 | AT50: =SA!DF10-SA!DE10 -> -3000 | AU50: =SA!DG10-SA!DF10 -> -1600 | AV50: =SA!DH10-SA!DG10 -> -3400 | AW50: =SA!DI10-SA!DH10 -> -4800 | AX50: =SA!DJ10-SA!DI10 -> -8700 | AY50: =SA!DK10-SA!DJ10 -> -10100 | AZ50: =SA!DL10-SA!DK10 -> -8600 | BA50: =SA!DM10-SA!DL10 -> -10100 | BB50: =SA!DN10-SA!DM10 -> -5600 | BC50: =SA!DO10-SA!DN10 -> -5500 | BD50: =SA!DP10-SA!DO10 -> -4600 | BE50: =SA!DQ10-SA!DP10 -> -800 | BF50: =SA!DR10-SA!DQ10 -> 3700 | BG50: =SA!DS10-SA!DR10 -> -2100 | BH50: =SA!DT10-SA!DS10 -> -700 | BI50: =SA!DU10-SA!DT10 -> -500 | BJ50: =SA!DV10-SA!DU10 -> -1000 | BK50: =SA!DW10-SA!DV10 -> 1000 | BL50: =SA!DX10-SA!DW10 -> 1900 | BM50: =SA!DY10-SA!DX10 -> 1200 | BN50: =SA!DZ10-SA!DY10 -> 1900 | BO50: =SA!EA10-SA!DZ10 -> 1100 | BP50: =SA!EB10-SA!EA10 -> 1800 | BQ50: =SA!EC10-SA!EB10 -> 900 | BR50: =SA!ED10-SA!EC10 -> 600 | BS50: =SA!EE10-SA!ED10 -> -200 | BT50: =SA!EF10-SA!EE10 -> 1200 | BU50: =SA!EG10-SA!EF10 -> 1200 | BV50: =SA!EH10-SA!EG10 -> 1100 | BW50: =SA!EI10-SA!EH10 -> 2100 | BX50: =SA!EJ10-SA!EI10 -> 1400 | BY50: =SA!EK10-SA!EJ10 -> 3200 | BZ50: =SA!EL10-SA!EK10 -> 1000 | CA50: =SA!EM10-SA!EL10 -> -100 | CB50: =SA!EN10-SA!EM10 -> 2000 | CC50: =SA!EO10-SA!EN10 -> 900 | CD50: =SA!EP10-SA!EO10 -> 100 | CE50: =SA!EQ10-SA!EP10 -> -500 | CF50: =SA!ER10-SA!EQ10 -> 1200 | CG50: =SA!ES10-SA!ER10 -> 1300 | CH50: =SA!ET10-SA!ES10 -> 1400 | CI50: =SA!EU10-SA!ET10 -> 1100 | CJ50: =SA!EV10-SA!EU10 -> 1300 | CK50: =SA!EW10-SA!EV10 -> 1000 | CL50: =SA!EX10-SA!EW10 -> 500 | CM50: =SA!EY10-SA!EX10 -> 1700 | CN50: =SA!EZ10-SA!EY10 -> 200 | CO50: =SA!FA10-SA!EZ10 -> -200 | CP50: =SA!FB10-SA!FA10 -> 200 | CQ50: =SA!FC10-SA!FB10 -> 400 | CR50: =SA!FD10-SA!FC10 -> -400 | CS50: =SA!FE10-SA!FD10 -> 400 | CT50: =SA!FF10-SA!FE10 -> -200 | CU50: =SA!FG10-SA!FF10 -> 300 | CV50: =SA!FH10-SA!FG10 -> 0 | CW50: =SA!FI10-SA!FH10 -> -1200 | CX50: =SA!FJ10-SA!FI10 -> 400 | CY50: =SA!FK10-SA!FJ10 -> 400 | CZ50: =SA!FL10-SA!FK10 -> -1300 | DA50: =SA!FM10-SA!FL10 -> 600 | DB50: =SA!FN10-SA!FM10 -> 700 | DC50: =SA!FO10-SA!FN10 -> 1200 | DD50: =SA!FP10-SA!FO10 -> 800 | DE50: =SA!FQ10-SA!FP10 -> 200 | DF50: =SA!FR10-SA!FQ10 -> 1100 | DG50: =SA!FS10-SA!FR10 -> 600 | DH50: =SA!FT10-SA!FS10 -> 300 | DI50: =SA!FU10-SA!FT10 -> 1600 | DJ50: =SA!FV10-SA!FU10 -> 1400 | DK50: =SA!FW10-SA!FV10 -> -100 | DL50: =SA!FX10-SA!FW10 -> 1500 | DM50: =SA!FY10-SA!FX10 -> 400 | DN50: =SA!FZ10-SA!FY10 -> 300 | DO50: =SA!GA10-SA!FZ10 -> 300 | DP50: =SA!GB10-SA!GA10 -> 500 | DQ50: =SA!GC10-SA!GB10 -> 800 | DR50: =SA!GD10-SA!GC10 -> -100 | DS50: =SA!GE10-SA!GD10 -> 1000 | DT50: =SA!GF10-SA!GE10 -> -500 | DU50: =SA!GG10-SA!GF10 -> -700 | DV50: =SA!GH10-SA!GG10 -> -400 | DW50: =SA!GI10-SA!GH10 -> -100 | DX50: =SA!GJ10-SA!GI10 -> -100 | DY50: =SA!GK10-SA!GJ10 -> -500 | DZ50: =SA!GL10-SA!GK10 -> 0 | EA50: =SA!GM10-SA!GL10 -> -400 | EB50: =SA!GN10-SA!GM10 -> 0 | EC50: =SA!GO10-SA!GN10 -> 0 | ED50: =SA!GP10-SA!GO10 -> 100 | EE50: =SA!GQ10-SA!GP10 -> -500 | EF50: =SA!GR10-SA!GQ10 -> -300 | EG50: =SA!GS10-SA!GR10 -> -100 | EH50: =SA!GT10-SA!GS10 -> -700 | EI50: =SA!GU10-SA!GT10 -> -700 | EJ50: =SA!GV10-SA!GU10 -> -200 | EK50: =SA!GW10-SA!GV10 -> -300 | EL50: =SA!GX10-SA!GW10 -> -300 | EM50: =SA!GY10-SA!GX10 -> 3800 | EN50: =SA!GZ10-SA!GY10 -> -900 | EO50: =SA!HA10-SA!GZ10 -> 2200 | EP50: =SA!HB10-SA!HA10 -> -300 | EQ50: =SA!HC10-SA!HB10 -> 1000 | ER50: =SA!HD10-SA!HC10 -> -1200 | ES50: =SA!HE10-SA!HD10 -> 4200 | ET50: =SA!HF10-SA!HE10 -> 0 | EU50: =SA!HG10-SA!HF10 -> 300 | EV50: =SA!HH10-SA!HG10 -> 1900 | EW50: =SA!HI10-SA!HH10 -> 400 | EX50: =SA!HJ10-SA!HI10 -> 1200 | EY50: =SA!HK10-SA!HJ10 -> -475900 | EZ50: =SA!HL10-SA!HK10 -> 0 | FA50: =SA!HM10-SA!HL10 -> 0 | FB50: 2882 | FC50: 2 | FE50: Manufacturing | FF50: -10100 | FG50: -1125 | FH50: -400 | FI50: -100 | FJ50: 100 | FK50: 650 | FL50: 1200 | FM50: 4300 | FN50: 2158.466945
A51: Durable Goods | B51: =SA!BN11-SA!BM11 -> -3800 | C51: =SA!BO11-SA!BN11 -> 4600 | D51: =SA!BP11-SA!BO11 -> 300 | E51: =SA!BQ11-SA!BP11 -> 500 | F51: =SA!BR11-SA!BQ11 -> -300 | G51: =SA!BS11-SA!BR11 -> 100 | H51: =SA!BT11-SA!BS11 -> 300 | I51: =SA!BU11-SA!BT11 -> 400 | J51: =SA!BV11-SA!BU11 -> -600 | K51: =SA!BW11-SA!BV11 -> 100 | L51: =SA!BX11-SA!BW11 -> -400 | M51: =SA!BY11-SA!BX11 -> 0 | N51: =SA!BZ11-SA!BY11 -> 1200 | O51: =SA!CA11-SA!BZ11 -> 100 | P51: =SA!CB11-SA!CA11 -> 1200 | Q51: =SA!CC11-SA!CB11 -> 200 | R51: =SA!CD11-SA!CC11 -> 400 | S51: =SA!CE11-SA!CD11 -> 1000 | T51: =SA!CF11-SA!CE11 -> -200 | U51: =SA!CG11-SA!CF11 -> -100 | V51: =SA!CH11-SA!CG11 -> -700 | W51: =SA!CI11-SA!CH11 -> -1000 | X51: =SA!CJ11-SA!CI11 -> -1100 | Y51: =SA!CK11-SA!CJ11 -> -300 | Z51: =SA!CL11-SA!CK11 -> -800 | AA51: =SA!CM11-SA!CL11 -> 100 | AB51: =SA!CN11-SA!CM11 -> -900 | AC51: =SA!CO11-SA!CN11 -> 1000 | AD51: =SA!CP11-SA!CO11 -> 200 | AE51: =SA!CQ11-SA!CP11 -> -500 | AF51: =SA!CR11-SA!CQ11 -> -300 | AG51: =SA!CS11-SA!CR11 -> -1000 | AH51: =SA!CT11-SA!CS11 -> -1700 | AI51: =SA!CU11-SA!CT11 -> -700 | AJ51: =SA!CV11-SA!CU11 -> -200 | AK51: =SA!CW11-SA!CV11 -> -100 | AL51: =SA!CX11-SA!CW11 -> 900 | AM51: =SA!CY11-SA!CX11 -> 500 | AN51: =SA!CZ11-SA!CY11 -> -100 | AO51: =SA!DA11-SA!CZ11 -> -1000 | AP51: =SA!DB11-SA!DA11 -> -400 | AQ51: =SA!DC11-SA!DB11 -> -600 | AR51: =SA!DD11-SA!DC11 -> -2100 | AS51: =SA!DE11-SA!DD11 -> -2300 | AT51: =SA!DF11-SA!DE11 -> -2300 | AU51: =SA!DG11-SA!DF11 -> -1800 | AV51: =SA!DH11-SA!DG11 -> -2300 | AW51: =SA!DI11-SA!DH11 -> -3800 | AX51: =SA!DJ11-SA!DI11 -> -7100 | AY51: =SA!DK11-SA!DJ11 -> -8400 | AZ51: =SA!DL11-SA!DK11 -> -7300 | BA51: =SA!DM11-SA!DL11 -> -8500 | BB51: =SA!DN11-SA!DM11 -> -4500 | BC51: =SA!DO11-SA!DN11 -> -4500 | BD51: =SA!DP11-SA!DO11 -> -2700 | BE51: =SA!DQ11-SA!DP11 -> -1500 | BF51: =SA!DR11-SA!DQ11 -> 2600 | BG51: =SA!DS11-SA!DR11 -> -700 | BH51: =SA!DT11-SA!DS11 -> -900 | BI51: =SA!DU11-SA!DT11 -> -500 | BJ51: =SA!DV11-SA!DU11 -> -900 | BK51: =SA!DW11-SA!DV11 -> 900 | BL51: =SA!DX11-SA!DW11 -> 1600 | BM51: =SA!DY11-SA!DX11 -> 1000 | BN51: =SA!DZ11-SA!DY11 -> 1300 | BO51: =SA!EA11-SA!DZ11 -> 500 | BP51: =SA!EB11-SA!EA11 -> 800 | BQ51: =SA!EC11-SA!EB11 -> 1400 | BR51: =SA!ED11-SA!EC11 -> 700 | BS51: =SA!EE11-SA!ED11 -> -100 | BT51: =SA!EF11-SA!EE11 -> 800 | BU51: =SA!EG11-SA!EF11 -> 1400 | BV51: =SA!EH11-SA!EG11 -> 800 | BW51: =SA!EI11-SA!EH11 -> 2000 | BX51: =SA!EJ11-SA!EI11 -> 1100 | BY51: =SA!EK11-SA!EJ11 -> 2200 | BZ51: =SA!EL11-SA!EK11 -> 700 | CA51: =SA!EM11-SA!EL11 -> 600 | CB51: =SA!EN11-SA!EM11 -> 1500 | CC51: =SA!EO11-SA!EN11 -> 300 | CD51: =SA!EP11-SA!EO11 -> 0 | CE51: =SA!EQ11-SA!EP11 -> -300 | CF51: =SA!ER11-SA!EQ11 -> 1200 | CG51: =SA!ES11-SA!ER11 -> 1000 | CH51: =SA!ET11-SA!ES11 -> 1400 | CI51: =SA!EU11-SA!ET11 -> 1000 | CJ51: =SA!EV11-SA!EU11 -> 1300 | CK51: =SA!EW11-SA!EV11 -> 400 | CL51: =SA!EX11-SA!EW11 -> 600 | CM51: =SA!EY11-SA!EX11 -> 1400 | CN51: =SA!EZ11-SA!EY11 -> 100 | CO51: =SA!FA11-SA!EZ11 -> -300 | CP51: =SA!FB11-SA!FA11 -> -100 | CQ51: =SA!FC11-SA!FB11 -> 200 | CR51: =SA!FD11-SA!FC11 -> -400 | CS51: =SA!FE11-SA!FD11 -> 200 | CT51: =SA!FF11-SA!FE11 -> -100 | CU51: =SA!FG11-SA!FF11 -> 100 | CV51: =SA!FH11-SA!FG11 -> 0 | CW51: =SA!FI11-SA!FH11 -> -900 | CX51: =SA!FJ11-SA!FI11 -> 300 | CY51: =SA!FK11-SA!FJ11 -> 300 | CZ51: =SA!FL11-SA!FK11 -> -1500 | DA51: =SA!FM11-SA!FL11 -> 300 | DB51: =SA!FN11-SA!FM11 -> 400 | DC51: =SA!FO11-SA!FN11 -> 800 | DD51: =SA!FP11-SA!FO11 -> 400 | DE51: =SA!FQ11-SA!FP11 -> 0 | DF51: =SA!FR11-SA!FQ11 -> 500 | DG51: =SA!FS11-SA!FR11 -> -100 | DH51: =SA!FT11-SA!FS11 -> 300 | DI51: =SA!FU11-SA!FT11 -> 1500 | DJ51: =SA!FV11-SA!FU11 -> 1200 | DK51: =SA!FW11-SA!FV11 -> 100 | DL51: =SA!FX11-SA!FW11 -> 700 | DM51: =SA!FY11-SA!FX11 -> 100 | DN51: =SA!FZ11-SA!FY11 -> 200 | DO51: =SA!GA11-SA!FZ11 -> 400 | DP51: =SA!GB11-SA!GA11 -> 400 | DQ51: =SA!GC11-SA!GB11 -> 800 | DR51: =SA!GD11-SA!GC11 -> -300 | DS51: =SA!GE11-SA!GD11 -> 400 | DT51: =SA!GF11-SA!GE11 -> -100 | DU51: =SA!GG11-SA!GF11 -> -800 | DV51: =SA!GH11-SA!GG11 -> -700 | DW51: =SA!GI11-SA!GH11 -> 0 | DX51: =SA!GJ11-SA!GI11 -> -300 | DY51: =SA!GK11-SA!GJ11 -> -300 | DZ51: =SA!GL11-SA!GK11 -> -400 | EA51: =SA!GM11-SA!GL11 -> -800 | EB51: =SA!GN11-SA!GM11 -> -300 | EC51: =SA!GO11-SA!GN11 -> -400 | ED51: =SA!GP11-SA!GO11 -> 0 | EE51: =SA!GQ11-SA!GP11 -> -500 | EF51: =SA!GR11-SA!GQ11 -> -500 | EG51: =SA!GS11-SA!GR11 -> -300 | EH51: =SA!GT11-SA!GS11 -> -500 | EI51: =SA!GU11-SA!GT11 -> -600 | EJ51: =SA!GV11-SA!GU11 -> -200 | EK51: =SA!GW11-SA!GV11 -> -200 | EL51: =SA!GX11-SA!GW11 -> -200 | EM51: =SA!GY11-SA!GX11 -> 1000 | EN51: =SA!GZ11-SA!GY11 -> -300 | EO51: =SA!HA11-SA!GZ11 -> 2300 | EP51: =SA!HB11-SA!HA11 -> -200 | EQ51: =SA!HC11-SA!HB11 -> 300 | ER51: =SA!HD11-SA!HC11 -> -500 | ES51: =SA!HE11-SA!HD11 -> 1800 | ET51: =SA!HF11-SA!HE11 -> -500 | EU51: =SA!HG11-SA!HF11 -> 900 | EV51: =SA!HH11-SA!HG11 -> 1000 | EW51: =SA!HI11-SA!HH11 -> 900 | EX51: =SA!HJ11-SA!HI11 -> 500 | EY51: =SA!HK11-SA!HJ11 -> -286400 | EZ51: =SA!HL11-SA!HK11 -> 0 | FA51: =SA!HM11-SA!HL11 -> 0 | FB51: 2120 | FC51: 1 | FE51: Durable Goods | FF51: -8500 | FG51: -925 | FH51: -400 | FI51: -100 | FJ51: 100 | FK51: 400 | FL51: 1000 | FM51: 4600 | FN51: 1758.681618
A52: Non-Durable Goods | B52: =SA!BN12-SA!BM12 -> -400 | C52: =SA!BO12-SA!BN12 -> -300 | D52: =SA!BP12-SA!BO12 -> -200 | E52: =SA!BQ12-SA!BP12 -> -600 | F52: =SA!BR12-SA!BQ12 -> 0 | G52: =SA!BS12-SA!BR12 -> -300 | H52: =SA!BT12-SA!BS12 -> 700 | I52: =SA!BU12-SA!BT12 -> -600 | J52: =SA!BV12-SA!BU12 -> -300 | K52: =SA!BW12-SA!BV12 -> -300 | L52: =SA!BX12-SA!BW12 -> 100 | M52: =SA!BY12-SA!BX12 -> 0 | N52: =SA!BZ12-SA!BY12 -> -200 | O52: =SA!CA12-SA!BZ12 -> -200 | P52: =SA!CB12-SA!CA12 -> -200 | Q52: =SA!CC12-SA!CB12 -> 200 | R52: =SA!CD12-SA!CC12 -> -500 | S52: =SA!CE12-SA!CD12 -> 0 | T52: =SA!CF12-SA!CE12 -> 0 | U52: =SA!CG12-SA!CF12 -> -500 | V52: =SA!CH12-SA!CG12 -> -200 | W52: =SA!CI12-SA!CH12 -> -100 | X52: =SA!CJ12-SA!CI12 -> -200 | Y52: =SA!CK12-SA!CJ12 -> -100 | Z52: =SA!CL12-SA!CK12 -> 300 | AA52: =SA!CM12-SA!CL12 -> 100 | AB52: =SA!CN12-SA!CM12 -> 0 | AC52: =SA!CO12-SA!CN12 -> -600 | AD52: =SA!CP12-SA!CO12 -> 500 | AE52: =SA!CQ12-SA!CP12 -> 900 | AF52: =SA!CR12-SA!CQ12 -> -300 | AG52: =SA!CS12-SA!CR12 -> -500 | AH52: =SA!CT12-SA!CS12 -> -300 | AI52: =SA!CU12-SA!CT12 -> -200 | AJ52: =SA!CV12-SA!CU12 -> 300 | AK52: =SA!CW12-SA!CV12 -> 200 | AL52: =SA!CX12-SA!CW12 -> 100 | AM52: =SA!CY12-SA!CX12 -> 200 | AN52: =SA!CZ12-SA!CY12 -> -200 | AO52: =SA!DA12-SA!CZ12 -> -200 | AP52: =SA!DB12-SA!DA12 -> -400 | AQ52: =SA!DC12-SA!DB12 -> 200 | AR52: =SA!DD12-SA!DC12 -> -2100 | AS52: =SA!DE12-SA!DD12 -> -100 | AT52: =SA!DF12-SA!DE12 -> -700 | AU52: =SA!DG12-SA!DF12 -> 200 | AV52: =SA!DH12-SA!DG12 -> -1100 | AW52: =SA!DI12-SA!DH12 -> -1000 | AX52: =SA!DJ12-SA!DI12 -> -1600 | AY52: =SA!DK12-SA!DJ12 -> -1700 | AZ52: =SA!DL12-SA!DK12 -> -1300 | BA52: =SA!DM12-SA!DL12 -> -1600 | BB52: =SA!DN12-SA!DM12 -> -1100 | BC52: =SA!DO12-SA!DN12 -> -1000 | BD52: =SA!DP12-SA!DO12 -> -1900 | BE52: =SA!DQ12-SA!DP12 -> 700 | BF52: =SA!DR12-SA!DQ12 -> 1100 | BG52: =SA!DS12-SA!DR12 -> -1400 | BH52: =SA!DT12-SA!DS12 -> 200 | BI52: =SA!DU12-SA!DT12 -> 0 | BJ52: =SA!DV12-SA!DU12 -> -100 | BK52: =SA!DW12-SA!DV12 -> 100 | BL52: =SA!DX12-SA!DW12 -> 300 | BM52: =SA!DY12-SA!DX12 -> 200 | BN52: =SA!DZ12-SA!DY12 -> 600 | BO52: =SA!EA12-SA!DZ12 -> 600 | BP52: =SA!EB12-SA!EA12 -> 1000 | BQ52: =SA!EC12-SA!EB12 -> -500 | BR52: =SA!ED12-SA!EC12 -> -100 | BS52: =SA!EE12-SA!ED12 -> -100 | BT52: =SA!EF12-SA!EE12 -> 400 | BU52: =SA!EG12-SA!EF12 -> -200 | BV52: =SA!EH12-SA!EG12 -> 300 | BW52: =SA!EI12-SA!EH12 -> 100 | BX52: =SA!EJ12-SA!EI12 -> 300 | BY52: =SA!EK12-SA!EJ12 -> 1000 | BZ52: =SA!EL12-SA!EK12 -> 300 | CA52: =SA!EM12-SA!EL12 -> -700 | CB52: =SA!EN12-SA!EM12 -> 500 | CC52: =SA!EO12-SA!EN12 -> 600 | CD52: =SA!EP12-SA!EO12 -> 100 | CE52: =SA!EQ12-SA!EP12 -> -200 | CF52: =SA!ER12-SA!EQ12 -> 0 | CG52: =SA!ES12-SA!ER12 -> 300 | CH52: =SA!ET12-SA!ES12 -> 0 | CI52: =SA!EU12-SA!ET12 -> 100 | CJ52: =SA!EV12-SA!EU12 -> 0 | CK52: =SA!EW12-SA!EV12 -> 600 | CL52: =SA!EX12-SA!EW12 -> -100 | CM52: =SA!EY12-SA!EX12 -> 300 | CN52: =SA!EZ12-SA!EY12 -> 100 | CO52: =SA!FA12-SA!EZ12 -> 100 | CP52: =SA!FB12-SA!FA12 -> 300 | CQ52: =SA!FC12-SA!FB12 -> 200 | CR52: =SA!FD12-SA!FC12 -> 0 | CS52: =SA!FE12-SA!FD12 -> 200 | CT52: =SA!FF12-SA!FE12 -> -100 | CU52: =SA!FG12-SA!FF12 -> 200 | CV52: =SA!FH12-SA!FG12 -> 0 | CW52: =SA!FI12-SA!FH12 -> -300 | CX52: =SA!FJ12-SA!FI12 -> 100 | CY52: =SA!FK12-SA!FJ12 -> 100 | CZ52: =SA!FL12-SA!FK12 -> 200 | DA52: =SA!FM12-SA!FL12 -> 300 | DB52: =SA!FN12-SA!FM12 -> 300 | DC52: =SA!FO12-SA!FN12 -> 400 | DD52: =SA!FP12-SA!FO12 -> 400 | DE52: =SA!FQ12-SA!FP12 -> 200 | DF52: =SA!FR12-SA!FQ12 -> 600 | DG52: =SA!FS12-SA!FR12 -> 700 | DH52: =SA!FT12-SA!FS12 -> 0 | DI52: =SA!FU12-SA!FT12 -> 100 | DJ52: =SA!FV12-SA!FU12 -> 200 | DK52: =SA!FW12-SA!FV12 -> -200 | DL52: =SA!FX12-SA!FW12 -> 800 | DM52: =SA!FY12-SA!FX12 -> 300 | DN52: =SA!FZ12-SA!FY12 -> 100 | DO52: =SA!GA12-SA!FZ12 -> -100 | DP52: =SA!GB12-SA!GA12 -> 100 | DQ52: =SA!GC12-SA!GB12 -> 0 | DR52: =SA!GD12-SA!GC12 -> 200 | DS52: =SA!GE12-SA!GD12 -> 600 | DT52: =SA!GF12-SA!GE12 -> -400 | DU52: =SA!GG12-SA!GF12 -> 100 | DV52: =SA!GH12-SA!GG12 -> 300 | DW52: =SA!GI12-SA!GH12 -> -100 | DX52: =SA!GJ12-SA!GI12 -> 200 | DY52: =SA!GK12-SA!GJ12 -> -200 | DZ52: =SA!GL12-SA!GK12 -> 400 | EA52: =SA!GM12-SA!GL12 -> 400 | EB52: =SA!GN12-SA!GM12 -> 300 | EC52: =SA!GO12-SA!GN12 -> 400 | ED52: =SA!GP12-SA!GO12 -> 100 | EE52: =SA!GQ12-SA!GP12 -> 0 | EF52: =SA!GR12-SA!GQ12 -> 200 | EG52: =SA!GS12-SA!GR12 -> 200 | EH52: =SA!GT12-SA!GS12 -> -200 | EI52: =SA!GU12-SA!GT12 -> -100 | EJ52: =SA!GV12-SA!GU12 -> 0 | EK52: =SA!GW12-SA!GV12 -> -100 | EL52: =SA!GX12-SA!GW12 -> -100 | EM52: =SA!GY12-SA!GX12 -> 2800 | EN52: =SA!GZ12-SA!GY12 -> -600 | EO52: =SA!HA12-SA!GZ12 -> -100 | EP52: =SA!HB12-SA!HA12 -> -100 | EQ52: =SA!HC12-SA!HB12 -> 700 | ER52: =SA!HD12-SA!HC12 -> -700 | ES52: =SA!HE12-SA!HD12 -> 2400 | ET52: =SA!HF12-SA!HE12 -> 500 | EU52: =SA!HG12-SA!HF12 -> -600 | EV52: =SA!HH12-SA!HG12 -> 900 | EW52: =SA!HI12-SA!HH12 -> -500 | EX52: =SA!HJ12-SA!HI12 -> 700 | EY52: =SA!HK12-SA!HJ12 -> -189500 | EZ52: =SA!HL12-SA!HK12 -> 0 | FA52: =SA!HM12-SA!HL12 -> 0 | FB52: 1951 | FC52: 2 | FE52: Non-Durable Goods | FF52: -2100 | FG52: -425 | FH52: -200 | FI52: 0 | FJ52: 100 | FK52: 200 | FL52: 400 | FM52: 2800 | FN52: 583.0290212
